Workbook

Sheet Cover

Sheet Format key
A1: Example cell formats | B1: Type of information | C1: Comment
A2: Example | B2: Column Label | C2: Describes the data or text in the column
A3: Example | B3: Row label | C3: Describes the data of text in the row
A4: Example | B4: Text input | C4: Is hard coded text that other calculations depend on
A5: Example | B5: Text linked | C5: Is text linked from another cell
A6: Example | B6: Value input | C6: Is hard coded value that is an input to other calculations
A7: Example | B7: Value link | C7: Is a value that is linked from another cell
A8: Example | B8: Value calculation | C8: Is a value calculated within the cell, by reference to other cells
A9: Example | B9: Column total | C9: Is the sum of the column above

Sheet Report - Building Blocks
B2: $ m nominal | D2: FY20 | E2: FY21 | F2: FY22 | G2: FY23 | H2: FY24
B4: Building block revenue requirement
B5: Return of capital | D5: ='Calc - RAB 2020-24'!BE6727/1000 -> 9.019782047 | E5: ='Calc - RAB 2020-24'!BF6727/1000 -> 7.053721709 | F5: ='Calc - RAB 2020-24'!BG6727/1000 -> 5.246114384 | G5: ='Calc - RAB 2020-24'!BH6727/1000 -> 4.416018312 | H5: ='Calc - RAB 2020-24'!BI6727/1000 -> 2.981957793
B6: Return on capital | D6: ='Calc - RAB 2020-24'!BK6727/1000 -> 2.412186501 | E6: ='Calc - RAB 2020-24'!BL6727/1000 -> 1.845472641 | F6: ='Calc - RAB 2020-24'!BM6727/1000 -> 1.40228656 | G6: ='Calc - RAB 2020-24'!BN6727/1000 -> 1.072672639 | H6: ='Calc - RAB 2020-24'!BO6727/1000 -> 0.7952137409
B7: Total allowable revenue | D7: =SUM(D5:D6) -> 11.43196855 | E7: =SUM(E5:E6) -> 8.89919435 | F7: 6.648400944 | G7: 5.488690951 | H7: 3.777171534

Sheet Report - Charges
B1: Pre 2009 Asset Capital Charges | J1: Pre 2009 Asset Capital Charges
B2: Confidential | C2: Smooth Revenue Requirement | J2: Confidential | K2: AER Draft Decision Annuity Method Smooth Revenue
B3: Customer Capital Charges ($ nominal) | C3: ='Calc - Customer Charges'!X4 -> FY20 | D3: ='Calc - Customer Charges'!Y4 -> FY21 | E3: ='Calc - Customer Charges'!Z4 -> FY22 | F3: ='Calc - Customer Charges'!AA4 -> FY23 | G3: ='Calc - Customer Charges'!AB4 -> FY24 | H3: FY24 variance | J3: =B3 -> Customer Capital Charges ($ nominal) | K3: =C3 -> FY20 | L3: FY21 | M3: FY22 | N3: FY23 | O3: FY24 | P3: FY24 variance
B5: Customer 1 | J5: Customer 1
B6: Customer 2 | J6: Customer 2
B7: Customer 3 | J7: Customer 3
B8: Customer 4 | J8: Customer 4
B9: Customer 5 | J9: Customer 5
B10: Customer 6 | J10: Customer 6
B11: Customer 7 | J11: Customer 7
B12: Customer 8 | J12: Customer 8
B13: Customer 9 | J13: Customer 9
B14: Customer 10 | J14: Customer 10
B15: Customer 11 | J15: Customer 11
B16: Customer 12 | J16: Customer 12
B17: Customer 13 | J17: Customer 13
B18: Customer 14 | J18: Customer 14
B19: Customer 15 | J19: Customer 15
B20: Customer 16 | J20: Customer 16
B21: Customer 17 | J21: Customer 17
B22: Customer 18 | J22: Customer 18
B23: Customer 19 | J23: Customer 19
B24: Customer 20 | J24: Customer 20
B25: Customer 21 | J25: Customer 21
B26: Customer 22 | J26: Customer 22
B27: Customer 23 | J27: Customer 23
B28: Customer 24 | J28: Customer 24
B29: Customer 25 | J29: Customer 25
B30: Customer 26 | J30: Customer 26
B31: Customer 27 | J31: Customer 27
B32: Customer 28 | J32: Customer 28
B33: Customer 29 | J33: Customer 29
B34: Customer 30 | J34: Customer 30
B35: Customer 31 | J35: Customer 31
B36: Customer 32 | J36: Customer 32
B37: Customer 33 | J37: Customer 33
B38: Customer 34 | J38: Customer 34
B39: Customer 35 | J39: Customer 35
B40: Customer 36 | J40: Customer 36
B41: Customer 37 | J41: Customer 37
B42: Customer 38 | J42: Customer 38
B43: Customer 39 | J43: Customer 39
B44: Customer 40 | J44: Customer 40
B45: Customer 41 | J45: Customer 41
B46: Customer 42 | J46: Customer 42
B47: Customer 43 | J47: Customer 43
B48: Customer 44 | J48: Customer 44
B49: Customer 45 | J49: Customer 45
B50: Customer 46 | J50: Customer 46
B51: Customer 47 | J51: Customer 47
B52: Customer 48 | J52: Customer 48
B53: Customer 49 | J53: Customer 49
B54: Customer 50 | J54: Customer 50
B55: Customer 51 | J55: Customer 51
B56: Customer 52 | J56: Customer 52
B57: Customer 53 | J57: Customer 53
B58: Customer 54 | J58: Customer 54
B59: Customer 55 | J59: Customer 55
B60: Customer 56 | J60: Customer 56
B61: Customer 57 | J61: Customer 57
B62: Customer 58 | J62: Customer 58
B63: Customer 59 | J63: Customer 59
B64: Customer 60 | J64: Customer 60
B65: Customer 61 | J65: Customer 61
B66: Customer 62 | J66: Customer 62
B67: Customer 63 | J67: Customer 63
B68: Customer 64 | J68: Customer 64
B69: Customer 65 | J69: Customer 65
B70: Customer 66 | J70: Customer 66
B71: Customer 67 | J71: Customer 67
B72: Customer 68 | J72: Customer 68
B73: Customer 69 | J73: Customer 69
B74: Customer 70 | J74: Customer 70
B75: Customer 71 | J75: Customer 71
B76: Customer 72 | J76: Customer 72
B77: Customer 73 | J77: Customer 73
B78: Customer 74 | J78: Customer 74
B79: Customer 75 | J79: Customer 75
B80: Customer 76 | J80: Customer 76
B81: Customer 77 | J81: Customer 77
B82: Customer 78 | J82: Customer 78
B83: Customer 79 | J83: Customer 79
B84: Customer 80 | J84: Customer 80
B85: Customer 81 | J85: Customer 81
B86: Customer 82 | J86: Customer 82
B87: Customer 83 | J87: Customer 83
B88: Customer 84 | J88: Customer 84
B89: Customer 85 | J89: Customer 85
B90: Customer 86 | J90: Customer 86
B91: Customer 87 | J91: Customer 87
B92: Customer 88 | J92: Customer 88
B93: Customer 89 | J93: Customer 89
B94: Customer 90 | J94: Customer 90
B95: Customer 91 | J95: Customer 91
B96: Customer 92 | J96: Customer 92
B97: Customer 93 | J97: Customer 93
B98: Customer 94 | J98: Customer 94
B99: Customer 95 | J99: Customer 95
B100: Customer 96 | J100: Customer 96
B101: Customer 97 | J101: Customer 97
B102: Customer 98 | J102: Customer 98
B103: Customer 99 | J103: Customer 99
B104: Customer 100 | J104: Customer 100
B105: Customer 101 | J105: Customer 101
B106: Customer 102 | J106: Customer 102
C107: 11431968.55 | D107: 8506920.98 | E107: 6639865.107 | F107: 5348308.34 | G107: 4406972.577 | H107: END | K107: 7144723.171 | L107: 7317973.753 | M107: 7495425.444 | N107: 7677180.116 | O107: 7863342.111 | P107: END

Sheet Report - Chart Revenue
B2: $ nominal | C2: FY20 | D2: FY21 | E2: FY22 | F2: FY23 | G2: FY24
B3: Ausgrid Smooth Revenue | C3: ='Calc - Customer Charges'!X108 -> 11431968.55 | D3: ='Calc - Customer Charges'!Y108 -> 8506920.98 | E3: ='Calc - Customer Charges'!Z108 -> 6639865.107 | F3: ='Calc - Customer Charges'!AA108 -> 5348308.34 | G3: ='Calc - Customer Charges'!AB108 -> 4406972.577
B4: AER Smooth Revenue | C4: ='Calc - Customer Charges'!AJ108 -> 7144723.171 | D4: ='Calc - Customer Charges'!AK108 -> 7317973.753 | E4: ='Calc - Customer Charges'!AL108 -> 7495425.444 | F4: ='Calc - Customer Charges'!AM108 -> 7677180.116 | G4: ='Calc - Customer Charges'!AN108 -> 7863342.111

Sheet Inputs - General
B2: Item | D2: FY13 | E2: FY14 | F2: FY15 | G2: FY16 | H2: FY17 | I2: FY18 | J2: FY19 | K2: FY20 | L2: FY21 | M2: FY22 | N2: FY23 | O2: FY24
B4: Inflation | E4: 0.0176 | F4: 0.02487922705 | G4: 0.01508366722 | H4: 0.01276990945 | I4: 0.01948647409 | J4: 0.019 | K4: 0.02424874658 | L4: 0.02424874658 | M4: 0.02424874658 | N4: 0.02424874658 | O4: 0.02424874658
B5: Inflation index (base end FY14 / start FY15) | D5: =E5/(1+E4) -> 0.9827044025 | E5: 1 | F5: =E5*(1+F4) -> 1.024879227 | G5: =F5*(1+G4) -> 1.040338164 | H5: 1.053623188 | I5: 1.074154589 | J5: 1.094563527 | K5: 1.12110532 | L5: 1.148290719 | M5: 1.17613533 | N5: 1.204655137 | O5: 1.233866514
B6: Inflation index (base end FY19 / start FY20) | J6: 1 | K6: =J6*(1+INDIRECT("CPI"&K2)) -> 1.024248747 | L6: =K6*(1+INDIRECT("CPI"&L2)) -> 1.049085495 | M6: =L6*(1+INDIRECT("CPI"&M2)) -> 1.074524503 | N6: =M6*(1+INDIRECT("CPI"&N2)) -> 1.100580376 | O6: =N6*(1+INDIRECT("CPI"&O2)) -> 1.12726807
B7: Pre-Tax Nominal WACC | D7: 0.06283010578 | E7: Ausgrid Revised Proposal PTRM
B8: Opening RAB FY15 ($m) | D8: ='Calc - RAB 2020-24'!$G$6727/1000 -> 38.39220819 | E8: Source: FY15-19 Model

Sheet Input - Customer Inventory FY15
B2: Customer | C2: Lookup | D2: Component | E2: Description | F2: Count | G2: Rate | H2: Average Age | I2: Remaining Life | J2: Economic life
B3: Customer 1 | C3: =CONCATENATE(D3," - ", E3) -> Bracket - 0.5 | D3: Bracket | E3: 0.5 | F3: 494 | G3: 1 | H3: 25.00389064 | I3: =IF(J3-(H3)<0,0,J3-(H3)) -> 0 | J3: =IF(D3="Lamp",3,IF(D3="Support",35,20)) -> 20
B4: Customer 1 | C4: =CONCATENATE(D4," - ", E4) -> Bracket - 0.5 | D4: Bracket | E4: 0.5 | F4: 5 | G4: 2 | H4: 25.00389064 | I4: =IF(J4-(H4)<0,0,J4-(H4)) -> 0 | J4: =IF(D4="Lamp",3,IF(D4="Support",35,20)) -> 20
B5: Customer 1 | C5: Bracket - 1.0 | D5: Bracket | E5: 1.0 | F5: 7 | G5: 1 | H5: 12.43287671 | I5: 7.567123288 | J5: 20
B6: Customer 1 | C6: Bracket - 1.5 | D6: Bracket | E6: 1.5 | F6: 2 | G6: 2 | H6: 12.08219178 | I6: 7.917808219 | J6: 20
B7: Customer 1 | C7: Bracket - 2.0 | D7: Bracket | E7: 2.0 | F7: 507.5 | G7: 1 | H7: 22.99668081 | I7: 0 | J7: 20
B8: Customer 1 | C8: Bracket - 2.0 | D8: Bracket | E8: 2.0 | F8: 1 | G8: 2 | H8: 22.99668081 | I8: 0 | J8: 20
B9: Customer 1 | C9: Bracket - 2.5 | D9: Bracket | E9: 2.5 | F9: 2.5 | G9: 1 | H9: 22.88876712 | I9: 0 | J9: 20
B10: Customer 1 | C10: Bracket - 3.0 | D10: Bracket | E10: 3.0 | F10: 16.5 | G10: 1 | H10: 20.21400304 | I10: 0 | J10: 20
B11: Customer 1 | C11: Bracket - 3.0 | D11: Bracket | E11: 3.0 | F11: 8 | G11: 2 | H11: 20.21400304 | I11: 0 | J11: 20
B12: Customer 1 | C12: Bracket - 3.5 | D12: Bracket | E12: 3.5 | F12: 154 | G12: 1 | H12: 23.32835616 | I12: 0 | J12: 20
B13: Customer 1 | C13: Bracket - 4.0 | D13: Bracket | E13: 4.0 | F13: 12 | G13: 1 | H13: 23.26927593 | I13: 0 | J13: 20
B14: Customer 1 | C14: Bracket - 4.5 | D14: Bracket | E14: 4.5 | F14: 324.5 | G14: 1 | H14: 25.86071262 | I14: 0 | J14: 20
B15: Customer 1 | C15: Bracket - 4.5 | D15: Bracket | E15: 4.5 | F15: 1 | G15: 2 | H15: 25.86071262 | I15: 0 | J15: 20
B16: Customer 1 | C16: Bracket - 5.0 | D16: Bracket | E16: 5.0 | F16: 14.5 | G16: 1 | H16: 24.48584475 | I16: 0 | J16: 20
B17: Customer 1 | C17: Bracket - 6.0 | D17: Bracket | E17: 6.0 | F17: 2 | G17: 1 | H17: 15.48356164 | I17: 4.516438356 | J17: 20
B18: Customer 1 | C18: Bracket - NIL | D18: Bracket | E18: NIL | F18: 262.5 | G18: 1 | H18: 22.60620589 | I18: 0 | J18: 20
B19: Customer 1 | C19: Bracket - NIL | D19: Bracket | E19: NIL | F19: 7 | G19: 2 | H19: 22.60620589 | I19: 0 | J19: 20
B20: Customer 1 | C20: Bracket - PRIVATE | D20: Bracket | E20: PRIVATE | F20: 0 | G20: 1 | H20: 22.88557615 | I20: 0 | J20: 20
B21: Customer 1 | C21: Bracket - PRIVATE | D21: Bracket | E21: PRIVATE | F21: 12 | G21: 3 | H21: 22.88557615 | I21: 0 | J21: 20
B22: Customer 1 | C22: Bracket - SUSPENDED | D22: Bracket | E22: SUSPENDED | F22: 3 | G22: 1 | H22: 21.15342466 | I22: 0 | J22: 20
B23: Customer 1 | C23: Bracket - T1 | D23: Bracket | E23: T1 | F23: 496.5 | G23: 1 | H23: 24.9474495 | I23: 0 | J23: 20
B24: Customer 1 | C24: Bracket - T2 | D24: Bracket | E24: T2 | F24: 40 | G24: 1 | H24: 23.7260274 | I24: 0 | J24: 20
B25: Customer 1 | C25: Bracket - T2 | D25: Bracket | E25: T2 | F25: 0 | G25: 2 | H25: 23.7260274 | I25: 0 | J25: 20
B26: Customer 1 | C26: Bracket - T2A | D26: Bracket | E26: T2A | F26: 9 | G26: 1 | H26: 13.13493151 | I26: 6.865068493 | J26: 20
B27: Customer 1 | C27: Bracket - T3 | D27: Bracket | E27: T3 | F27: 69.5 | G27: 1 | H27: 24.18640284 | I27: 0 | J27: 20
B28: Customer 1 | C28: Bracket - T3A | D28: Bracket | E28: T3A | F28: 6.5 | G28: 1 | H28: 16.31659056 | I28: 3.683409437 | J28: 20
B29: Customer 1 | C29: Bracket - T4 | D29: Bracket | E29: T4 | F29: 390.5 | G29: 1 | H29: 15.6513939 | I29: 4.348606104 | J29: 20
B30: Customer 1 | C30: Bracket - T5 | D30: Bracket | E30: T5 | F30: 10.5 | G30: 1 | H30: 23.16986301 | I30: 0 | J30: 20
B31: Customer 1 | C31: Bracket - T5 | D31: Bracket | E31: T5 | F31: 0 | G31: 2 | H31: 23.16986301 | I31: 0 | J31: 20
B32: Customer 1 | C32: Bracket - T6 | D32: Bracket | E32: T6 | F32: 15.5 | G32: 1 | H32: 21.66438356 | I32: 0 | J32: 20
B33: Customer 1 | C33: Bracket - T6 | D33: Bracket | E33: T6 | F33: 0 | G33: 2 | H33: 21.66438356 | I33: 0 | J33: 20
B34: Customer 1 | C34: Bracket - T7 | D34: Bracket | E34: T7 | F34: 2 | G34: 1 | H34: 13.99543379 | I34: 6.00456621 | J34: 20
B35: Customer 1 | C35: Connection - EMPTY | D35: Connection | E35: EMPTY | F35: 0 | G35: 1 | H35: 12 | I35: 8 | J35: 20
B36: Customer 1 | C36: Connection - O/U | D36: Connection | E36: O/U | F36: 4 | G36: 1 | H36: 21.28931507 | I36: 0 | J36: 20
B37: Customer 1 | C37: Connection - O/U | D37: Connection | E37: O/U | F37: 3 | G37: 2 | H37: 21.28931507 | I37: 0 | J37: 20
B38: Customer 1 | C38: Connection - OH | D38: Connection | E38: OH | F38: 2779.5 | G38: 1 | H38: 23.15249534 | I38: 0 | J38: 20
B39: Customer 1 | C39: Connection - OH | D39: Connection | E39: OH | F39: 0 | G39: 2 | H39: 23.15249534 | I39: 0 | J39: 20
B40: Customer 1 | C40: Connection - OH | D40: Connection | E40: OH | F40: 7 | G40: 3 | H40: 23.15249534 | I40: 0 | J40: 20
B41: Customer 1 | C41: Connection - OH2 | D41: Connection | E41: OH2 | F41: 1 | G41: 1 | H41: 19.81369863 | I41: 0.1863013699 | J41: 20
B42: Customer 1 | C42: Connection - UGR1 | D42: Connection | E42: UGR1 | F42: 335 | G42: 1 | H42: 22.18393738 | I42: 0 | J42: 20
B43: Customer 1 | C43: Connection - UGR1 | D43: Connection | E43: UGR1 | F43: 5 | G43: 3 | H43: 22.18393738 | I43: 0 | J43: 20
B44: Customer 1 | C44: Connection - UGR2 | D44: Connection | E44: UGR2 | F44: 3 | G44: 1 | H44: 14.24984194 | I44: 5.750158061 | J44: 20
B45: Customer 1 | C45: Connection - UGR2 | D45: Connection | E45: UGR2 | F45: 17 | G45: 2 | H45: 14.24984194 | I45: 5.750158061 | J45: 20
B46: Customer 1 | C46: Lamp - INC1x100 | D46: Lamp | E46: INC1x100 | F46: 3 | G46: 3 | H46: 10 | I46: 0 | J46: 3
B47: Customer 1 | C47: Lamp - INC1x40 | D47: Lamp | E47: INC1x40 | F47: 0 | G47: 1 | H47: 10 | I47: 0 | J47: 3
B48: Customer 1 | C48: Lamp - INC1x60 | D48: Lamp | E48: INC1x60 | F48: 2 | G48: 3 | H48: 10 | I48: 0 | J48: 3
B49: Customer 1 | C49: Lamp - MBF1x1000 | D49: Lamp | E49: MBF1x1000 | F49: 0 | G49: 1 | H49: 10 | I49: 0 | J49: 3
B50: Customer 1 | C50: Lamp - MBF1x125 | D50: Lamp | E50: MBF1x125 | F50: 2 | G50: 1 | H50: 10 | I50: 0 | J50: 3
B51: Customer 1 | C51: Lamp - MBF1x125 | D51: Lamp | E51: MBF1x125 | F51: 0 | G51: 2 | H51: 10 | I51: 0 | J51: 3
B52: Customer 1 | C52: Lamp - MBF1x250 | D52: Lamp | E52: MBF1x250 | F52: 63.5 | G52: 1 | H52: 10 | I52: 0 | J52: 3
B53: Customer 1 | C53: Lamp - MBF1x400 | D53: Lamp | E53: MBF1x400 | F53: 12 | G53: 1 | H53: 10 | I53: 0 | J53: 3
B54: Customer 1 | C54: Lamp - MBF1x400 | D54: Lamp | E54: MBF1x400 | F54: 0 | G54: 2 | H54: 10 | I54: 0 | J54: 3
B55: Customer 1 | C55: Lamp - MBF1x42 | D55: Lamp | E55: MBF1x42 | F55: 1 | G55: 1 | H55: 10 | I55: 0 | J55: 3
B56: Customer 1 | C56: Lamp - MBF1x42 | D56: Lamp | E56: MBF1x42 | F56: 0 | G56: 2 | H56: 10 | I56: 0 | J56: 3
B57: Customer 1 | C57: Lamp - MBF1x50 | D57: Lamp | E57: MBF1x50 | F57: 0 | G57: 1 | H57: 10 | I57: 0 | J57: 3
B58: Customer 1 | C58: Lamp - MBF1x700 | D58: Lamp | E58: MBF1x700 | F58: 0 | G58: 1 | H58: 10 | I58: 0 | J58: 3
B59: Customer 1 | C59: Lamp - MBF1x80 | D59: Lamp | E59: MBF1x80 | F59: 4 | G59: 1 | H59: 10 | I59: 0 | J59: 3
B60: Customer 1 | C60: Lamp - MBF1x80 | D60: Lamp | E60: MBF1x80 | F60: 6 | G60: 2 | H60: 10 | I60: 0 | J60: 3
B61: Customer 1 | C61: Lamp - MBI1x400 | D61: Lamp | E61: MBI1x400 | F61: 0 | G61: 1 | H61: 10 | I61: 0 | J61: 3
B62: Customer 1 | C62: Lamp - SON1x100 | D62: Lamp | E62: SON1x100 | F62: 0 | G62: 1 | H62: 10 | I62: 0 | J62: 3
B63: Customer 1 | C63: Lamp - SON1x150 | D63: Lamp | E63: SON1x150 | F63: 7 | G63: 1 | H63: 10 | I63: 0 | J63: 3
B64: Customer 1 | C64: Lamp - SON1x250 | D64: Lamp | E64: SON1x250 | F64: 2 | G64: 1 | H64: 10 | I64: 0 | J64: 3
B65: Customer 1 | C65: Lamp - SON1x250 | D65: Lamp | E65: SON1x250 | F65: 0 | G65: 2 | H65: 10 | I65: 0 | J65: 3
B66: Customer 1 | C66: Lamp - SON1x400 | D66: Lamp | E66: SON1x400 | F66: 1 | G66: 1 | H66: 10 | I66: 0 | J66: 3
B67: Customer 1 | C67: Lamp - SON1x400 | D67: Lamp | E67: SON1x400 | F67: 0 | G67: 2 | H67: 10 | I67: 0 | J67: 3
B68: Customer 1 | C68: =CONCATENATE(D68," - ", E68) -> Lamp - SON1x50 | D68: Lamp | E68: SON1x50 | F68: 0 | G68: 1 | H68: 10 | I68: =IF(J68-(H68)<0,0,J68-(H68)) -> 0 | J68: =IF(D68="Lamp",3,IF(D68="Support",35,20)) -> 3
B69: Customer 1 | C69: Lamp - SON1x70 | D69: Lamp | E69: SON1x70 | F69: 0 | G69: 1 | H69: 10 | I69: 0 | J69: 3
B70: Customer 1 | C70: Lamp - TF1x20 | D70: Lamp | E70: TF1x20 | F70: 5 | G70: 3 | H70: 10 | I70: 0 | J70: 3
B71: Customer 1 | C71: Lamp - TF1x40 | D71: Lamp | E71: TF1x40 | F71: 1 | G71: 1 | H71: 10 | I71: 0 | J71: 3
B72: Customer 1 | C72: Lamp - TF1x80 | D72: Lamp | E72: TF1x80 | F72: 0 | G72: 1 | H72: 10 | I72: 0 | J72: 3
B73: Customer 1 | C73: Lamp - TF2x20 | D73: Lamp | E73: TF2x20 | F73: 4 | G73: 1 | H73: 10 | I73: 0 | J73: 3
B74: Customer 1 | C74: Lamp - TF2x20 | D74: Lamp | E74: TF2x20 | F74: 2 | G74: 3 | H74: 10 | I74: 0 | J74: 3
B75: Customer 1 | C75: Lamp - TF2x40 | D75: Lamp | E75: TF2x40 | F75: 0 | G75: 1 | H75: 10 | I75: 0 | J75: 3
B76: Customer 1 | C76: Lamp - TF2x40 | D76: Lamp | E76: TF2x40 | F76: 0 | G76: 2 | H76: 10 | I76: 0 | J76: 3
B77: Customer 1 | C77: Lamp - TF4x20 | D77: Lamp | E77: TF4x20 | F77: 10 | G77: 1 | H77: 10 | I77: 0 | J77: 3
B78: Customer 1 | C78: Luminaire - 1000W SON | D78: Luminaire | E78: 1000W SON | F78: 0 | G78: 1 | H78: 29.71232877 | I78: 0 | J78: 20
B79: Customer 1 | C79: Luminaire - 100W SON -PLAIN | D79: Luminaire | E79: 100W SON -PLAIN | F79: 1 | G79: 1 | H79: 23.13424658 | I79: 0 | J79: 20
B80: Customer 1 | C80: Luminaire - 100W SON | D80: Luminaire | E80: 100W SON | F80: 8 | G80: 1 | H80: 21.1109589 | I80: 0 | J80: 20
B81: Customer 1 | C81: Luminaire - 125W MBF -PLAIN | D81: Luminaire | E81: 125W MBF -PLAIN | F81: 31.5 | G81: 1 | H81: 19.16310502 | I81: 0.8368949772 | J81: 20
B82: Customer 1 | C82: Luminaire - 125W MBF | D82: Luminaire | E82: 125W MBF | F82: 152 | G82: 1 | H82: 23.2919607 | I82: 0 | J82: 20
B83: Customer 1 | C83: Luminaire - 125W MBF | D83: Luminaire | E83: 125W MBF | F83: 0 | G83: 2 | H83: 23.2919607 | I83: 0 | J83: 20
B84: Customer 1 | C84: Luminaire - 125W/250W MBF FLOODLIGHT | D84: Luminaire | E84: 125W/250W MBF FLOODLIGHT | F84: 1 | G84: 1 | H84: 20.03835616 | I84: 0 | J84: 20
B85: Customer 1 | C85: Luminaire - 150W SON - PARKWAY 1 | D85: Luminaire | E85: 150W SON - PARKWAY 1 | F85: 38 | G85: 1 | H85: 27.1939987 | I85: 0 | J85: 20
B86: Customer 1 | C86: Luminaire - 150W SON FLOODLIGHT | D86: Luminaire | E86: 150W SON FLOODLIGHT | F86: 3 | G86: 1 | H86: 20.07853881 | I86: 0 | J86: 20
B87: Customer 1 | C87: Luminaire - 150W SON | D87: Luminaire | E87: 150W SON | F87: 132.5 | G87: 1 | H87: 21.3135852 | I87: 0 | J87: 20
B88: Customer 1 | C88: Luminaire - 1x40W TF | D88: Luminaire | E88: 1x40W TF | F88: 75 | G88: 1 | H88: 27.010243 | I88: 0 | J88: 20
B89: Customer 1 | C89: Luminaire - 1x80W TF | D89: Luminaire | E89: 1x80W TF | F89: 2 | G89: 1 | H89: 27.61917808 | I89: 0 | J89: 20
B90: Customer 1 | C90: Luminaire - 250W MBF - PARKVILLE | D90: Luminaire | E90: 250W MBF - PARKVILLE | F90: 0 | G90: 1 | H90: 18.6109589 | I90: 1.389041096 | J90: 20
B91: Customer 1 | C91: Luminaire - 250W MBF - PARKWAY 1 | D91: Luminaire | E91: 250W MBF - PARKWAY 1 | F91: 144.5 | G91: 1 | H91: 17.88644641 | I91: 2.113553586 | J91: 20
B92: Customer 1 | C92: Luminaire - 250W MBF | D92: Luminaire | E92: 250W MBF | F92: 542.5 | G92: 1 | H92: 23.25805269 | I92: 0 | J92: 20
B93: Customer 1 | C93: Luminaire - 250W SON FLOODLIGHT | D93: Luminaire | E93: 250W SON FLOODLIGHT | F93: 24.5 | G93: 1 | H93: 20.28675799 | I93: 0 | J93: 20
B94: Customer 1 | C94: Luminaire - 250W SON FLOODLIGHT | D94: Luminaire | E94: 250W SON FLOODLIGHT | F94: 0 | G94: 2 | H94: 20.28675799 | I94: 0 | J94: 20
B95: Customer 1 | C95: Luminaire - 250W SON | D95: Luminaire | E95: 250W SON | F95: 104 | G95: 1 | H95: 18.11946749 | I95: 1.88053251 | J95: 20
B96: Customer 1 | C96: Luminaire - 250W SON | D96: Luminaire | E96: 250W SON | F96: 2 | G96: 2 | H96: 18.11946749 | I96: 1.88053251 | J96: 20
B97: Customer 1 | C97: Luminaire - 2x20W TF | D97: Luminaire | E97: 2x20W TF | F97: 311.5 | G97: 1 | H97: 24.53798371 | I97: 0 | J97: 20
B98: Customer 1 | C98: Luminaire - 2x40W TF | D98: Luminaire | E98: 2x40W TF | F98: 6 | G98: 1 | H98: 20.63333333 | I98: 0 | J98: 20
B99: Customer 1 | C99: Luminaire - 2x40W TF | D99: Luminaire | E99: 2x40W TF | F99: 6 | G99: 2 | H99: 20.63333333 | I99: 0 | J99: 20
B100: Customer 1 | C100: Luminaire - 400W MBF - PARKWAY 1 | D100: Luminaire | E100: 400W MBF - PARKWAY 1 | F100: 24.5 | G100: 1 | H100: 17.25065807 | I100: 2.749341929 | J100: 20
B101: Customer 1 | C101: Luminaire - 400W MBF | D101: Luminaire | E101: 400W MBF | F101: 151 | G101: 1 | H101: 19.2620626 | I101: 0.737937398 | J101: 20
B102: Customer 1 | C102: Luminaire - 400W MBF | D102: Luminaire | E102: 400W MBF | F102: 0 | G102: 2 | H102: 19.2620626 | I102: 0.737937398 | J102: 20
B103: Customer 1 | C103: Luminaire - 400W SON FLOODLIGHT | D103: Luminaire | E103: 400W SON FLOODLIGHT | F103: 2 | G103: 1 | H103: 10.13150685 | I103: 9.868493151 | J103: 20
B104: Customer 1 | C104: Luminaire - 400W SON | D104: Luminaire | E104: 400W SON | F104: 9.5 | G104: 1 | H104: 15.85333333 | I104: 4.146666667 | J104: 20
B105: Customer 1 | C105: Luminaire - 400W SON | D105: Luminaire | E105: 400W SON | F105: 0 | G105: 2 | H105: 15.85333333 | I105: 4.146666667 | J105: 20
B106: Customer 1 | C106: Luminaire - 42W MBF SYLVANIA SUB ECO | D106: Luminaire | E106: 42W MBF SYLVANIA SUB ECO | F106: 76.5 | G106: 1 | H106: 24.42083333 | I106: 0 | J106: 20
B107: Customer 1 | C107: Luminaire - 42W MBF SYLVANIA SUB ECO | D107: Luminaire | E107: 42W MBF SYLVANIA SUB ECO | F107: 1 | G107: 2 | H107: 24.42083333 | I107: 0 | J107: 20
B108: Customer 1 | C108: Luminaire - 4x20W TF - WAVERLEY | D108: Luminaire | E108: 4x20W TF - WAVERLEY | F108: 10 | G108: 1 | H108: 28.41534247 | I108: 0 | J108: 20
B109: Customer 1 | C109: Luminaire - 50W MBF | D109: Luminaire | E109: 50W MBF | F109: 9 | G109: 1 | H109: 21.12708114 | I109: 0 | J109: 20
B110: Customer 1 | C110: Luminaire - 50W SON | D110: Luminaire | E110: 50W SON | F110: 10 | G110: 1 | H110: 26.60757454 | I110: 0 | J110: 20
B111: Customer 1 | C111: Luminaire - 700W MBF | D111: Luminaire | E111: 700W MBF | F111: 0 | G111: 1 | H111: 18.16438356 | I111: 1.835616438 | J111: 20
B112: Customer 1 | C112: Luminaire - 70W SON | D112: Luminaire | E112: 70W SON | F112: 7 | G112: 1 | H112: 21.15225049 | I112: 0 | J112: 20
B113: Customer 1 | C113: Luminaire - 80W MBF - PLAIN | D113: Luminaire | E113: 80W MBF - PLAIN | F113: 0 | G113: 1 | H113: 28.75616438 | I113: 0 | J113: 20
B114: Customer 1 | C114: Luminaire - 80W MBF - SYLVANIA SUBUR | D114: Luminaire | E114: 80W MBF - SYLVANIA SUBUR | F114: 370.5 | G114: 1 | H114: 24.41258969 | I114: 0 | J114: 20
B115: Customer 1 | C115: Luminaire - 80W MBF - SYLVANIA SUBUR | D115: Luminaire | E115: 80W MBF - SYLVANIA SUBUR | F115: 10 | G115: 2 | H115: 24.41258969 | I115: 0 | J115: 20
B116: Customer 1 | C116: Luminaire - 80W MBF | D116: Luminaire | E116: 80W MBF | F116: 150 | G116: 1 | H116: 23.2887141 | I116: 0 | J116: 20
B117: Customer 1 | C117: Luminaire - 80W MBF | D117: Luminaire | E117: 80W MBF | F117: 5 | G117: 2 | H117: 23.2887141 | I117: 0 | J117: 20
B118: Customer 1 | C118: Luminaire - PRIVATE | D118: Luminaire | E118: PRIVATE | F118: 12 | G118: 3 | H118: 26.05365297 | I118: 0 | J118: 20
B119: Customer 1 | C119: Support - COLUMN 10.5M-13.5M | D119: Support | E119: COLUMN 10.5M-13.5M | F119: 71.5 | G119: 1 | H119: 26.66313966 | I119: 8.336860337 | J119: 35
B120: Customer 1 | C120: Support - COLUMN 10.5M-13.5M | D120: Support | E120: COLUMN 10.5M-13.5M | F120: 2 | G120: 2 | H120: 26.66313966 | I120: 8.336860337 | J120: 35
B121: Customer 1 | C121: Support - COLUMN 2.5M-3.5M | D121: Support | E121: COLUMN 2.5M-3.5M | F121: 34 | G121: 1 | H121: 47.817083 | I121: 0 | J121: 35
B122: Customer 1 | C122: Support - COLUMN 4M-6.5M | D122: Support | E122: COLUMN 4M-6.5M | F122: 10.5 | G122: 1 | H122: 23.37179097 | I122: 11.62820903 | J122: 35
B123: Customer 1 | C123: Support - COLUMN 4M-6.5M | D123: Support | E123: COLUMN 4M-6.5M | F123: 15 | G123: 2 | H123: 23.37179097 | I123: 11.62820903 | J123: 35
B124: Customer 1 | C124: Support - COLUMN 7M-10M | D124: Support | E124: COLUMN 7M-10M | F124: 205 | G124: 1 | H124: 36.93515095 | I124: 0 | J124: 35
B125: Customer 1 | C125: Support - DECORATIVE COLUMN | D125: Support | E125: DECORATIVE COLUMN | F125: 18 | G125: 1 | H125: 32.55494673 | I125: 2.445053272 | J125: 35
B126: Customer 1 | C126: Support - DEDICATED SUPPORT & COND | D126: Support | E126: DEDICATED SUPPORT & COND | F126: 1 | G126: 1 | H126: 15.06027397 | I126: 19.93972603 | J126: 35
B127: Customer 1 | C127: Support - PRIVATE | D127: Support | E127: PRIVATE | F127: 12 | G127: 3 | H127: 47.72031963 | I127: 0 | J127: 35
B128: Customer 1 | C128: Support - ROCKS STANDARD | D128: Support | E128: ROCKS STANDARD | F128: 1 | G128: 1 | H128: 23.13424658 | I128: 11.86575342 | J128: 35
B129: Customer 1 | C129: Support - UNKNOWN | D129: Support | E129: UNKNOWN | F129: 0 | G129: 1 | H129: 12 | I129: 23 | J129: 35
B130: Customer 1 | C130: Support - WALL | D130: Support | E130: WALL | F130: 8 | G130: 1 | H130: 29.06379648 | I130: 5.936203523 | J130: 35
B131: Customer 1 | C131: Support - WALL | D131: Support | E131: WALL | F131: 3 | G131: 2 | H131: 29.06379648 | I131: 5.936203523 | J131: 35
B132: Customer 1 | C132: =CONCATENATE(D132," - ", E132) -> Support - WOOD POLE NON-TRL | D132: Support | E132: WOOD POLE NON-TRL | F132: 1715 | G132: 1 | H132: 44.13623642 | I132: =IF(J132-(H132)<0,0,J132-(H132)) -> 0 | J132: =IF(D132="Lamp",3,IF(D132="Support",35,20)) -> 35
B133: Customer 1 | C133: Support - WOOD POLE NON-TRL | D133: Support | E133: WOOD POLE NON-TRL | F133: 0 | G133: 2 | H133: 44.13623642 | I133: 0 | J133: 35
B134: Customer 1 | C134: Support - WOOD POLE TRL | D134: Support | E134: WOOD POLE TRL | F134: 1056.5 | G134: 1 | H134: 47.41167796 | I134: 0 | J134: 35
B135: Customer 1 | C135: Support - WOOD POLE TRL | D135: Support | E135: WOOD POLE TRL | F135: 0 | G135: 2 | H135: 47.41167796 | I135: 0 | J135: 35
B136: Customer 2 | C136: Bracket - 0.5 | D136: Bracket | E136: 0.5 | F136: 0 | G136: 1 | H136: 19.8630137 | I136: 0.1369863014 | J136: 20
B137: Customer 2 | C137: Connection - OH | D137: Connection | E137: OH | F137: 0 | G137: 1 | H137: 19.8630137 | I137: 0.1369863014 | J137: 20
B138: Customer 2 | C138: Lamp - MBF1x250 | D138: Lamp | E138: MBF1x250 | F138: 0 | G138: 1 | H138: 10 | I138: 0 | J138: 3
B139: Customer 2 | C139: Luminaire - 250W MBF | D139: Luminaire | E139: 250W MBF | F139: 0 | G139: 1 | H139: 19.8630137 | I139: 0.1369863014 | J139: 20
B140: Customer 2 | C140: Support - WOOD POLE NON-TRL | D140: Support | E140: WOOD POLE NON-TRL | F140: 0 | G140: 1 | H140: 59.8630137 | I140: 0 | J140: 35
B141: Customer 3 | C141: Bracket - PRIVATE | D141: Bracket | E141: PRIVATE | F141: 0 | G141: 3 | H141: 28.03835616 | I141: 0 | J141: 20
B142: Customer 3 | C142: Connection - OH | D142: Connection | E142: OH | F142: 0 | G142: 3 | H142: 28.03835616 | I142: 0 | J142: 20
B143: Customer 3 | C143: Lamp - INC1x60 | D143: Lamp | E143: INC1x60 | F143: 0 | G143: 3 | H143: 10 | I143: 0 | J143: 3
B144: Customer 3 | C144: Luminaire - PRIVATE | D144: Luminaire | E144: PRIVATE | F144: 0 | G144: 3 | H144: 28.03835616 | I144: 0 | J144: 20
B145: Customer 3 | C145: Support - PRIVATE | D145: Support | E145: PRIVATE | F145: 0 | G145: 3 | H145: 15.03835616 | I145: 19.96164384 | J145: 35
B146: Customer 4 | C146: Bracket - 0.5 | D146: Bracket | E146: 0.5 | F146: 3155 | G146: 1 | H146: 13.98297432 | I146: 6.017025683 | J146: 20
B147: Customer 4 | C147: Bracket - 0.5 | D147: Bracket | E147: 0.5 | F147: 17 | G147: 2 | H147: 13.98297432 | I147: 6.017025683 | J147: 20
B148: Customer 4 | C148: Bracket - 0.6 | D148: Bracket | E148: 0.6 | F148: 2 | G148: 1 | H148: 11.36876712 | I148: 8.631232877 | J148: 20
B149: Customer 4 | C149: Bracket - 1.0 | D149: Bracket | E149: 1.0 | F149: 50.5 | G149: 1 | H149: 20.13305539 | I149: 0 | J149: 20
B150: Customer 4 | C150: Bracket - 1.2 | D150: Bracket | E150: 1.2 | F150: 4 | G150: 1 | H150: 13.14203317 | I150: 6.857966835 | J150: 20
B151: Customer 4 | C151: Bracket - 1.2 | D151: Bracket | E151: 1.2 | F151: 0 | G151: 2 | H151: 13.14203317 | I151: 6.857966835 | J151: 20
B152: Customer 4 | C152: Bracket - 1.5 | D152: Bracket | E152: 1.5 | F152: 5 | G152: 1 | H152: 13.47891602 | I152: 6.521083979 | J152: 20
B153: Customer 4 | C153: Bracket - 1.5 | D153: Bracket | E153: 1.5 | F153: 37 | G153: 2 | H153: 13.47891602 | I153: 6.521083979 | J153: 20
B154: Customer 4 | C154: Bracket - 2.0 | D154: Bracket | E154: 2.0 | F154: 2477.5 | G154: 1 | H154: 15.54772726 | I154: 4.452272739 | J154: 20
B155: Customer 4 | C155: Bracket - 2.0 | D155: Bracket | E155: 2.0 | F155: 38.5 | G155: 2 | H155: 15.54772726 | I155: 4.452272739 | J155: 20
B156: Customer 4 | C156: Bracket - 2.5 | D156: Bracket | E156: 2.5 | F156: 18 | G156: 1 | H156: 13.26820476 | I156: 6.731795242 | J156: 20
B157: Customer 4 | C157: Bracket - 3.0 | D157: Bracket | E157: 3.0 | F157: 80.5 | G157: 1 | H157: 14.6970827 | I157: 5.302917301 | J157: 20
B158: Customer 4 | C158: Bracket - 3.0 | D158: Bracket | E158: 3.0 | F158: 14 | G158: 2 | H158: 14.6970827 | I158: 5.302917301 | J158: 20
B159: Customer 4 | C159: Bracket - 3.5 | D159: Bracket | E159: 3.5 | F159: 76.5 | G159: 1 | H159: 16.99900374 | I159: 3.000996264 | J159: 20
B160: Customer 4 | C160: Bracket - 4.0 | D160: Bracket | E160: 4.0 | F160: 35 | G160: 1 | H160: 19.50483057 | I160: 0.4951694304 | J160: 20
B161: Customer 4 | C161: Bracket - 4.5 | D161: Bracket | E161: 4.5 | F161: 14.5 | G161: 1 | H161: 14.60832662 | I161: 5.391673382 | J161: 20
B162: Customer 4 | C162: Bracket - 4.5 | D162: Bracket | E162: 4.5 | F162: 85 | G162: 2 | H162: 14.60832662 | I162: 5.391673382 | J162: 20
B163: Customer 4 | C163: Bracket - 5.0 | D163: Bracket | E163: 5.0 | F163: 30 | G163: 1 | H163: 18.32716895 | I163: 1.67283105 | J163: 20
B164: Customer 4 | C164: Bracket - 5.0 | D164: Bracket | E164: 5.0 | F164: 1 | G164: 2 | H164: 18.32716895 | I164: 1.67283105 | J164: 20
B165: Customer 4 | C165: Bracket - 6.0 | D165: Bracket | E165: 6.0 | F165: 17 | G165: 1 | H165: 21.14631849 | I165: 0 | J165: 20
B166: Customer 4 | C166: Bracket - 6.0 | D166: Bracket | E166: 6.0 | F166: 17 | G166: 2 | H166: 21.14631849 | I166: 0 | J166: 20
B167: Customer 4 | C167: Bracket - 7.0 | D167: Bracket | E167: 7.0 | F167: 2 | G167: 1 | H167: 19.71643836 | I167: 0.2835616438 | J167: 20
B168: Customer 4 | C168: Bracket - 8.0 | D168: Bracket | E168: 8.0 | F168: 2 | G168: 1 | H168: 17.63287671 | I168: 2.367123288 | J168: 20
B169: Customer 4 | C169: Bracket - 8.0 | D169: Bracket | E169: 8.0 | F169: 1 | G169: 2 | H169: 17.63287671 | I169: 2.367123288 | J169: 20
B170: Customer 4 | C170: Bracket - NIL | D170: Bracket | E170: NIL | F170: 164.5 | G170: 1 | H170: 24.80345627 | I170: 0 | J170: 20
B171: Customer 4 | C171: Bracket - PRIVATE | D171: Bracket | E171: PRIVATE | F171: 142 | G171: 3 | H171: 21.57872146 | I171: 0 | J171: 20
B172: Customer 4 | C172: Bracket - SUSPENDED | D172: Bracket | E172: SUSPENDED | F172: 32 | G172: 1 | H172: 21.74931507 | I172: 0 | J172: 20
B173: Customer 4 | C173: Bracket - T1 | D173: Bracket | E173: T1 | F173: 1116.5 | G173: 1 | H173: 20.25711683 | I173: 0 | J173: 20
B174: Customer 4 | C174: Bracket - T1 | D174: Bracket | E174: T1 | F174: 0 | G174: 2 | H174: 20.25711683 | I174: 0 | J174: 20
B175: Customer 4 | C175: Bracket - T2 | D175: Bracket | E175: T2 | F175: 959.5 | G175: 1 | H175: 21.65392807 | I175: 0 | J175: 20
B176: Customer 4 | C176: Bracket - T2A | D176: Bracket | E176: T2A | F176: 53 | G176: 1 | H176: 21.72940313 | I176: 0 | J176: 20
B177: Customer 4 | C177: Bracket - T3 | D177: Bracket | E177: T3 | F177: 366 | G177: 1 | H177: 20.86191506 | I177: 0 | J177: 20
B178: Customer 4 | C178: Bracket - T3 | D178: Bracket | E178: T3 | F178: 2 | G178: 2 | H178: 20.86191506 | I178: 0 | J178: 20
B179: Customer 4 | C179: Bracket - T3A | D179: Bracket | E179: T3A | F179: 53 | G179: 1 | H179: 19.96179604 | I179: 0.03820395738 | J179: 20
B180: Customer 4 | C180: Bracket - T4 | D180: Bracket | E180: T4 | F180: 1043 | G180: 1 | H180: 14.68228716 | I180: 5.317712841 | J180: 20
B181: Customer 4 | C181: Bracket - T4 | D181: Bracket | E181: T4 | F181: 1 | G181: 2 | H181: 14.68228716 | I181: 5.317712841 | J181: 20
B182: Customer 4 | C182: Bracket - T5 | D182: Bracket | E182: T5 | F182: 44 | G182: 1 | H182: 13.28026814 | I182: 6.719731857 | J182: 20
B183: Customer 4 | C183: Bracket - T6 | D183: Bracket | E183: T6 | F183: 177 | G183: 1 | H183: 20.71940755 | I183: 0 | J183: 20
B184: Customer 4 | C184: Bracket - T6 | D184: Bracket | E184: T6 | F184: 5 | G184: 2 | H184: 20.71940755 | I184: 0 | J184: 20
B185: Customer 4 | C185: Bracket - T7 | D185: Bracket | E185: T7 | F185: 33 | G185: 1 | H185: 23.02816183 | I185: 0 | J185: 20
B186: Customer 4 | C186: Bracket - T7 | D186: Bracket | E186: T7 | F186: 0 | G186: 2 | H186: 23.02816183 | I186: 0 | J186: 20
B187: Customer 4 | C187: Connection - EMPTY | D187: Connection | E187: EMPTY | F187: 0 | G187: 1 | H187: 12 | I187: 8 | J187: 20
B188: Customer 4 | C188: Connection - OH | D188: Connection | E188: OH | F188: 11866 | G188: 1 | H188: 15.9238525 | I188: 4.076147501 | J188: 20
B189: Customer 4 | C189: Connection - OH | D189: Connection | E189: OH | F189: 55.5 | G189: 2 | H189: 15.9238525 | I189: 4.076147501 | J189: 20
B190: Customer 4 | C190: Connection - OH | D190: Connection | E190: OH | F190: 82 | G190: 3 | H190: 15.9238525 | I190: 4.076147501 | J190: 20
B191: Customer 4 | C191: Connection - OH2 | D191: Connection | E191: OH2 | F191: 10 | G191: 1 | H191: 20.79056317 | I191: 0 | J191: 20
B192: Customer 4 | C192: Connection - UG2 | D192: Connection | E192: UG2 | F192: 8.5 | G192: 1 | H192: 13.70973324 | I192: 6.290266763 | J192: 20
B193: Customer 4 | C193: Connection - UG2 | D193: Connection | E193: UG2 | F193: 14 | G193: 2 | H193: 13.70973324 | I193: 6.290266763 | J193: 20
B194: Customer 4 | C194: Connection - UG2 | D194: Connection | E194: UG2 | F194: 15 | G194: 3 | H194: 13.70973324 | I194: 6.290266763 | J194: 20
B195: Customer 4 | C195: Connection - UGR1 | D195: Connection | E195: UGR1 | F195: 605 | G195: 1 | H195: 21.96171906 | I195: 0 | J195: 20
B196: Customer 4 | C196: =CONCATENATE(D196," - ", E196) -> Connection - UGR1 | D196: Connection | E196: UGR1 | F196: 0 | G196: 2 | H196: 21.96171906 | I196: =IF(J196-(H196)<0,0,J196-(H196)) -> 0 | J196: =IF(D196="Lamp",3,IF(D196="Support",35,20)) -> 20
B197: Customer 4 | C197: Connection - UGR1 | D197: Connection | E197: UGR1 | F197: 45 | G197: 3 | H197: 21.96171906 | I197: 0 | J197: 20
B198: Customer 4 | C198: Connection - UGR2 | D198: Connection | E198: UGR2 | F198: 0 | G198: 1 | H198: 14.17200029 | I198: 5.827999713 | J198: 20
B199: Customer 4 | C199: Connection - UGR2 | D199: Connection | E199: UGR2 | F199: 156.5 | G199: 2 | H199: 14.17200029 | I199: 5.827999713 | J199: 20
B200: Customer 4 | C200: Lamp - INC1x100 | D200: Lamp | E200: INC1x100 | F200: 0 | G200: 1 | H200: 10 | I200: 0 | J200: 3
B201: Customer 4 | C201: Lamp - INC1x100 | D201: Lamp | E201: INC1x100 | F201: 4 | G201: 3 | H201: 10 | I201: 0 | J201: 3
... 6524 more rows

Sheet Calc - RAB 2020-24
R1: 1 | S1: 2 | T1: 3 | U1: 4 | V1: 5
A2: Customer charges pa $000 | G2: Closing RAB @ 30 June 2019 ($'000 real FY09) | K2: Real Residual RAB (end period) | R2: Real straight line depreciation | X2: Real Residual RAB (start period) | AE2: Inflated nominal Residual RAB (start period) | AL2: Nominal Residual RAB (end period) | AS2: Nominal Depreciation | AY2: Indexation on Opening RAB | BE2: Nominal Regulatory Depreciation | BK2: Nominal Return on Assets | BQ2: Population | BS2: Replacement assets - Assets depreciated to zero value | CC2: Nominal residual value recovery (end period) | CI2: Real residual value recovery (end period)
A3: Customer | B3: Lookup | C3: Component | D3: Description | E3: Rate | G3: RAB | H3: Rem Life | I3: Dep'n | K3: FY19 | L3: FY20 | M3: FY21 | N3: FY22 | O3: FY23 | P3: FY24 | R3: FY20 | S3: FY21 | T3: FY22 | U3: FY23 | V3: FY24 | X3: FY20 | Y3: FY21 | Z3: FY22 | AA3: FY23 | AB3: FY24 | AC3: FY25 | AE3: FY20 | AF3: FY21 | AG3: FY22 | AH3: FY23 | AI3: FY24 | AJ3: FY25 | AL3: FY19 | AM3: FY20 | AN3: FY21 | AO3: FY22 | AP3: FY23 | AQ3: FY24 | AS3: FY20 | AT3: FY21 | AU3: FY22 | AV3: FY23 | AW3: FY24 | AY3: FY20 | AZ3: FY21 | BA3: FY22 | BB3: FY23 | BC3: FY24 | BE3: FY20 | BF3: FY21 | BG3: FY22 | BH3: FY23 | BI3: FY24 | BK3: FY20 | BL3: FY21 | BM3: FY22 | BN3: FY23 | BO3: FY24 | BQ3: FY15 | BS3: FY16 | BT3: FY17 | BU3: FY18 | BV3: FY19 | BW3: FY20 | BX3: FY21 | BY3: FY22 | BZ3: FY23 | CA3: FY24 | CC3: FY20 | CD3: FY21 | CE3: FY22 | CF3: FY23 | CG3: FY24 | CI3: FY20 | CJ3: FY21 | CK3: FY22 | CL3: FY23 | CM3: FY24
A4: Customer 1 | B4: ='Input - Customer Inventory FY15'!C3 -> Bracket - 0.5 | C4: ='Input - Customer Inventory FY15'!D3 -> Bracket | D4: ='Input - Customer Inventory FY15'!E3 -> 0.5 | E4: ='Input - Customer Inventory FY15'!G3 -> 1 | G4: 0 | H4: 0 | I4: =IF(ISERROR(G4/H4),0,G4/H4) -> 0 | K4: =G4 -> 0 | L4: =K4-R4-CI4 -> 0 | M4: =L4-S4-CJ4 -> 0 | N4: =M4-T4-CK4 -> 0 | O4: =N4-U4-CL4 -> 0 | P4: =O4-V4-CM4 -> 0 | R4: =IFERROR(IF(K4-(($G4-SUM($CH4:CH4))/$H4)<0,K4,(($G4-SUM($CH4:CH4))/$H4)),0) -> 0 | S4: =IFERROR(IF(L4-(($G4-SUM($CH4:CI4))/$H4)<0,L4,(($G4-SUM($CH4:CI4))/$H4)),0) -> 0 | T4: =IFERROR(IF(M4-(($G4-SUM($CH4:CJ4))/$H4)<0,M4,(($G4-SUM($CH4:CJ4))/$H4)),0) -> 0 | U4: =IFERROR(IF(N4-(($G4-SUM($CH4:CK4))/$H4)<0,N4,(($G4-SUM($CH4:CK4))/$H4)),0) -> 0 | V4: =IFERROR(IF(O4-(($G4-SUM($CH4:CL4))/$H4)<0,O4,(($G4-SUM($CH4:CL4))/$H4)),0) -> 0 | X4: =K4 -> 0 | Y4: =L4 -> 0 | Z4: =M4 -> 0 | AA4: =N4 -> 0 | AB4: =O4 -> 0 | AC4: =P4 -> 0 | AE4: =X4*'Inputs - General'!J$6 -> 0 | AF4: =Y4*'Inputs - General'!K$6 -> 0 | AG4: =Z4*'Inputs - General'!L$6 -> 0 | AH4: =AA4*'Inputs - General'!M$6 -> 0 | AI4: =AB4*'Inputs - General'!N$6 -> 0 | AJ4: =AC4*'Inputs - General'!O$6 -> 0 | AL4: =K4*'Inputs - General'!J$6 -> 0 | AM4: =L4*'Inputs - General'!K$6 -> 0 | AN4: =M4*'Inputs - General'!L$6 -> 0 | AO4: =N4*'Inputs - General'!M$6 -> 0 | AP4: =O4*'Inputs - General'!N$6 -> 0 | AQ4: =P4*'Inputs - General'!O$6 -> 0 | AS4: =R4*'Inputs - General'!K$6 -> 0 | AT4: =S4*'Inputs - General'!L$6 -> 0 | AU4: =T4*'Inputs - General'!M$6 -> 0 | AV4: =U4*'Inputs - General'!N$6 -> 0 | AW4: =V4*'Inputs - General'!O$6 -> 0 | AY4: =AE4*'Inputs - General'!K$4 -> 0 | AZ4: =AF4*'Inputs - General'!L$4 -> 0 | BA4: =AG4*'Inputs - General'!M$4 -> 0 | BB4: =AH4*'Inputs - General'!N$4 -> 0 | BC4: =AI4*'Inputs - General'!O$4 -> 0 | BE4: =AS4-AY4 -> 0 | BF4: =AT4-AZ4 -> 0 | BG4: =AU4-BA4 -> 0 | BH4: =AV4-BB4 -> 0 | BI4: =AW4-BC4 -> 0 | BK4: =AE4*WACC -> 0 | BL4: =AF4*WACC -> 0 | BM4: =AG4*WACC -> 0 | BN4: =AH4*WACC -> 0 | BO4: =AI4*WACC -> 0 | BQ4: ='Input - Customer Inventory FY15'!F3 -> 494 | BW4: =IF($C4="Lamp",0,IF(SUM(BR4:$BV4)>=$BQ4,0,IF(BK4<=0,IF($G4=0,0,$BQ4),0))) -> 0 | BX4: =IF($C4="Lamp",0,IF(SUM($BR4:BW4)>=$BQ4,0,IF(BL4<=0,IF($G4=0,0,$BQ4),0))) -> 0 | BY4: =IF($C4="Lamp",0,IF(SUM($BR4:BX4)>=$BQ4,0,IF(BM4<=0,IF($G4=0,0,$BQ4),0))) -> 0 | BZ4: =IF($C4="Lamp",0,IF(SUM($BR4:BY4)>=$BQ4,0,IF(BN4<=0,IF($G4=0,0,$BQ4),0))) -> 0 | CA4: =IF($C4="Lamp",0,IF(SUM($BR4:BZ4)>=$BQ4,0,IF(BO4<=0,IF($G4=0,0,$BQ4),0))) -> 0 | CI4: =CC4/'Inputs - General'!K$6 -> 0 | CJ4: =CD4/'Inputs - General'!L$6 -> 0 | CK4: =CE4/'Inputs - General'!M$6 -> 0 | CL4: =CF4/'Inputs - General'!N$6 -> 0 | CM4: =CG4/'Inputs - General'!O$6 -> 0
A5: Customer 1 | B5: ='Input - Customer Inventory FY15'!C4 -> Bracket - 0.5 | C5: ='Input - Customer Inventory FY15'!D4 -> Bracket | D5: ='Input - Customer Inventory FY15'!E4 -> 0.5 | E5: ='Input - Customer Inventory FY15'!G4 -> 2 | G5: 0 | H5: 0 | I5: =IF(ISERROR(G5/H5),0,G5/H5) -> 0 | K5: =G5 -> 0 | L5: 0 | M5: 0 | N5: 0 | O5: 0 | P5: 0 | R5: =IFERROR(IF(K5-(($G5-SUM($CH5:CH5))/$H5)<0,K5,(($G5-SUM($CH5:CH5))/$H5)),0) -> 0 | S5: =IFERROR(IF(L5-(($G5-SUM($CH5:CI5))/$H5)<0,L5,(($G5-SUM($CH5:CI5))/$H5)),0) -> 0 | T5: =IFERROR(IF(M5-(($G5-SUM($CH5:CJ5))/$H5)<0,M5,(($G5-SUM($CH5:CJ5))/$H5)),0) -> 0 | U5: =IFERROR(IF(N5-(($G5-SUM($CH5:CK5))/$H5)<0,N5,(($G5-SUM($CH5:CK5))/$H5)),0) -> 0 | V5: =IFERROR(IF(O5-(($G5-SUM($CH5:CL5))/$H5)<0,O5,(($G5-SUM($CH5:CL5))/$H5)),0) -> 0 | X5: =K5 -> 0 | Y5: =L5 -> 0 | Z5: =M5 -> 0 | AA5: =N5 -> 0 | AB5: =O5 -> 0 | AC5: =P5 -> 0 | AE5: =X5*'Inputs - General'!J$6 -> 0 | AF5: =Y5*'Inputs - General'!K$6 -> 0 | AG5: =Z5*'Inputs - General'!L$6 -> 0 | AH5: =AA5*'Inputs - General'!M$6 -> 0 | AI5: =AB5*'Inputs - General'!N$6 -> 0 | AJ5: =AC5*'Inputs - General'!O$6 -> 0 | AL5: =K5*'Inputs - General'!J$6 -> 0 | AM5: =L5*'Inputs - General'!K$6 -> 0 | AN5: =M5*'Inputs - General'!L$6 -> 0 | AO5: =N5*'Inputs - General'!M$6 -> 0 | AP5: =O5*'Inputs - General'!N$6 -> 0 | AQ5: =P5*'Inputs - General'!O$6 -> 0 | AS5: =R5*'Inputs - General'!K$6 -> 0 | AT5: =S5*'Inputs - General'!L$6 -> 0 | AU5: =T5*'Inputs - General'!M$6 -> 0 | AV5: =U5*'Inputs - General'!N$6 -> 0 | AW5: =V5*'Inputs - General'!O$6 -> 0 | AY5: =AE5*'Inputs - General'!K$4 -> 0 | AZ5: =AF5*'Inputs - General'!L$4 -> 0 | BA5: =AG5*'Inputs - General'!M$4 -> 0 | BB5: =AH5*'Inputs - General'!N$4 -> 0 | BC5: =AI5*'Inputs - General'!O$4 -> 0 | BE5: =AS5-AY5 -> 0 | BF5: =AT5-AZ5 -> 0 | BG5: =AU5-BA5 -> 0 | BH5: =AV5-BB5 -> 0 | BI5: =AW5-BC5 -> 0 | BK5: =AE5*WACC -> 0 | BL5: =AF5*WACC -> 0 | BM5: =AG5*WACC -> 0 | BN5: =AH5*WACC -> 0 | BO5: =AI5*WACC -> 0 | BQ5: ='Input - Customer Inventory FY15'!F4 -> 5 | BW5: =IF($C5="Lamp",0,IF(SUM(BR5:$BV5)>=$BQ5,0,IF(BK5<=0,IF($G5=0,0,$BQ5),0))) -> 0 | BX5: =IF($C5="Lamp",0,IF(SUM($BR5:BW5)>=$BQ5,0,IF(BL5<=0,IF($G5=0,0,$BQ5),0))) -> 0 | BY5: =IF($C5="Lamp",0,IF(SUM($BR5:BX5)>=$BQ5,0,IF(BM5<=0,IF($G5=0,0,$BQ5),0))) -> 0 | BZ5: =IF($C5="Lamp",0,IF(SUM($BR5:BY5)>=$BQ5,0,IF(BN5<=0,IF($G5=0,0,$BQ5),0))) -> 0 | CA5: =IF($C5="Lamp",0,IF(SUM($BR5:BZ5)>=$BQ5,0,IF(BO5<=0,IF($G5=0,0,$BQ5),0))) -> 0 | CI5: =CC5/'Inputs - General'!K$6 -> 0 | CJ5: =CD5/'Inputs - General'!L$6 -> 0 | CK5: =CE5/'Inputs - General'!M$6 -> 0 | CL5: =CF5/'Inputs - General'!N$6 -> 0 | CM5: =CG5/'Inputs - General'!O$6 -> 0
A6: Customer 1 | B6: ='Input - Customer Inventory FY15'!C5 -> Bracket - 1.0 | C6: ='Input - Customer Inventory FY15'!D5 -> Bracket | D6: ='Input - Customer Inventory FY15'!E5 -> 1.0 | E6: ='Input - Customer Inventory FY15'!G5 -> 1 | G6: 0.7270658933 | H6: 7.567123288 | I6: 0.09608220531 | K6: 0.7270658933 | L6: 0.630983688 | M6: 0.5349014827 | N6: 0.4388192774 | O6: 0.3427370721 | P6: 0.2466548668 | R6: =IFERROR(IF(K6-(($G6-SUM($CH6:CH6))/$H6)<0,K6,(($G6-SUM($CH6:CH6))/$H6)),0) -> 0.09608220531 | S6: =IFERROR(IF(L6-(($G6-SUM($CH6:CI6))/$H6)<0,L6,(($G6-SUM($CH6:CI6))/$H6)),0) -> 0.09608220531 | T6: =IFERROR(IF(M6-(($G6-SUM($CH6:CJ6))/$H6)<0,M6,(($G6-SUM($CH6:CJ6))/$H6)),0) -> 0.09608220531 | U6: =IFERROR(IF(N6-(($G6-SUM($CH6:CK6))/$H6)<0,N6,(($G6-SUM($CH6:CK6))/$H6)),0) -> 0.09608220531 | V6: =IFERROR(IF(O6-(($G6-SUM($CH6:CL6))/$H6)<0,O6,(($G6-SUM($CH6:CL6))/$H6)),0) -> 0.09608220531 | X6: 0.7270658933 | Y6: 0.630983688 | Z6: 0.5349014827 | AA6: 0.4388192774 | AB6: 0.3427370721 | AC6: 0.2466548668 | AE6: =X6*'Inputs - General'!J$6 -> 0.7270658933 | AF6: =Y6*'Inputs - General'!K$6 -> 0.6462842516 | AG6: =Z6*'Inputs - General'!L$6 -> 0.5611573867 | AH6: =AA6*'Inputs - General'!M$6 -> 0.471522066 | AI6: =AB6*'Inputs - General'!N$6 -> 0.3772096955 | AJ6: =AC6*'Inputs - General'!O$6 -> 0.2780461557 | AL6: =K6*'Inputs - General'!J$6 -> 0.7270658933 | AM6: =L6*'Inputs - General'!K$6 -> 0.6462842516 | AN6: =M6*'Inputs - General'!L$6 -> 0.5611573867 | AO6: =N6*'Inputs - General'!M$6 -> 0.471522066 | AP6: =O6*'Inputs - General'!N$6 -> 0.3772096955 | AQ6: =P6*'Inputs - General'!O$6 -> 0.2780461557 | AS6: =R6*'Inputs - General'!K$6 -> 0.09841207836 | AT6: =S6*'Inputs - General'!L$6 -> 0.1007984479 | AU6: =T6*'Inputs - General'!M$6 -> 0.1032426839 | AV6: =U6*'Inputs - General'!N$6 -> 0.1057461896 | AW6: =V6*'Inputs - General'!O$6 -> 0.1083104022 | AY6: =AE6*'Inputs - General'!K$4 -> 0.01763043659 | AZ6: =AF6*'Inputs - General'!L$4 -> 0.01567158303 | BA6: =AG6*'Inputs - General'!M$4 -> 0.01360736326 | BB6: =AH6*'Inputs - General'!N$4 -> 0.01143381908 | BC6: =AI6*'Inputs - General'!O$4 -> 0.009146862312 | BE6: 0.08078164177 | BF6: 0.08512686487 | BG6: 0.08963532067 | BH6: 0.09431237052 | BI6: 0.09916353984 | BK6: 0.04568162699 | BL6: 0.04060610789 | BM6: 0.03525757797 | BN6: 0.02962578129 | BO6: 0.02370012507 | BQ6: ='Input - Customer Inventory FY15'!F5 -> 7 | BW6: =IF($C6="Lamp",0,IF(SUM(BR6:$BV6)>=$BQ6,0,IF(BK6<=0,IF($G6=0,0,$BQ6),0))) -> 0 | BX6: =IF($C6="Lamp",0,IF(SUM($BR6:BW6)>=$BQ6,0,IF(BL6<=0,IF($G6=0,0,$BQ6),0))) -> 0 | BY6: =IF($C6="Lamp",0,IF(SUM($BR6:BX6)>=$BQ6,0,IF(BM6<=0,IF($G6=0,0,$BQ6),0))) -> 0 | BZ6: =IF($C6="Lamp",0,IF(SUM($BR6:BY6)>=$BQ6,0,IF(BN6<=0,IF($G6=0,0,$BQ6),0))) -> 0 | CA6: =IF($C6="Lamp",0,IF(SUM($BR6:BZ6)>=$BQ6,0,IF(BO6<=0,IF($G6=0,0,$BQ6),0))) -> 0 | CI6: =CC6/'Inputs - General'!K$6 -> 0 | CJ6: =CD6/'Inputs - General'!L$6 -> 0 | CK6: =CE6/'Inputs - General'!M$6 -> 0 | CL6: =CF6/'Inputs - General'!N$6 -> 0 | CM6: =CG6/'Inputs - General'!O$6 -> 0
A7: Customer 1 | B7: ='Input - Customer Inventory FY15'!C6 -> Bracket - 1.5 | C7: ='Input - Customer Inventory FY15'!D6 -> Bracket | D7: ='Input - Customer Inventory FY15'!E6 -> 1.5 | E7: ='Input - Customer Inventory FY15'!G6 -> 2 | G7: 0 | H7: 7.917808219 | I7: 0 | K7: 0 | L7: 0 | M7: 0 | N7: 0 | O7: 0 | P7: 0 | R7: =IFERROR(IF(K7-(($G7-SUM($CH7:CH7))/$H7)<0,K7,(($G7-SUM($CH7:CH7))/$H7)),0) -> 0 | S7: =IFERROR(IF(L7-(($G7-SUM($CH7:CI7))/$H7)<0,L7,(($G7-SUM($CH7:CI7))/$H7)),0) -> 0 | T7: =IFERROR(IF(M7-(($G7-SUM($CH7:CJ7))/$H7)<0,M7,(($G7-SUM($CH7:CJ7))/$H7)),0) -> 0 | U7: =IFERROR(IF(N7-(($G7-SUM($CH7:CK7))/$H7)<0,N7,(($G7-SUM($CH7:CK7))/$H7)),0) -> 0 | V7: =IFERROR(IF(O7-(($G7-SUM($CH7:CL7))/$H7)<0,O7,(($G7-SUM($CH7:CL7))/$H7)),0) -> 0 | X7: 0 | Y7: 0 | Z7: 0 | AA7: 0 | AB7: 0 | AC7: 0 | AE7: =X7*'Inputs - General'!J$6 -> 0 | AF7: =Y7*'Inputs - General'!K$6 -> 0 | AG7: =Z7*'Inputs - General'!L$6 -> 0 | AH7: =AA7*'Inputs - General'!M$6 -> 0 | AI7: =AB7*'Inputs - General'!N$6 -> 0 | AJ7: =AC7*'Inputs - General'!O$6 -> 0 | AL7: =K7*'Inputs - General'!J$6 -> 0 | AM7: =L7*'Inputs - General'!K$6 -> 0 | AN7: =M7*'Inputs - General'!L$6 -> 0 | AO7: =N7*'Inputs - General'!M$6 -> 0 | AP7: =O7*'Inputs - General'!N$6 -> 0 | AQ7: =P7*'Inputs - General'!O$6 -> 0 | AS7: =R7*'Inputs - General'!K$6 -> 0 | AT7: =S7*'Inputs - General'!L$6 -> 0 | AU7: =T7*'Inputs - General'!M$6 -> 0 | AV7: =U7*'Inputs - General'!N$6 -> 0 | AW7: =V7*'Inputs - General'!O$6 -> 0 | AY7: =AE7*'Inputs - General'!K$4 -> 0 | AZ7: =AF7*'Inputs - General'!L$4 -> 0 | BA7: =AG7*'Inputs - General'!M$4 -> 0 | BB7: =AH7*'Inputs - General'!N$4 -> 0 | BC7: =AI7*'Inputs - General'!O$4 -> 0 | BE7: 0 | BF7: 0 | BG7: 0 | BH7: 0 | BI7: 0 | BK7: 0 | BL7: 0 | BM7: 0 | BN7: 0 | BO7: 0 | BQ7: ='Input - Customer Inventory FY15'!F6 -> 2 | BW7: =IF($C7="Lamp",0,IF(SUM(BR7:$BV7)>=$BQ7,0,IF(BK7<=0,IF($G7=0,0,$BQ7),0))) -> 0 | BX7: =IF($C7="Lamp",0,IF(SUM($BR7:BW7)>=$BQ7,0,IF(BL7<=0,IF($G7=0,0,$BQ7),0))) -> 0 | BY7: =IF($C7="Lamp",0,IF(SUM($BR7:BX7)>=$BQ7,0,IF(BM7<=0,IF($G7=0,0,$BQ7),0))) -> 0 | BZ7: =IF($C7="Lamp",0,IF(SUM($BR7:BY7)>=$BQ7,0,IF(BN7<=0,IF($G7=0,0,$BQ7),0))) -> 0 | CA7: =IF($C7="Lamp",0,IF(SUM($BR7:BZ7)>=$BQ7,0,IF(BO7<=0,IF($G7=0,0,$BQ7),0))) -> 0 | CI7: =CC7/'Inputs - General'!K$6 -> 0 | CJ7: =CD7/'Inputs - General'!L$6 -> 0 | CK7: =CE7/'Inputs - General'!M$6 -> 0 | CL7: =CF7/'Inputs - General'!N$6 -> 0 | CM7: =CG7/'Inputs - General'!O$6 -> 0
A8: Customer 1 | B8: ='Input - Customer Inventory FY15'!C7 -> Bracket - 2.0 | C8: ='Input - Customer Inventory FY15'!D7 -> Bracket | D8: ='Input - Customer Inventory FY15'!E7 -> 2.0 | E8: ='Input - Customer Inventory FY15'!G7 -> 1 | G8: 0 | H8: 0 | I8: 0 | K8: 0 | L8: 0 | M8: 0 | N8: 0 | O8: 0 | P8: 0 | R8: =IFERROR(IF(K8-(($G8-SUM($CH8:CH8))/$H8)<0,K8,(($G8-SUM($CH8:CH8))/$H8)),0) -> 0 | S8: =IFERROR(IF(L8-(($G8-SUM($CH8:CI8))/$H8)<0,L8,(($G8-SUM($CH8:CI8))/$H8)),0) -> 0 | T8: =IFERROR(IF(M8-(($G8-SUM($CH8:CJ8))/$H8)<0,M8,(($G8-SUM($CH8:CJ8))/$H8)),0) -> 0 | U8: =IFERROR(IF(N8-(($G8-SUM($CH8:CK8))/$H8)<0,N8,(($G8-SUM($CH8:CK8))/$H8)),0) -> 0 | V8: =IFERROR(IF(O8-(($G8-SUM($CH8:CL8))/$H8)<0,O8,(($G8-SUM($CH8:CL8))/$H8)),0) -> 0 | X8: 0 | Y8: 0 | Z8: 0 | AA8: 0 | AB8: 0 | AC8: 0 | AE8: =X8*'Inputs - General'!J$6 -> 0 | AF8: =Y8*'Inputs - General'!K$6 -> 0 | AG8: =Z8*'Inputs - General'!L$6 -> 0 | AH8: =AA8*'Inputs - General'!M$6 -> 0 | AI8: =AB8*'Inputs - General'!N$6 -> 0 | AJ8: =AC8*'Inputs - General'!O$6 -> 0 | AL8: =K8*'Inputs - General'!J$6 -> 0 | AM8: =L8*'Inputs - General'!K$6 -> 0 | AN8: =M8*'Inputs - General'!L$6 -> 0 | AO8: =N8*'Inputs - General'!M$6 -> 0 | AP8: =O8*'Inputs - General'!N$6 -> 0 | AQ8: =P8*'Inputs - General'!O$6 -> 0 | AS8: =R8*'Inputs - General'!K$6 -> 0 | AT8: =S8*'Inputs - General'!L$6 -> 0 | AU8: =T8*'Inputs - General'!M$6 -> 0 | AV8: =U8*'Inputs - General'!N$6 -> 0 | AW8: =V8*'Inputs - General'!O$6 -> 0 | AY8: =AE8*'Inputs - General'!K$4 -> 0 | AZ8: =AF8*'Inputs - General'!L$4 -> 0 | BA8: =AG8*'Inputs - General'!M$4 -> 0 | BB8: =AH8*'Inputs - General'!N$4 -> 0 | BC8: =AI8*'Inputs - General'!O$4 -> 0 | BE8: 0 | BF8: 0 | BG8: 0 | BH8: 0 | BI8: 0 | BK8: 0 | BL8: 0 | BM8: 0 | BN8: 0 | BO8: 0 | BQ8: ='Input - Customer Inventory FY15'!F7 -> 507.5 | BW8: =IF($C8="Lamp",0,IF(SUM(BR8:$BV8)>=$BQ8,0,IF(BK8<=0,IF($G8=0,0,$BQ8),0))) -> 0 | BX8: =IF($C8="Lamp",0,IF(SUM($BR8:BW8)>=$BQ8,0,IF(BL8<=0,IF($G8=0,0,$BQ8),0))) -> 0 | BY8: =IF($C8="Lamp",0,IF(SUM($BR8:BX8)>=$BQ8,0,IF(BM8<=0,IF($G8=0,0,$BQ8),0))) -> 0 | BZ8: =IF($C8="Lamp",0,IF(SUM($BR8:BY8)>=$BQ8,0,IF(BN8<=0,IF($G8=0,0,$BQ8),0))) -> 0 | CA8: =IF($C8="Lamp",0,IF(SUM($BR8:BZ8)>=$BQ8,0,IF(BO8<=0,IF($G8=0,0,$BQ8),0))) -> 0 | CI8: =CC8/'Inputs - General'!K$6 -> 0 | CJ8: =CD8/'Inputs - General'!L$6 -> 0 | CK8: =CE8/'Inputs - General'!M$6 -> 0 | CL8: =CF8/'Inputs - General'!N$6 -> 0 | CM8: =CG8/'Inputs - General'!O$6 -> 0
A9: Customer 1 | B9: ='Input - Customer Inventory FY15'!C8 -> Bracket - 2.0 | C9: ='Input - Customer Inventory FY15'!D8 -> Bracket | D9: ='Input - Customer Inventory FY15'!E8 -> 2.0 | E9: ='Input - Customer Inventory FY15'!G8 -> 2 | G9: 0 | H9: 0 | I9: 0 | K9: 0 | L9: 0 | M9: 0 | N9: 0 | O9: 0 | P9: 0 | R9: =IFERROR(IF(K9-(($G9-SUM($CH9:CH9))/$H9)<0,K9,(($G9-SUM($CH9:CH9))/$H9)),0) -> 0 | S9: =IFERROR(IF(L9-(($G9-SUM($CH9:CI9))/$H9)<0,L9,(($G9-SUM($CH9:CI9))/$H9)),0) -> 0 | T9: =IFERROR(IF(M9-(($G9-SUM($CH9:CJ9))/$H9)<0,M9,(($G9-SUM($CH9:CJ9))/$H9)),0) -> 0 | U9: =IFERROR(IF(N9-(($G9-SUM($CH9:CK9))/$H9)<0,N9,(($G9-SUM($CH9:CK9))/$H9)),0) -> 0 | V9: =IFERROR(IF(O9-(($G9-SUM($CH9:CL9))/$H9)<0,O9,(($G9-SUM($CH9:CL9))/$H9)),0) -> 0 | X9: 0 | Y9: 0 | Z9: 0 | AA9: 0 | AB9: 0 | AC9: 0 | AE9: =X9*'Inputs - General'!J$6 -> 0 | AF9: =Y9*'Inputs - General'!K$6 -> 0 | AG9: =Z9*'Inputs - General'!L$6 -> 0 | AH9: =AA9*'Inputs - General'!M$6 -> 0 | AI9: =AB9*'Inputs - General'!N$6 -> 0 | AJ9: =AC9*'Inputs - General'!O$6 -> 0 | AL9: =K9*'Inputs - General'!J$6 -> 0 | AM9: =L9*'Inputs - General'!K$6 -> 0 | AN9: =M9*'Inputs - General'!L$6 -> 0 | AO9: =N9*'Inputs - General'!M$6 -> 0 | AP9: =O9*'Inputs - General'!N$6 -> 0 | AQ9: =P9*'Inputs - General'!O$6 -> 0 | AS9: =R9*'Inputs - General'!K$6 -> 0 | AT9: =S9*'Inputs - General'!L$6 -> 0 | AU9: =T9*'Inputs - General'!M$6 -> 0 | AV9: =U9*'Inputs - General'!N$6 -> 0 | AW9: =V9*'Inputs - General'!O$6 -> 0 | AY9: =AE9*'Inputs - General'!K$4 -> 0 | AZ9: =AF9*'Inputs - General'!L$4 -> 0 | BA9: =AG9*'Inputs - General'!M$4 -> 0 | BB9: =AH9*'Inputs - General'!N$4 -> 0 | BC9: =AI9*'Inputs - General'!O$4 -> 0 | BE9: 0 | BF9: 0 | BG9: 0 | BH9: 0 | BI9: 0 | BK9: 0 | BL9: 0 | BM9: 0 | BN9: 0 | BO9: 0 | BQ9: ='Input - Customer Inventory FY15'!F8 -> 1 | BW9: =IF($C9="Lamp",0,IF(SUM(BR9:$BV9)>=$BQ9,0,IF(BK9<=0,IF($G9=0,0,$BQ9),0))) -> 0 | BX9: =IF($C9="Lamp",0,IF(SUM($BR9:BW9)>=$BQ9,0,IF(BL9<=0,IF($G9=0,0,$BQ9),0))) -> 0 | BY9: =IF($C9="Lamp",0,IF(SUM($BR9:BX9)>=$BQ9,0,IF(BM9<=0,IF($G9=0,0,$BQ9),0))) -> 0 | BZ9: =IF($C9="Lamp",0,IF(SUM($BR9:BY9)>=$BQ9,0,IF(BN9<=0,IF($G9=0,0,$BQ9),0))) -> 0 | CA9: =IF($C9="Lamp",0,IF(SUM($BR9:BZ9)>=$BQ9,0,IF(BO9<=0,IF($G9=0,0,$BQ9),0))) -> 0 | CI9: =CC9/'Inputs - General'!K$6 -> 0 | CJ9: =CD9/'Inputs - General'!L$6 -> 0 | CK9: =CE9/'Inputs - General'!M$6 -> 0 | CL9: =CF9/'Inputs - General'!N$6 -> 0 | CM9: =CG9/'Inputs - General'!O$6 -> 0
A10: Customer 1 | B10: ='Input - Customer Inventory FY15'!C9 -> Bracket - 2.5 | C10: ='Input - Customer Inventory FY15'!D9 -> Bracket | D10: ='Input - Customer Inventory FY15'!E9 -> 2.5 | E10: ='Input - Customer Inventory FY15'!G9 -> 1 | G10: 0 | H10: 0 | I10: 0 | K10: 0 | L10: 0 | M10: 0 | N10: 0 | O10: 0 | P10: 0 | R10: =IFERROR(IF(K10-(($G10-SUM($CH10:CH10))/$H10)<0,K10,(($G10-SUM($CH10:CH10))/$H10)),0) -> 0 | S10: =IFERROR(IF(L10-(($G10-SUM($CH10:CI10))/$H10)<0,L10,(($G10-SUM($CH10:CI10))/$H10)),0) -> 0 | T10: =IFERROR(IF(M10-(($G10-SUM($CH10:CJ10))/$H10)<0,M10,(($G10-SUM($CH10:CJ10))/$H10)),0) -> 0 | U10: =IFERROR(IF(N10-(($G10-SUM($CH10:CK10))/$H10)<0,N10,(($G10-SUM($CH10:CK10))/$H10)),0) -> 0 | V10: =IFERROR(IF(O10-(($G10-SUM($CH10:CL10))/$H10)<0,O10,(($G10-SUM($CH10:CL10))/$H10)),0) -> 0 | X10: 0 | Y10: 0 | Z10: 0 | AA10: 0 | AB10: 0 | AC10: 0 | AE10: =X10*'Inputs - General'!J$6 -> 0 | AF10: =Y10*'Inputs - General'!K$6 -> 0 | AG10: =Z10*'Inputs - General'!L$6 -> 0 | AH10: =AA10*'Inputs - General'!M$6 -> 0 | AI10: =AB10*'Inputs - General'!N$6 -> 0 | AJ10: =AC10*'Inputs - General'!O$6 -> 0 | AL10: =K10*'Inputs - General'!J$6 -> 0 | AM10: =L10*'Inputs - General'!K$6 -> 0 | AN10: =M10*'Inputs - General'!L$6 -> 0 | AO10: =N10*'Inputs - General'!M$6 -> 0 | AP10: =O10*'Inputs - General'!N$6 -> 0 | AQ10: =P10*'Inputs - General'!O$6 -> 0 | AS10: =R10*'Inputs - General'!K$6 -> 0 | AT10: =S10*'Inputs - General'!L$6 -> 0 | AU10: =T10*'Inputs - General'!M$6 -> 0 | AV10: =U10*'Inputs - General'!N$6 -> 0 | AW10: =V10*'Inputs - General'!O$6 -> 0 | AY10: =AE10*'Inputs - General'!K$4 -> 0 | AZ10: =AF10*'Inputs - General'!L$4 -> 0 | BA10: =AG10*'Inputs - General'!M$4 -> 0 | BB10: =AH10*'Inputs - General'!N$4 -> 0 | BC10: =AI10*'Inputs - General'!O$4 -> 0 | BE10: 0 | BF10: 0 | BG10: 0 | BH10: 0 | BI10: 0 | BK10: 0 | BL10: 0 | BM10: 0 | BN10: 0 | BO10: 0 | BQ10: ='Input - Customer Inventory FY15'!F9 -> 2.5 | BW10: =IF($C10="Lamp",0,IF(SUM(BR10:$BV10)>=$BQ10,0,IF(BK10<=0,IF($G10=0,0,$BQ10),0))) -> 0 | BX10: =IF($C10="Lamp",0,IF(SUM($BR10:BW10)>=$BQ10,0,IF(BL10<=0,IF($G10=0,0,$BQ10),0))) -> 0 | BY10: =IF($C10="Lamp",0,IF(SUM($BR10:BX10)>=$BQ10,0,IF(BM10<=0,IF($G10=0,0,$BQ10),0))) -> 0 | BZ10: =IF($C10="Lamp",0,IF(SUM($BR10:BY10)>=$BQ10,0,IF(BN10<=0,IF($G10=0,0,$BQ10),0))) -> 0 | CA10: =IF($C10="Lamp",0,IF(SUM($BR10:BZ10)>=$BQ10,0,IF(BO10<=0,IF($G10=0,0,$BQ10),0))) -> 0 | CI10: =CC10/'Inputs - General'!K$6 -> 0 | CJ10: =CD10/'Inputs - General'!L$6 -> 0 | CK10: =CE10/'Inputs - General'!M$6 -> 0 | CL10: =CF10/'Inputs - General'!N$6 -> 0 | CM10: =CG10/'Inputs - General'!O$6 -> 0
A11: Customer 1 | B11: ='Input - Customer Inventory FY15'!C10 -> Bracket - 3.0 | C11: ='Input - Customer Inventory FY15'!D10 -> Bracket | D11: ='Input - Customer Inventory FY15'!E10 -> 3.0 | E11: ='Input - Customer Inventory FY15'!G10 -> 1 | G11: 0 | H11: 0 | I11: 0 | K11: 0 | L11: 0 | M11: 0 | N11: 0 | O11: 0 | P11: 0 | R11: =IFERROR(IF(K11-(($G11-SUM($CH11:CH11))/$H11)<0,K11,(($G11-SUM($CH11:CH11))/$H11)),0) -> 0 | S11: =IFERROR(IF(L11-(($G11-SUM($CH11:CI11))/$H11)<0,L11,(($G11-SUM($CH11:CI11))/$H11)),0) -> 0 | T11: =IFERROR(IF(M11-(($G11-SUM($CH11:CJ11))/$H11)<0,M11,(($G11-SUM($CH11:CJ11))/$H11)),0) -> 0 | U11: =IFERROR(IF(N11-(($G11-SUM($CH11:CK11))/$H11)<0,N11,(($G11-SUM($CH11:CK11))/$H11)),0) -> 0 | V11: =IFERROR(IF(O11-(($G11-SUM($CH11:CL11))/$H11)<0,O11,(($G11-SUM($CH11:CL11))/$H11)),0) -> 0 | X11: 0 | Y11: 0 | Z11: 0 | AA11: 0 | AB11: 0 | AC11: 0 | AE11: =X11*'Inputs - General'!J$6 -> 0 | AF11: =Y11*'Inputs - General'!K$6 -> 0 | AG11: =Z11*'Inputs - General'!L$6 -> 0 | AH11: =AA11*'Inputs - General'!M$6 -> 0 | AI11: =AB11*'Inputs - General'!N$6 -> 0 | AJ11: =AC11*'Inputs - General'!O$6 -> 0 | AL11: =K11*'Inputs - General'!J$6 -> 0 | AM11: =L11*'Inputs - General'!K$6 -> 0 | AN11: =M11*'Inputs - General'!L$6 -> 0 | AO11: =N11*'Inputs - General'!M$6 -> 0 | AP11: =O11*'Inputs - General'!N$6 -> 0 | AQ11: =P11*'Inputs - General'!O$6 -> 0 | AS11: =R11*'Inputs - General'!K$6 -> 0 | AT11: =S11*'Inputs - General'!L$6 -> 0 | AU11: =T11*'Inputs - General'!M$6 -> 0 | AV11: =U11*'Inputs - General'!N$6 -> 0 | AW11: =V11*'Inputs - General'!O$6 -> 0 | AY11: =AE11*'Inputs - General'!K$4 -> 0 | AZ11: =AF11*'Inputs - General'!L$4 -> 0 | BA11: =AG11*'Inputs - General'!M$4 -> 0 | BB11: =AH11*'Inputs - General'!N$4 -> 0 | BC11: =AI11*'Inputs - General'!O$4 -> 0 | BE11: 0 | BF11: 0 | BG11: 0 | BH11: 0 | BI11: 0 | BK11: 0 | BL11: 0 | BM11: 0 | BN11: 0 | BO11: 0 | BQ11: ='Input - Customer Inventory FY15'!F10 -> 16.5 | BW11: =IF($C11="Lamp",0,IF(SUM(BR11:$BV11)>=$BQ11,0,IF(BK11<=0,IF($G11=0,0,$BQ11),0))) -> 0 | BX11: =IF($C11="Lamp",0,IF(SUM($BR11:BW11)>=$BQ11,0,IF(BL11<=0,IF($G11=0,0,$BQ11),0))) -> 0 | BY11: =IF($C11="Lamp",0,IF(SUM($BR11:BX11)>=$BQ11,0,IF(BM11<=0,IF($G11=0,0,$BQ11),0))) -> 0 | BZ11: =IF($C11="Lamp",0,IF(SUM($BR11:BY11)>=$BQ11,0,IF(BN11<=0,IF($G11=0,0,$BQ11),0))) -> 0 | CA11: =IF($C11="Lamp",0,IF(SUM($BR11:BZ11)>=$BQ11,0,IF(BO11<=0,IF($G11=0,0,$BQ11),0))) -> 0 | CI11: =CC11/'Inputs - General'!K$6 -> 0 | CJ11: =CD11/'Inputs - General'!L$6 -> 0 | CK11: =CE11/'Inputs - General'!M$6 -> 0 | CL11: =CF11/'Inputs - General'!N$6 -> 0 | CM11: =CG11/'Inputs - General'!O$6 -> 0
A12: Customer 1 | B12: ='Input - Customer Inventory FY15'!C11 -> Bracket - 3.0 | C12: ='Input - Customer Inventory FY15'!D11 -> Bracket | D12: ='Input - Customer Inventory FY15'!E11 -> 3.0 | E12: ='Input - Customer Inventory FY15'!G11 -> 2 | G12: 0 | H12: 0 | I12: 0 | K12: 0 | L12: 0 | M12: 0 | N12: 0 | O12: 0 | P12: 0 | R12: =IFERROR(IF(K12-(($G12-SUM($CH12:CH12))/$H12)<0,K12,(($G12-SUM($CH12:CH12))/$H12)),0) -> 0 | S12: =IFERROR(IF(L12-(($G12-SUM($CH12:CI12))/$H12)<0,L12,(($G12-SUM($CH12:CI12))/$H12)),0) -> 0 | T12: =IFERROR(IF(M12-(($G12-SUM($CH12:CJ12))/$H12)<0,M12,(($G12-SUM($CH12:CJ12))/$H12)),0) -> 0 | U12: =IFERROR(IF(N12-(($G12-SUM($CH12:CK12))/$H12)<0,N12,(($G12-SUM($CH12:CK12))/$H12)),0) -> 0 | V12: =IFERROR(IF(O12-(($G12-SUM($CH12:CL12))/$H12)<0,O12,(($G12-SUM($CH12:CL12))/$H12)),0) -> 0 | X12: 0 | Y12: 0 | Z12: 0 | AA12: 0 | AB12: 0 | AC12: 0 | AE12: =X12*'Inputs - General'!J$6 -> 0 | AF12: =Y12*'Inputs - General'!K$6 -> 0 | AG12: =Z12*'Inputs - General'!L$6 -> 0 | AH12: =AA12*'Inputs - General'!M$6 -> 0 | AI12: =AB12*'Inputs - General'!N$6 -> 0 | AJ12: =AC12*'Inputs - General'!O$6 -> 0 | AL12: =K12*'Inputs - General'!J$6 -> 0 | AM12: =L12*'Inputs - General'!K$6 -> 0 | AN12: =M12*'Inputs - General'!L$6 -> 0 | AO12: =N12*'Inputs - General'!M$6 -> 0 | AP12: =O12*'Inputs - General'!N$6 -> 0 | AQ12: =P12*'Inputs - General'!O$6 -> 0 | AS12: =R12*'Inputs - General'!K$6 -> 0 | AT12: =S12*'Inputs - General'!L$6 -> 0 | AU12: =T12*'Inputs - General'!M$6 -> 0 | AV12: =U12*'Inputs - General'!N$6 -> 0 | AW12: =V12*'Inputs - General'!O$6 -> 0 | AY12: =AE12*'Inputs - General'!K$4 -> 0 | AZ12: =AF12*'Inputs - General'!L$4 -> 0 | BA12: =AG12*'Inputs - General'!M$4 -> 0 | BB12: =AH12*'Inputs - General'!N$4 -> 0 | BC12: =AI12*'Inputs - General'!O$4 -> 0 | BE12: 0 | BF12: 0 | BG12: 0 | BH12: 0 | BI12: 0 | BK12: 0 | BL12: 0 | BM12: 0 | BN12: 0 | BO12: 0 | BQ12: ='Input - Customer Inventory FY15'!F11 -> 8 | BW12: =IF($C12="Lamp",0,IF(SUM(BR12:$BV12)>=$BQ12,0,IF(BK12<=0,IF($G12=0,0,$BQ12),0))) -> 0 | BX12: =IF($C12="Lamp",0,IF(SUM($BR12:BW12)>=$BQ12,0,IF(BL12<=0,IF($G12=0,0,$BQ12),0))) -> 0 | BY12: =IF($C12="Lamp",0,IF(SUM($BR12:BX12)>=$BQ12,0,IF(BM12<=0,IF($G12=0,0,$BQ12),0))) -> 0 | BZ12: =IF($C12="Lamp",0,IF(SUM($BR12:BY12)>=$BQ12,0,IF(BN12<=0,IF($G12=0,0,$BQ12),0))) -> 0 | CA12: =IF($C12="Lamp",0,IF(SUM($BR12:BZ12)>=$BQ12,0,IF(BO12<=0,IF($G12=0,0,$BQ12),0))) -> 0 | CI12: =CC12/'Inputs - General'!K$6 -> 0 | CJ12: =CD12/'Inputs - General'!L$6 -> 0 | CK12: =CE12/'Inputs - General'!M$6 -> 0 | CL12: =CF12/'Inputs - General'!N$6 -> 0 | CM12: =CG12/'Inputs - General'!O$6 -> 0
A13: Customer 1 | B13: ='Input - Customer Inventory FY15'!C12 -> Bracket - 3.5 | C13: ='Input - Customer Inventory FY15'!D12 -> Bracket | D13: ='Input - Customer Inventory FY15'!E12 -> 3.5 | E13: ='Input - Customer Inventory FY15'!G12 -> 1 | G13: 0 | H13: 0 | I13: 0 | K13: 0 | L13: 0 | M13: 0 | N13: 0 | O13: 0 | P13: 0 | R13: =IFERROR(IF(K13-(($G13-SUM($CH13:CH13))/$H13)<0,K13,(($G13-SUM($CH13:CH13))/$H13)),0) -> 0 | S13: =IFERROR(IF(L13-(($G13-SUM($CH13:CI13))/$H13)<0,L13,(($G13-SUM($CH13:CI13))/$H13)),0) -> 0 | T13: =IFERROR(IF(M13-(($G13-SUM($CH13:CJ13))/$H13)<0,M13,(($G13-SUM($CH13:CJ13))/$H13)),0) -> 0 | U13: =IFERROR(IF(N13-(($G13-SUM($CH13:CK13))/$H13)<0,N13,(($G13-SUM($CH13:CK13))/$H13)),0) -> 0 | V13: =IFERROR(IF(O13-(($G13-SUM($CH13:CL13))/$H13)<0,O13,(($G13-SUM($CH13:CL13))/$H13)),0) -> 0 | X13: 0 | Y13: 0 | Z13: 0 | AA13: 0 | AB13: 0 | AC13: 0 | AE13: =X13*'Inputs - General'!J$6 -> 0 | AF13: =Y13*'Inputs - General'!K$6 -> 0 | AG13: =Z13*'Inputs - General'!L$6 -> 0 | AH13: =AA13*'Inputs - General'!M$6 -> 0 | AI13: =AB13*'Inputs - General'!N$6 -> 0 | AJ13: =AC13*'Inputs - General'!O$6 -> 0 | AL13: =K13*'Inputs - General'!J$6 -> 0 | AM13: =L13*'Inputs - General'!K$6 -> 0 | AN13: =M13*'Inputs - General'!L$6 -> 0 | AO13: =N13*'Inputs - General'!M$6 -> 0 | AP13: =O13*'Inputs - General'!N$6 -> 0 | AQ13: =P13*'Inputs - General'!O$6 -> 0 | AS13: =R13*'Inputs - General'!K$6 -> 0 | AT13: =S13*'Inputs - General'!L$6 -> 0 | AU13: =T13*'Inputs - General'!M$6 -> 0 | AV13: =U13*'Inputs - General'!N$6 -> 0 | AW13: =V13*'Inputs - General'!O$6 -> 0 | AY13: =AE13*'Inputs - General'!K$4 -> 0 | AZ13: =AF13*'Inputs - General'!L$4 -> 0 | BA13: =AG13*'Inputs - General'!M$4 -> 0 | BB13: =AH13*'Inputs - General'!N$4 -> 0 | BC13: =AI13*'Inputs - General'!O$4 -> 0 | BE13: 0 | BF13: 0 | BG13: 0 | BH13: 0 | BI13: 0 | BK13: 0 | BL13: 0 | BM13: 0 | BN13: 0 | BO13: 0 | BQ13: ='Input - Customer Inventory FY15'!F12 -> 154 | BW13: =IF($C13="Lamp",0,IF(SUM(BR13:$BV13)>=$BQ13,0,IF(BK13<=0,IF($G13=0,0,$BQ13),0))) -> 0 | BX13: =IF($C13="Lamp",0,IF(SUM($BR13:BW13)>=$BQ13,0,IF(BL13<=0,IF($G13=0,0,$BQ13),0))) -> 0 | BY13: =IF($C13="Lamp",0,IF(SUM($BR13:BX13)>=$BQ13,0,IF(BM13<=0,IF($G13=0,0,$BQ13),0))) -> 0 | BZ13: =IF($C13="Lamp",0,IF(SUM($BR13:BY13)>=$BQ13,0,IF(BN13<=0,IF($G13=0,0,$BQ13),0))) -> 0 | CA13: =IF($C13="Lamp",0,IF(SUM($BR13:BZ13)>=$BQ13,0,IF(BO13<=0,IF($G13=0,0,$BQ13),0))) -> 0 | CI13: =CC13/'Inputs - General'!K$6 -> 0 | CJ13: =CD13/'Inputs - General'!L$6 -> 0 | CK13: =CE13/'Inputs - General'!M$6 -> 0 | CL13: =CF13/'Inputs - General'!N$6 -> 0 | CM13: =CG13/'Inputs - General'!O$6 -> 0
A14: Customer 1 | B14: ='Input - Customer Inventory FY15'!C13 -> Bracket - 4.0 | C14: ='Input - Customer Inventory FY15'!D13 -> Bracket | D14: ='Input - Customer Inventory FY15'!E13 -> 4.0 | E14: ='Input - Customer Inventory FY15'!G13 -> 1 | G14: 0 | H14: 0 | I14: 0 | K14: 0 | L14: 0 | M14: 0 | N14: 0 | O14: 0 | P14: 0 | R14: =IFERROR(IF(K14-(($G14-SUM($CH14:CH14))/$H14)<0,K14,(($G14-SUM($CH14:CH14))/$H14)),0) -> 0 | S14: =IFERROR(IF(L14-(($G14-SUM($CH14:CI14))/$H14)<0,L14,(($G14-SUM($CH14:CI14))/$H14)),0) -> 0 | T14: =IFERROR(IF(M14-(($G14-SUM($CH14:CJ14))/$H14)<0,M14,(($G14-SUM($CH14:CJ14))/$H14)),0) -> 0 | U14: =IFERROR(IF(N14-(($G14-SUM($CH14:CK14))/$H14)<0,N14,(($G14-SUM($CH14:CK14))/$H14)),0) -> 0 | V14: =IFERROR(IF(O14-(($G14-SUM($CH14:CL14))/$H14)<0,O14,(($G14-SUM($CH14:CL14))/$H14)),0) -> 0 | X14: 0 | Y14: 0 | Z14: 0 | AA14: 0 | AB14: 0 | AC14: 0 | AE14: =X14*'Inputs - General'!J$6 -> 0 | AF14: =Y14*'Inputs - General'!K$6 -> 0 | AG14: =Z14*'Inputs - General'!L$6 -> 0 | AH14: =AA14*'Inputs - General'!M$6 -> 0 | AI14: =AB14*'Inputs - General'!N$6 -> 0 | AJ14: =AC14*'Inputs - General'!O$6 -> 0 | AL14: =K14*'Inputs - General'!J$6 -> 0 | AM14: =L14*'Inputs - General'!K$6 -> 0 | AN14: =M14*'Inputs - General'!L$6 -> 0 | AO14: =N14*'Inputs - General'!M$6 -> 0 | AP14: =O14*'Inputs - General'!N$6 -> 0 | AQ14: =P14*'Inputs - General'!O$6 -> 0 | AS14: =R14*'Inputs - General'!K$6 -> 0 | AT14: =S14*'Inputs - General'!L$6 -> 0 | AU14: =T14*'Inputs - General'!M$6 -> 0 | AV14: =U14*'Inputs - General'!N$6 -> 0 | AW14: =V14*'Inputs - General'!O$6 -> 0 | AY14: =AE14*'Inputs - General'!K$4 -> 0 | AZ14: =AF14*'Inputs - General'!L$4 -> 0 | BA14: =AG14*'Inputs - General'!M$4 -> 0 | BB14: =AH14*'Inputs - General'!N$4 -> 0 | BC14: =AI14*'Inputs - General'!O$4 -> 0 | BE14: 0 | BF14: 0 | BG14: 0 | BH14: 0 | BI14: 0 | BK14: 0 | BL14: 0 | BM14: 0 | BN14: 0 | BO14: 0 | BQ14: ='Input - Customer Inventory FY15'!F13 -> 12 | BW14: =IF($C14="Lamp",0,IF(SUM(BR14:$BV14)>=$BQ14,0,IF(BK14<=0,IF($G14=0,0,$BQ14),0))) -> 0 | BX14: =IF($C14="Lamp",0,IF(SUM($BR14:BW14)>=$BQ14,0,IF(BL14<=0,IF($G14=0,0,$BQ14),0))) -> 0 | BY14: =IF($C14="Lamp",0,IF(SUM($BR14:BX14)>=$BQ14,0,IF(BM14<=0,IF($G14=0,0,$BQ14),0))) -> 0 | BZ14: =IF($C14="Lamp",0,IF(SUM($BR14:BY14)>=$BQ14,0,IF(BN14<=0,IF($G14=0,0,$BQ14),0))) -> 0 | CA14: =IF($C14="Lamp",0,IF(SUM($BR14:BZ14)>=$BQ14,0,IF(BO14<=0,IF($G14=0,0,$BQ14),0))) -> 0 | CI14: =CC14/'Inputs - General'!K$6 -> 0 | CJ14: =CD14/'Inputs - General'!L$6 -> 0 | CK14: =CE14/'Inputs - General'!M$6 -> 0 | CL14: =CF14/'Inputs - General'!N$6 -> 0 | CM14: =CG14/'Inputs - General'!O$6 -> 0
A15: Customer 1 | B15: ='Input - Customer Inventory FY15'!C14 -> Bracket - 4.5 | C15: ='Input - Customer Inventory FY15'!D14 -> Bracket | D15: ='Input - Customer Inventory FY15'!E14 -> 4.5 | E15: ='Input - Customer Inventory FY15'!G14 -> 1 | G15: 0 | H15: 0 | I15: 0 | K15: 0 | L15: 0 | M15: 0 | N15: 0 | O15: 0 | P15: 0 | R15: =IFERROR(IF(K15-(($G15-SUM($CH15:CH15))/$H15)<0,K15,(($G15-SUM($CH15:CH15))/$H15)),0) -> 0 | S15: =IFERROR(IF(L15-(($G15-SUM($CH15:CI15))/$H15)<0,L15,(($G15-SUM($CH15:CI15))/$H15)),0) -> 0 | T15: =IFERROR(IF(M15-(($G15-SUM($CH15:CJ15))/$H15)<0,M15,(($G15-SUM($CH15:CJ15))/$H15)),0) -> 0 | U15: =IFERROR(IF(N15-(($G15-SUM($CH15:CK15))/$H15)<0,N15,(($G15-SUM($CH15:CK15))/$H15)),0) -> 0 | V15: =IFERROR(IF(O15-(($G15-SUM($CH15:CL15))/$H15)<0,O15,(($G15-SUM($CH15:CL15))/$H15)),0) -> 0 | X15: 0 | Y15: 0 | Z15: 0 | AA15: 0 | AB15: 0 | AC15: 0 | AE15: =X15*'Inputs - General'!J$6 -> 0 | AF15: =Y15*'Inputs - General'!K$6 -> 0 | AG15: =Z15*'Inputs - General'!L$6 -> 0 | AH15: =AA15*'Inputs - General'!M$6 -> 0 | AI15: =AB15*'Inputs - General'!N$6 -> 0 | AJ15: =AC15*'Inputs - General'!O$6 -> 0 | AL15: =K15*'Inputs - General'!J$6 -> 0 | AM15: =L15*'Inputs - General'!K$6 -> 0 | AN15: =M15*'Inputs - General'!L$6 -> 0 | AO15: =N15*'Inputs - General'!M$6 -> 0 | AP15: =O15*'Inputs - General'!N$6 -> 0 | AQ15: =P15*'Inputs - General'!O$6 -> 0 | AS15: =R15*'Inputs - General'!K$6 -> 0 | AT15: =S15*'Inputs - General'!L$6 -> 0 | AU15: =T15*'Inputs - General'!M$6 -> 0 | AV15: =U15*'Inputs - General'!N$6 -> 0 | AW15: =V15*'Inputs - General'!O$6 -> 0 | AY15: =AE15*'Inputs - General'!K$4 -> 0 | AZ15: =AF15*'Inputs - General'!L$4 -> 0 | BA15: =AG15*'Inputs - General'!M$4 -> 0 | BB15: =AH15*'Inputs - General'!N$4 -> 0 | BC15: =AI15*'Inputs - General'!O$4 -> 0 | BE15: 0 | BF15: 0 | BG15: 0 | BH15: 0 | BI15: 0 | BK15: 0 | BL15: 0 | BM15: 0 | BN15: 0 | BO15: 0 | BQ15: ='Input - Customer Inventory FY15'!F14 -> 324.5 | BW15: =IF($C15="Lamp",0,IF(SUM(BR15:$BV15)>=$BQ15,0,IF(BK15<=0,IF($G15=0,0,$BQ15),0))) -> 0 | BX15: =IF($C15="Lamp",0,IF(SUM($BR15:BW15)>=$BQ15,0,IF(BL15<=0,IF($G15=0,0,$BQ15),0))) -> 0 | BY15: =IF($C15="Lamp",0,IF(SUM($BR15:BX15)>=$BQ15,0,IF(BM15<=0,IF($G15=0,0,$BQ15),0))) -> 0 | BZ15: =IF($C15="Lamp",0,IF(SUM($BR15:BY15)>=$BQ15,0,IF(BN15<=0,IF($G15=0,0,$BQ15),0))) -> 0 | CA15: =IF($C15="Lamp",0,IF(SUM($BR15:BZ15)>=$BQ15,0,IF(BO15<=0,IF($G15=0,0,$BQ15),0))) -> 0 | CI15: =CC15/'Inputs - General'!K$6 -> 0 | CJ15: =CD15/'Inputs - General'!L$6 -> 0 | CK15: =CE15/'Inputs - General'!M$6 -> 0 | CL15: =CF15/'Inputs - General'!N$6 -> 0 | CM15: =CG15/'Inputs - General'!O$6 -> 0
A16: Customer 1 | B16: ='Input - Customer Inventory FY15'!C15 -> Bracket - 4.5 | C16: ='Input - Customer Inventory FY15'!D15 -> Bracket | D16: ='Input - Customer Inventory FY15'!E15 -> 4.5 | E16: ='Input - Customer Inventory FY15'!G15 -> 2 | G16: 0 | H16: 0 | I16: 0 | K16: 0 | L16: 0 | M16: 0 | N16: 0 | O16: 0 | P16: 0 | R16: =IFERROR(IF(K16-(($G16-SUM($CH16:CH16))/$H16)<0,K16,(($G16-SUM($CH16:CH16))/$H16)),0) -> 0 | S16: =IFERROR(IF(L16-(($G16-SUM($CH16:CI16))/$H16)<0,L16,(($G16-SUM($CH16:CI16))/$H16)),0) -> 0 | T16: =IFERROR(IF(M16-(($G16-SUM($CH16:CJ16))/$H16)<0,M16,(($G16-SUM($CH16:CJ16))/$H16)),0) -> 0 | U16: =IFERROR(IF(N16-(($G16-SUM($CH16:CK16))/$H16)<0,N16,(($G16-SUM($CH16:CK16))/$H16)),0) -> 0 | V16: =IFERROR(IF(O16-(($G16-SUM($CH16:CL16))/$H16)<0,O16,(($G16-SUM($CH16:CL16))/$H16)),0) -> 0 | X16: 0 | Y16: 0 | Z16: 0 | AA16: 0 | AB16: 0 | AC16: 0 | AE16: =X16*'Inputs - General'!J$6 -> 0 | AF16: =Y16*'Inputs - General'!K$6 -> 0 | AG16: =Z16*'Inputs - General'!L$6 -> 0 | AH16: =AA16*'Inputs - General'!M$6 -> 0 | AI16: =AB16*'Inputs - General'!N$6 -> 0 | AJ16: =AC16*'Inputs - General'!O$6 -> 0 | AL16: =K16*'Inputs - General'!J$6 -> 0 | AM16: =L16*'Inputs - General'!K$6 -> 0 | AN16: =M16*'Inputs - General'!L$6 -> 0 | AO16: =N16*'Inputs - General'!M$6 -> 0 | AP16: =O16*'Inputs - General'!N$6 -> 0 | AQ16: =P16*'Inputs - General'!O$6 -> 0 | AS16: =R16*'Inputs - General'!K$6 -> 0 | AT16: =S16*'Inputs - General'!L$6 -> 0 | AU16: =T16*'Inputs - General'!M$6 -> 0 | AV16: =U16*'Inputs - General'!N$6 -> 0 | AW16: =V16*'Inputs - General'!O$6 -> 0 | AY16: =AE16*'Inputs - General'!K$4 -> 0 | AZ16: =AF16*'Inputs - General'!L$4 -> 0 | BA16: =AG16*'Inputs - General'!M$4 -> 0 | BB16: =AH16*'Inputs - General'!N$4 -> 0 | BC16: =AI16*'Inputs - General'!O$4 -> 0 | BE16: 0 | BF16: 0 | BG16: 0 | BH16: 0 | BI16: 0 | BK16: 0 | BL16: 0 | BM16: 0 | BN16: 0 | BO16: 0 | BQ16: ='Input - Customer Inventory FY15'!F15 -> 1 | BW16: =IF($C16="Lamp",0,IF(SUM(BR16:$BV16)>=$BQ16,0,IF(BK16<=0,IF($G16=0,0,$BQ16),0))) -> 0 | BX16: =IF($C16="Lamp",0,IF(SUM($BR16:BW16)>=$BQ16,0,IF(BL16<=0,IF($G16=0,0,$BQ16),0))) -> 0 | BY16: =IF($C16="Lamp",0,IF(SUM($BR16:BX16)>=$BQ16,0,IF(BM16<=0,IF($G16=0,0,$BQ16),0))) -> 0 | BZ16: =IF($C16="Lamp",0,IF(SUM($BR16:BY16)>=$BQ16,0,IF(BN16<=0,IF($G16=0,0,$BQ16),0))) -> 0 | CA16: =IF($C16="Lamp",0,IF(SUM($BR16:BZ16)>=$BQ16,0,IF(BO16<=0,IF($G16=0,0,$BQ16),0))) -> 0 | CI16: =CC16/'Inputs - General'!K$6 -> 0 | CJ16: =CD16/'Inputs - General'!L$6 -> 0 | CK16: =CE16/'Inputs - General'!M$6 -> 0 | CL16: =CF16/'Inputs - General'!N$6 -> 0 | CM16: =CG16/'Inputs - General'!O$6 -> 0
A17: Customer 1 | B17: ='Input - Customer Inventory FY15'!C16 -> Bracket - 5.0 | C17: ='Input - Customer Inventory FY15'!D16 -> Bracket | D17: ='Input - Customer Inventory FY15'!E16 -> 5.0 | E17: ='Input - Customer Inventory FY15'!G16 -> 1 | G17: 0 | H17: 0 | I17: 0 | K17: 0 | L17: 0 | M17: 0 | N17: 0 | O17: 0 | P17: 0 | R17: =IFERROR(IF(K17-(($G17-SUM($CH17:CH17))/$H17)<0,K17,(($G17-SUM($CH17:CH17))/$H17)),0) -> 0 | S17: =IFERROR(IF(L17-(($G17-SUM($CH17:CI17))/$H17)<0,L17,(($G17-SUM($CH17:CI17))/$H17)),0) -> 0 | T17: =IFERROR(IF(M17-(($G17-SUM($CH17:CJ17))/$H17)<0,M17,(($G17-SUM($CH17:CJ17))/$H17)),0) -> 0 | U17: =IFERROR(IF(N17-(($G17-SUM($CH17:CK17))/$H17)<0,N17,(($G17-SUM($CH17:CK17))/$H17)),0) -> 0 | V17: =IFERROR(IF(O17-(($G17-SUM($CH17:CL17))/$H17)<0,O17,(($G17-SUM($CH17:CL17))/$H17)),0) -> 0 | X17: 0 | Y17: 0 | Z17: 0 | AA17: 0 | AB17: 0 | AC17: 0 | AE17: =X17*'Inputs - General'!J$6 -> 0 | AF17: =Y17*'Inputs - General'!K$6 -> 0 | AG17: =Z17*'Inputs - General'!L$6 -> 0 | AH17: =AA17*'Inputs - General'!M$6 -> 0 | AI17: =AB17*'Inputs - General'!N$6 -> 0 | AJ17: =AC17*'Inputs - General'!O$6 -> 0 | AL17: =K17*'Inputs - General'!J$6 -> 0 | AM17: =L17*'Inputs - General'!K$6 -> 0 | AN17: =M17*'Inputs - General'!L$6 -> 0 | AO17: =N17*'Inputs - General'!M$6 -> 0 | AP17: =O17*'Inputs - General'!N$6 -> 0 | AQ17: =P17*'Inputs - General'!O$6 -> 0 | AS17: =R17*'Inputs - General'!K$6 -> 0 | AT17: =S17*'Inputs - General'!L$6 -> 0 | AU17: =T17*'Inputs - General'!M$6 -> 0 | AV17: =U17*'Inputs - General'!N$6 -> 0 | AW17: =V17*'Inputs - General'!O$6 -> 0 | AY17: =AE17*'Inputs - General'!K$4 -> 0 | AZ17: =AF17*'Inputs - General'!L$4 -> 0 | BA17: =AG17*'Inputs - General'!M$4 -> 0 | BB17: =AH17*'Inputs - General'!N$4 -> 0 | BC17: =AI17*'Inputs - General'!O$4 -> 0 | BE17: 0 | BF17: 0 | BG17: 0 | BH17: 0 | BI17: 0 | BK17: 0 | BL17: 0 | BM17: 0 | BN17: 0 | BO17: 0 | BQ17: ='Input - Customer Inventory FY15'!F16 -> 14.5 | BW17: =IF($C17="Lamp",0,IF(SUM(BR17:$BV17)>=$BQ17,0,IF(BK17<=0,IF($G17=0,0,$BQ17),0))) -> 0 | BX17: =IF($C17="Lamp",0,IF(SUM($BR17:BW17)>=$BQ17,0,IF(BL17<=0,IF($G17=0,0,$BQ17),0))) -> 0 | BY17: =IF($C17="Lamp",0,IF(SUM($BR17:BX17)>=$BQ17,0,IF(BM17<=0,IF($G17=0,0,$BQ17),0))) -> 0 | BZ17: =IF($C17="Lamp",0,IF(SUM($BR17:BY17)>=$BQ17,0,IF(BN17<=0,IF($G17=0,0,$BQ17),0))) -> 0 | CA17: =IF($C17="Lamp",0,IF(SUM($BR17:BZ17)>=$BQ17,0,IF(BO17<=0,IF($G17=0,0,$BQ17),0))) -> 0 | CI17: =CC17/'Inputs - General'!K$6 -> 0 | CJ17: =CD17/'Inputs - General'!L$6 -> 0 | CK17: =CE17/'Inputs - General'!M$6 -> 0 | CL17: =CF17/'Inputs - General'!N$6 -> 0 | CM17: =CG17/'Inputs - General'!O$6 -> 0
A18: Customer 1 | B18: ='Input - Customer Inventory FY15'!C17 -> Bracket - 6.0 | C18: ='Input - Customer Inventory FY15'!D17 -> Bracket | D18: ='Input - Customer Inventory FY15'!E17 -> 6.0 | E18: ='Input - Customer Inventory FY15'!G17 -> 1 | G18: 0.6658482204 | H18: 4.516438356 | I18: 0.1474277224 | K18: 0.6658482204 | L18: 0.5184204979 | M18: 0.3709927755 | N18: 0.2235650531 | O18: 0.07613733063 | P18: 0 | R18: =IFERROR(IF(K18-(($G18-SUM($CH18:CH18))/$H18)<0,K18,(($G18-SUM($CH18:CH18))/$H18)),0) -> 0.1474277224 | S18: =IFERROR(IF(L18-(($G18-SUM($CH18:CI18))/$H18)<0,L18,(($G18-SUM($CH18:CI18))/$H18)),0) -> 0.1474277224 | T18: =IFERROR(IF(M18-(($G18-SUM($CH18:CJ18))/$H18)<0,M18,(($G18-SUM($CH18:CJ18))/$H18)),0) -> 0.1474277224 | U18: =IFERROR(IF(N18-(($G18-SUM($CH18:CK18))/$H18)<0,N18,(($G18-SUM($CH18:CK18))/$H18)),0) -> 0.1474277224 | V18: =IFERROR(IF(O18-(($G18-SUM($CH18:CL18))/$H18)<0,O18,(($G18-SUM($CH18:CL18))/$H18)),0) -> 0.07613733063 | X18: 0.6658482204 | Y18: 0.5184204979 | Z18: 0.3709927755 | AA18: 0.2235650531 | AB18: 0.07613733063 | AC18: 0 | AE18: =X18*'Inputs - General'!J$6 -> 0.6658482204 | AF18: =Y18*'Inputs - General'!K$6 -> 0.5309915452 | AG18: =Z18*'Inputs - General'!L$6 -> 0.3892031395 | AH18: =AA18*'Inputs - General'!M$6 -> 0.2402261276 | AI18: =AB18*'Inputs - General'!N$6 -> 0.08379525193 | AJ18: =AC18*'Inputs - General'!O$6 -> 0 | AL18: =K18*'Inputs - General'!J$6 -> 0.6658482204 | AM18: =L18*'Inputs - General'!K$6 -> 0.5309915452 | AN18: =M18*'Inputs - General'!L$6 -> 0.3892031395 | AO18: =N18*'Inputs - General'!M$6 -> 0.2402261276 | AP18: =O18*'Inputs - General'!N$6 -> 0.08379525193 | AQ18: =P18*'Inputs - General'!O$6 -> 0 | AS18: =R18*'Inputs - General'!K$6 -> 0.1510026599 | AT18: =S18*'Inputs - General'!L$6 -> 0.1546642851 | AU18: =T18*'Inputs - General'!M$6 -> 0.1584147002 | AV18: =U18*'Inputs - General'!N$6 -> 0.1622560581 | AW18: =V18*'Inputs - General'!O$6 -> 0.08582718176 | AY18: =AE18*'Inputs - General'!K$4 -> 0.01614598475 | AZ18: =AF18*'Inputs - General'!L$4 -> 0.01287587941 | BA18: =AG18*'Inputs - General'!M$4 -> 0.009437688295 | BB18: =AH18*'Inputs - General'!N$4 -> 0.005825182488 | BC18: =AI18*'Inputs - General'!O$4 -> 0.002031929828 | BE18: 0.1348566752 | BF18: 0.1417884057 | BG18: 0.1489770119 | BH18: 0.1564308756 | BI18: 0.08379525193 | BK18: 0.04183531412 | BL18: 0.03336225495 | BM18: 0.02445367442 | BN18: 0.01509343301 | BO18: 0.005264864543 | BQ18: ='Input - Customer Inventory FY15'!F17 -> 2 | BW18: =IF($C18="Lamp",0,IF(SUM(BR18:$BV18)>=$BQ18,0,IF(BK18<=0,IF($G18=0,0,$BQ18),0))) -> 0 | BX18: =IF($C18="Lamp",0,IF(SUM($BR18:BW18)>=$BQ18,0,IF(BL18<=0,IF($G18=0,0,$BQ18),0))) -> 0 | BY18: =IF($C18="Lamp",0,IF(SUM($BR18:BX18)>=$BQ18,0,IF(BM18<=0,IF($G18=0,0,$BQ18),0))) -> 0 | BZ18: =IF($C18="Lamp",0,IF(SUM($BR18:BY18)>=$BQ18,0,IF(BN18<=0,IF($G18=0,0,$BQ18),0))) -> 0 | CA18: =IF($C18="Lamp",0,IF(SUM($BR18:BZ18)>=$BQ18,0,IF(BO18<=0,IF($G18=0,0,$BQ18),0))) -> 0 | CI18: =CC18/'Inputs - General'!K$6 -> 0 | CJ18: =CD18/'Inputs - General'!L$6 -> 0 | CK18: =CE18/'Inputs - General'!M$6 -> 0 | CL18: =CF18/'Inputs - General'!N$6 -> 0 | CM18: =CG18/'Inputs - General'!O$6 -> 0
A19: Customer 1 | B19: ='Input - Customer Inventory FY15'!C18 -> Bracket - NIL | C19: ='Input - Customer Inventory FY15'!D18 -> Bracket | D19: ='Input - Customer Inventory FY15'!E18 -> NIL | E19: ='Input - Customer Inventory FY15'!G18 -> 1 | G19: 0 | H19: 0 | I19: 0 | K19: 0 | L19: 0 | M19: 0 | N19: 0 | O19: 0 | P19: 0 | R19: =IFERROR(IF(K19-(($G19-SUM($CH19:CH19))/$H19)<0,K19,(($G19-SUM($CH19:CH19))/$H19)),0) -> 0 | S19: =IFERROR(IF(L19-(($G19-SUM($CH19:CI19))/$H19)<0,L19,(($G19-SUM($CH19:CI19))/$H19)),0) -> 0 | T19: =IFERROR(IF(M19-(($G19-SUM($CH19:CJ19))/$H19)<0,M19,(($G19-SUM($CH19:CJ19))/$H19)),0) -> 0 | U19: =IFERROR(IF(N19-(($G19-SUM($CH19:CK19))/$H19)<0,N19,(($G19-SUM($CH19:CK19))/$H19)),0) -> 0 | V19: =IFERROR(IF(O19-(($G19-SUM($CH19:CL19))/$H19)<0,O19,(($G19-SUM($CH19:CL19))/$H19)),0) -> 0 | X19: 0 | Y19: 0 | Z19: 0 | AA19: 0 | AB19: 0 | AC19: 0 | AE19: =X19*'Inputs - General'!J$6 -> 0 | AF19: =Y19*'Inputs - General'!K$6 -> 0 | AG19: =Z19*'Inputs - General'!L$6 -> 0 | AH19: =AA19*'Inputs - General'!M$6 -> 0 | AI19: =AB19*'Inputs - General'!N$6 -> 0 | AJ19: =AC19*'Inputs - General'!O$6 -> 0 | AL19: =K19*'Inputs - General'!J$6 -> 0 | AM19: =L19*'Inputs - General'!K$6 -> 0 | AN19: =M19*'Inputs - General'!L$6 -> 0 | AO19: =N19*'Inputs - General'!M$6 -> 0 | AP19: =O19*'Inputs - General'!N$6 -> 0 | AQ19: =P19*'Inputs - General'!O$6 -> 0 | AS19: =R19*'Inputs - General'!K$6 -> 0 | AT19: =S19*'Inputs - General'!L$6 -> 0 | AU19: =T19*'Inputs - General'!M$6 -> 0 | AV19: =U19*'Inputs - General'!N$6 -> 0 | AW19: =V19*'Inputs - General'!O$6 -> 0 | AY19: =AE19*'Inputs - General'!K$4 -> 0 | AZ19: =AF19*'Inputs - General'!L$4 -> 0 | BA19: =AG19*'Inputs - General'!M$4 -> 0 | BB19: =AH19*'Inputs - General'!N$4 -> 0 | BC19: =AI19*'Inputs - General'!O$4 -> 0 | BE19: 0 | BF19: 0 | BG19: 0 | BH19: 0 | BI19: 0 | BK19: 0 | BL19: 0 | BM19: 0 | BN19: 0 | BO19: 0 | BQ19: ='Input - Customer Inventory FY15'!F18 -> 262.5 | BW19: =IF($C19="Lamp",0,IF(SUM(BR19:$BV19)>=$BQ19,0,IF(BK19<=0,IF($G19=0,0,$BQ19),0))) -> 0 | BX19: =IF($C19="Lamp",0,IF(SUM($BR19:BW19)>=$BQ19,0,IF(BL19<=0,IF($G19=0,0,$BQ19),0))) -> 0 | BY19: =IF($C19="Lamp",0,IF(SUM($BR19:BX19)>=$BQ19,0,IF(BM19<=0,IF($G19=0,0,$BQ19),0))) -> 0 | BZ19: =IF($C19="Lamp",0,IF(SUM($BR19:BY19)>=$BQ19,0,IF(BN19<=0,IF($G19=0,0,$BQ19),0))) -> 0 | CA19: =IF($C19="Lamp",0,IF(SUM($BR19:BZ19)>=$BQ19,0,IF(BO19<=0,IF($G19=0,0,$BQ19),0))) -> 0 | CI19: =CC19/'Inputs - General'!K$6 -> 0 | CJ19: =CD19/'Inputs - General'!L$6 -> 0 | CK19: =CE19/'Inputs - General'!M$6 -> 0 | CL19: =CF19/'Inputs - General'!N$6 -> 0 | CM19: =CG19/'Inputs - General'!O$6 -> 0
A20: Customer 1 | B20: ='Input - Customer Inventory FY15'!C19 -> Bracket - NIL | C20: ='Input - Customer Inventory FY15'!D19 -> Bracket | D20: ='Input - Customer Inventory FY15'!E19 -> NIL | E20: ='Input - Customer Inventory FY15'!G19 -> 2 | G20: 0 | H20: 0 | I20: 0 | K20: 0 | L20: 0 | M20: 0 | N20: 0 | O20: 0 | P20: 0 | R20: =IFERROR(IF(K20-(($G20-SUM($CH20:CH20))/$H20)<0,K20,(($G20-SUM($CH20:CH20))/$H20)),0) -> 0 | S20: =IFERROR(IF(L20-(($G20-SUM($CH20:CI20))/$H20)<0,L20,(($G20-SUM($CH20:CI20))/$H20)),0) -> 0 | T20: =IFERROR(IF(M20-(($G20-SUM($CH20:CJ20))/$H20)<0,M20,(($G20-SUM($CH20:CJ20))/$H20)),0) -> 0 | U20: =IFERROR(IF(N20-(($G20-SUM($CH20:CK20))/$H20)<0,N20,(($G20-SUM($CH20:CK20))/$H20)),0) -> 0 | V20: =IFERROR(IF(O20-(($G20-SUM($CH20:CL20))/$H20)<0,O20,(($G20-SUM($CH20:CL20))/$H20)),0) -> 0 | X20: 0 | Y20: 0 | Z20: 0 | AA20: 0 | AB20: 0 | AC20: 0 | AE20: =X20*'Inputs - General'!J$6 -> 0 | AF20: =Y20*'Inputs - General'!K$6 -> 0 | AG20: =Z20*'Inputs - General'!L$6 -> 0 | AH20: =AA20*'Inputs - General'!M$6 -> 0 | AI20: =AB20*'Inputs - General'!N$6 -> 0 | AJ20: =AC20*'Inputs - General'!O$6 -> 0 | AL20: =K20*'Inputs - General'!J$6 -> 0 | AM20: =L20*'Inputs - General'!K$6 -> 0 | AN20: =M20*'Inputs - General'!L$6 -> 0 | AO20: =N20*'Inputs - General'!M$6 -> 0 | AP20: =O20*'Inputs - General'!N$6 -> 0 | AQ20: =P20*'Inputs - General'!O$6 -> 0 | AS20: =R20*'Inputs - General'!K$6 -> 0 | AT20: =S20*'Inputs - General'!L$6 -> 0 | AU20: =T20*'Inputs - General'!M$6 -> 0 | AV20: =U20*'Inputs - General'!N$6 -> 0 | AW20: =V20*'Inputs - General'!O$6 -> 0 | AY20: =AE20*'Inputs - General'!K$4 -> 0 | AZ20: =AF20*'Inputs - General'!L$4 -> 0 | BA20: =AG20*'Inputs - General'!M$4 -> 0 | BB20: =AH20*'Inputs - General'!N$4 -> 0 | BC20: =AI20*'Inputs - General'!O$4 -> 0 | BE20: 0 | BF20: 0 | BG20: 0 | BH20: 0 | BI20: 0 | BK20: 0 | BL20: 0 | BM20: 0 | BN20: 0 | BO20: 0 | BQ20: ='Input - Customer Inventory FY15'!F19 -> 7 | BW20: =IF($C20="Lamp",0,IF(SUM(BR20:$BV20)>=$BQ20,0,IF(BK20<=0,IF($G20=0,0,$BQ20),0))) -> 0 | BX20: =IF($C20="Lamp",0,IF(SUM($BR20:BW20)>=$BQ20,0,IF(BL20<=0,IF($G20=0,0,$BQ20),0))) -> 0 | BY20: =IF($C20="Lamp",0,IF(SUM($BR20:BX20)>=$BQ20,0,IF(BM20<=0,IF($G20=0,0,$BQ20),0))) -> 0 | BZ20: =IF($C20="Lamp",0,IF(SUM($BR20:BY20)>=$BQ20,0,IF(BN20<=0,IF($G20=0,0,$BQ20),0))) -> 0 | CA20: =IF($C20="Lamp",0,IF(SUM($BR20:BZ20)>=$BQ20,0,IF(BO20<=0,IF($G20=0,0,$BQ20),0))) -> 0 | CI20: =CC20/'Inputs - General'!K$6 -> 0 | CJ20: =CD20/'Inputs - General'!L$6 -> 0 | CK20: =CE20/'Inputs - General'!M$6 -> 0 | CL20: =CF20/'Inputs - General'!N$6 -> 0 | CM20: =CG20/'Inputs - General'!O$6 -> 0
A21: Customer 1 | B21: ='Input - Customer Inventory FY15'!C20 -> Bracket - PRIVATE | C21: ='Input - Customer Inventory FY15'!D20 -> Bracket | D21: ='Input - Customer Inventory FY15'!E20 -> PRIVATE | E21: ='Input - Customer Inventory FY15'!G20 -> 1 | G21: 0 | H21: 0 | I21: 0 | K21: 0 | L21: 0 | M21: 0 | N21: 0 | O21: 0 | P21: 0 | R21: =IFERROR(IF(K21-(($G21-SUM($CH21:CH21))/$H21)<0,K21,(($G21-SUM($CH21:CH21))/$H21)),0) -> 0 | S21: =IFERROR(IF(L21-(($G21-SUM($CH21:CI21))/$H21)<0,L21,(($G21-SUM($CH21:CI21))/$H21)),0) -> 0 | T21: =IFERROR(IF(M21-(($G21-SUM($CH21:CJ21))/$H21)<0,M21,(($G21-SUM($CH21:CJ21))/$H21)),0) -> 0 | U21: =IFERROR(IF(N21-(($G21-SUM($CH21:CK21))/$H21)<0,N21,(($G21-SUM($CH21:CK21))/$H21)),0) -> 0 | V21: =IFERROR(IF(O21-(($G21-SUM($CH21:CL21))/$H21)<0,O21,(($G21-SUM($CH21:CL21))/$H21)),0) -> 0 | X21: 0 | Y21: 0 | Z21: 0 | AA21: 0 | AB21: 0 | AC21: 0 | AE21: =X21*'Inputs - General'!J$6 -> 0 | AF21: =Y21*'Inputs - General'!K$6 -> 0 | AG21: =Z21*'Inputs - General'!L$6 -> 0 | AH21: =AA21*'Inputs - General'!M$6 -> 0 | AI21: =AB21*'Inputs - General'!N$6 -> 0 | AJ21: =AC21*'Inputs - General'!O$6 -> 0 | AL21: =K21*'Inputs - General'!J$6 -> 0 | AM21: =L21*'Inputs - General'!K$6 -> 0 | AN21: =M21*'Inputs - General'!L$6 -> 0 | AO21: =N21*'Inputs - General'!M$6 -> 0 | AP21: =O21*'Inputs - General'!N$6 -> 0 | AQ21: =P21*'Inputs - General'!O$6 -> 0 | AS21: =R21*'Inputs - General'!K$6 -> 0 | AT21: =S21*'Inputs - General'!L$6 -> 0 | AU21: =T21*'Inputs - General'!M$6 -> 0 | AV21: =U21*'Inputs - General'!N$6 -> 0 | AW21: =V21*'Inputs - General'!O$6 -> 0 | AY21: =AE21*'Inputs - General'!K$4 -> 0 | AZ21: =AF21*'Inputs - General'!L$4 -> 0 | BA21: =AG21*'Inputs - General'!M$4 -> 0 | BB21: =AH21*'Inputs - General'!N$4 -> 0 | BC21: =AI21*'Inputs - General'!O$4 -> 0 | BE21: 0 | BF21: 0 | BG21: 0 | BH21: 0 | BI21: 0 | BK21: 0 | BL21: 0 | BM21: 0 | BN21: 0 | BO21: 0 | BQ21: ='Input - Customer Inventory FY15'!F20 -> 0 | BW21: =IF($C21="Lamp",0,IF(SUM(BR21:$BV21)>=$BQ21,0,IF(BK21<=0,IF($G21=0,0,$BQ21),0))) -> 0 | BX21: =IF($C21="Lamp",0,IF(SUM($BR21:BW21)>=$BQ21,0,IF(BL21<=0,IF($G21=0,0,$BQ21),0))) -> 0 | BY21: =IF($C21="Lamp",0,IF(SUM($BR21:BX21)>=$BQ21,0,IF(BM21<=0,IF($G21=0,0,$BQ21),0))) -> 0 | BZ21: =IF($C21="Lamp",0,IF(SUM($BR21:BY21)>=$BQ21,0,IF(BN21<=0,IF($G21=0,0,$BQ21),0))) -> 0 | CA21: =IF($C21="Lamp",0,IF(SUM($BR21:BZ21)>=$BQ21,0,IF(BO21<=0,IF($G21=0,0,$BQ21),0))) -> 0 | CI21: =CC21/'Inputs - General'!K$6 -> 0 | CJ21: =CD21/'Inputs - General'!L$6 -> 0 | CK21: =CE21/'Inputs - General'!M$6 -> 0 | CL21: =CF21/'Inputs - General'!N$6 -> 0 | CM21: =CG21/'Inputs - General'!O$6 -> 0
A22: Customer 1 | B22: ='Input - Customer Inventory FY15'!C21 -> Bracket - PRIVATE | C22: ='Input - Customer Inventory FY15'!D21 -> Bracket | D22: ='Input - Customer Inventory FY15'!E21 -> PRIVATE | E22: ='Input - Customer Inventory FY15'!G21 -> 3 | G22: 0 | H22: 0 | I22: 0 | K22: 0 | L22: 0 | M22: 0 | N22: 0 | O22: 0 | P22: 0 | R22: =IFERROR(IF(K22-(($G22-SUM($CH22:CH22))/$H22)<0,K22,(($G22-SUM($CH22:CH22))/$H22)),0) -> 0 | S22: =IFERROR(IF(L22-(($G22-SUM($CH22:CI22))/$H22)<0,L22,(($G22-SUM($CH22:CI22))/$H22)),0) -> 0 | T22: =IFERROR(IF(M22-(($G22-SUM($CH22:CJ22))/$H22)<0,M22,(($G22-SUM($CH22:CJ22))/$H22)),0) -> 0 | U22: =IFERROR(IF(N22-(($G22-SUM($CH22:CK22))/$H22)<0,N22,(($G22-SUM($CH22:CK22))/$H22)),0) -> 0 | V22: =IFERROR(IF(O22-(($G22-SUM($CH22:CL22))/$H22)<0,O22,(($G22-SUM($CH22:CL22))/$H22)),0) -> 0 | X22: 0 | Y22: 0 | Z22: 0 | AA22: 0 | AB22: 0 | AC22: 0 | AE22: =X22*'Inputs - General'!J$6 -> 0 | AF22: =Y22*'Inputs - General'!K$6 -> 0 | AG22: =Z22*'Inputs - General'!L$6 -> 0 | AH22: =AA22*'Inputs - General'!M$6 -> 0 | AI22: =AB22*'Inputs - General'!N$6 -> 0 | AJ22: =AC22*'Inputs - General'!O$6 -> 0 | AL22: =K22*'Inputs - General'!J$6 -> 0 | AM22: =L22*'Inputs - General'!K$6 -> 0 | AN22: =M22*'Inputs - General'!L$6 -> 0 | AO22: =N22*'Inputs - General'!M$6 -> 0 | AP22: =O22*'Inputs - General'!N$6 -> 0 | AQ22: =P22*'Inputs - General'!O$6 -> 0 | AS22: =R22*'Inputs - General'!K$6 -> 0 | AT22: =S22*'Inputs - General'!L$6 -> 0 | AU22: =T22*'Inputs - General'!M$6 -> 0 | AV22: =U22*'Inputs - General'!N$6 -> 0 | AW22: =V22*'Inputs - General'!O$6 -> 0 | AY22: =AE22*'Inputs - General'!K$4 -> 0 | AZ22: =AF22*'Inputs - General'!L$4 -> 0 | BA22: =AG22*'Inputs - General'!M$4 -> 0 | BB22: =AH22*'Inputs - General'!N$4 -> 0 | BC22: =AI22*'Inputs - General'!O$4 -> 0 | BE22: 0 | BF22: 0 | BG22: 0 | BH22: 0 | BI22: 0 | BK22: 0 | BL22: 0 | BM22: 0 | BN22: 0 | BO22: 0 | BQ22: ='Input - Customer Inventory FY15'!F21 -> 12 | BW22: =IF($C22="Lamp",0,IF(SUM(BR22:$BV22)>=$BQ22,0,IF(BK22<=0,IF($G22=0,0,$BQ22),0))) -> 0 | BX22: =IF($C22="Lamp",0,IF(SUM($BR22:BW22)>=$BQ22,0,IF(BL22<=0,IF($G22=0,0,$BQ22),0))) -> 0 | BY22: =IF($C22="Lamp",0,IF(SUM($BR22:BX22)>=$BQ22,0,IF(BM22<=0,IF($G22=0,0,$BQ22),0))) -> 0 | BZ22: =IF($C22="Lamp",0,IF(SUM($BR22:BY22)>=$BQ22,0,IF(BN22<=0,IF($G22=0,0,$BQ22),0))) -> 0 | CA22: =IF($C22="Lamp",0,IF(SUM($BR22:BZ22)>=$BQ22,0,IF(BO22<=0,IF($G22=0,0,$BQ22),0))) -> 0 | CI22: =CC22/'Inputs - General'!K$6 -> 0 | CJ22: =CD22/'Inputs - General'!L$6 -> 0 | CK22: =CE22/'Inputs - General'!M$6 -> 0 | CL22: =CF22/'Inputs - General'!N$6 -> 0 | CM22: =CG22/'Inputs - General'!O$6 -> 0
A23: Customer 1 | B23: ='Input - Customer Inventory FY15'!C22 -> Bracket - SUSPENDED | C23: ='Input - Customer Inventory FY15'!D22 -> Bracket | D23: ='Input - Customer Inventory FY15'!E22 -> SUSPENDED | E23: ='Input - Customer Inventory FY15'!G22 -> 1 | G23: 0 | H23: 0 | I23: 0 | K23: 0 | L23: 0 | M23: 0 | N23: 0 | O23: 0 | P23: 0 | R23: =IFERROR(IF(K23-(($G23-SUM($CH23:CH23))/$H23)<0,K23,(($G23-SUM($CH23:CH23))/$H23)),0) -> 0 | S23: =IFERROR(IF(L23-(($G23-SUM($CH23:CI23))/$H23)<0,L23,(($G23-SUM($CH23:CI23))/$H23)),0) -> 0 | T23: =IFERROR(IF(M23-(($G23-SUM($CH23:CJ23))/$H23)<0,M23,(($G23-SUM($CH23:CJ23))/$H23)),0) -> 0 | U23: =IFERROR(IF(N23-(($G23-SUM($CH23:CK23))/$H23)<0,N23,(($G23-SUM($CH23:CK23))/$H23)),0) -> 0 | V23: =IFERROR(IF(O23-(($G23-SUM($CH23:CL23))/$H23)<0,O23,(($G23-SUM($CH23:CL23))/$H23)),0) -> 0 | X23: 0 | Y23: 0 | Z23: 0 | AA23: 0 | AB23: 0 | AC23: 0 | AE23: =X23*'Inputs - General'!J$6 -> 0 | AF23: =Y23*'Inputs - General'!K$6 -> 0 | AG23: =Z23*'Inputs - General'!L$6 -> 0 | AH23: =AA23*'Inputs - General'!M$6 -> 0 | AI23: =AB23*'Inputs - General'!N$6 -> 0 | AJ23: =AC23*'Inputs - General'!O$6 -> 0 | AL23: =K23*'Inputs - General'!J$6 -> 0 | AM23: =L23*'Inputs - General'!K$6 -> 0 | AN23: =M23*'Inputs - General'!L$6 -> 0 | AO23: =N23*'Inputs - General'!M$6 -> 0 | AP23: =O23*'Inputs - General'!N$6 -> 0 | AQ23: =P23*'Inputs - General'!O$6 -> 0 | AS23: =R23*'Inputs - General'!K$6 -> 0 | AT23: =S23*'Inputs - General'!L$6 -> 0 | AU23: =T23*'Inputs - General'!M$6 -> 0 | AV23: =U23*'Inputs - General'!N$6 -> 0 | AW23: =V23*'Inputs - General'!O$6 -> 0 | AY23: =AE23*'Inputs - General'!K$4 -> 0 | AZ23: =AF23*'Inputs - General'!L$4 -> 0 | BA23: =AG23*'Inputs - General'!M$4 -> 0 | BB23: =AH23*'Inputs - General'!N$4 -> 0 | BC23: =AI23*'Inputs - General'!O$4 -> 0 | BE23: 0 | BF23: 0 | BG23: 0 | BH23: 0 | BI23: 0 | BK23: 0 | BL23: 0 | BM23: 0 | BN23: 0 | BO23: 0 | BQ23: ='Input - Customer Inventory FY15'!F22 -> 3 | BW23: =IF($C23="Lamp",0,IF(SUM(BR23:$BV23)>=$BQ23,0,IF(BK23<=0,IF($G23=0,0,$BQ23),0))) -> 0 | BX23: =IF($C23="Lamp",0,IF(SUM($BR23:BW23)>=$BQ23,0,IF(BL23<=0,IF($G23=0,0,$BQ23),0))) -> 0 | BY23: =IF($C23="Lamp",0,IF(SUM($BR23:BX23)>=$BQ23,0,IF(BM23<=0,IF($G23=0,0,$BQ23),0))) -> 0 | BZ23: =IF($C23="Lamp",0,IF(SUM($BR23:BY23)>=$BQ23,0,IF(BN23<=0,IF($G23=0,0,$BQ23),0))) -> 0 | CA23: =IF($C23="Lamp",0,IF(SUM($BR23:BZ23)>=$BQ23,0,IF(BO23<=0,IF($G23=0,0,$BQ23),0))) -> 0 | CI23: =CC23/'Inputs - General'!K$6 -> 0 | CJ23: =CD23/'Inputs - General'!L$6 -> 0 | CK23: =CE23/'Inputs - General'!M$6 -> 0 | CL23: =CF23/'Inputs - General'!N$6 -> 0 | CM23: =CG23/'Inputs - General'!O$6 -> 0
A24: Customer 1 | B24: ='Input - Customer Inventory FY15'!C23 -> Bracket - T1 | C24: ='Input - Customer Inventory FY15'!D23 -> Bracket | D24: ='Input - Customer Inventory FY15'!E23 -> T1 | E24: ='Input - Customer Inventory FY15'!G23 -> 1 | G24: 0 | H24: 0 | I24: 0 | K24: 0 | L24: 0 | M24: 0 | N24: 0 | O24: 0 | P24: 0 | R24: =IFERROR(IF(K24-(($G24-SUM($CH24:CH24))/$H24)<0,K24,(($G24-SUM($CH24:CH24))/$H24)),0) -> 0 | S24: =IFERROR(IF(L24-(($G24-SUM($CH24:CI24))/$H24)<0,L24,(($G24-SUM($CH24:CI24))/$H24)),0) -> 0 | T24: =IFERROR(IF(M24-(($G24-SUM($CH24:CJ24))/$H24)<0,M24,(($G24-SUM($CH24:CJ24))/$H24)),0) -> 0 | U24: =IFERROR(IF(N24-(($G24-SUM($CH24:CK24))/$H24)<0,N24,(($G24-SUM($CH24:CK24))/$H24)),0) -> 0 | V24: =IFERROR(IF(O24-(($G24-SUM($CH24:CL24))/$H24)<0,O24,(($G24-SUM($CH24:CL24))/$H24)),0) -> 0 | X24: 0 | Y24: 0 | Z24: 0 | AA24: 0 | AB24: 0 | AC24: 0 | AE24: =X24*'Inputs - General'!J$6 -> 0 | AF24: =Y24*'Inputs - General'!K$6 -> 0 | AG24: =Z24*'Inputs - General'!L$6 -> 0 | AH24: =AA24*'Inputs - General'!M$6 -> 0 | AI24: =AB24*'Inputs - General'!N$6 -> 0 | AJ24: =AC24*'Inputs - General'!O$6 -> 0 | AL24: =K24*'Inputs - General'!J$6 -> 0 | AM24: =L24*'Inputs - General'!K$6 -> 0 | AN24: =M24*'Inputs - General'!L$6 -> 0 | AO24: =N24*'Inputs - General'!M$6 -> 0 | AP24: =O24*'Inputs - General'!N$6 -> 0 | AQ24: =P24*'Inputs - General'!O$6 -> 0 | AS24: =R24*'Inputs - General'!K$6 -> 0 | AT24: =S24*'Inputs - General'!L$6 -> 0 | AU24: =T24*'Inputs - General'!M$6 -> 0 | AV24: =U24*'Inputs - General'!N$6 -> 0 | AW24: =V24*'Inputs - General'!O$6 -> 0 | AY24: =AE24*'Inputs - General'!K$4 -> 0 | AZ24: =AF24*'Inputs - General'!L$4 -> 0 | BA24: =AG24*'Inputs - General'!M$4 -> 0 | BB24: =AH24*'Inputs - General'!N$4 -> 0 | BC24: =AI24*'Inputs - General'!O$4 -> 0 | BE24: 0 | BF24: 0 | BG24: 0 | BH24: 0 | BI24: 0 | BK24: 0 | BL24: 0 | BM24: 0 | BN24: 0 | BO24: 0 | BQ24: ='Input - Customer Inventory FY15'!F23 -> 496.5 | BW24: =IF($C24="Lamp",0,IF(SUM(BR24:$BV24)>=$BQ24,0,IF(BK24<=0,IF($G24=0,0,$BQ24),0))) -> 0 | BX24: =IF($C24="Lamp",0,IF(SUM($BR24:BW24)>=$BQ24,0,IF(BL24<=0,IF($G24=0,0,$BQ24),0))) -> 0 | BY24: =IF($C24="Lamp",0,IF(SUM($BR24:BX24)>=$BQ24,0,IF(BM24<=0,IF($G24=0,0,$BQ24),0))) -> 0 | BZ24: =IF($C24="Lamp",0,IF(SUM($BR24:BY24)>=$BQ24,0,IF(BN24<=0,IF($G24=0,0,$BQ24),0))) -> 0 | CA24: =IF($C24="Lamp",0,IF(SUM($BR24:BZ24)>=$BQ24,0,IF(BO24<=0,IF($G24=0,0,$BQ24),0))) -> 0 | CI24: =CC24/'Inputs - General'!K$6 -> 0 | CJ24: =CD24/'Inputs - General'!L$6 -> 0 | CK24: =CE24/'Inputs - General'!M$6 -> 0 | CL24: =CF24/'Inputs - General'!N$6 -> 0 | CM24: =CG24/'Inputs - General'!O$6 -> 0
A25: Customer 1 | B25: ='Input - Customer Inventory FY15'!C24 -> Bracket - T2 | C25: ='Input - Customer Inventory FY15'!D24 -> Bracket | D25: ='Input - Customer Inventory FY15'!E24 -> T2 | E25: ='Input - Customer Inventory FY15'!G24 -> 1 | G25: 0 | H25: 0 | I25: 0 | K25: 0 | L25: 0 | M25: 0 | N25: 0 | O25: 0 | P25: 0 | R25: =IFERROR(IF(K25-(($G25-SUM($CH25:CH25))/$H25)<0,K25,(($G25-SUM($CH25:CH25))/$H25)),0) -> 0 | S25: =IFERROR(IF(L25-(($G25-SUM($CH25:CI25))/$H25)<0,L25,(($G25-SUM($CH25:CI25))/$H25)),0) -> 0 | T25: =IFERROR(IF(M25-(($G25-SUM($CH25:CJ25))/$H25)<0,M25,(($G25-SUM($CH25:CJ25))/$H25)),0) -> 0 | U25: =IFERROR(IF(N25-(($G25-SUM($CH25:CK25))/$H25)<0,N25,(($G25-SUM($CH25:CK25))/$H25)),0) -> 0 | V25: =IFERROR(IF(O25-(($G25-SUM($CH25:CL25))/$H25)<0,O25,(($G25-SUM($CH25:CL25))/$H25)),0) -> 0 | X25: 0 | Y25: 0 | Z25: 0 | AA25: 0 | AB25: 0 | AC25: 0 | AE25: =X25*'Inputs - General'!J$6 -> 0 | AF25: =Y25*'Inputs - General'!K$6 -> 0 | AG25: =Z25*'Inputs - General'!L$6 -> 0 | AH25: =AA25*'Inputs - General'!M$6 -> 0 | AI25: =AB25*'Inputs - General'!N$6 -> 0 | AJ25: =AC25*'Inputs - General'!O$6 -> 0 | AL25: =K25*'Inputs - General'!J$6 -> 0 | AM25: =L25*'Inputs - General'!K$6 -> 0 | AN25: =M25*'Inputs - General'!L$6 -> 0 | AO25: =N25*'Inputs - General'!M$6 -> 0 | AP25: =O25*'Inputs - General'!N$6 -> 0 | AQ25: =P25*'Inputs - General'!O$6 -> 0 | AS25: =R25*'Inputs - General'!K$6 -> 0 | AT25: =S25*'Inputs - General'!L$6 -> 0 | AU25: =T25*'Inputs - General'!M$6 -> 0 | AV25: =U25*'Inputs - General'!N$6 -> 0 | AW25: =V25*'Inputs - General'!O$6 -> 0 | AY25: =AE25*'Inputs - General'!K$4 -> 0 | AZ25: =AF25*'Inputs - General'!L$4 -> 0 | BA25: =AG25*'Inputs - General'!M$4 -> 0 | BB25: =AH25*'Inputs - General'!N$4 -> 0 | BC25: =AI25*'Inputs - General'!O$4 -> 0 | BE25: 0 | BF25: 0 | BG25: 0 | BH25: 0 | BI25: 0 | BK25: 0 | BL25: 0 | BM25: 0 | BN25: 0 | BO25: 0 | BQ25: ='Input - Customer Inventory FY15'!F24 -> 40 | BW25: =IF($C25="Lamp",0,IF(SUM(BR25:$BV25)>=$BQ25,0,IF(BK25<=0,IF($G25=0,0,$BQ25),0))) -> 0 | BX25: =IF($C25="Lamp",0,IF(SUM($BR25:BW25)>=$BQ25,0,IF(BL25<=0,IF($G25=0,0,$BQ25),0))) -> 0 | BY25: =IF($C25="Lamp",0,IF(SUM($BR25:BX25)>=$BQ25,0,IF(BM25<=0,IF($G25=0,0,$BQ25),0))) -> 0 | BZ25: =IF($C25="Lamp",0,IF(SUM($BR25:BY25)>=$BQ25,0,IF(BN25<=0,IF($G25=0,0,$BQ25),0))) -> 0 | CA25: =IF($C25="Lamp",0,IF(SUM($BR25:BZ25)>=$BQ25,0,IF(BO25<=0,IF($G25=0,0,$BQ25),0))) -> 0 | CI25: =CC25/'Inputs - General'!K$6 -> 0 | CJ25: =CD25/'Inputs - General'!L$6 -> 0 | CK25: =CE25/'Inputs - General'!M$6 -> 0 | CL25: =CF25/'Inputs - General'!N$6 -> 0 | CM25: =CG25/'Inputs - General'!O$6 -> 0
A26: Customer 1 | B26: ='Input - Customer Inventory FY15'!C25 -> Bracket - T2 | C26: ='Input - Customer Inventory FY15'!D25 -> Bracket | D26: ='Input - Customer Inventory FY15'!E25 -> T2 | E26: ='Input - Customer Inventory FY15'!G25 -> 2 | G26: 0 | H26: 0 | I26: 0 | K26: 0 | L26: 0 | M26: 0 | N26: 0 | O26: 0 | P26: 0 | R26: =IFERROR(IF(K26-(($G26-SUM($CH26:CH26))/$H26)<0,K26,(($G26-SUM($CH26:CH26))/$H26)),0) -> 0 | S26: =IFERROR(IF(L26-(($G26-SUM($CH26:CI26))/$H26)<0,L26,(($G26-SUM($CH26:CI26))/$H26)),0) -> 0 | T26: =IFERROR(IF(M26-(($G26-SUM($CH26:CJ26))/$H26)<0,M26,(($G26-SUM($CH26:CJ26))/$H26)),0) -> 0 | U26: =IFERROR(IF(N26-(($G26-SUM($CH26:CK26))/$H26)<0,N26,(($G26-SUM($CH26:CK26))/$H26)),0) -> 0 | V26: =IFERROR(IF(O26-(($G26-SUM($CH26:CL26))/$H26)<0,O26,(($G26-SUM($CH26:CL26))/$H26)),0) -> 0 | X26: 0 | Y26: 0 | Z26: 0 | AA26: 0 | AB26: 0 | AC26: 0 | AE26: =X26*'Inputs - General'!J$6 -> 0 | AF26: =Y26*'Inputs - General'!K$6 -> 0 | AG26: =Z26*'Inputs - General'!L$6 -> 0 | AH26: =AA26*'Inputs - General'!M$6 -> 0 | AI26: =AB26*'Inputs - General'!N$6 -> 0 | AJ26: =AC26*'Inputs - General'!O$6 -> 0 | AL26: =K26*'Inputs - General'!J$6 -> 0 | AM26: =L26*'Inputs - General'!K$6 -> 0 | AN26: =M26*'Inputs - General'!L$6 -> 0 | AO26: =N26*'Inputs - General'!M$6 -> 0 | AP26: =O26*'Inputs - General'!N$6 -> 0 | AQ26: =P26*'Inputs - General'!O$6 -> 0 | AS26: =R26*'Inputs - General'!K$6 -> 0 | AT26: =S26*'Inputs - General'!L$6 -> 0 | AU26: =T26*'Inputs - General'!M$6 -> 0 | AV26: =U26*'Inputs - General'!N$6 -> 0 | AW26: =V26*'Inputs - General'!O$6 -> 0 | AY26: =AE26*'Inputs - General'!K$4 -> 0 | AZ26: =AF26*'Inputs - General'!L$4 -> 0 | BA26: =AG26*'Inputs - General'!M$4 -> 0 | BB26: =AH26*'Inputs - General'!N$4 -> 0 | BC26: =AI26*'Inputs - General'!O$4 -> 0 | BE26: 0 | BF26: 0 | BG26: 0 | BH26: 0 | BI26: 0 | BK26: 0 | BL26: 0 | BM26: 0 | BN26: 0 | BO26: 0 | BQ26: ='Input - Customer Inventory FY15'!F25 -> 0 | BW26: =IF($C26="Lamp",0,IF(SUM(BR26:$BV26)>=$BQ26,0,IF(BK26<=0,IF($G26=0,0,$BQ26),0))) -> 0 | BX26: =IF($C26="Lamp",0,IF(SUM($BR26:BW26)>=$BQ26,0,IF(BL26<=0,IF($G26=0,0,$BQ26),0))) -> 0 | BY26: =IF($C26="Lamp",0,IF(SUM($BR26:BX26)>=$BQ26,0,IF(BM26<=0,IF($G26=0,0,$BQ26),0))) -> 0 | BZ26: =IF($C26="Lamp",0,IF(SUM($BR26:BY26)>=$BQ26,0,IF(BN26<=0,IF($G26=0,0,$BQ26),0))) -> 0 | CA26: =IF($C26="Lamp",0,IF(SUM($BR26:BZ26)>=$BQ26,0,IF(BO26<=0,IF($G26=0,0,$BQ26),0))) -> 0 | CI26: =CC26/'Inputs - General'!K$6 -> 0 | CJ26: =CD26/'Inputs - General'!L$6 -> 0 | CK26: =CE26/'Inputs - General'!M$6 -> 0 | CL26: =CF26/'Inputs - General'!N$6 -> 0 | CM26: =CG26/'Inputs - General'!O$6 -> 0
A27: Customer 1 | B27: ='Input - Customer Inventory FY15'!C26 -> Bracket - T2A | C27: ='Input - Customer Inventory FY15'!D26 -> Bracket | D27: ='Input - Customer Inventory FY15'!E26 -> T2A | E27: ='Input - Customer Inventory FY15'!G26 -> 1 | G27: 3.674975128 | H27: 6.865068493 | I27: 0.5353151439 | K27: 3.674975128 | L27: 3.139659984 | M27: 2.60434484 | N27: 2.069029697 | O27: 1.533714553 | P27: 0.9983994088 | R27: =IFERROR(IF(K27-(($G27-SUM($CH27:CH27))/$H27)<0,K27,(($G27-SUM($CH27:CH27))/$H27)),0) -> 0.5353151439 | S27: =IFERROR(IF(L27-(($G27-SUM($CH27:CI27))/$H27)<0,L27,(($G27-SUM($CH27:CI27))/$H27)),0) -> 0.5353151439 | T27: =IFERROR(IF(M27-(($G27-SUM($CH27:CJ27))/$H27)<0,M27,(($G27-SUM($CH27:CJ27))/$H27)),0) -> 0.5353151439 | U27: =IFERROR(IF(N27-(($G27-SUM($CH27:CK27))/$H27)<0,N27,(($G27-SUM($CH27:CK27))/$H27)),0) -> 0.5353151439 | V27: =IFERROR(IF(O27-(($G27-SUM($CH27:CL27))/$H27)<0,O27,(($G27-SUM($CH27:CL27))/$H27)),0) -> 0.5353151439 | X27: 3.674975128 | Y27: 3.139659984 | Z27: 2.60434484 | AA27: 2.069029697 | AB27: 1.533714553 | AC27: 0.9983994088 | AE27: =X27*'Inputs - General'!J$6 -> 3.674975128 | AF27: =Y27*'Inputs - General'!K$6 -> 3.215792804 | AG27: =Z27*'Inputs - General'!L$6 -> 2.732180396 | AH27: =AA27*'Inputs - General'!M$6 -> 2.223223107 | AI27: =AB27*'Inputs - General'!N$6 -> 1.687976138 | AJ27: =AC27*'Inputs - General'!O$6 -> 1.125463775 | AL27: =K27*'Inputs - General'!J$6 -> 3.674975128 | AM27: =L27*'Inputs - General'!K$6 -> 3.215792804 | AN27: =M27*'Inputs - General'!L$6 -> 2.732180396 | AO27: =N27*'Inputs - General'!M$6 -> 2.223223107 | AP27: =O27*'Inputs - General'!N$6 -> 1.687976138 | AQ27: =P27*'Inputs - General'!O$6 -> 1.125463775 | AS27: =R27*'Inputs - General'!K$6 -> 0.5482958651 | AT27: =S27*'Inputs - General'!L$6 -> 0.5615913526 | AU27: =T27*'Inputs - General'!M$6 -> 0.575209239 | AV27: =U27*'Inputs - General'!N$6 -> 0.5891573421 | AW27: =V27*'Inputs - General'!O$6 -> 0.6034436692 | AY27: =AE27*'Inputs - General'!K$4 -> 0.08911354055 | AZ27: =AF27*'Inputs - General'!L$4 -> 0.07797894473 | BA27: =AG27*'Inputs - General'!M$4 -> 0.06625195001 | BB27: =AH27*'Inputs - General'!N$4 -> 0.05391037369 | BC27: =AI27*'Inputs - General'!O$4 -> 0.0409313056 | BE27: 0.4591823246 | BF27: 0.4836124079 | BG27: 0.508957289 | BH27: 0.5352469684 | BI27: 0.5625123636 | BK27: 0.230899076 | BL27: 0.202048602 | BM27: 0.1716631833 | BN27: 0.139685343 | BO27: 0.1060557193 | BQ27: ='Input - Customer Inventory FY15'!F26 -> 9 | BW27: =IF($C27="Lamp",0,IF(SUM(BR27:$BV27)>=$BQ27,0,IF(BK27<=0,IF($G27=0,0,$BQ27),0))) -> 0 | BX27: =IF($C27="Lamp",0,IF(SUM($BR27:BW27)>=$BQ27,0,IF(BL27<=0,IF($G27=0,0,$BQ27),0))) -> 0 | BY27: =IF($C27="Lamp",0,IF(SUM($BR27:BX27)>=$BQ27,0,IF(BM27<=0,IF($G27=0,0,$BQ27),0))) -> 0 | BZ27: =IF($C27="Lamp",0,IF(SUM($BR27:BY27)>=$BQ27,0,IF(BN27<=0,IF($G27=0,0,$BQ27),0))) -> 0 | CA27: =IF($C27="Lamp",0,IF(SUM($BR27:BZ27)>=$BQ27,0,IF(BO27<=0,IF($G27=0,0,$BQ27),0))) -> 0 | CI27: =CC27/'Inputs - General'!K$6 -> 0 | CJ27: =CD27/'Inputs - General'!L$6 -> 0 | CK27: =CE27/'Inputs - General'!M$6 -> 0 | CL27: =CF27/'Inputs - General'!N$6 -> 0 | CM27: =CG27/'Inputs - General'!O$6 -> 0
A28: Customer 1 | B28: ='Input - Customer Inventory FY15'!C27 -> Bracket - T3 | C28: ='Input - Customer Inventory FY15'!D27 -> Bracket | D28: ='Input - Customer Inventory FY15'!E27 -> T3 | E28: ='Input - Customer Inventory FY15'!G27 -> 1 | G28: 0 | H28: 0 | I28: 0 | K28: 0 | L28: 0 | M28: 0 | N28: 0 | O28: 0 | P28: 0 | R28: =IFERROR(IF(K28-(($G28-SUM($CH28:CH28))/$H28)<0,K28,(($G28-SUM($CH28:CH28))/$H28)),0) -> 0 | S28: =IFERROR(IF(L28-(($G28-SUM($CH28:CI28))/$H28)<0,L28,(($G28-SUM($CH28:CI28))/$H28)),0) -> 0 | T28: =IFERROR(IF(M28-(($G28-SUM($CH28:CJ28))/$H28)<0,M28,(($G28-SUM($CH28:CJ28))/$H28)),0) -> 0 | U28: =IFERROR(IF(N28-(($G28-SUM($CH28:CK28))/$H28)<0,N28,(($G28-SUM($CH28:CK28))/$H28)),0) -> 0 | V28: =IFERROR(IF(O28-(($G28-SUM($CH28:CL28))/$H28)<0,O28,(($G28-SUM($CH28:CL28))/$H28)),0) -> 0 | X28: 0 | Y28: 0 | Z28: 0 | AA28: 0 | AB28: 0 | AC28: 0 | AE28: =X28*'Inputs - General'!J$6 -> 0 | AF28: =Y28*'Inputs - General'!K$6 -> 0 | AG28: =Z28*'Inputs - General'!L$6 -> 0 | AH28: =AA28*'Inputs - General'!M$6 -> 0 | AI28: =AB28*'Inputs - General'!N$6 -> 0 | AJ28: =AC28*'Inputs - General'!O$6 -> 0 | AL28: =K28*'Inputs - General'!J$6 -> 0 | AM28: =L28*'Inputs - General'!K$6 -> 0 | AN28: =M28*'Inputs - General'!L$6 -> 0 | AO28: =N28*'Inputs - General'!M$6 -> 0 | AP28: =O28*'Inputs - General'!N$6 -> 0 | AQ28: =P28*'Inputs - General'!O$6 -> 0 | AS28: =R28*'Inputs - General'!K$6 -> 0 | AT28: =S28*'Inputs - General'!L$6 -> 0 | AU28: =T28*'Inputs - General'!M$6 -> 0 | AV28: =U28*'Inputs - General'!N$6 -> 0 | AW28: =V28*'Inputs - General'!O$6 -> 0 | AY28: =AE28*'Inputs - General'!K$4 -> 0 | AZ28: =AF28*'Inputs - General'!L$4 -> 0 | BA28: =AG28*'Inputs - General'!M$4 -> 0 | BB28: =AH28*'Inputs - General'!N$4 -> 0 | BC28: =AI28*'Inputs - General'!O$4 -> 0 | BE28: 0 | BF28: 0 | BG28: 0 | BH28: 0 | BI28: 0 | BK28: 0 | BL28: 0 | BM28: 0 | BN28: 0 | BO28: 0 | BQ28: ='Input - Customer Inventory FY15'!F27 -> 69.5 | BW28: =IF($C28="Lamp",0,IF(SUM(BR28:$BV28)>=$BQ28,0,IF(BK28<=0,IF($G28=0,0,$BQ28),0))) -> 0 | BX28: =IF($C28="Lamp",0,IF(SUM($BR28:BW28)>=$BQ28,0,IF(BL28<=0,IF($G28=0,0,$BQ28),0))) -> 0 | BY28: =IF($C28="Lamp",0,IF(SUM($BR28:BX28)>=$BQ28,0,IF(BM28<=0,IF($G28=0,0,$BQ28),0))) -> 0 | BZ28: =IF($C28="Lamp",0,IF(SUM($BR28:BY28)>=$BQ28,0,IF(BN28<=0,IF($G28=0,0,$BQ28),0))) -> 0 | CA28: =IF($C28="Lamp",0,IF(SUM($BR28:BZ28)>=$BQ28,0,IF(BO28<=0,IF($G28=0,0,$BQ28),0))) -> 0 | CI28: =CC28/'Inputs - General'!K$6 -> 0 | CJ28: =CD28/'Inputs - General'!L$6 -> 0 | CK28: =CE28/'Inputs - General'!M$6 -> 0 | CL28: =CF28/'Inputs - General'!N$6 -> 0 | CM28: =CG28/'Inputs - General'!O$6 -> 0
A29: Customer 1 | B29: ='Input - Customer Inventory FY15'!C28 -> Bracket - T3A | C29: ='Input - Customer Inventory FY15'!D28 -> Bracket | D29: ='Input - Customer Inventory FY15'!E28 -> T3A | E29: ='Input - Customer Inventory FY15'!G28 -> 1 | G29: 1.424066838 | H29: 3.683409437 | I29: 0.3866164928 | K29: 1.424066838 | L29: 1.037450345 | M29: 0.6508338524 | N29: 0.2642173596 | O29: 0 | P29: 0 | R29: =IFERROR(IF(K29-(($G29-SUM($CH29:CH29))/$H29)<0,K29,(($G29-SUM($CH29:CH29))/$H29)),0) -> 0.3866164928 | S29: =IFERROR(IF(L29-(($G29-SUM($CH29:CI29))/$H29)<0,L29,(($G29-SUM($CH29:CI29))/$H29)),0) -> 0.3866164928 | T29: =IFERROR(IF(M29-(($G29-SUM($CH29:CJ29))/$H29)<0,M29,(($G29-SUM($CH29:CJ29))/$H29)),0) -> 0.3866164928 | U29: =IFERROR(IF(N29-(($G29-SUM($CH29:CK29))/$H29)<0,N29,(($G29-SUM($CH29:CK29))/$H29)),0) -> 0.2642173596 | V29: =IFERROR(IF(O29-(($G29-SUM($CH29:CL29))/$H29)<0,O29,(($G29-SUM($CH29:CL29))/$H29)),0) -> 0 | X29: 1.424066838 | Y29: 1.037450345 | Z29: 0.6508338524 | AA29: 0.2642173596 | AB29: 0 | AC29: 0 | AE29: =X29*'Inputs - General'!J$6 -> 1.424066838 | AF29: =Y29*'Inputs - General'!K$6 -> 1.062607216 | AG29: =Z29*'Inputs - General'!L$6 -> 0.6827803541 | AH29: =AA29*'Inputs - General'!M$6 -> 0.2839080271 | AI29: =AB29*'Inputs - General'!N$6 -> 0 | AJ29: =AC29*'Inputs - General'!O$6 -> 0 | AL29: =K29*'Inputs - General'!J$6 -> 1.424066838 | AM29: =L29*'Inputs - General'!K$6 -> 1.062607216 | AN29: =M29*'Inputs - General'!L$6 -> 0.6827803541 | AO29: =N29*'Inputs - General'!M$6 -> 0.2839080271 | AP29: =O29*'Inputs - General'!N$6 -> 0 | AQ29: =P29*'Inputs - General'!O$6 -> 0 | AS29: =R29*'Inputs - General'!K$6 -> 0.3959914582 | AT29: =S29*'Inputs - General'!L$6 -> 0.4055937547 | AU29: =T29*'Inputs - General'!M$6 -> 0.4154288948 | AV29: =U29*'Inputs - General'!N$6 -> 0.2907924409 | AW29: =V29*'Inputs - General'!O$6 -> 0 | AY29: =AE29*'Inputs - General'!K$4 -> 0.03453183586 | AZ29: =AF29*'Inputs - General'!L$4 -> 0.02576689308 | BA29: =AG29*'Inputs - General'!M$4 -> 0.01655656777 | BB29: =AH29*'Inputs - General'!N$4 -> 0.006884413799 | BC29: =AI29*'Inputs - General'!O$4 -> 0 | BE29: 0.3614596223 | BF29: 0.3798268616 | BG29: 0.3988723271 | BH29: 0.2839080271 | BI29: 0 | BK29: 0.08947427007 | BL29: 0.06676372377 | BM29: 0.04289916188 | BN29: 0.01783797137 | BO29: 0 | BQ29: ='Input - Customer Inventory FY15'!F28 -> 6.5 | BW29: =IF($C29="Lamp",0,IF(SUM(BR29:$BV29)>=$BQ29,0,IF(BK29<=0,IF($G29=0,0,$BQ29),0))) -> 0 | BX29: =IF($C29="Lamp",0,IF(SUM($BR29:BW29)>=$BQ29,0,IF(BL29<=0,IF($G29=0,0,$BQ29),0))) -> 0 | BY29: =IF($C29="Lamp",0,IF(SUM($BR29:BX29)>=$BQ29,0,IF(BM29<=0,IF($G29=0,0,$BQ29),0))) -> 0 | BZ29: =IF($C29="Lamp",0,IF(SUM($BR29:BY29)>=$BQ29,0,IF(BN29<=0,IF($G29=0,0,$BQ29),0))) -> 0 | CA29: =IF($C29="Lamp",0,IF(SUM($BR29:BZ29)>=$BQ29,0,IF(BO29<=0,IF($G29=0,0,$BQ29),0))) -> 6.5 | CI29: =CC29/'Inputs - General'!K$6 -> 0 | CJ29: =CD29/'Inputs - General'!L$6 -> 0 | CK29: =CE29/'Inputs - General'!M$6 -> 0 | CL29: =CF29/'Inputs - General'!N$6 -> 0 | CM29: =CG29/'Inputs - General'!O$6 -> 0
A30: Customer 1 | B30: ='Input - Customer Inventory FY15'!C29 -> Bracket - T4 | C30: ='Input - Customer Inventory FY15'!D29 -> Bracket | D30: ='Input - Customer Inventory FY15'!E29 -> T4 | E30: ='Input - Customer Inventory FY15'!G29 -> 1 | G30: 102.2988186 | H30: 4.348606104 | I30: 23.52450788 | K30: 102.2988186 | L30: 78.77431068 | M30: 55.24980281 | N30: 31.72529493 | O30: 8.200787047 | P30: 0 | R30: =IFERROR(IF(K30-(($G30-SUM($CH30:CH30))/$H30)<0,K30,(($G30-SUM($CH30:CH30))/$H30)),0) -> 23.52450788 | S30: =IFERROR(IF(L30-(($G30-SUM($CH30:CI30))/$H30)<0,L30,(($G30-SUM($CH30:CI30))/$H30)),0) -> 23.52450788 | T30: =IFERROR(IF(M30-(($G30-SUM($CH30:CJ30))/$H30)<0,M30,(($G30-SUM($CH30:CJ30))/$H30)),0) -> 23.52450788 | U30: =IFERROR(IF(N30-(($G30-SUM($CH30:CK30))/$H30)<0,N30,(($G30-SUM($CH30:CK30))/$H30)),0) -> 23.52450788 | V30: =IFERROR(IF(O30-(($G30-SUM($CH30:CL30))/$H30)<0,O30,(($G30-SUM($CH30:CL30))/$H30)),0) -> 8.200787047 | X30: 102.2988186 | Y30: 78.77431068 | Z30: 55.24980281 | AA30: 31.72529493 | AB30: 8.200787047 | AC30: 0 | AE30: =X30*'Inputs - General'!J$6 -> 102.2988186 | AF30: =Y30*'Inputs - General'!K$6 -> 80.68448898 | AG30: =Z30*'Inputs - General'!L$6 -> 57.96176672 | AH30: =AA30*'Inputs - General'!M$6 -> 34.08960677 | AI30: =AB30*'Inputs - General'!N$6 -> 9.025625288 | AJ30: =AC30*'Inputs - General'!O$6 -> 0 | AL30: =K30*'Inputs - General'!J$6 -> 102.2988186 | AM30: =L30*'Inputs - General'!K$6 -> 80.68448898 | AN30: =M30*'Inputs - General'!L$6 -> 57.96176672 | AO30: =N30*'Inputs - General'!M$6 -> 34.08960677 | AP30: =O30*'Inputs - General'!N$6 -> 9.025625288 | AQ30: =P30*'Inputs - General'!O$6 -> 0 | AS30: =R30*'Inputs - General'!K$6 -> 24.09494771 | AT30: =S30*'Inputs - General'!L$6 -> 24.67921999 | AU30: =T30*'Inputs - General'!M$6 -> 25.27766014 | AV30: =U30*'Inputs - General'!N$6 -> 25.89061172 | AW30: =V30*'Inputs - General'!O$6 -> 9.244485388 | AY30: =AE30*'Inputs - General'!K$4 -> 2.480618126 | AZ30: =AF30*'Inputs - General'!L$4 -> 1.956497726 | BA30: =AG30*'Inputs - General'!M$4 -> 1.405500192 | BB30: =AH30*'Inputs - General'!N$4 -> 0.8266302354 | BC30: =AI30*'Inputs - General'!O$4 -> 0.2188601003 | BE30: 21.61432958 | BF30: 22.72272226 | BG30: 23.87215995 | BH30: 25.06398148 | BI30: 9.025625288 | BK30: 6.427445592 | BL30: 5.069414978 | BM30: 3.641743934 | BN30: 2.141853599 | BO30: 0.5670809916 | BQ30: ='Input - Customer Inventory FY15'!F29 -> 390.5 | BW30: =IF($C30="Lamp",0,IF(SUM(BR30:$BV30)>=$BQ30,0,IF(BK30<=0,IF($G30=0,0,$BQ30),0))) -> 0 | BX30: =IF($C30="Lamp",0,IF(SUM($BR30:BW30)>=$BQ30,0,IF(BL30<=0,IF($G30=0,0,$BQ30),0))) -> 0 | BY30: =IF($C30="Lamp",0,IF(SUM($BR30:BX30)>=$BQ30,0,IF(BM30<=0,IF($G30=0,0,$BQ30),0))) -> 0 | BZ30: =IF($C30="Lamp",0,IF(SUM($BR30:BY30)>=$BQ30,0,IF(BN30<=0,IF($G30=0,0,$BQ30),0))) -> 0 | CA30: =IF($C30="Lamp",0,IF(SUM($BR30:BZ30)>=$BQ30,0,IF(BO30<=0,IF($G30=0,0,$BQ30),0))) -> 0 | CI30: =CC30/'Inputs - General'!K$6 -> 0 | CJ30: =CD30/'Inputs - General'!L$6 -> 0 | CK30: =CE30/'Inputs - General'!M$6 -> 0 | CL30: =CF30/'Inputs - General'!N$6 -> 0 | CM30: =CG30/'Inputs - General'!O$6 -> 0
A31: Customer 1 | B31: ='Input - Customer Inventory FY15'!C30 -> Bracket - T5 | C31: ='Input - Customer Inventory FY15'!D30 -> Bracket | D31: ='Input - Customer Inventory FY15'!E30 -> T5 | E31: ='Input - Customer Inventory FY15'!G30 -> 1 | G31: 0 | H31: 0 | I31: 0 | K31: 0 | L31: 0 | M31: 0 | N31: 0 | O31: 0 | P31: 0 | R31: =IFERROR(IF(K31-(($G31-SUM($CH31:CH31))/$H31)<0,K31,(($G31-SUM($CH31:CH31))/$H31)),0) -> 0 | S31: =IFERROR(IF(L31-(($G31-SUM($CH31:CI31))/$H31)<0,L31,(($G31-SUM($CH31:CI31))/$H31)),0) -> 0 | T31: =IFERROR(IF(M31-(($G31-SUM($CH31:CJ31))/$H31)<0,M31,(($G31-SUM($CH31:CJ31))/$H31)),0) -> 0 | U31: =IFERROR(IF(N31-(($G31-SUM($CH31:CK31))/$H31)<0,N31,(($G31-SUM($CH31:CK31))/$H31)),0) -> 0 | V31: =IFERROR(IF(O31-(($G31-SUM($CH31:CL31))/$H31)<0,O31,(($G31-SUM($CH31:CL31))/$H31)),0) -> 0 | X31: 0 | Y31: 0 | Z31: 0 | AA31: 0 | AB31: 0 | AC31: 0 | AE31: =X31*'Inputs - General'!J$6 -> 0 | AF31: =Y31*'Inputs - General'!K$6 -> 0 | AG31: =Z31*'Inputs - General'!L$6 -> 0 | AH31: =AA31*'Inputs - General'!M$6 -> 0 | AI31: =AB31*'Inputs - General'!N$6 -> 0 | AJ31: =AC31*'Inputs - General'!O$6 -> 0 | AL31: =K31*'Inputs - General'!J$6 -> 0 | AM31: =L31*'Inputs - General'!K$6 -> 0 | AN31: =M31*'Inputs - General'!L$6 -> 0 | AO31: =N31*'Inputs - General'!M$6 -> 0 | AP31: =O31*'Inputs - General'!N$6 -> 0 | AQ31: =P31*'Inputs - General'!O$6 -> 0 | AS31: =R31*'Inputs - General'!K$6 -> 0 | AT31: =S31*'Inputs - General'!L$6 -> 0 | AU31: =T31*'Inputs - General'!M$6 -> 0 | AV31: =U31*'Inputs - General'!N$6 -> 0 | AW31: =V31*'Inputs - General'!O$6 -> 0 | AY31: =AE31*'Inputs - General'!K$4 -> 0 | AZ31: =AF31*'Inputs - General'!L$4 -> 0 | BA31: =AG31*'Inputs - General'!M$4 -> 0 | BB31: =AH31*'Inputs - General'!N$4 -> 0 | BC31: =AI31*'Inputs - General'!O$4 -> 0 | BE31: 0 | BF31: 0 | BG31: 0 | BH31: 0 | BI31: 0 | BK31: 0 | BL31: 0 | BM31: 0 | BN31: 0 | BO31: 0 | BQ31: ='Input - Customer Inventory FY15'!F30 -> 10.5 | BW31: =IF($C31="Lamp",0,IF(SUM(BR31:$BV31)>=$BQ31,0,IF(BK31<=0,IF($G31=0,0,$BQ31),0))) -> 0 | BX31: =IF($C31="Lamp",0,IF(SUM($BR31:BW31)>=$BQ31,0,IF(BL31<=0,IF($G31=0,0,$BQ31),0))) -> 0 | BY31: =IF($C31="Lamp",0,IF(SUM($BR31:BX31)>=$BQ31,0,IF(BM31<=0,IF($G31=0,0,$BQ31),0))) -> 0 | BZ31: =IF($C31="Lamp",0,IF(SUM($BR31:BY31)>=$BQ31,0,IF(BN31<=0,IF($G31=0,0,$BQ31),0))) -> 0 | CA31: =IF($C31="Lamp",0,IF(SUM($BR31:BZ31)>=$BQ31,0,IF(BO31<=0,IF($G31=0,0,$BQ31),0))) -> 0 | CI31: =CC31/'Inputs - General'!K$6 -> 0 | CJ31: =CD31/'Inputs - General'!L$6 -> 0 | CK31: =CE31/'Inputs - General'!M$6 -> 0 | CL31: =CF31/'Inputs - General'!N$6 -> 0 | CM31: =CG31/'Inputs - General'!O$6 -> 0
A32: Customer 1 | B32: ='Input - Customer Inventory FY15'!C31 -> Bracket - T5 | C32: ='Input - Customer Inventory FY15'!D31 -> Bracket | D32: ='Input - Customer Inventory FY15'!E31 -> T5 | E32: ='Input - Customer Inventory FY15'!G31 -> 2 | G32: 0 | H32: 0 | I32: 0 | K32: 0 | L32: 0 | M32: 0 | N32: 0 | O32: 0 | P32: 0 | R32: =IFERROR(IF(K32-(($G32-SUM($CH32:CH32))/$H32)<0,K32,(($G32-SUM($CH32:CH32))/$H32)),0) -> 0 | S32: =IFERROR(IF(L32-(($G32-SUM($CH32:CI32))/$H32)<0,L32,(($G32-SUM($CH32:CI32))/$H32)),0) -> 0 | T32: =IFERROR(IF(M32-(($G32-SUM($CH32:CJ32))/$H32)<0,M32,(($G32-SUM($CH32:CJ32))/$H32)),0) -> 0 | U32: =IFERROR(IF(N32-(($G32-SUM($CH32:CK32))/$H32)<0,N32,(($G32-SUM($CH32:CK32))/$H32)),0) -> 0 | V32: =IFERROR(IF(O32-(($G32-SUM($CH32:CL32))/$H32)<0,O32,(($G32-SUM($CH32:CL32))/$H32)),0) -> 0 | X32: 0 | Y32: 0 | Z32: 0 | AA32: 0 | AB32: 0 | AC32: 0 | AE32: =X32*'Inputs - General'!J$6 -> 0 | AF32: =Y32*'Inputs - General'!K$6 -> 0 | AG32: =Z32*'Inputs - General'!L$6 -> 0 | AH32: =AA32*'Inputs - General'!M$6 -> 0 | AI32: =AB32*'Inputs - General'!N$6 -> 0 | AJ32: =AC32*'Inputs - General'!O$6 -> 0 | AL32: =K32*'Inputs - General'!J$6 -> 0 | AM32: =L32*'Inputs - General'!K$6 -> 0 | AN32: =M32*'Inputs - General'!L$6 -> 0 | AO32: =N32*'Inputs - General'!M$6 -> 0 | AP32: =O32*'Inputs - General'!N$6 -> 0 | AQ32: =P32*'Inputs - General'!O$6 -> 0 | AS32: =R32*'Inputs - General'!K$6 -> 0 | AT32: =S32*'Inputs - General'!L$6 -> 0 | AU32: =T32*'Inputs - General'!M$6 -> 0 | AV32: =U32*'Inputs - General'!N$6 -> 0 | AW32: =V32*'Inputs - General'!O$6 -> 0 | AY32: =AE32*'Inputs - General'!K$4 -> 0 | AZ32: =AF32*'Inputs - General'!L$4 -> 0 | BA32: =AG32*'Inputs - General'!M$4 -> 0 | BB32: =AH32*'Inputs - General'!N$4 -> 0 | BC32: =AI32*'Inputs - General'!O$4 -> 0 | BE32: 0 | BF32: 0 | BG32: 0 | BH32: 0 | BI32: 0 | BK32: 0 | BL32: 0 | BM32: 0 | BN32: 0 | BO32: 0 | BQ32: ='Input - Customer Inventory FY15'!F31 -> 0 | BW32: =IF($C32="Lamp",0,IF(SUM(BR32:$BV32)>=$BQ32,0,IF(BK32<=0,IF($G32=0,0,$BQ32),0))) -> 0 | BX32: =IF($C32="Lamp",0,IF(SUM($BR32:BW32)>=$BQ32,0,IF(BL32<=0,IF($G32=0,0,$BQ32),0))) -> 0 | BY32: =IF($C32="Lamp",0,IF(SUM($BR32:BX32)>=$BQ32,0,IF(BM32<=0,IF($G32=0,0,$BQ32),0))) -> 0 | BZ32: =IF($C32="Lamp",0,IF(SUM($BR32:BY32)>=$BQ32,0,IF(BN32<=0,IF($G32=0,0,$BQ32),0))) -> 0 | CA32: =IF($C32="Lamp",0,IF(SUM($BR32:BZ32)>=$BQ32,0,IF(BO32<=0,IF($G32=0,0,$BQ32),0))) -> 0 | CI32: =CC32/'Inputs - General'!K$6 -> 0 | CJ32: =CD32/'Inputs - General'!L$6 -> 0 | CK32: =CE32/'Inputs - General'!M$6 -> 0 | CL32: =CF32/'Inputs - General'!N$6 -> 0 | CM32: =CG32/'Inputs - General'!O$6 -> 0
A33: Customer 1 | B33: ='Input - Customer Inventory FY15'!C32 -> Bracket - T6 | C33: ='Input - Customer Inventory FY15'!D32 -> Bracket | D33: ='Input - Customer Inventory FY15'!E32 -> T6 | E33: ='Input - Customer Inventory FY15'!G32 -> 1 | G33: 0 | H33: 0 | I33: 0 | K33: 0 | L33: 0 | M33: 0 | N33: 0 | O33: 0 | P33: 0 | R33: =IFERROR(IF(K33-(($G33-SUM($CH33:CH33))/$H33)<0,K33,(($G33-SUM($CH33:CH33))/$H33)),0) -> 0 | S33: =IFERROR(IF(L33-(($G33-SUM($CH33:CI33))/$H33)<0,L33,(($G33-SUM($CH33:CI33))/$H33)),0) -> 0 | T33: =IFERROR(IF(M33-(($G33-SUM($CH33:CJ33))/$H33)<0,M33,(($G33-SUM($CH33:CJ33))/$H33)),0) -> 0 | U33: =IFERROR(IF(N33-(($G33-SUM($CH33:CK33))/$H33)<0,N33,(($G33-SUM($CH33:CK33))/$H33)),0) -> 0 | V33: =IFERROR(IF(O33-(($G33-SUM($CH33:CL33))/$H33)<0,O33,(($G33-SUM($CH33:CL33))/$H33)),0) -> 0 | X33: 0 | Y33: 0 | Z33: 0 | AA33: 0 | AB33: 0 | AC33: 0 | AE33: =X33*'Inputs - General'!J$6 -> 0 | AF33: =Y33*'Inputs - General'!K$6 -> 0 | AG33: =Z33*'Inputs - General'!L$6 -> 0 | AH33: =AA33*'Inputs - General'!M$6 -> 0 | AI33: =AB33*'Inputs - General'!N$6 -> 0 | AJ33: =AC33*'Inputs - General'!O$6 -> 0 | AL33: =K33*'Inputs - General'!J$6 -> 0 | AM33: =L33*'Inputs - General'!K$6 -> 0 | AN33: =M33*'Inputs - General'!L$6 -> 0 | AO33: =N33*'Inputs - General'!M$6 -> 0 | AP33: =O33*'Inputs - General'!N$6 -> 0 | AQ33: =P33*'Inputs - General'!O$6 -> 0 | AS33: =R33*'Inputs - General'!K$6 -> 0 | AT33: =S33*'Inputs - General'!L$6 -> 0 | AU33: =T33*'Inputs - General'!M$6 -> 0 | AV33: =U33*'Inputs - General'!N$6 -> 0 | AW33: =V33*'Inputs - General'!O$6 -> 0 | AY33: =AE33*'Inputs - General'!K$4 -> 0 | AZ33: =AF33*'Inputs - General'!L$4 -> 0 | BA33: =AG33*'Inputs - General'!M$4 -> 0 | BB33: =AH33*'Inputs - General'!N$4 -> 0 | BC33: =AI33*'Inputs - General'!O$4 -> 0 | BE33: 0 | BF33: 0 | BG33: 0 | BH33: 0 | BI33: 0 | BK33: 0 | BL33: 0 | BM33: 0 | BN33: 0 | BO33: 0 | BQ33: ='Input - Customer Inventory FY15'!F32 -> 15.5 | BW33: =IF($C33="Lamp",0,IF(SUM(BR33:$BV33)>=$BQ33,0,IF(BK33<=0,IF($G33=0,0,$BQ33),0))) -> 0 | BX33: =IF($C33="Lamp",0,IF(SUM($BR33:BW33)>=$BQ33,0,IF(BL33<=0,IF($G33=0,0,$BQ33),0))) -> 0 | BY33: =IF($C33="Lamp",0,IF(SUM($BR33:BX33)>=$BQ33,0,IF(BM33<=0,IF($G33=0,0,$BQ33),0))) -> 0 | BZ33: =IF($C33="Lamp",0,IF(SUM($BR33:BY33)>=$BQ33,0,IF(BN33<=0,IF($G33=0,0,$BQ33),0))) -> 0 | CA33: =IF($C33="Lamp",0,IF(SUM($BR33:BZ33)>=$BQ33,0,IF(BO33<=0,IF($G33=0,0,$BQ33),0))) -> 0 | CI33: =CC33/'Inputs - General'!K$6 -> 0 | CJ33: =CD33/'Inputs - General'!L$6 -> 0 | CK33: =CE33/'Inputs - General'!M$6 -> 0 | CL33: =CF33/'Inputs - General'!N$6 -> 0 | CM33: =CG33/'Inputs - General'!O$6 -> 0
A34: Customer 1 | B34: ='Input - Customer Inventory FY15'!C33 -> Bracket - T6 | C34: ='Input - Customer Inventory FY15'!D33 -> Bracket | D34: ='Input - Customer Inventory FY15'!E33 -> T6 | E34: ='Input - Customer Inventory FY15'!G33 -> 2 | G34: 0 | H34: 0 | I34: 0 | K34: 0 | L34: 0 | M34: 0 | N34: 0 | O34: 0 | P34: 0 | R34: =IFERROR(IF(K34-(($G34-SUM($CH34:CH34))/$H34)<0,K34,(($G34-SUM($CH34:CH34))/$H34)),0) -> 0 | S34: =IFERROR(IF(L34-(($G34-SUM($CH34:CI34))/$H34)<0,L34,(($G34-SUM($CH34:CI34))/$H34)),0) -> 0 | T34: =IFERROR(IF(M34-(($G34-SUM($CH34:CJ34))/$H34)<0,M34,(($G34-SUM($CH34:CJ34))/$H34)),0) -> 0 | U34: =IFERROR(IF(N34-(($G34-SUM($CH34:CK34))/$H34)<0,N34,(($G34-SUM($CH34:CK34))/$H34)),0) -> 0 | V34: =IFERROR(IF(O34-(($G34-SUM($CH34:CL34))/$H34)<0,O34,(($G34-SUM($CH34:CL34))/$H34)),0) -> 0 | X34: 0 | Y34: 0 | Z34: 0 | AA34: 0 | AB34: 0 | AC34: 0 | AE34: =X34*'Inputs - General'!J$6 -> 0 | AF34: =Y34*'Inputs - General'!K$6 -> 0 | AG34: =Z34*'Inputs - General'!L$6 -> 0 | AH34: =AA34*'Inputs - General'!M$6 -> 0 | AI34: =AB34*'Inputs - General'!N$6 -> 0 | AJ34: =AC34*'Inputs - General'!O$6 -> 0 | AL34: =K34*'Inputs - General'!J$6 -> 0 | AM34: =L34*'Inputs - General'!K$6 -> 0 | AN34: =M34*'Inputs - General'!L$6 -> 0 | AO34: =N34*'Inputs - General'!M$6 -> 0 | AP34: =O34*'Inputs - General'!N$6 -> 0 | AQ34: =P34*'Inputs - General'!O$6 -> 0 | AS34: =R34*'Inputs - General'!K$6 -> 0 | AT34: =S34*'Inputs - General'!L$6 -> 0 | AU34: =T34*'Inputs - General'!M$6 -> 0 | AV34: =U34*'Inputs - General'!N$6 -> 0 | AW34: =V34*'Inputs - General'!O$6 -> 0 | AY34: =AE34*'Inputs - General'!K$4 -> 0 | AZ34: =AF34*'Inputs - General'!L$4 -> 0 | BA34: =AG34*'Inputs - General'!M$4 -> 0 | BB34: =AH34*'Inputs - General'!N$4 -> 0 | BC34: =AI34*'Inputs - General'!O$4 -> 0 | BE34: 0 | BF34: 0 | BG34: 0 | BH34: 0 | BI34: 0 | BK34: 0 | BL34: 0 | BM34: 0 | BN34: 0 | BO34: 0 | BQ34: ='Input - Customer Inventory FY15'!F33 -> 0 | BW34: =IF($C34="Lamp",0,IF(SUM(BR34:$BV34)>=$BQ34,0,IF(BK34<=0,IF($G34=0,0,$BQ34),0))) -> 0 | BX34: =IF($C34="Lamp",0,IF(SUM($BR34:BW34)>=$BQ34,0,IF(BL34<=0,IF($G34=0,0,$BQ34),0))) -> 0 | BY34: =IF($C34="Lamp",0,IF(SUM($BR34:BX34)>=$BQ34,0,IF(BM34<=0,IF($G34=0,0,$BQ34),0))) -> 0 | BZ34: =IF($C34="Lamp",0,IF(SUM($BR34:BY34)>=$BQ34,0,IF(BN34<=0,IF($G34=0,0,$BQ34),0))) -> 0 | CA34: =IF($C34="Lamp",0,IF(SUM($BR34:BZ34)>=$BQ34,0,IF(BO34<=0,IF($G34=0,0,$BQ34),0))) -> 0 | CI34: =CC34/'Inputs - General'!K$6 -> 0 | CJ34: =CD34/'Inputs - General'!L$6 -> 0 | CK34: =CE34/'Inputs - General'!M$6 -> 0 | CL34: =CF34/'Inputs - General'!N$6 -> 0 | CM34: =CG34/'Inputs - General'!O$6 -> 0
A35: Customer 1 | B35: ='Input - Customer Inventory FY15'!C34 -> Bracket - T7 | C35: ='Input - Customer Inventory FY15'!D34 -> Bracket | D35: ='Input - Customer Inventory FY15'!E34 -> T7 | E35: ='Input - Customer Inventory FY15'!G34 -> 1 | G35: 0.8852395206 | H35: 6.00456621 | I35: 0.1474277224 | K35: 0.8852395206 | L35: 0.7378117981 | M35: 0.5903840757 | N35: 0.4429563533 | O35: 0.2955286308 | P35: 0.1481009084 | R35: =IFERROR(IF(K35-(($G35-SUM($CH35:CH35))/$H35)<0,K35,(($G35-SUM($CH35:CH35))/$H35)),0) -> 0.1474277224 | S35: =IFERROR(IF(L35-(($G35-SUM($CH35:CI35))/$H35)<0,L35,(($G35-SUM($CH35:CI35))/$H35)),0) -> 0.1474277224 | T35: =IFERROR(IF(M35-(($G35-SUM($CH35:CJ35))/$H35)<0,M35,(($G35-SUM($CH35:CJ35))/$H35)),0) -> 0.1474277224 | U35: =IFERROR(IF(N35-(($G35-SUM($CH35:CK35))/$H35)<0,N35,(($G35-SUM($CH35:CK35))/$H35)),0) -> 0.1474277224 | V35: =IFERROR(IF(O35-(($G35-SUM($CH35:CL35))/$H35)<0,O35,(($G35-SUM($CH35:CL35))/$H35)),0) -> 0.1474277224 | X35: 0.8852395206 | Y35: 0.7378117981 | Z35: 0.5903840757 | AA35: 0.4429563533 | AB35: 0.2955286308 | AC35: 0.1481009084 | AE35: =X35*'Inputs - General'!J$6 -> 0.8852395206 | AF35: =Y35*'Inputs - General'!K$6 -> 0.7557028094 | AG35: =Z35*'Inputs - General'!L$6 -> 0.6193633702 | AH35: =AA35*'Inputs - General'!M$6 -> 0.4759674554 | AI35: =AB35*'Inputs - General'!N$6 -> 0.3252530115 | AJ35: =AC35*'Inputs - General'!O$6 -> 0.1669494252 | AL35: =K35*'Inputs - General'!J$6 -> 0.8852395206 | AM35: =L35*'Inputs - General'!K$6 -> 0.7557028094 | AN35: =M35*'Inputs - General'!L$6 -> 0.6193633702 | AO35: =N35*'Inputs - General'!M$6 -> 0.4759674554 | AP35: =O35*'Inputs - General'!N$6 -> 0.3252530115 | AQ35: =P35*'Inputs - General'!O$6 -> 0.1669494252 | AS35: =R35*'Inputs - General'!K$6 -> 0.1510026599 | AT35: =S35*'Inputs - General'!L$6 -> 0.1546642851 | AU35: =T35*'Inputs - General'!M$6 -> 0.1584147002 | AV35: =U35*'Inputs - General'!N$6 -> 0.1622560581 | AW35: =V35*'Inputs - General'!O$6 -> 0.1661905642 | AY35: =AE35*'Inputs - General'!K$4 -> 0.02146594879 | AZ35: =AF35*'Inputs - General'!L$4 -> 0.01832484591 | BA35: =AG35*'Inputs - General'!M$4 -> 0.0150187854 | BB35: =AH35*'Inputs - General'!N$4 -> 0.0115416142 | BC35: =AI35*'Inputs - General'!O$4 -> 0.007886977848 | BE35: 0.1295367111 | BF35: 0.1363394392 | BG35: 0.1433959148 | BH35: 0.1507144439 | BI35: 0.1583035863 | BK35: 0.05561969272 | BL35: 0.04748088746 | BM35: 0.03891466607 | BN35: 0.02990508557 | BO35: 0.02043568112 | BQ35: ='Input - Customer Inventory FY15'!F34 -> 2 | BW35: =IF($C35="Lamp",0,IF(SUM(BR35:$BV35)>=$BQ35,0,IF(BK35<=0,IF($G35=0,0,$BQ35),0))) -> 0 | BX35: =IF($C35="Lamp",0,IF(SUM($BR35:BW35)>=$BQ35,0,IF(BL35<=0,IF($G35=0,0,$BQ35),0))) -> 0 | BY35: =IF($C35="Lamp",0,IF(SUM($BR35:BX35)>=$BQ35,0,IF(BM35<=0,IF($G35=0,0,$BQ35),0))) -> 0 | BZ35: =IF($C35="Lamp",0,IF(SUM($BR35:BY35)>=$BQ35,0,IF(BN35<=0,IF($G35=0,0,$BQ35),0))) -> 0 | CA35: =IF($C35="Lamp",0,IF(SUM($BR35:BZ35)>=$BQ35,0,IF(BO35<=0,IF($G35=0,0,$BQ35),0))) -> 0 | CI35: =CC35/'Inputs - General'!K$6 -> 0 | CJ35: =CD35/'Inputs - General'!L$6 -> 0 | CK35: =CE35/'Inputs - General'!M$6 -> 0 | CL35: =CF35/'Inputs - General'!N$6 -> 0 | CM35: =CG35/'Inputs - General'!O$6 -> 0
A36: Customer 1 | B36: ='Input - Customer Inventory FY15'!C35 -> Connection - EMPTY | C36: ='Input - Customer Inventory FY15'!D35 -> Connection | D36: ='Input - Customer Inventory FY15'!E35 -> EMPTY | E36: ='Input - Customer Inventory FY15'!G35 -> 1 | G36: 0 | H36: 8 | I36: 0 | K36: 0 | L36: 0 | M36: 0 | N36: 0 | O36: 0 | P36: 0 | R36: =IFERROR(IF(K36-(($G36-SUM($CH36:CH36))/$H36)<0,K36,(($G36-SUM($CH36:CH36))/$H36)),0) -> 0 | S36: =IFERROR(IF(L36-(($G36-SUM($CH36:CI36))/$H36)<0,L36,(($G36-SUM($CH36:CI36))/$H36)),0) -> 0 | T36: =IFERROR(IF(M36-(($G36-SUM($CH36:CJ36))/$H36)<0,M36,(($G36-SUM($CH36:CJ36))/$H36)),0) -> 0 | U36: =IFERROR(IF(N36-(($G36-SUM($CH36:CK36))/$H36)<0,N36,(($G36-SUM($CH36:CK36))/$H36)),0) -> 0 | V36: =IFERROR(IF(O36-(($G36-SUM($CH36:CL36))/$H36)<0,O36,(($G36-SUM($CH36:CL36))/$H36)),0) -> 0 | X36: 0 | Y36: 0 | Z36: 0 | AA36: 0 | AB36: 0 | AC36: 0 | AE36: =X36*'Inputs - General'!J$6 -> 0 | AF36: =Y36*'Inputs - General'!K$6 -> 0 | AG36: =Z36*'Inputs - General'!L$6 -> 0 | AH36: =AA36*'Inputs - General'!M$6 -> 0 | AI36: =AB36*'Inputs - General'!N$6 -> 0 | AJ36: =AC36*'Inputs - General'!O$6 -> 0 | AL36: =K36*'Inputs - General'!J$6 -> 0 | AM36: =L36*'Inputs - General'!K$6 -> 0 | AN36: =M36*'Inputs - General'!L$6 -> 0 | AO36: =N36*'Inputs - General'!M$6 -> 0 | AP36: =O36*'Inputs - General'!N$6 -> 0 | AQ36: =P36*'Inputs - General'!O$6 -> 0 | AS36: =R36*'Inputs - General'!K$6 -> 0 | AT36: =S36*'Inputs - General'!L$6 -> 0 | AU36: =T36*'Inputs - General'!M$6 -> 0 | AV36: =U36*'Inputs - General'!N$6 -> 0 | AW36: =V36*'Inputs - General'!O$6 -> 0 | AY36: =AE36*'Inputs - General'!K$4 -> 0 | AZ36: =AF36*'Inputs - General'!L$4 -> 0 | BA36: =AG36*'Inputs - General'!M$4 -> 0 | BB36: =AH36*'Inputs - General'!N$4 -> 0 | BC36: =AI36*'Inputs - General'!O$4 -> 0 | BE36: 0 | BF36: 0 | BG36: 0 | BH36: 0 | BI36: 0 | BK36: 0 | BL36: 0 | BM36: 0 | BN36: 0 | BO36: 0 | BQ36: ='Input - Customer Inventory FY15'!F35 -> 0 | BW36: =IF($C36="Lamp",0,IF(SUM(BR36:$BV36)>=$BQ36,0,IF(BK36<=0,IF($G36=0,0,$BQ36),0))) -> 0 | BX36: =IF($C36="Lamp",0,IF(SUM($BR36:BW36)>=$BQ36,0,IF(BL36<=0,IF($G36=0,0,$BQ36),0))) -> 0 | BY36: =IF($C36="Lamp",0,IF(SUM($BR36:BX36)>=$BQ36,0,IF(BM36<=0,IF($G36=0,0,$BQ36),0))) -> 0 | BZ36: =IF($C36="Lamp",0,IF(SUM($BR36:BY36)>=$BQ36,0,IF(BN36<=0,IF($G36=0,0,$BQ36),0))) -> 0 | CA36: =IF($C36="Lamp",0,IF(SUM($BR36:BZ36)>=$BQ36,0,IF(BO36<=0,IF($G36=0,0,$BQ36),0))) -> 0 | CI36: =CC36/'Inputs - General'!K$6 -> 0 | CJ36: =CD36/'Inputs - General'!L$6 -> 0 | CK36: =CE36/'Inputs - General'!M$6 -> 0 | CL36: =CF36/'Inputs - General'!N$6 -> 0 | CM36: =CG36/'Inputs - General'!O$6 -> 0
A37: Customer 1 | B37: ='Input - Customer Inventory FY15'!C36 -> Connection - O/U | C37: ='Input - Customer Inventory FY15'!D36 -> Connection | D37: ='Input - Customer Inventory FY15'!E36 -> O/U | E37: ='Input - Customer Inventory FY15'!G36 -> 1 | G37: 0 | H37: 0 | I37: 0 | K37: 0 | L37: 0 | M37: 0 | N37: 0 | O37: 0 | P37: 0 | R37: =IFERROR(IF(K37-(($G37-SUM($CH37:CH37))/$H37)<0,K37,(($G37-SUM($CH37:CH37))/$H37)),0) -> 0 | S37: =IFERROR(IF(L37-(($G37-SUM($CH37:CI37))/$H37)<0,L37,(($G37-SUM($CH37:CI37))/$H37)),0) -> 0 | T37: =IFERROR(IF(M37-(($G37-SUM($CH37:CJ37))/$H37)<0,M37,(($G37-SUM($CH37:CJ37))/$H37)),0) -> 0 | U37: =IFERROR(IF(N37-(($G37-SUM($CH37:CK37))/$H37)<0,N37,(($G37-SUM($CH37:CK37))/$H37)),0) -> 0 | V37: =IFERROR(IF(O37-(($G37-SUM($CH37:CL37))/$H37)<0,O37,(($G37-SUM($CH37:CL37))/$H37)),0) -> 0 | X37: 0 | Y37: 0 | Z37: 0 | AA37: 0 | AB37: 0 | AC37: 0 | AE37: =X37*'Inputs - General'!J$6 -> 0 | AF37: =Y37*'Inputs - General'!K$6 -> 0 | AG37: =Z37*'Inputs - General'!L$6 -> 0 | AH37: =AA37*'Inputs - General'!M$6 -> 0 | AI37: =AB37*'Inputs - General'!N$6 -> 0 | AJ37: =AC37*'Inputs - General'!O$6 -> 0 | AL37: =K37*'Inputs - General'!J$6 -> 0 | AM37: =L37*'Inputs - General'!K$6 -> 0 | AN37: =M37*'Inputs - General'!L$6 -> 0 | AO37: =N37*'Inputs - General'!M$6 -> 0 | AP37: =O37*'Inputs - General'!N$6 -> 0 | AQ37: =P37*'Inputs - General'!O$6 -> 0 | AS37: =R37*'Inputs - General'!K$6 -> 0 | AT37: =S37*'Inputs - General'!L$6 -> 0 | AU37: =T37*'Inputs - General'!M$6 -> 0 | AV37: =U37*'Inputs - General'!N$6 -> 0 | AW37: =V37*'Inputs - General'!O$6 -> 0 | AY37: =AE37*'Inputs - General'!K$4 -> 0 | AZ37: =AF37*'Inputs - General'!L$4 -> 0 | BA37: =AG37*'Inputs - General'!M$4 -> 0 | BB37: =AH37*'Inputs - General'!N$4 -> 0 | BC37: =AI37*'Inputs - General'!O$4 -> 0 | BE37: 0 | BF37: 0 | BG37: 0 | BH37: 0 | BI37: 0 | BK37: 0 | BL37: 0 | BM37: 0 | BN37: 0 | BO37: 0 | BQ37: ='Input - Customer Inventory FY15'!F36 -> 4 | BW37: =IF($C37="Lamp",0,IF(SUM(BR37:$BV37)>=$BQ37,0,IF(BK37<=0,IF($G37=0,0,$BQ37),0))) -> 0 | BX37: =IF($C37="Lamp",0,IF(SUM($BR37:BW37)>=$BQ37,0,IF(BL37<=0,IF($G37=0,0,$BQ37),0))) -> 0 | BY37: =IF($C37="Lamp",0,IF(SUM($BR37:BX37)>=$BQ37,0,IF(BM37<=0,IF($G37=0,0,$BQ37),0))) -> 0 | BZ37: =IF($C37="Lamp",0,IF(SUM($BR37:BY37)>=$BQ37,0,IF(BN37<=0,IF($G37=0,0,$BQ37),0))) -> 0 | CA37: =IF($C37="Lamp",0,IF(SUM($BR37:BZ37)>=$BQ37,0,IF(BO37<=0,IF($G37=0,0,$BQ37),0))) -> 0 | CI37: =CC37/'Inputs - General'!K$6 -> 0 | CJ37: =CD37/'Inputs - General'!L$6 -> 0 | CK37: =CE37/'Inputs - General'!M$6 -> 0 | CL37: =CF37/'Inputs - General'!N$6 -> 0 | CM37: =CG37/'Inputs - General'!O$6 -> 0
A38: Customer 1 | B38: ='Input - Customer Inventory FY15'!C37 -> Connection - O/U | C38: ='Input - Customer Inventory FY15'!D37 -> Connection | D38: ='Input - Customer Inventory FY15'!E37 -> O/U | E38: ='Input - Customer Inventory FY15'!G37 -> 2 | G38: 0 | H38: 0 | I38: 0 | K38: 0 | L38: 0 | M38: 0 | N38: 0 | O38: 0 | P38: 0 | R38: =IFERROR(IF(K38-(($G38-SUM($CH38:CH38))/$H38)<0,K38,(($G38-SUM($CH38:CH38))/$H38)),0) -> 0 | S38: =IFERROR(IF(L38-(($G38-SUM($CH38:CI38))/$H38)<0,L38,(($G38-SUM($CH38:CI38))/$H38)),0) -> 0 | T38: =IFERROR(IF(M38-(($G38-SUM($CH38:CJ38))/$H38)<0,M38,(($G38-SUM($CH38:CJ38))/$H38)),0) -> 0 | U38: =IFERROR(IF(N38-(($G38-SUM($CH38:CK38))/$H38)<0,N38,(($G38-SUM($CH38:CK38))/$H38)),0) -> 0 | V38: =IFERROR(IF(O38-(($G38-SUM($CH38:CL38))/$H38)<0,O38,(($G38-SUM($CH38:CL38))/$H38)),0) -> 0 | X38: 0 | Y38: 0 | Z38: 0 | AA38: 0 | AB38: 0 | AC38: 0 | AE38: =X38*'Inputs - General'!J$6 -> 0 | AF38: =Y38*'Inputs - General'!K$6 -> 0 | AG38: =Z38*'Inputs - General'!L$6 -> 0 | AH38: =AA38*'Inputs - General'!M$6 -> 0 | AI38: =AB38*'Inputs - General'!N$6 -> 0 | AJ38: =AC38*'Inputs - General'!O$6 -> 0 | AL38: =K38*'Inputs - General'!J$6 -> 0 | AM38: =L38*'Inputs - General'!K$6 -> 0 | AN38: =M38*'Inputs - General'!L$6 -> 0 | AO38: =N38*'Inputs - General'!M$6 -> 0 | AP38: =O38*'Inputs - General'!N$6 -> 0 | AQ38: =P38*'Inputs - General'!O$6 -> 0 | AS38: =R38*'Inputs - General'!K$6 -> 0 | AT38: =S38*'Inputs - General'!L$6 -> 0 | AU38: =T38*'Inputs - General'!M$6 -> 0 | AV38: =U38*'Inputs - General'!N$6 -> 0 | AW38: =V38*'Inputs - General'!O$6 -> 0 | AY38: =AE38*'Inputs - General'!K$4 -> 0 | AZ38: =AF38*'Inputs - General'!L$4 -> 0 | BA38: =AG38*'Inputs - General'!M$4 -> 0 | BB38: =AH38*'Inputs - General'!N$4 -> 0 | BC38: =AI38*'Inputs - General'!O$4 -> 0 | BE38: 0 | BF38: 0 | BG38: 0 | BH38: 0 | BI38: 0 | BK38: 0 | BL38: 0 | BM38: 0 | BN38: 0 | BO38: 0 | BQ38: ='Input - Customer Inventory FY15'!F37 -> 3 | BW38: =IF($C38="Lamp",0,IF(SUM(BR38:$BV38)>=$BQ38,0,IF(BK38<=0,IF($G38=0,0,$BQ38),0))) -> 0 | BX38: =IF($C38="Lamp",0,IF(SUM($BR38:BW38)>=$BQ38,0,IF(BL38<=0,IF($G38=0,0,$BQ38),0))) -> 0 | BY38: =IF($C38="Lamp",0,IF(SUM($BR38:BX38)>=$BQ38,0,IF(BM38<=0,IF($G38=0,0,$BQ38),0))) -> 0 | BZ38: =IF($C38="Lamp",0,IF(SUM($BR38:BY38)>=$BQ38,0,IF(BN38<=0,IF($G38=0,0,$BQ38),0))) -> 0 | CA38: =IF($C38="Lamp",0,IF(SUM($BR38:BZ38)>=$BQ38,0,IF(BO38<=0,IF($G38=0,0,$BQ38),0))) -> 0 | CI38: =CC38/'Inputs - General'!K$6 -> 0 | CJ38: =CD38/'Inputs - General'!L$6 -> 0 | CK38: =CE38/'Inputs - General'!M$6 -> 0 | CL38: =CF38/'Inputs - General'!N$6 -> 0 | CM38: =CG38/'Inputs - General'!O$6 -> 0
A39: Customer 1 | B39: ='Input - Customer Inventory FY15'!C38 -> Connection - OH | C39: ='Input - Customer Inventory FY15'!D38 -> Connection | D39: ='Input - Customer Inventory FY15'!E38 -> OH | E39: ='Input - Customer Inventory FY15'!G38 -> 1 | G39: 0 | H39: 0 | I39: 0 | K39: 0 | L39: 0 | M39: 0 | N39: 0 | O39: 0 | P39: 0 | R39: =IFERROR(IF(K39-(($G39-SUM($CH39:CH39))/$H39)<0,K39,(($G39-SUM($CH39:CH39))/$H39)),0) -> 0 | S39: =IFERROR(IF(L39-(($G39-SUM($CH39:CI39))/$H39)<0,L39,(($G39-SUM($CH39:CI39))/$H39)),0) -> 0 | T39: =IFERROR(IF(M39-(($G39-SUM($CH39:CJ39))/$H39)<0,M39,(($G39-SUM($CH39:CJ39))/$H39)),0) -> 0 | U39: =IFERROR(IF(N39-(($G39-SUM($CH39:CK39))/$H39)<0,N39,(($G39-SUM($CH39:CK39))/$H39)),0) -> 0 | V39: =IFERROR(IF(O39-(($G39-SUM($CH39:CL39))/$H39)<0,O39,(($G39-SUM($CH39:CL39))/$H39)),0) -> 0 | X39: 0 | Y39: 0 | Z39: 0 | AA39: 0 | AB39: 0 | AC39: 0 | AE39: =X39*'Inputs - General'!J$6 -> 0 | AF39: =Y39*'Inputs - General'!K$6 -> 0 | AG39: =Z39*'Inputs - General'!L$6 -> 0 | AH39: =AA39*'Inputs - General'!M$6 -> 0 | AI39: =AB39*'Inputs - General'!N$6 -> 0 | AJ39: =AC39*'Inputs - General'!O$6 -> 0 | AL39: =K39*'Inputs - General'!J$6 -> 0 | AM39: =L39*'Inputs - General'!K$6 -> 0 | AN39: =M39*'Inputs - General'!L$6 -> 0 | AO39: =N39*'Inputs - General'!M$6 -> 0 | AP39: =O39*'Inputs - General'!N$6 -> 0 | AQ39: =P39*'Inputs - General'!O$6 -> 0 | AS39: =R39*'Inputs - General'!K$6 -> 0 | AT39: =S39*'Inputs - General'!L$6 -> 0 | AU39: =T39*'Inputs - General'!M$6 -> 0 | AV39: =U39*'Inputs - General'!N$6 -> 0 | AW39: =V39*'Inputs - General'!O$6 -> 0 | AY39: =AE39*'Inputs - General'!K$4 -> 0 | AZ39: =AF39*'Inputs - General'!L$4 -> 0 | BA39: =AG39*'Inputs - General'!M$4 -> 0 | BB39: =AH39*'Inputs - General'!N$4 -> 0 | BC39: =AI39*'Inputs - General'!O$4 -> 0 | BE39: 0 | BF39: 0 | BG39: 0 | BH39: 0 | BI39: 0 | BK39: 0 | BL39: 0 | BM39: 0 | BN39: 0 | BO39: 0 | BQ39: ='Input - Customer Inventory FY15'!F38 -> 2779.5 | BW39: =IF($C39="Lamp",0,IF(SUM(BR39:$BV39)>=$BQ39,0,IF(BK39<=0,IF($G39=0,0,$BQ39),0))) -> 0 | BX39: =IF($C39="Lamp",0,IF(SUM($BR39:BW39)>=$BQ39,0,IF(BL39<=0,IF($G39=0,0,$BQ39),0))) -> 0 | BY39: =IF($C39="Lamp",0,IF(SUM($BR39:BX39)>=$BQ39,0,IF(BM39<=0,IF($G39=0,0,$BQ39),0))) -> 0 | BZ39: =IF($C39="Lamp",0,IF(SUM($BR39:BY39)>=$BQ39,0,IF(BN39<=0,IF($G39=0,0,$BQ39),0))) -> 0 | CA39: =IF($C39="Lamp",0,IF(SUM($BR39:BZ39)>=$BQ39,0,IF(BO39<=0,IF($G39=0,0,$BQ39),0))) -> 0 | CI39: =CC39/'Inputs - General'!K$6 -> 0 | CJ39: =CD39/'Inputs - General'!L$6 -> 0 | CK39: =CE39/'Inputs - General'!M$6 -> 0 | CL39: =CF39/'Inputs - General'!N$6 -> 0 | CM39: =CG39/'Inputs - General'!O$6 -> 0
A40: Customer 1 | B40: ='Input - Customer Inventory FY15'!C39 -> Connection - OH | C40: ='Input - Customer Inventory FY15'!D39 -> Connection | D40: ='Input - Customer Inventory FY15'!E39 -> OH | E40: ='Input - Customer Inventory FY15'!G39 -> 2 | G40: 0 | H40: 0 | I40: 0 | K40: 0 | L40: 0 | M40: 0 | N40: 0 | O40: 0 | P40: 0 | R40: =IFERROR(IF(K40-(($G40-SUM($CH40:CH40))/$H40)<0,K40,(($G40-SUM($CH40:CH40))/$H40)),0) -> 0 | S40: =IFERROR(IF(L40-(($G40-SUM($CH40:CI40))/$H40)<0,L40,(($G40-SUM($CH40:CI40))/$H40)),0) -> 0 | T40: =IFERROR(IF(M40-(($G40-SUM($CH40:CJ40))/$H40)<0,M40,(($G40-SUM($CH40:CJ40))/$H40)),0) -> 0 | U40: =IFERROR(IF(N40-(($G40-SUM($CH40:CK40))/$H40)<0,N40,(($G40-SUM($CH40:CK40))/$H40)),0) -> 0 | V40: =IFERROR(IF(O40-(($G40-SUM($CH40:CL40))/$H40)<0,O40,(($G40-SUM($CH40:CL40))/$H40)),0) -> 0 | X40: 0 | Y40: 0 | Z40: 0 | AA40: 0 | AB40: 0 | AC40: 0 | AE40: =X40*'Inputs - General'!J$6 -> 0 | AF40: =Y40*'Inputs - General'!K$6 -> 0 | AG40: =Z40*'Inputs - General'!L$6 -> 0 | AH40: =AA40*'Inputs - General'!M$6 -> 0 | AI40: =AB40*'Inputs - General'!N$6 -> 0 | AJ40: =AC40*'Inputs - General'!O$6 -> 0 | AL40: =K40*'Inputs - General'!J$6 -> 0 | AM40: =L40*'Inputs - General'!K$6 -> 0 | AN40: =M40*'Inputs - General'!L$6 -> 0 | AO40: =N40*'Inputs - General'!M$6 -> 0 | AP40: =O40*'Inputs - General'!N$6 -> 0 | AQ40: =P40*'Inputs - General'!O$6 -> 0 | AS40: =R40*'Inputs - General'!K$6 -> 0 | AT40: =S40*'Inputs - General'!L$6 -> 0 | AU40: =T40*'Inputs - General'!M$6 -> 0 | AV40: =U40*'Inputs - General'!N$6 -> 0 | AW40: =V40*'Inputs - General'!O$6 -> 0 | AY40: =AE40*'Inputs - General'!K$4 -> 0 | AZ40: =AF40*'Inputs - General'!L$4 -> 0 | BA40: =AG40*'Inputs - General'!M$4 -> 0 | BB40: =AH40*'Inputs - General'!N$4 -> 0 | BC40: =AI40*'Inputs - General'!O$4 -> 0 | BE40: 0 | BF40: 0 | BG40: 0 | BH40: 0 | BI40: 0 | BK40: 0 | BL40: 0 | BM40: 0 | BN40: 0 | BO40: 0 | BQ40: ='Input - Customer Inventory FY15'!F39 -> 0 | BW40: =IF($C40="Lamp",0,IF(SUM(BR40:$BV40)>=$BQ40,0,IF(BK40<=0,IF($G40=0,0,$BQ40),0))) -> 0 | BX40: =IF($C40="Lamp",0,IF(SUM($BR40:BW40)>=$BQ40,0,IF(BL40<=0,IF($G40=0,0,$BQ40),0))) -> 0 | BY40: =IF($C40="Lamp",0,IF(SUM($BR40:BX40)>=$BQ40,0,IF(BM40<=0,IF($G40=0,0,$BQ40),0))) -> 0 | BZ40: =IF($C40="Lamp",0,IF(SUM($BR40:BY40)>=$BQ40,0,IF(BN40<=0,IF($G40=0,0,$BQ40),0))) -> 0 | CA40: =IF($C40="Lamp",0,IF(SUM($BR40:BZ40)>=$BQ40,0,IF(BO40<=0,IF($G40=0,0,$BQ40),0))) -> 0 | CI40: =CC40/'Inputs - General'!K$6 -> 0 | CJ40: =CD40/'Inputs - General'!L$6 -> 0 | CK40: =CE40/'Inputs - General'!M$6 -> 0 | CL40: =CF40/'Inputs - General'!N$6 -> 0 | CM40: =CG40/'Inputs - General'!O$6 -> 0
A41: Customer 1 | B41: ='Input - Customer Inventory FY15'!C40 -> Connection - OH | C41: ='Input - Customer Inventory FY15'!D40 -> Connection | D41: ='Input - Customer Inventory FY15'!E40 -> OH | E41: ='Input - Customer Inventory FY15'!G40 -> 3 | G41: 0 | H41: 0 | I41: 0 | K41: 0 | L41: 0 | M41: 0 | N41: 0 | O41: 0 | P41: 0 | R41: =IFERROR(IF(K41-(($G41-SUM($CH41:CH41))/$H41)<0,K41,(($G41-SUM($CH41:CH41))/$H41)),0) -> 0 | S41: =IFERROR(IF(L41-(($G41-SUM($CH41:CI41))/$H41)<0,L41,(($G41-SUM($CH41:CI41))/$H41)),0) -> 0 | T41: =IFERROR(IF(M41-(($G41-SUM($CH41:CJ41))/$H41)<0,M41,(($G41-SUM($CH41:CJ41))/$H41)),0) -> 0 | U41: =IFERROR(IF(N41-(($G41-SUM($CH41:CK41))/$H41)<0,N41,(($G41-SUM($CH41:CK41))/$H41)),0) -> 0 | V41: =IFERROR(IF(O41-(($G41-SUM($CH41:CL41))/$H41)<0,O41,(($G41-SUM($CH41:CL41))/$H41)),0) -> 0 | X41: 0 | Y41: 0 | Z41: 0 | AA41: 0 | AB41: 0 | AC41: 0 | AE41: =X41*'Inputs - General'!J$6 -> 0 | AF41: =Y41*'Inputs - General'!K$6 -> 0 | AG41: =Z41*'Inputs - General'!L$6 -> 0 | AH41: =AA41*'Inputs - General'!M$6 -> 0 | AI41: =AB41*'Inputs - General'!N$6 -> 0 | AJ41: =AC41*'Inputs - General'!O$6 -> 0 | AL41: =K41*'Inputs - General'!J$6 -> 0 | AM41: =L41*'Inputs - General'!K$6 -> 0 | AN41: =M41*'Inputs - General'!L$6 -> 0 | AO41: =N41*'Inputs - General'!M$6 -> 0 | AP41: =O41*'Inputs - General'!N$6 -> 0 | AQ41: =P41*'Inputs - General'!O$6 -> 0 | AS41: =R41*'Inputs - General'!K$6 -> 0 | AT41: =S41*'Inputs - General'!L$6 -> 0 | AU41: =T41*'Inputs - General'!M$6 -> 0 | AV41: =U41*'Inputs - General'!N$6 -> 0 | AW41: =V41*'Inputs - General'!O$6 -> 0 | AY41: =AE41*'Inputs - General'!K$4 -> 0 | AZ41: =AF41*'Inputs - General'!L$4 -> 0 | BA41: =AG41*'Inputs - General'!M$4 -> 0 | BB41: =AH41*'Inputs - General'!N$4 -> 0 | BC41: =AI41*'Inputs - General'!O$4 -> 0 | BE41: 0 | BF41: 0 | BG41: 0 | BH41: 0 | BI41: 0 | BK41: 0 | BL41: 0 | BM41: 0 | BN41: 0 | BO41: 0 | BQ41: ='Input - Customer Inventory FY15'!F40 -> 7 | BW41: =IF($C41="Lamp",0,IF(SUM(BR41:$BV41)>=$BQ41,0,IF(BK41<=0,IF($G41=0,0,$BQ41),0))) -> 0 | BX41: =IF($C41="Lamp",0,IF(SUM($BR41:BW41)>=$BQ41,0,IF(BL41<=0,IF($G41=0,0,$BQ41),0))) -> 0 | BY41: =IF($C41="Lamp",0,IF(SUM($BR41:BX41)>=$BQ41,0,IF(BM41<=0,IF($G41=0,0,$BQ41),0))) -> 0 | BZ41: =IF($C41="Lamp",0,IF(SUM($BR41:BY41)>=$BQ41,0,IF(BN41<=0,IF($G41=0,0,$BQ41),0))) -> 0 | CA41: =IF($C41="Lamp",0,IF(SUM($BR41:BZ41)>=$BQ41,0,IF(BO41<=0,IF($G41=0,0,$BQ41),0))) -> 0 | CI41: =CC41/'Inputs - General'!K$6 -> 0 | CJ41: =CD41/'Inputs - General'!L$6 -> 0 | CK41: =CE41/'Inputs - General'!M$6 -> 0 | CL41: =CF41/'Inputs - General'!N$6 -> 0 | CM41: =CG41/'Inputs - General'!O$6 -> 0
A42: Customer 1 | B42: ='Input - Customer Inventory FY15'!C41 -> Connection - OH2 | C42: ='Input - Customer Inventory FY15'!D41 -> Connection | D42: ='Input - Customer Inventory FY15'!E41 -> OH2 | E42: ='Input - Customer Inventory FY15'!G41 -> 1 | G42: 0 | H42: 0.1863013699 | I42: 0 | K42: 0 | L42: 0 | M42: 0 | N42: 0 | O42: 0 | P42: 0 | R42: =IFERROR(IF(K42-(($G42-SUM($CH42:CH42))/$H42)<0,K42,(($G42-SUM($CH42:CH42))/$H42)),0) -> 0 | S42: =IFERROR(IF(L42-(($G42-SUM($CH42:CI42))/$H42)<0,L42,(($G42-SUM($CH42:CI42))/$H42)),0) -> 0 | T42: =IFERROR(IF(M42-(($G42-SUM($CH42:CJ42))/$H42)<0,M42,(($G42-SUM($CH42:CJ42))/$H42)),0) -> 0 | U42: =IFERROR(IF(N42-(($G42-SUM($CH42:CK42))/$H42)<0,N42,(($G42-SUM($CH42:CK42))/$H42)),0) -> 0 | V42: =IFERROR(IF(O42-(($G42-SUM($CH42:CL42))/$H42)<0,O42,(($G42-SUM($CH42:CL42))/$H42)),0) -> 0 | X42: 0 | Y42: 0 | Z42: 0 | AA42: 0 | AB42: 0 | AC42: 0 | AE42: =X42*'Inputs - General'!J$6 -> 0 | AF42: =Y42*'Inputs - General'!K$6 -> 0 | AG42: =Z42*'Inputs - General'!L$6 -> 0 | AH42: =AA42*'Inputs - General'!M$6 -> 0 | AI42: =AB42*'Inputs - General'!N$6 -> 0 | AJ42: =AC42*'Inputs - General'!O$6 -> 0 | AL42: =K42*'Inputs - General'!J$6 -> 0 | AM42: =L42*'Inputs - General'!K$6 -> 0 | AN42: =M42*'Inputs - General'!L$6 -> 0 | AO42: =N42*'Inputs - General'!M$6 -> 0 | AP42: =O42*'Inputs - General'!N$6 -> 0 | AQ42: =P42*'Inputs - General'!O$6 -> 0 | AS42: =R42*'Inputs - General'!K$6 -> 0 | AT42: =S42*'Inputs - General'!L$6 -> 0 | AU42: =T42*'Inputs - General'!M$6 -> 0 | AV42: =U42*'Inputs - General'!N$6 -> 0 | AW42: =V42*'Inputs - General'!O$6 -> 0 | AY42: =AE42*'Inputs - General'!K$4 -> 0 | AZ42: =AF42*'Inputs - General'!L$4 -> 0 | BA42: =AG42*'Inputs - General'!M$4 -> 0 | BB42: =AH42*'Inputs - General'!N$4 -> 0 | BC42: =AI42*'Inputs - General'!O$4 -> 0 | BE42: 0 | BF42: 0 | BG42: 0 | BH42: 0 | BI42: 0 | BK42: 0 | BL42: 0 | BM42: 0 | BN42: 0 | BO42: 0 | BQ42: ='Input - Customer Inventory FY15'!F41 -> 1 | BW42: =IF($C42="Lamp",0,IF(SUM(BR42:$BV42)>=$BQ42,0,IF(BK42<=0,IF($G42=0,0,$BQ42),0))) -> 0 | BX42: =IF($C42="Lamp",0,IF(SUM($BR42:BW42)>=$BQ42,0,IF(BL42<=0,IF($G42=0,0,$BQ42),0))) -> 0 | BY42: =IF($C42="Lamp",0,IF(SUM($BR42:BX42)>=$BQ42,0,IF(BM42<=0,IF($G42=0,0,$BQ42),0))) -> 0 | BZ42: =IF($C42="Lamp",0,IF(SUM($BR42:BY42)>=$BQ42,0,IF(BN42<=0,IF($G42=0,0,$BQ42),0))) -> 0 | CA42: =IF($C42="Lamp",0,IF(SUM($BR42:BZ42)>=$BQ42,0,IF(BO42<=0,IF($G42=0,0,$BQ42),0))) -> 0 | CI42: =CC42/'Inputs - General'!K$6 -> 0 | CJ42: =CD42/'Inputs - General'!L$6 -> 0 | CK42: =CE42/'Inputs - General'!M$6 -> 0 | CL42: =CF42/'Inputs - General'!N$6 -> 0 | CM42: =CG42/'Inputs - General'!O$6 -> 0
A43: Customer 1 | B43: ='Input - Customer Inventory FY15'!C42 -> Connection - UGR1 | C43: ='Input - Customer Inventory FY15'!D42 -> Connection | D43: ='Input - Customer Inventory FY15'!E42 -> UGR1 | E43: ='Input - Customer Inventory FY15'!G42 -> 1 | G43: 0 | H43: 0 | I43: 0 | K43: 0 | L43: 0 | M43: 0 | N43: 0 | O43: 0 | P43: 0 | R43: =IFERROR(IF(K43-(($G43-SUM($CH43:CH43))/$H43)<0,K43,(($G43-SUM($CH43:CH43))/$H43)),0) -> 0 | S43: =IFERROR(IF(L43-(($G43-SUM($CH43:CI43))/$H43)<0,L43,(($G43-SUM($CH43:CI43))/$H43)),0) -> 0 | T43: =IFERROR(IF(M43-(($G43-SUM($CH43:CJ43))/$H43)<0,M43,(($G43-SUM($CH43:CJ43))/$H43)),0) -> 0 | U43: =IFERROR(IF(N43-(($G43-SUM($CH43:CK43))/$H43)<0,N43,(($G43-SUM($CH43:CK43))/$H43)),0) -> 0 | V43: =IFERROR(IF(O43-(($G43-SUM($CH43:CL43))/$H43)<0,O43,(($G43-SUM($CH43:CL43))/$H43)),0) -> 0 | X43: 0 | Y43: 0 | Z43: 0 | AA43: 0 | AB43: 0 | AC43: 0 | AE43: =X43*'Inputs - General'!J$6 -> 0 | AF43: =Y43*'Inputs - General'!K$6 -> 0 | AG43: =Z43*'Inputs - General'!L$6 -> 0 | AH43: =AA43*'Inputs - General'!M$6 -> 0 | AI43: =AB43*'Inputs - General'!N$6 -> 0 | AJ43: =AC43*'Inputs - General'!O$6 -> 0 | AL43: =K43*'Inputs - General'!J$6 -> 0 | AM43: =L43*'Inputs - General'!K$6 -> 0 | AN43: =M43*'Inputs - General'!L$6 -> 0 | AO43: =N43*'Inputs - General'!M$6 -> 0 | AP43: =O43*'Inputs - General'!N$6 -> 0 | AQ43: =P43*'Inputs - General'!O$6 -> 0 | AS43: =R43*'Inputs - General'!K$6 -> 0 | AT43: =S43*'Inputs - General'!L$6 -> 0 | AU43: =T43*'Inputs - General'!M$6 -> 0 | AV43: =U43*'Inputs - General'!N$6 -> 0 | AW43: =V43*'Inputs - General'!O$6 -> 0 | AY43: =AE43*'Inputs - General'!K$4 -> 0 | AZ43: =AF43*'Inputs - General'!L$4 -> 0 | BA43: =AG43*'Inputs - General'!M$4 -> 0 | BB43: =AH43*'Inputs - General'!N$4 -> 0 | BC43: =AI43*'Inputs - General'!O$4 -> 0 | BE43: 0 | BF43: 0 | BG43: 0 | BH43: 0 | BI43: 0 | BK43: 0 | BL43: 0 | BM43: 0 | BN43: 0 | BO43: 0 | BQ43: ='Input - Customer Inventory FY15'!F42 -> 335 | BW43: =IF($C43="Lamp",0,IF(SUM(BR43:$BV43)>=$BQ43,0,IF(BK43<=0,IF($G43=0,0,$BQ43),0))) -> 0 | BX43: =IF($C43="Lamp",0,IF(SUM($BR43:BW43)>=$BQ43,0,IF(BL43<=0,IF($G43=0,0,$BQ43),0))) -> 0 | BY43: =IF($C43="Lamp",0,IF(SUM($BR43:BX43)>=$BQ43,0,IF(BM43<=0,IF($G43=0,0,$BQ43),0))) -> 0 | BZ43: =IF($C43="Lamp",0,IF(SUM($BR43:BY43)>=$BQ43,0,IF(BN43<=0,IF($G43=0,0,$BQ43),0))) -> 0 | CA43: =IF($C43="Lamp",0,IF(SUM($BR43:BZ43)>=$BQ43,0,IF(BO43<=0,IF($G43=0,0,$BQ43),0))) -> 0 | CI43: =CC43/'Inputs - General'!K$6 -> 0 | CJ43: =CD43/'Inputs - General'!L$6 -> 0 | CK43: =CE43/'Inputs - General'!M$6 -> 0 | CL43: =CF43/'Inputs - General'!N$6 -> 0 | CM43: =CG43/'Inputs - General'!O$6 -> 0
A44: Customer 1 | B44: ='Input - Customer Inventory FY15'!C43 -> Connection - UGR1 | C44: ='Input - Customer Inventory FY15'!D43 -> Connection | D44: ='Input - Customer Inventory FY15'!E43 -> UGR1 | E44: ='Input - Customer Inventory FY15'!G43 -> 3 | G44: 0 | H44: 0 | I44: 0 | K44: 0 | L44: 0 | M44: 0 | N44: 0 | O44: 0 | P44: 0 | R44: =IFERROR(IF(K44-(($G44-SUM($CH44:CH44))/$H44)<0,K44,(($G44-SUM($CH44:CH44))/$H44)),0) -> 0 | S44: =IFERROR(IF(L44-(($G44-SUM($CH44:CI44))/$H44)<0,L44,(($G44-SUM($CH44:CI44))/$H44)),0) -> 0 | T44: =IFERROR(IF(M44-(($G44-SUM($CH44:CJ44))/$H44)<0,M44,(($G44-SUM($CH44:CJ44))/$H44)),0) -> 0 | U44: =IFERROR(IF(N44-(($G44-SUM($CH44:CK44))/$H44)<0,N44,(($G44-SUM($CH44:CK44))/$H44)),0) -> 0 | V44: =IFERROR(IF(O44-(($G44-SUM($CH44:CL44))/$H44)<0,O44,(($G44-SUM($CH44:CL44))/$H44)),0) -> 0 | X44: 0 | Y44: 0 | Z44: 0 | AA44: 0 | AB44: 0 | AC44: 0 | AE44: =X44*'Inputs - General'!J$6 -> 0 | AF44: =Y44*'Inputs - General'!K$6 -> 0 | AG44: =Z44*'Inputs - General'!L$6 -> 0 | AH44: =AA44*'Inputs - General'!M$6 -> 0 | AI44: =AB44*'Inputs - General'!N$6 -> 0 | AJ44: =AC44*'Inputs - General'!O$6 -> 0 | AL44: =K44*'Inputs - General'!J$6 -> 0 | AM44: =L44*'Inputs - General'!K$6 -> 0 | AN44: =M44*'Inputs - General'!L$6 -> 0 | AO44: =N44*'Inputs - General'!M$6 -> 0 | AP44: =O44*'Inputs - General'!N$6 -> 0 | AQ44: =P44*'Inputs - General'!O$6 -> 0 | AS44: =R44*'Inputs - General'!K$6 -> 0 | AT44: =S44*'Inputs - General'!L$6 -> 0 | AU44: =T44*'Inputs - General'!M$6 -> 0 | AV44: =U44*'Inputs - General'!N$6 -> 0 | AW44: =V44*'Inputs - General'!O$6 -> 0 | AY44: =AE44*'Inputs - General'!K$4 -> 0 | AZ44: =AF44*'Inputs - General'!L$4 -> 0 | BA44: =AG44*'Inputs - General'!M$4 -> 0 | BB44: =AH44*'Inputs - General'!N$4 -> 0 | BC44: =AI44*'Inputs - General'!O$4 -> 0 | BE44: 0 | BF44: 0 | BG44: 0 | BH44: 0 | BI44: 0 | BK44: 0 | BL44: 0 | BM44: 0 | BN44: 0 | BO44: 0 | BQ44: ='Input - Customer Inventory FY15'!F43 -> 5 | BW44: =IF($C44="Lamp",0,IF(SUM(BR44:$BV44)>=$BQ44,0,IF(BK44<=0,IF($G44=0,0,$BQ44),0))) -> 0 | BX44: =IF($C44="Lamp",0,IF(SUM($BR44:BW44)>=$BQ44,0,IF(BL44<=0,IF($G44=0,0,$BQ44),0))) -> 0 | BY44: =IF($C44="Lamp",0,IF(SUM($BR44:BX44)>=$BQ44,0,IF(BM44<=0,IF($G44=0,0,$BQ44),0))) -> 0 | BZ44: =IF($C44="Lamp",0,IF(SUM($BR44:BY44)>=$BQ44,0,IF(BN44<=0,IF($G44=0,0,$BQ44),0))) -> 0 | CA44: =IF($C44="Lamp",0,IF(SUM($BR44:BZ44)>=$BQ44,0,IF(BO44<=0,IF($G44=0,0,$BQ44),0))) -> 0 | CI44: =CC44/'Inputs - General'!K$6 -> 0 | CJ44: =CD44/'Inputs - General'!L$6 -> 0 | CK44: =CE44/'Inputs - General'!M$6 -> 0 | CL44: =CF44/'Inputs - General'!N$6 -> 0 | CM44: =CG44/'Inputs - General'!O$6 -> 0
A45: Customer 1 | B45: ='Input - Customer Inventory FY15'!C44 -> Connection - UGR2 | C45: ='Input - Customer Inventory FY15'!D44 -> Connection | D45: ='Input - Customer Inventory FY15'!E44 -> UGR2 | E45: ='Input - Customer Inventory FY15'!G44 -> 1 | G45: 0.4176106706 | H45: 5.750158061 | I45: 0.0726259463 | K45: 0.4176106706 | L45: 0.3449847243 | M45: 0.272358778 | N45: 0.1997328317 | O45: 0.1271068854 | P45: 0.05448093906 | R45: =IFERROR(IF(K45-(($G45-SUM($CH45:CH45))/$H45)<0,K45,(($G45-SUM($CH45:CH45))/$H45)),0) -> 0.0726259463 | S45: =IFERROR(IF(L45-(($G45-SUM($CH45:CI45))/$H45)<0,L45,(($G45-SUM($CH45:CI45))/$H45)),0) -> 0.0726259463 | T45: =IFERROR(IF(M45-(($G45-SUM($CH45:CJ45))/$H45)<0,M45,(($G45-SUM($CH45:CJ45))/$H45)),0) -> 0.0726259463 | U45: =IFERROR(IF(N45-(($G45-SUM($CH45:CK45))/$H45)<0,N45,(($G45-SUM($CH45:CK45))/$H45)),0) -> 0.0726259463 | V45: =IFERROR(IF(O45-(($G45-SUM($CH45:CL45))/$H45)<0,O45,(($G45-SUM($CH45:CL45))/$H45)),0) -> 0.0726259463 | X45: 0.4176106706 | Y45: 0.3449847243 | Z45: 0.272358778 | AA45: 0.1997328317 | AB45: 0.1271068854 | AC45: 0.05448093906 | AE45: =X45*'Inputs - General'!J$6 -> 0.4176106706 | AF45: =Y45*'Inputs - General'!K$6 -> 0.3533501714 | AG45: =Z45*'Inputs - General'!L$6 -> 0.2857276434 | AH45: =AA45*'Inputs - General'!M$6 -> 0.2146178217 | AI45: =AB45*'Inputs - General'!N$6 -> 0.1398913436 | AJ45: =AC45*'Inputs - General'!O$6 -> 0.06141462304 | AL45: =K45*'Inputs - General'!J$6 -> 0.4176106706 | AM45: =L45*'Inputs - General'!K$6 -> 0.3533501714 | AN45: =M45*'Inputs - General'!L$6 -> 0.2857276434 | AO45: =N45*'Inputs - General'!M$6 -> 0.2146178217 | AP45: =O45*'Inputs - General'!N$6 -> 0.1398913436 | AQ45: =P45*'Inputs - General'!O$6 -> 0.06141462304 | AS45: =R45*'Inputs - General'!K$6 -> 0.07438703447 | AT45: =S45*'Inputs - General'!L$6 -> 0.07619082681 | AU45: =T45*'Inputs - General'!M$6 -> 0.07803835887 | AV45: =U45*'Inputs - General'!N$6 -> 0.07993069125 | AW45: =V45*'Inputs - General'!O$6 -> 0.08186891033 | AY45: =AE45*'Inputs - General'!K$4 -> 0.01012653532 | AZ45: =AF45*'Inputs - General'!L$4 -> 0.008568298759 | BA45: =AG45*'Inputs - General'!M$4 -> 0.006928537213 | BB45: =AH45*'Inputs - General'!N$4 -> 0.005204213169 | BC45: =AI45*'Inputs - General'!O$4 -> 0.00339218974 | BE45: 0.06426049915 | BF45: 0.06762252806 | BG45: 0.07110982165 | BH45: 0.07472647808 | BI45: 0.07847672059 | BK45: 0.02623852261 | BL45: 0.02220102865 | BM45: 0.01795229806 | BN45: 0.01348446044 | BO45: 0.008789387918 | BQ45: ='Input - Customer Inventory FY15'!F44 -> 3 | BW45: =IF($C45="Lamp",0,IF(SUM(BR45:$BV45)>=$BQ45,0,IF(BK45<=0,IF($G45=0,0,$BQ45),0))) -> 0 | BX45: =IF($C45="Lamp",0,IF(SUM($BR45:BW45)>=$BQ45,0,IF(BL45<=0,IF($G45=0,0,$BQ45),0))) -> 0 | BY45: =IF($C45="Lamp",0,IF(SUM($BR45:BX45)>=$BQ45,0,IF(BM45<=0,IF($G45=0,0,$BQ45),0))) -> 0 | BZ45: =IF($C45="Lamp",0,IF(SUM($BR45:BY45)>=$BQ45,0,IF(BN45<=0,IF($G45=0,0,$BQ45),0))) -> 0 | CA45: =IF($C45="Lamp",0,IF(SUM($BR45:BZ45)>=$BQ45,0,IF(BO45<=0,IF($G45=0,0,$BQ45),0))) -> 0 | CI45: =CC45/'Inputs - General'!K$6 -> 0 | CJ45: =CD45/'Inputs - General'!L$6 -> 0 | CK45: =CE45/'Inputs - General'!M$6 -> 0 | CL45: =CF45/'Inputs - General'!N$6 -> 0 | CM45: =CG45/'Inputs - General'!O$6 -> 0
A46: Customer 1 | B46: ='Input - Customer Inventory FY15'!C45 -> Connection - UGR2 | C46: ='Input - Customer Inventory FY15'!D45 -> Connection | D46: ='Input - Customer Inventory FY15'!E45 -> UGR2 | E46: ='Input - Customer Inventory FY15'!G45 -> 2 | G46: 0 | H46: 5.750158061 | I46: 0 | K46: 0 | L46: 0 | M46: 0 | N46: 0 | O46: 0 | P46: 0 | R46: =IFERROR(IF(K46-(($G46-SUM($CH46:CH46))/$H46)<0,K46,(($G46-SUM($CH46:CH46))/$H46)),0) -> 0 | S46: =IFERROR(IF(L46-(($G46-SUM($CH46:CI46))/$H46)<0,L46,(($G46-SUM($CH46:CI46))/$H46)),0) -> 0 | T46: =IFERROR(IF(M46-(($G46-SUM($CH46:CJ46))/$H46)<0,M46,(($G46-SUM($CH46:CJ46))/$H46)),0) -> 0 | U46: =IFERROR(IF(N46-(($G46-SUM($CH46:CK46))/$H46)<0,N46,(($G46-SUM($CH46:CK46))/$H46)),0) -> 0 | V46: =IFERROR(IF(O46-(($G46-SUM($CH46:CL46))/$H46)<0,O46,(($G46-SUM($CH46:CL46))/$H46)),0) -> 0 | X46: 0 | Y46: 0 | Z46: 0 | AA46: 0 | AB46: 0 | AC46: 0 | AE46: =X46*'Inputs - General'!J$6 -> 0 | AF46: =Y46*'Inputs - General'!K$6 -> 0 | AG46: =Z46*'Inputs - General'!L$6 -> 0 | AH46: =AA46*'Inputs - General'!M$6 -> 0 | AI46: =AB46*'Inputs - General'!N$6 -> 0 | AJ46: =AC46*'Inputs - General'!O$6 -> 0 | AL46: =K46*'Inputs - General'!J$6 -> 0 | AM46: =L46*'Inputs - General'!K$6 -> 0 | AN46: =M46*'Inputs - General'!L$6 -> 0 | AO46: =N46*'Inputs - General'!M$6 -> 0 | AP46: =O46*'Inputs - General'!N$6 -> 0 | AQ46: =P46*'Inputs - General'!O$6 -> 0 | AS46: =R46*'Inputs - General'!K$6 -> 0 | AT46: =S46*'Inputs - General'!L$6 -> 0 | AU46: =T46*'Inputs - General'!M$6 -> 0 | AV46: =U46*'Inputs - General'!N$6 -> 0 | AW46: =V46*'Inputs - General'!O$6 -> 0 | AY46: =AE46*'Inputs - General'!K$4 -> 0 | AZ46: =AF46*'Inputs - General'!L$4 -> 0 | BA46: =AG46*'Inputs - General'!M$4 -> 0 | BB46: =AH46*'Inputs - General'!N$4 -> 0 | BC46: =AI46*'Inputs - General'!O$4 -> 0 | BE46: 0 | BF46: 0 | BG46: 0 | BH46: 0 | BI46: 0 | BK46: 0 | BL46: 0 | BM46: 0 | BN46: 0 | BO46: 0 | BQ46: ='Input - Customer Inventory FY15'!F45 -> 17 | BW46: =IF($C46="Lamp",0,IF(SUM(BR46:$BV46)>=$BQ46,0,IF(BK46<=0,IF($G46=0,0,$BQ46),0))) -> 0 | BX46: =IF($C46="Lamp",0,IF(SUM($BR46:BW46)>=$BQ46,0,IF(BL46<=0,IF($G46=0,0,$BQ46),0))) -> 0 | BY46: =IF($C46="Lamp",0,IF(SUM($BR46:BX46)>=$BQ46,0,IF(BM46<=0,IF($G46=0,0,$BQ46),0))) -> 0 | BZ46: =IF($C46="Lamp",0,IF(SUM($BR46:BY46)>=$BQ46,0,IF(BN46<=0,IF($G46=0,0,$BQ46),0))) -> 0 | CA46: =IF($C46="Lamp",0,IF(SUM($BR46:BZ46)>=$BQ46,0,IF(BO46<=0,IF($G46=0,0,$BQ46),0))) -> 0 | CI46: =CC46/'Inputs - General'!K$6 -> 0 | CJ46: =CD46/'Inputs - General'!L$6 -> 0 | CK46: =CE46/'Inputs - General'!M$6 -> 0 | CL46: =CF46/'Inputs - General'!N$6 -> 0 | CM46: =CG46/'Inputs - General'!O$6 -> 0
A47: Customer 1 | B47: ='Input - Customer Inventory FY15'!C46 -> Lamp - INC1x100 | C47: ='Input - Customer Inventory FY15'!D46 -> Lamp | D47: ='Input - Customer Inventory FY15'!E46 -> INC1x100 | E47: ='Input - Customer Inventory FY15'!G46 -> 3 | G47: 0 | H47: 0 | I47: 0 | K47: 0 | L47: 0 | M47: 0 | N47: 0 | O47: 0 | P47: 0 | R47: =IFERROR(IF(K47-(($G47-SUM($CH47:CH47))/$H47)<0,K47,(($G47-SUM($CH47:CH47))/$H47)),0) -> 0 | S47: =IFERROR(IF(L47-(($G47-SUM($CH47:CI47))/$H47)<0,L47,(($G47-SUM($CH47:CI47))/$H47)),0) -> 0 | T47: =IFERROR(IF(M47-(($G47-SUM($CH47:CJ47))/$H47)<0,M47,(($G47-SUM($CH47:CJ47))/$H47)),0) -> 0 | U47: =IFERROR(IF(N47-(($G47-SUM($CH47:CK47))/$H47)<0,N47,(($G47-SUM($CH47:CK47))/$H47)),0) -> 0 | V47: =IFERROR(IF(O47-(($G47-SUM($CH47:CL47))/$H47)<0,O47,(($G47-SUM($CH47:CL47))/$H47)),0) -> 0 | X47: 0 | Y47: 0 | Z47: 0 | AA47: 0 | AB47: 0 | AC47: 0 | AE47: =X47*'Inputs - General'!J$6 -> 0 | AF47: =Y47*'Inputs - General'!K$6 -> 0 | AG47: =Z47*'Inputs - General'!L$6 -> 0 | AH47: =AA47*'Inputs - General'!M$6 -> 0 | AI47: =AB47*'Inputs - General'!N$6 -> 0 | AJ47: =AC47*'Inputs - General'!O$6 -> 0 | AL47: =K47*'Inputs - General'!J$6 -> 0 | AM47: =L47*'Inputs - General'!K$6 -> 0 | AN47: =M47*'Inputs - General'!L$6 -> 0 | AO47: =N47*'Inputs - General'!M$6 -> 0 | AP47: =O47*'Inputs - General'!N$6 -> 0 | AQ47: =P47*'Inputs - General'!O$6 -> 0 | AS47: =R47*'Inputs - General'!K$6 -> 0 | AT47: =S47*'Inputs - General'!L$6 -> 0 | AU47: =T47*'Inputs - General'!M$6 -> 0 | AV47: =U47*'Inputs - General'!N$6 -> 0 | AW47: =V47*'Inputs - General'!O$6 -> 0 | AY47: =AE47*'Inputs - General'!K$4 -> 0 | AZ47: =AF47*'Inputs - General'!L$4 -> 0 | BA47: =AG47*'Inputs - General'!M$4 -> 0 | BB47: =AH47*'Inputs - General'!N$4 -> 0 | BC47: =AI47*'Inputs - General'!O$4 -> 0 | BE47: 0 | BF47: 0 | BG47: 0 | BH47: 0 | BI47: 0 | BK47: 0 | BL47: 0 | BM47: 0 | BN47: 0 | BO47: 0 | BQ47: ='Input - Customer Inventory FY15'!F46 -> 3 | BW47: =IF($C47="Lamp",0,IF(SUM(BR47:$BV47)>=$BQ47,0,IF(BK47<=0,IF($G47=0,0,$BQ47),0))) -> 0 | BX47: =IF($C47="Lamp",0,IF(SUM($BR47:BW47)>=$BQ47,0,IF(BL47<=0,IF($G47=0,0,$BQ47),0))) -> 0 | BY47: =IF($C47="Lamp",0,IF(SUM($BR47:BX47)>=$BQ47,0,IF(BM47<=0,IF($G47=0,0,$BQ47),0))) -> 0 | BZ47: =IF($C47="Lamp",0,IF(SUM($BR47:BY47)>=$BQ47,0,IF(BN47<=0,IF($G47=0,0,$BQ47),0))) -> 0 | CA47: =IF($C47="Lamp",0,IF(SUM($BR47:BZ47)>=$BQ47,0,IF(BO47<=0,IF($G47=0,0,$BQ47),0))) -> 0 | CI47: =CC47/'Inputs - General'!K$6 -> 0 | CJ47: =CD47/'Inputs - General'!L$6 -> 0 | CK47: =CE47/'Inputs - General'!M$6 -> 0 | CL47: =CF47/'Inputs - General'!N$6 -> 0 | CM47: =CG47/'Inputs - General'!O$6 -> 0
A48: Customer 1 | B48: ='Input - Customer Inventory FY15'!C47 -> Lamp - INC1x40 | C48: ='Input - Customer Inventory FY15'!D47 -> Lamp | D48: ='Input - Customer Inventory FY15'!E47 -> INC1x40 | E48: ='Input - Customer Inventory FY15'!G47 -> 1 | G48: 0 | H48: 0 | I48: 0 | K48: 0 | L48: 0 | M48: 0 | N48: 0 | O48: 0 | P48: 0 | R48: =IFERROR(IF(K48-(($G48-SUM($CH48:CH48))/$H48)<0,K48,(($G48-SUM($CH48:CH48))/$H48)),0) -> 0 | S48: =IFERROR(IF(L48-(($G48-SUM($CH48:CI48))/$H48)<0,L48,(($G48-SUM($CH48:CI48))/$H48)),0) -> 0 | T48: =IFERROR(IF(M48-(($G48-SUM($CH48:CJ48))/$H48)<0,M48,(($G48-SUM($CH48:CJ48))/$H48)),0) -> 0 | U48: =IFERROR(IF(N48-(($G48-SUM($CH48:CK48))/$H48)<0,N48,(($G48-SUM($CH48:CK48))/$H48)),0) -> 0 | V48: =IFERROR(IF(O48-(($G48-SUM($CH48:CL48))/$H48)<0,O48,(($G48-SUM($CH48:CL48))/$H48)),0) -> 0 | X48: 0 | Y48: 0 | Z48: 0 | AA48: 0 | AB48: 0 | AC48: 0 | AE48: =X48*'Inputs - General'!J$6 -> 0 | AF48: =Y48*'Inputs - General'!K$6 -> 0 | AG48: =Z48*'Inputs - General'!L$6 -> 0 | AH48: =AA48*'Inputs - General'!M$6 -> 0 | AI48: =AB48*'Inputs - General'!N$6 -> 0 | AJ48: =AC48*'Inputs - General'!O$6 -> 0 | AL48: =K48*'Inputs - General'!J$6 -> 0 | AM48: =L48*'Inputs - General'!K$6 -> 0 | AN48: =M48*'Inputs - General'!L$6 -> 0 | AO48: =N48*'Inputs - General'!M$6 -> 0 | AP48: =O48*'Inputs - General'!N$6 -> 0 | AQ48: =P48*'Inputs - General'!O$6 -> 0 | AS48: =R48*'Inputs - General'!K$6 -> 0 | AT48: =S48*'Inputs - General'!L$6 -> 0 | AU48: =T48*'Inputs - General'!M$6 -> 0 | AV48: =U48*'Inputs - General'!N$6 -> 0 | AW48: =V48*'Inputs - General'!O$6 -> 0 | AY48: =AE48*'Inputs - General'!K$4 -> 0 | AZ48: =AF48*'Inputs - General'!L$4 -> 0 | BA48: =AG48*'Inputs - General'!M$4 -> 0 | BB48: =AH48*'Inputs - General'!N$4 -> 0 | BC48: =AI48*'Inputs - General'!O$4 -> 0 | BE48: 0 | BF48: 0 | BG48: 0 | BH48: 0 | BI48: 0 | BK48: 0 | BL48: 0 | BM48: 0 | BN48: 0 | BO48: 0 | BQ48: ='Input - Customer Inventory FY15'!F47 -> 0 | BW48: =IF($C48="Lamp",0,IF(SUM(BR48:$BV48)>=$BQ48,0,IF(BK48<=0,IF($G48=0,0,$BQ48),0))) -> 0 | BX48: =IF($C48="Lamp",0,IF(SUM($BR48:BW48)>=$BQ48,0,IF(BL48<=0,IF($G48=0,0,$BQ48),0))) -> 0 | BY48: =IF($C48="Lamp",0,IF(SUM($BR48:BX48)>=$BQ48,0,IF(BM48<=0,IF($G48=0,0,$BQ48),0))) -> 0 | BZ48: =IF($C48="Lamp",0,IF(SUM($BR48:BY48)>=$BQ48,0,IF(BN48<=0,IF($G48=0,0,$BQ48),0))) -> 0 | CA48: =IF($C48="Lamp",0,IF(SUM($BR48:BZ48)>=$BQ48,0,IF(BO48<=0,IF($G48=0,0,$BQ48),0))) -> 0 | CI48: =CC48/'Inputs - General'!K$6 -> 0 | CJ48: =CD48/'Inputs - General'!L$6 -> 0 | CK48: =CE48/'Inputs - General'!M$6 -> 0 | CL48: =CF48/'Inputs - General'!N$6 -> 0 | CM48: =CG48/'Inputs - General'!O$6 -> 0
A49: Customer 1 | B49: ='Input - Customer Inventory FY15'!C48 -> Lamp - INC1x60 | C49: ='Input - Customer Inventory FY15'!D48 -> Lamp | D49: ='Input - Customer Inventory FY15'!E48 -> INC1x60 | E49: ='Input - Customer Inventory FY15'!G48 -> 3 | G49: 0 | H49: 0 | I49: 0 | K49: 0 | L49: 0 | M49: 0 | N49: 0 | O49: 0 | P49: 0 | R49: =IFERROR(IF(K49-(($G49-SUM($CH49:CH49))/$H49)<0,K49,(($G49-SUM($CH49:CH49))/$H49)),0) -> 0 | S49: =IFERROR(IF(L49-(($G49-SUM($CH49:CI49))/$H49)<0,L49,(($G49-SUM($CH49:CI49))/$H49)),0) -> 0 | T49: =IFERROR(IF(M49-(($G49-SUM($CH49:CJ49))/$H49)<0,M49,(($G49-SUM($CH49:CJ49))/$H49)),0) -> 0 | U49: =IFERROR(IF(N49-(($G49-SUM($CH49:CK49))/$H49)<0,N49,(($G49-SUM($CH49:CK49))/$H49)),0) -> 0 | V49: =IFERROR(IF(O49-(($G49-SUM($CH49:CL49))/$H49)<0,O49,(($G49-SUM($CH49:CL49))/$H49)),0) -> 0 | X49: 0 | Y49: 0 | Z49: 0 | AA49: 0 | AB49: 0 | AC49: 0 | AE49: =X49*'Inputs - General'!J$6 -> 0 | AF49: =Y49*'Inputs - General'!K$6 -> 0 | AG49: =Z49*'Inputs - General'!L$6 -> 0 | AH49: =AA49*'Inputs - General'!M$6 -> 0 | AI49: =AB49*'Inputs - General'!N$6 -> 0 | AJ49: =AC49*'Inputs - General'!O$6 -> 0 | AL49: =K49*'Inputs - General'!J$6 -> 0 | AM49: =L49*'Inputs - General'!K$6 -> 0 | AN49: =M49*'Inputs - General'!L$6 -> 0 | AO49: =N49*'Inputs - General'!M$6 -> 0 | AP49: =O49*'Inputs - General'!N$6 -> 0 | AQ49: =P49*'Inputs - General'!O$6 -> 0 | AS49: =R49*'Inputs - General'!K$6 -> 0 | AT49: =S49*'Inputs - General'!L$6 -> 0 | AU49: =T49*'Inputs - General'!M$6 -> 0 | AV49: =U49*'Inputs - General'!N$6 -> 0 | AW49: =V49*'Inputs - General'!O$6 -> 0 | AY49: =AE49*'Inputs - General'!K$4 -> 0 | AZ49: =AF49*'Inputs - General'!L$4 -> 0 | BA49: =AG49*'Inputs - General'!M$4 -> 0 | BB49: =AH49*'Inputs - General'!N$4 -> 0 | BC49: =AI49*'Inputs - General'!O$4 -> 0 | BE49: 0 | BF49: 0 | BG49: 0 | BH49: 0 | BI49: 0 | BK49: 0 | BL49: 0 | BM49: 0 | BN49: 0 | BO49: 0 | BQ49: ='Input - Customer Inventory FY15'!F48 -> 2 | BW49: =IF($C49="Lamp",0,IF(SUM(BR49:$BV49)>=$BQ49,0,IF(BK49<=0,IF($G49=0,0,$BQ49),0))) -> 0 | BX49: =IF($C49="Lamp",0,IF(SUM($BR49:BW49)>=$BQ49,0,IF(BL49<=0,IF($G49=0,0,$BQ49),0))) -> 0 | BY49: =IF($C49="Lamp",0,IF(SUM($BR49:BX49)>=$BQ49,0,IF(BM49<=0,IF($G49=0,0,$BQ49),0))) -> 0 | BZ49: =IF($C49="Lamp",0,IF(SUM($BR49:BY49)>=$BQ49,0,IF(BN49<=0,IF($G49=0,0,$BQ49),0))) -> 0 | CA49: =IF($C49="Lamp",0,IF(SUM($BR49:BZ49)>=$BQ49,0,IF(BO49<=0,IF($G49=0,0,$BQ49),0))) -> 0 | CI49: =CC49/'Inputs - General'!K$6 -> 0 | CJ49: =CD49/'Inputs - General'!L$6 -> 0 | CK49: =CE49/'Inputs - General'!M$6 -> 0 | CL49: =CF49/'Inputs - General'!N$6 -> 0 | CM49: =CG49/'Inputs - General'!O$6 -> 0
A50: Customer 1 | B50: ='Input - Customer Inventory FY15'!C49 -> Lamp - MBF1x1000 | C50: ='Input - Customer Inventory FY15'!D49 -> Lamp | D50: ='Input - Customer Inventory FY15'!E49 -> MBF1x1000 | E50: ='Input - Customer Inventory FY15'!G49 -> 1 | G50: 0 | H50: 0 | I50: 0 | K50: 0 | L50: 0 | M50: 0 | N50: 0 | O50: 0 | P50: 0 | R50: =IFERROR(IF(K50-(($G50-SUM($CH50:CH50))/$H50)<0,K50,(($G50-SUM($CH50:CH50))/$H50)),0) -> 0 | S50: =IFERROR(IF(L50-(($G50-SUM($CH50:CI50))/$H50)<0,L50,(($G50-SUM($CH50:CI50))/$H50)),0) -> 0 | T50: =IFERROR(IF(M50-(($G50-SUM($CH50:CJ50))/$H50)<0,M50,(($G50-SUM($CH50:CJ50))/$H50)),0) -> 0 | U50: =IFERROR(IF(N50-(($G50-SUM($CH50:CK50))/$H50)<0,N50,(($G50-SUM($CH50:CK50))/$H50)),0) -> 0 | V50: =IFERROR(IF(O50-(($G50-SUM($CH50:CL50))/$H50)<0,O50,(($G50-SUM($CH50:CL50))/$H50)),0) -> 0 | X50: 0 | Y50: 0 | Z50: 0 | AA50: 0 | AB50: 0 | AC50: 0 | AE50: =X50*'Inputs - General'!J$6 -> 0 | AF50: =Y50*'Inputs - General'!K$6 -> 0 | AG50: =Z50*'Inputs - General'!L$6 -> 0 | AH50: =AA50*'Inputs - General'!M$6 -> 0 | AI50: =AB50*'Inputs - General'!N$6 -> 0 | AJ50: =AC50*'Inputs - General'!O$6 -> 0 | AL50: =K50*'Inputs - General'!J$6 -> 0 | AM50: =L50*'Inputs - General'!K$6 -> 0 | AN50: =M50*'Inputs - General'!L$6 -> 0 | AO50: =N50*'Inputs - General'!M$6 -> 0 | AP50: =O50*'Inputs - General'!N$6 -> 0 | AQ50: =P50*'Inputs - General'!O$6 -> 0 | AS50: =R50*'Inputs - General'!K$6 -> 0 | AT50: =S50*'Inputs - General'!L$6 -> 0 | AU50: =T50*'Inputs - General'!M$6 -> 0 | AV50: =U50*'Inputs - General'!N$6 -> 0 | AW50: =V50*'Inputs - General'!O$6 -> 0 | AY50: =AE50*'Inputs - General'!K$4 -> 0 | AZ50: =AF50*'Inputs - General'!L$4 -> 0 | BA50: =AG50*'Inputs - General'!M$4 -> 0 | BB50: =AH50*'Inputs - General'!N$4 -> 0 | BC50: =AI50*'Inputs - General'!O$4 -> 0 | BE50: 0 | BF50: 0 | BG50: 0 | BH50: 0 | BI50: 0 | BK50: 0 | BL50: 0 | BM50: 0 | BN50: 0 | BO50: 0 | BQ50: ='Input - Customer Inventory FY15'!F49 -> 0 | BW50: =IF($C50="Lamp",0,IF(SUM(BR50:$BV50)>=$BQ50,0,IF(BK50<=0,IF($G50=0,0,$BQ50),0))) -> 0 | BX50: =IF($C50="Lamp",0,IF(SUM($BR50:BW50)>=$BQ50,0,IF(BL50<=0,IF($G50=0,0,$BQ50),0))) -> 0 | BY50: =IF($C50="Lamp",0,IF(SUM($BR50:BX50)>=$BQ50,0,IF(BM50<=0,IF($G50=0,0,$BQ50),0))) -> 0 | BZ50: =IF($C50="Lamp",0,IF(SUM($BR50:BY50)>=$BQ50,0,IF(BN50<=0,IF($G50=0,0,$BQ50),0))) -> 0 | CA50: =IF($C50="Lamp",0,IF(SUM($BR50:BZ50)>=$BQ50,0,IF(BO50<=0,IF($G50=0,0,$BQ50),0))) -> 0 | CI50: =CC50/'Inputs - General'!K$6 -> 0 | CJ50: =CD50/'Inputs - General'!L$6 -> 0 | CK50: =CE50/'Inputs - General'!M$6 -> 0 | CL50: =CF50/'Inputs - General'!N$6 -> 0 | CM50: =CG50/'Inputs - General'!O$6 -> 0
A51: Customer 1 | B51: ='Input - Customer Inventory FY15'!C50 -> Lamp - MBF1x125 | C51: ='Input - Customer Inventory FY15'!D50 -> Lamp | D51: ='Input - Customer Inventory FY15'!E50 -> MBF1x125 | E51: ='Input - Customer Inventory FY15'!G50 -> 1 | G51: 0 | H51: 0 | I51: 0 | K51: 0 | L51: 0 | M51: 0 | N51: 0 | O51: 0 | P51: 0 | R51: =IFERROR(IF(K51-(($G51-SUM($CH51:CH51))/$H51)<0,K51,(($G51-SUM($CH51:CH51))/$H51)),0) -> 0 | S51: =IFERROR(IF(L51-(($G51-SUM($CH51:CI51))/$H51)<0,L51,(($G51-SUM($CH51:CI51))/$H51)),0) -> 0 | T51: =IFERROR(IF(M51-(($G51-SUM($CH51:CJ51))/$H51)<0,M51,(($G51-SUM($CH51:CJ51))/$H51)),0) -> 0 | U51: =IFERROR(IF(N51-(($G51-SUM($CH51:CK51))/$H51)<0,N51,(($G51-SUM($CH51:CK51))/$H51)),0) -> 0 | V51: =IFERROR(IF(O51-(($G51-SUM($CH51:CL51))/$H51)<0,O51,(($G51-SUM($CH51:CL51))/$H51)),0) -> 0 | X51: 0 | Y51: 0 | Z51: 0 | AA51: 0 | AB51: 0 | AC51: 0 | AE51: =X51*'Inputs - General'!J$6 -> 0 | AF51: =Y51*'Inputs - General'!K$6 -> 0 | AG51: =Z51*'Inputs - General'!L$6 -> 0 | AH51: =AA51*'Inputs - General'!M$6 -> 0 | AI51: =AB51*'Inputs - General'!N$6 -> 0 | AJ51: =AC51*'Inputs - General'!O$6 -> 0 | AL51: =K51*'Inputs - General'!J$6 -> 0 | AM51: =L51*'Inputs - General'!K$6 -> 0 | AN51: =M51*'Inputs - General'!L$6 -> 0 | AO51: =N51*'Inputs - General'!M$6 -> 0 | AP51: =O51*'Inputs - General'!N$6 -> 0 | AQ51: =P51*'Inputs - General'!O$6 -> 0 | AS51: =R51*'Inputs - General'!K$6 -> 0 | AT51: =S51*'Inputs - General'!L$6 -> 0 | AU51: =T51*'Inputs - General'!M$6 -> 0 | AV51: =U51*'Inputs - General'!N$6 -> 0 | AW51: =V51*'Inputs - General'!O$6 -> 0 | AY51: =AE51*'Inputs - General'!K$4 -> 0 | AZ51: =AF51*'Inputs - General'!L$4 -> 0 | BA51: =AG51*'Inputs - General'!M$4 -> 0 | BB51: =AH51*'Inputs - General'!N$4 -> 0 | BC51: =AI51*'Inputs - General'!O$4 -> 0 | BE51: 0 | BF51: 0 | BG51: 0 | BH51: 0 | BI51: 0 | BK51: 0 | BL51: 0 | BM51: 0 | BN51: 0 | BO51: 0 | BQ51: ='Input - Customer Inventory FY15'!F50 -> 2 | BW51: =IF($C51="Lamp",0,IF(SUM(BR51:$BV51)>=$BQ51,0,IF(BK51<=0,IF($G51=0,0,$BQ51),0))) -> 0 | BX51: =IF($C51="Lamp",0,IF(SUM($BR51:BW51)>=$BQ51,0,IF(BL51<=0,IF($G51=0,0,$BQ51),0))) -> 0 | BY51: =IF($C51="Lamp",0,IF(SUM($BR51:BX51)>=$BQ51,0,IF(BM51<=0,IF($G51=0,0,$BQ51),0))) -> 0 | BZ51: =IF($C51="Lamp",0,IF(SUM($BR51:BY51)>=$BQ51,0,IF(BN51<=0,IF($G51=0,0,$BQ51),0))) -> 0 | CA51: =IF($C51="Lamp",0,IF(SUM($BR51:BZ51)>=$BQ51,0,IF(BO51<=0,IF($G51=0,0,$BQ51),0))) -> 0 | CI51: =CC51/'Inputs - General'!K$6 -> 0 | CJ51: =CD51/'Inputs - General'!L$6 -> 0 | CK51: =CE51/'Inputs - General'!M$6 -> 0 | CL51: =CF51/'Inputs - General'!N$6 -> 0 | CM51: =CG51/'Inputs - General'!O$6 -> 0
A52: Customer 1 | B52: ='Input - Customer Inventory FY15'!C51 -> Lamp - MBF1x125 | C52: ='Input - Customer Inventory FY15'!D51 -> Lamp | D52: ='Input - Customer Inventory FY15'!E51 -> MBF1x125 | E52: ='Input - Customer Inventory FY15'!G51 -> 2 | G52: 0 | H52: 0 | I52: 0 | K52: 0 | L52: 0 | M52: 0 | N52: 0 | O52: 0 | P52: 0 | R52: =IFERROR(IF(K52-(($G52-SUM($CH52:CH52))/$H52)<0,K52,(($G52-SUM($CH52:CH52))/$H52)),0) -> 0 | S52: =IFERROR(IF(L52-(($G52-SUM($CH52:CI52))/$H52)<0,L52,(($G52-SUM($CH52:CI52))/$H52)),0) -> 0 | T52: =IFERROR(IF(M52-(($G52-SUM($CH52:CJ52))/$H52)<0,M52,(($G52-SUM($CH52:CJ52))/$H52)),0) -> 0 | U52: =IFERROR(IF(N52-(($G52-SUM($CH52:CK52))/$H52)<0,N52,(($G52-SUM($CH52:CK52))/$H52)),0) -> 0 | V52: =IFERROR(IF(O52-(($G52-SUM($CH52:CL52))/$H52)<0,O52,(($G52-SUM($CH52:CL52))/$H52)),0) -> 0 | X52: 0 | Y52: 0 | Z52: 0 | AA52: 0 | AB52: 0 | AC52: 0 | AE52: =X52*'Inputs - General'!J$6 -> 0 | AF52: =Y52*'Inputs - General'!K$6 -> 0 | AG52: =Z52*'Inputs - General'!L$6 -> 0 | AH52: =AA52*'Inputs - General'!M$6 -> 0 | AI52: =AB52*'Inputs - General'!N$6 -> 0 | AJ52: =AC52*'Inputs - General'!O$6 -> 0 | AL52: =K52*'Inputs - General'!J$6 -> 0 | AM52: =L52*'Inputs - General'!K$6 -> 0 | AN52: =M52*'Inputs - General'!L$6 -> 0 | AO52: =N52*'Inputs - General'!M$6 -> 0 | AP52: =O52*'Inputs - General'!N$6 -> 0 | AQ52: =P52*'Inputs - General'!O$6 -> 0 | AS52: =R52*'Inputs - General'!K$6 -> 0 | AT52: =S52*'Inputs - General'!L$6 -> 0 | AU52: =T52*'Inputs - General'!M$6 -> 0 | AV52: =U52*'Inputs - General'!N$6 -> 0 | AW52: =V52*'Inputs - General'!O$6 -> 0 | AY52: =AE52*'Inputs - General'!K$4 -> 0 | AZ52: =AF52*'Inputs - General'!L$4 -> 0 | BA52: =AG52*'Inputs - General'!M$4 -> 0 | BB52: =AH52*'Inputs - General'!N$4 -> 0 | BC52: =AI52*'Inputs - General'!O$4 -> 0 | BE52: 0 | BF52: 0 | BG52: 0 | BH52: 0 | BI52: 0 | BK52: 0 | BL52: 0 | BM52: 0 | BN52: 0 | BO52: 0 | BQ52: ='Input - Customer Inventory FY15'!F51 -> 0 | BW52: =IF($C52="Lamp",0,IF(SUM(BR52:$BV52)>=$BQ52,0,IF(BK52<=0,IF($G52=0,0,$BQ52),0))) -> 0 | BX52: =IF($C52="Lamp",0,IF(SUM($BR52:BW52)>=$BQ52,0,IF(BL52<=0,IF($G52=0,0,$BQ52),0))) -> 0 | BY52: =IF($C52="Lamp",0,IF(SUM($BR52:BX52)>=$BQ52,0,IF(BM52<=0,IF($G52=0,0,$BQ52),0))) -> 0 | BZ52: =IF($C52="Lamp",0,IF(SUM($BR52:BY52)>=$BQ52,0,IF(BN52<=0,IF($G52=0,0,$BQ52),0))) -> 0 | CA52: =IF($C52="Lamp",0,IF(SUM($BR52:BZ52)>=$BQ52,0,IF(BO52<=0,IF($G52=0,0,$BQ52),0))) -> 0 | CI52: =CC52/'Inputs - General'!K$6 -> 0 | CJ52: =CD52/'Inputs - General'!L$6 -> 0 | CK52: =CE52/'Inputs - General'!M$6 -> 0 | CL52: =CF52/'Inputs - General'!N$6 -> 0 | CM52: =CG52/'Inputs - General'!O$6 -> 0
A53: Customer 1 | B53: ='Input - Customer Inventory FY15'!C52 -> Lamp - MBF1x250 | C53: ='Input - Customer Inventory FY15'!D52 -> Lamp | D53: ='Input - Customer Inventory FY15'!E52 -> MBF1x250 | E53: ='Input - Customer Inventory FY15'!G52 -> 1 | G53: 0 | H53: 0 | I53: 0 | K53: 0 | L53: 0 | M53: 0 | N53: 0 | O53: 0 | P53: 0 | R53: =IFERROR(IF(K53-(($G53-SUM($CH53:CH53))/$H53)<0,K53,(($G53-SUM($CH53:CH53))/$H53)),0) -> 0 | S53: =IFERROR(IF(L53-(($G53-SUM($CH53:CI53))/$H53)<0,L53,(($G53-SUM($CH53:CI53))/$H53)),0) -> 0 | T53: =IFERROR(IF(M53-(($G53-SUM($CH53:CJ53))/$H53)<0,M53,(($G53-SUM($CH53:CJ53))/$H53)),0) -> 0 | U53: =IFERROR(IF(N53-(($G53-SUM($CH53:CK53))/$H53)<0,N53,(($G53-SUM($CH53:CK53))/$H53)),0) -> 0 | V53: =IFERROR(IF(O53-(($G53-SUM($CH53:CL53))/$H53)<0,O53,(($G53-SUM($CH53:CL53))/$H53)),0) -> 0 | X53: 0 | Y53: 0 | Z53: 0 | AA53: 0 | AB53: 0 | AC53: 0 | AE53: =X53*'Inputs - General'!J$6 -> 0 | AF53: =Y53*'Inputs - General'!K$6 -> 0 | AG53: =Z53*'Inputs - General'!L$6 -> 0 | AH53: =AA53*'Inputs - General'!M$6 -> 0 | AI53: =AB53*'Inputs - General'!N$6 -> 0 | AJ53: =AC53*'Inputs - General'!O$6 -> 0 | AL53: =K53*'Inputs - General'!J$6 -> 0 | AM53: =L53*'Inputs - General'!K$6 -> 0 | AN53: =M53*'Inputs - General'!L$6 -> 0 | AO53: =N53*'Inputs - General'!M$6 -> 0 | AP53: =O53*'Inputs - General'!N$6 -> 0 | AQ53: =P53*'Inputs - General'!O$6 -> 0 | AS53: =R53*'Inputs - General'!K$6 -> 0 | AT53: =S53*'Inputs - General'!L$6 -> 0 | AU53: =T53*'Inputs - General'!M$6 -> 0 | AV53: =U53*'Inputs - General'!N$6 -> 0 | AW53: =V53*'Inputs - General'!O$6 -> 0 | AY53: =AE53*'Inputs - General'!K$4 -> 0 | AZ53: =AF53*'Inputs - General'!L$4 -> 0 | BA53: =AG53*'Inputs - General'!M$4 -> 0 | BB53: =AH53*'Inputs - General'!N$4 -> 0 | BC53: =AI53*'Inputs - General'!O$4 -> 0 | BE53: 0 | BF53: 0 | BG53: 0 | BH53: 0 | BI53: 0 | BK53: 0 | BL53: 0 | BM53: 0 | BN53: 0 | BO53: 0 | BQ53: ='Input - Customer Inventory FY15'!F52 -> 63.5 | BW53: =IF($C53="Lamp",0,IF(SUM(BR53:$BV53)>=$BQ53,0,IF(BK53<=0,IF($G53=0,0,$BQ53),0))) -> 0 | BX53: =IF($C53="Lamp",0,IF(SUM($BR53:BW53)>=$BQ53,0,IF(BL53<=0,IF($G53=0,0,$BQ53),0))) -> 0 | BY53: =IF($C53="Lamp",0,IF(SUM($BR53:BX53)>=$BQ53,0,IF(BM53<=0,IF($G53=0,0,$BQ53),0))) -> 0 | BZ53: =IF($C53="Lamp",0,IF(SUM($BR53:BY53)>=$BQ53,0,IF(BN53<=0,IF($G53=0,0,$BQ53),0))) -> 0 | CA53: =IF($C53="Lamp",0,IF(SUM($BR53:BZ53)>=$BQ53,0,IF(BO53<=0,IF($G53=0,0,$BQ53),0))) -> 0 | CI53: =CC53/'Inputs - General'!K$6 -> 0 | CJ53: =CD53/'Inputs - General'!L$6 -> 0 | CK53: =CE53/'Inputs - General'!M$6 -> 0 | CL53: =CF53/'Inputs - General'!N$6 -> 0 | CM53: =CG53/'Inputs - General'!O$6 -> 0
A54: Customer 1 | B54: ='Input - Customer Inventory FY15'!C53 -> Lamp - MBF1x400 | C54: ='Input - Customer Inventory FY15'!D53 -> Lamp | D54: ='Input - Customer Inventory FY15'!E53 -> MBF1x400 | E54: ='Input - Customer Inventory FY15'!G53 -> 1 | G54: 0 | H54: 0 | I54: 0 | K54: 0 | L54: 0 | M54: 0 | N54: 0 | O54: 0 | P54: 0 | R54: =IFERROR(IF(K54-(($G54-SUM($CH54:CH54))/$H54)<0,K54,(($G54-SUM($CH54:CH54))/$H54)),0) -> 0 | S54: =IFERROR(IF(L54-(($G54-SUM($CH54:CI54))/$H54)<0,L54,(($G54-SUM($CH54:CI54))/$H54)),0) -> 0 | T54: =IFERROR(IF(M54-(($G54-SUM($CH54:CJ54))/$H54)<0,M54,(($G54-SUM($CH54:CJ54))/$H54)),0) -> 0 | U54: =IFERROR(IF(N54-(($G54-SUM($CH54:CK54))/$H54)<0,N54,(($G54-SUM($CH54:CK54))/$H54)),0) -> 0 | V54: =IFERROR(IF(O54-(($G54-SUM($CH54:CL54))/$H54)<0,O54,(($G54-SUM($CH54:CL54))/$H54)),0) -> 0 | X54: 0 | Y54: 0 | Z54: 0 | AA54: 0 | AB54: 0 | AC54: 0 | AE54: =X54*'Inputs - General'!J$6 -> 0 | AF54: =Y54*'Inputs - General'!K$6 -> 0 | AG54: =Z54*'Inputs - General'!L$6 -> 0 | AH54: =AA54*'Inputs - General'!M$6 -> 0 | AI54: =AB54*'Inputs - General'!N$6 -> 0 | AJ54: =AC54*'Inputs - General'!O$6 -> 0 | AL54: =K54*'Inputs - General'!J$6 -> 0 | AM54: =L54*'Inputs - General'!K$6 -> 0 | AN54: =M54*'Inputs - General'!L$6 -> 0 | AO54: =N54*'Inputs - General'!M$6 -> 0 | AP54: =O54*'Inputs - General'!N$6 -> 0 | AQ54: =P54*'Inputs - General'!O$6 -> 0 | AS54: =R54*'Inputs - General'!K$6 -> 0 | AT54: =S54*'Inputs - General'!L$6 -> 0 | AU54: =T54*'Inputs - General'!M$6 -> 0 | AV54: =U54*'Inputs - General'!N$6 -> 0 | AW54: =V54*'Inputs - General'!O$6 -> 0 | AY54: =AE54*'Inputs - General'!K$4 -> 0 | AZ54: =AF54*'Inputs - General'!L$4 -> 0 | BA54: =AG54*'Inputs - General'!M$4 -> 0 | BB54: =AH54*'Inputs - General'!N$4 -> 0 | BC54: =AI54*'Inputs - General'!O$4 -> 0 | BE54: 0 | BF54: 0 | BG54: 0 | BH54: 0 | BI54: 0 | BK54: 0 | BL54: 0 | BM54: 0 | BN54: 0 | BO54: 0 | BQ54: ='Input - Customer Inventory FY15'!F53 -> 12 | BW54: =IF($C54="Lamp",0,IF(SUM(BR54:$BV54)>=$BQ54,0,IF(BK54<=0,IF($G54=0,0,$BQ54),0))) -> 0 | BX54: =IF($C54="Lamp",0,IF(SUM($BR54:BW54)>=$BQ54,0,IF(BL54<=0,IF($G54=0,0,$BQ54),0))) -> 0 | BY54: =IF($C54="Lamp",0,IF(SUM($BR54:BX54)>=$BQ54,0,IF(BM54<=0,IF($G54=0,0,$BQ54),0))) -> 0 | BZ54: =IF($C54="Lamp",0,IF(SUM($BR54:BY54)>=$BQ54,0,IF(BN54<=0,IF($G54=0,0,$BQ54),0))) -> 0 | CA54: =IF($C54="Lamp",0,IF(SUM($BR54:BZ54)>=$BQ54,0,IF(BO54<=0,IF($G54=0,0,$BQ54),0))) -> 0 | CI54: =CC54/'Inputs - General'!K$6 -> 0 | CJ54: =CD54/'Inputs - General'!L$6 -> 0 | CK54: =CE54/'Inputs - General'!M$6 -> 0 | CL54: =CF54/'Inputs - General'!N$6 -> 0 | CM54: =CG54/'Inputs - General'!O$6 -> 0
A55: Customer 1 | B55: ='Input - Customer Inventory FY15'!C54 -> Lamp - MBF1x400 | C55: ='Input - Customer Inventory FY15'!D54 -> Lamp | D55: ='Input - Customer Inventory FY15'!E54 -> MBF1x400 | E55: ='Input - Customer Inventory FY15'!G54 -> 2 | G55: 0 | H55: 0 | I55: 0 | K55: 0 | L55: 0 | M55: 0 | N55: 0 | O55: 0 | P55: 0 | R55: =IFERROR(IF(K55-(($G55-SUM($CH55:CH55))/$H55)<0,K55,(($G55-SUM($CH55:CH55))/$H55)),0) -> 0 | S55: =IFERROR(IF(L55-(($G55-SUM($CH55:CI55))/$H55)<0,L55,(($G55-SUM($CH55:CI55))/$H55)),0) -> 0 | T55: =IFERROR(IF(M55-(($G55-SUM($CH55:CJ55))/$H55)<0,M55,(($G55-SUM($CH55:CJ55))/$H55)),0) -> 0 | U55: =IFERROR(IF(N55-(($G55-SUM($CH55:CK55))/$H55)<0,N55,(($G55-SUM($CH55:CK55))/$H55)),0) -> 0 | V55: =IFERROR(IF(O55-(($G55-SUM($CH55:CL55))/$H55)<0,O55,(($G55-SUM($CH55:CL55))/$H55)),0) -> 0 | X55: 0 | Y55: 0 | Z55: 0 | AA55: 0 | AB55: 0 | AC55: 0 | AE55: =X55*'Inputs - General'!J$6 -> 0 | AF55: =Y55*'Inputs - General'!K$6 -> 0 | AG55: =Z55*'Inputs - General'!L$6 -> 0 | AH55: =AA55*'Inputs - General'!M$6 -> 0 | AI55: =AB55*'Inputs - General'!N$6 -> 0 | AJ55: =AC55*'Inputs - General'!O$6 -> 0 | AL55: =K55*'Inputs - General'!J$6 -> 0 | AM55: =L55*'Inputs - General'!K$6 -> 0 | AN55: =M55*'Inputs - General'!L$6 -> 0 | AO55: =N55*'Inputs - General'!M$6 -> 0 | AP55: =O55*'Inputs - General'!N$6 -> 0 | AQ55: =P55*'Inputs - General'!O$6 -> 0 | AS55: =R55*'Inputs - General'!K$6 -> 0 | AT55: =S55*'Inputs - General'!L$6 -> 0 | AU55: =T55*'Inputs - General'!M$6 -> 0 | AV55: =U55*'Inputs - General'!N$6 -> 0 | AW55: =V55*'Inputs - General'!O$6 -> 0 | AY55: =AE55*'Inputs - General'!K$4 -> 0 | AZ55: =AF55*'Inputs - General'!L$4 -> 0 | BA55: =AG55*'Inputs - General'!M$4 -> 0 | BB55: =AH55*'Inputs - General'!N$4 -> 0 | BC55: =AI55*'Inputs - General'!O$4 -> 0 | BE55: 0 | BF55: 0 | BG55: 0 | BH55: 0 | BI55: 0 | BK55: 0 | BL55: 0 | BM55: 0 | BN55: 0 | BO55: 0 | BQ55: ='Input - Customer Inventory FY15'!F54 -> 0 | BW55: =IF($C55="Lamp",0,IF(SUM(BR55:$BV55)>=$BQ55,0,IF(BK55<=0,IF($G55=0,0,$BQ55),0))) -> 0 | BX55: =IF($C55="Lamp",0,IF(SUM($BR55:BW55)>=$BQ55,0,IF(BL55<=0,IF($G55=0,0,$BQ55),0))) -> 0 | BY55: =IF($C55="Lamp",0,IF(SUM($BR55:BX55)>=$BQ55,0,IF(BM55<=0,IF($G55=0,0,$BQ55),0))) -> 0 | BZ55: =IF($C55="Lamp",0,IF(SUM($BR55:BY55)>=$BQ55,0,IF(BN55<=0,IF($G55=0,0,$BQ55),0))) -> 0 | CA55: =IF($C55="Lamp",0,IF(SUM($BR55:BZ55)>=$BQ55,0,IF(BO55<=0,IF($G55=0,0,$BQ55),0))) -> 0 | CI55: =CC55/'Inputs - General'!K$6 -> 0 | CJ55: =CD55/'Inputs - General'!L$6 -> 0 | CK55: =CE55/'Inputs - General'!M$6 -> 0 | CL55: =CF55/'Inputs - General'!N$6 -> 0 | CM55: =CG55/'Inputs - General'!O$6 -> 0
A56: Customer 1 | B56: ='Input - Customer Inventory FY15'!C55 -> Lamp - MBF1x42 | C56: ='Input - Customer Inventory FY15'!D55 -> Lamp | D56: ='Input - Customer Inventory FY15'!E55 -> MBF1x42 | E56: ='Input - Customer Inventory FY15'!G55 -> 1 | G56: 0 | H56: 0 | I56: 0 | K56: 0 | L56: 0 | M56: 0 | N56: 0 | O56: 0 | P56: 0 | R56: =IFERROR(IF(K56-(($G56-SUM($CH56:CH56))/$H56)<0,K56,(($G56-SUM($CH56:CH56))/$H56)),0) -> 0 | S56: =IFERROR(IF(L56-(($G56-SUM($CH56:CI56))/$H56)<0,L56,(($G56-SUM($CH56:CI56))/$H56)),0) -> 0 | T56: =IFERROR(IF(M56-(($G56-SUM($CH56:CJ56))/$H56)<0,M56,(($G56-SUM($CH56:CJ56))/$H56)),0) -> 0 | U56: =IFERROR(IF(N56-(($G56-SUM($CH56:CK56))/$H56)<0,N56,(($G56-SUM($CH56:CK56))/$H56)),0) -> 0 | V56: =IFERROR(IF(O56-(($G56-SUM($CH56:CL56))/$H56)<0,O56,(($G56-SUM($CH56:CL56))/$H56)),0) -> 0 | X56: 0 | Y56: 0 | Z56: 0 | AA56: 0 | AB56: 0 | AC56: 0 | AE56: =X56*'Inputs - General'!J$6 -> 0 | AF56: =Y56*'Inputs - General'!K$6 -> 0 | AG56: =Z56*'Inputs - General'!L$6 -> 0 | AH56: =AA56*'Inputs - General'!M$6 -> 0 | AI56: =AB56*'Inputs - General'!N$6 -> 0 | AJ56: =AC56*'Inputs - General'!O$6 -> 0 | AL56: =K56*'Inputs - General'!J$6 -> 0 | AM56: =L56*'Inputs - General'!K$6 -> 0 | AN56: =M56*'Inputs - General'!L$6 -> 0 | AO56: =N56*'Inputs - General'!M$6 -> 0 | AP56: =O56*'Inputs - General'!N$6 -> 0 | AQ56: =P56*'Inputs - General'!O$6 -> 0 | AS56: =R56*'Inputs - General'!K$6 -> 0 | AT56: =S56*'Inputs - General'!L$6 -> 0 | AU56: =T56*'Inputs - General'!M$6 -> 0 | AV56: =U56*'Inputs - General'!N$6 -> 0 | AW56: =V56*'Inputs - General'!O$6 -> 0 | AY56: =AE56*'Inputs - General'!K$4 -> 0 | AZ56: =AF56*'Inputs - General'!L$4 -> 0 | BA56: =AG56*'Inputs - General'!M$4 -> 0 | BB56: =AH56*'Inputs - General'!N$4 -> 0 | BC56: =AI56*'Inputs - General'!O$4 -> 0 | BE56: 0 | BF56: 0 | BG56: 0 | BH56: 0 | BI56: 0 | BK56: 0 | BL56: 0 | BM56: 0 | BN56: 0 | BO56: 0 | BQ56: ='Input - Customer Inventory FY15'!F55 -> 1 | BW56: =IF($C56="Lamp",0,IF(SUM(BR56:$BV56)>=$BQ56,0,IF(BK56<=0,IF($G56=0,0,$BQ56),0))) -> 0 | BX56: =IF($C56="Lamp",0,IF(SUM($BR56:BW56)>=$BQ56,0,IF(BL56<=0,IF($G56=0,0,$BQ56),0))) -> 0 | BY56: =IF($C56="Lamp",0,IF(SUM($BR56:BX56)>=$BQ56,0,IF(BM56<=0,IF($G56=0,0,$BQ56),0))) -> 0 | BZ56: =IF($C56="Lamp",0,IF(SUM($BR56:BY56)>=$BQ56,0,IF(BN56<=0,IF($G56=0,0,$BQ56),0))) -> 0 | CA56: =IF($C56="Lamp",0,IF(SUM($BR56:BZ56)>=$BQ56,0,IF(BO56<=0,IF($G56=0,0,$BQ56),0))) -> 0 | CI56: =CC56/'Inputs - General'!K$6 -> 0 | CJ56: =CD56/'Inputs - General'!L$6 -> 0 | CK56: =CE56/'Inputs - General'!M$6 -> 0 | CL56: =CF56/'Inputs - General'!N$6 -> 0 | CM56: =CG56/'Inputs - General'!O$6 -> 0
A57: Customer 1 | B57: ='Input - Customer Inventory FY15'!C56 -> Lamp - MBF1x42 | C57: ='Input - Customer Inventory FY15'!D56 -> Lamp | D57: ='Input - Customer Inventory FY15'!E56 -> MBF1x42 | E57: ='Input - Customer Inventory FY15'!G56 -> 2 | G57: 0 | H57: 0 | I57: 0 | K57: 0 | L57: 0 | M57: 0 | N57: 0 | O57: 0 | P57: 0 | R57: =IFERROR(IF(K57-(($G57-SUM($CH57:CH57))/$H57)<0,K57,(($G57-SUM($CH57:CH57))/$H57)),0) -> 0 | S57: =IFERROR(IF(L57-(($G57-SUM($CH57:CI57))/$H57)<0,L57,(($G57-SUM($CH57:CI57))/$H57)),0) -> 0 | T57: =IFERROR(IF(M57-(($G57-SUM($CH57:CJ57))/$H57)<0,M57,(($G57-SUM($CH57:CJ57))/$H57)),0) -> 0 | U57: =IFERROR(IF(N57-(($G57-SUM($CH57:CK57))/$H57)<0,N57,(($G57-SUM($CH57:CK57))/$H57)),0) -> 0 | V57: =IFERROR(IF(O57-(($G57-SUM($CH57:CL57))/$H57)<0,O57,(($G57-SUM($CH57:CL57))/$H57)),0) -> 0 | X57: 0 | Y57: 0 | Z57: 0 | AA57: 0 | AB57: 0 | AC57: 0 | AE57: =X57*'Inputs - General'!J$6 -> 0 | AF57: =Y57*'Inputs - General'!K$6 -> 0 | AG57: =Z57*'Inputs - General'!L$6 -> 0 | AH57: =AA57*'Inputs - General'!M$6 -> 0 | AI57: =AB57*'Inputs - General'!N$6 -> 0 | AJ57: =AC57*'Inputs - General'!O$6 -> 0 | AL57: =K57*'Inputs - General'!J$6 -> 0 | AM57: =L57*'Inputs - General'!K$6 -> 0 | AN57: =M57*'Inputs - General'!L$6 -> 0 | AO57: =N57*'Inputs - General'!M$6 -> 0 | AP57: =O57*'Inputs - General'!N$6 -> 0 | AQ57: =P57*'Inputs - General'!O$6 -> 0 | AS57: =R57*'Inputs - General'!K$6 -> 0 | AT57: =S57*'Inputs - General'!L$6 -> 0 | AU57: =T57*'Inputs - General'!M$6 -> 0 | AV57: =U57*'Inputs - General'!N$6 -> 0 | AW57: =V57*'Inputs - General'!O$6 -> 0 | AY57: =AE57*'Inputs - General'!K$4 -> 0 | AZ57: =AF57*'Inputs - General'!L$4 -> 0 | BA57: =AG57*'Inputs - General'!M$4 -> 0 | BB57: =AH57*'Inputs - General'!N$4 -> 0 | BC57: =AI57*'Inputs - General'!O$4 -> 0 | BE57: 0 | BF57: 0 | BG57: 0 | BH57: 0 | BI57: 0 | BK57: 0 | BL57: 0 | BM57: 0 | BN57: 0 | BO57: 0 | BQ57: ='Input - Customer Inventory FY15'!F56 -> 0 | BW57: =IF($C57="Lamp",0,IF(SUM(BR57:$BV57)>=$BQ57,0,IF(BK57<=0,IF($G57=0,0,$BQ57),0))) -> 0 | BX57: =IF($C57="Lamp",0,IF(SUM($BR57:BW57)>=$BQ57,0,IF(BL57<=0,IF($G57=0,0,$BQ57),0))) -> 0 | BY57: =IF($C57="Lamp",0,IF(SUM($BR57:BX57)>=$BQ57,0,IF(BM57<=0,IF($G57=0,0,$BQ57),0))) -> 0 | BZ57: =IF($C57="Lamp",0,IF(SUM($BR57:BY57)>=$BQ57,0,IF(BN57<=0,IF($G57=0,0,$BQ57),0))) -> 0 | CA57: =IF($C57="Lamp",0,IF(SUM($BR57:BZ57)>=$BQ57,0,IF(BO57<=0,IF($G57=0,0,$BQ57),0))) -> 0 | CI57: =CC57/'Inputs - General'!K$6 -> 0 | CJ57: =CD57/'Inputs - General'!L$6 -> 0 | CK57: =CE57/'Inputs - General'!M$6 -> 0 | CL57: =CF57/'Inputs - General'!N$6 -> 0 | CM57: =CG57/'Inputs - General'!O$6 -> 0
A58: Customer 1 | B58: ='Input - Customer Inventory FY15'!C57 -> Lamp - MBF1x50 | C58: ='Input - Customer Inventory FY15'!D57 -> Lamp | D58: ='Input - Customer Inventory FY15'!E57 -> MBF1x50 | E58: ='Input - Customer Inventory FY15'!G57 -> 1 | G58: 0 | H58: 0 | I58: 0 | K58: 0 | L58: 0 | M58: 0 | N58: 0 | O58: 0 | P58: 0 | R58: =IFERROR(IF(K58-(($G58-SUM($CH58:CH58))/$H58)<0,K58,(($G58-SUM($CH58:CH58))/$H58)),0) -> 0 | S58: =IFERROR(IF(L58-(($G58-SUM($CH58:CI58))/$H58)<0,L58,(($G58-SUM($CH58:CI58))/$H58)),0) -> 0 | T58: =IFERROR(IF(M58-(($G58-SUM($CH58:CJ58))/$H58)<0,M58,(($G58-SUM($CH58:CJ58))/$H58)),0) -> 0 | U58: =IFERROR(IF(N58-(($G58-SUM($CH58:CK58))/$H58)<0,N58,(($G58-SUM($CH58:CK58))/$H58)),0) -> 0 | V58: =IFERROR(IF(O58-(($G58-SUM($CH58:CL58))/$H58)<0,O58,(($G58-SUM($CH58:CL58))/$H58)),0) -> 0 | X58: 0 | Y58: 0 | Z58: 0 | AA58: 0 | AB58: 0 | AC58: 0 | AE58: =X58*'Inputs - General'!J$6 -> 0 | AF58: =Y58*'Inputs - General'!K$6 -> 0 | AG58: =Z58*'Inputs - General'!L$6 -> 0 | AH58: =AA58*'Inputs - General'!M$6 -> 0 | AI58: =AB58*'Inputs - General'!N$6 -> 0 | AJ58: =AC58*'Inputs - General'!O$6 -> 0 | AL58: =K58*'Inputs - General'!J$6 -> 0 | AM58: =L58*'Inputs - General'!K$6 -> 0 | AN58: =M58*'Inputs - General'!L$6 -> 0 | AO58: =N58*'Inputs - General'!M$6 -> 0 | AP58: =O58*'Inputs - General'!N$6 -> 0 | AQ58: =P58*'Inputs - General'!O$6 -> 0 | AS58: =R58*'Inputs - General'!K$6 -> 0 | AT58: =S58*'Inputs - General'!L$6 -> 0 | AU58: =T58*'Inputs - General'!M$6 -> 0 | AV58: =U58*'Inputs - General'!N$6 -> 0 | AW58: =V58*'Inputs - General'!O$6 -> 0 | AY58: =AE58*'Inputs - General'!K$4 -> 0 | AZ58: =AF58*'Inputs - General'!L$4 -> 0 | BA58: =AG58*'Inputs - General'!M$4 -> 0 | BB58: =AH58*'Inputs - General'!N$4 -> 0 | BC58: =AI58*'Inputs - General'!O$4 -> 0 | BE58: 0 | BF58: 0 | BG58: 0 | BH58: 0 | BI58: 0 | BK58: 0 | BL58: 0 | BM58: 0 | BN58: 0 | BO58: 0 | BQ58: ='Input - Customer Inventory FY15'!F57 -> 0 | BW58: =IF($C58="Lamp",0,IF(SUM(BR58:$BV58)>=$BQ58,0,IF(BK58<=0,IF($G58=0,0,$BQ58),0))) -> 0 | BX58: =IF($C58="Lamp",0,IF(SUM($BR58:BW58)>=$BQ58,0,IF(BL58<=0,IF($G58=0,0,$BQ58),0))) -> 0 | BY58: =IF($C58="Lamp",0,IF(SUM($BR58:BX58)>=$BQ58,0,IF(BM58<=0,IF($G58=0,0,$BQ58),0))) -> 0 | BZ58: =IF($C58="Lamp",0,IF(SUM($BR58:BY58)>=$BQ58,0,IF(BN58<=0,IF($G58=0,0,$BQ58),0))) -> 0 | CA58: =IF($C58="Lamp",0,IF(SUM($BR58:BZ58)>=$BQ58,0,IF(BO58<=0,IF($G58=0,0,$BQ58),0))) -> 0 | CI58: =CC58/'Inputs - General'!K$6 -> 0 | CJ58: =CD58/'Inputs - General'!L$6 -> 0 | CK58: =CE58/'Inputs - General'!M$6 -> 0 | CL58: =CF58/'Inputs - General'!N$6 -> 0 | CM58: =CG58/'Inputs - General'!O$6 -> 0
A59: Customer 1 | B59: ='Input - Customer Inventory FY15'!C58 -> Lamp - MBF1x700 | C59: ='Input - Customer Inventory FY15'!D58 -> Lamp | D59: ='Input - Customer Inventory FY15'!E58 -> MBF1x700 | E59: ='Input - Customer Inventory FY15'!G58 -> 1 | G59: 0 | H59: 0 | I59: 0 | K59: 0 | L59: 0 | M59: 0 | N59: 0 | O59: 0 | P59: 0 | R59: =IFERROR(IF(K59-(($G59-SUM($CH59:CH59))/$H59)<0,K59,(($G59-SUM($CH59:CH59))/$H59)),0) -> 0 | S59: =IFERROR(IF(L59-(($G59-SUM($CH59:CI59))/$H59)<0,L59,(($G59-SUM($CH59:CI59))/$H59)),0) -> 0 | T59: =IFERROR(IF(M59-(($G59-SUM($CH59:CJ59))/$H59)<0,M59,(($G59-SUM($CH59:CJ59))/$H59)),0) -> 0 | U59: =IFERROR(IF(N59-(($G59-SUM($CH59:CK59))/$H59)<0,N59,(($G59-SUM($CH59:CK59))/$H59)),0) -> 0 | V59: =IFERROR(IF(O59-(($G59-SUM($CH59:CL59))/$H59)<0,O59,(($G59-SUM($CH59:CL59))/$H59)),0) -> 0 | X59: 0 | Y59: 0 | Z59: 0 | AA59: 0 | AB59: 0 | AC59: 0 | AE59: =X59*'Inputs - General'!J$6 -> 0 | AF59: =Y59*'Inputs - General'!K$6 -> 0 | AG59: =Z59*'Inputs - General'!L$6 -> 0 | AH59: =AA59*'Inputs - General'!M$6 -> 0 | AI59: =AB59*'Inputs - General'!N$6 -> 0 | AJ59: =AC59*'Inputs - General'!O$6 -> 0 | AL59: =K59*'Inputs - General'!J$6 -> 0 | AM59: =L59*'Inputs - General'!K$6 -> 0 | AN59: =M59*'Inputs - General'!L$6 -> 0 | AO59: =N59*'Inputs - General'!M$6 -> 0 | AP59: =O59*'Inputs - General'!N$6 -> 0 | AQ59: =P59*'Inputs - General'!O$6 -> 0 | AS59: =R59*'Inputs - General'!K$6 -> 0 | AT59: =S59*'Inputs - General'!L$6 -> 0 | AU59: =T59*'Inputs - General'!M$6 -> 0 | AV59: =U59*'Inputs - General'!N$6 -> 0 | AW59: =V59*'Inputs - General'!O$6 -> 0 | AY59: =AE59*'Inputs - General'!K$4 -> 0 | AZ59: =AF59*'Inputs - General'!L$4 -> 0 | BA59: =AG59*'Inputs - General'!M$4 -> 0 | BB59: =AH59*'Inputs - General'!N$4 -> 0 | BC59: =AI59*'Inputs - General'!O$4 -> 0 | BE59: 0 | BF59: 0 | BG59: 0 | BH59: 0 | BI59: 0 | BK59: 0 | BL59: 0 | BM59: 0 | BN59: 0 | BO59: 0 | BQ59: ='Input - Customer Inventory FY15'!F58 -> 0 | BW59: =IF($C59="Lamp",0,IF(SUM(BR59:$BV59)>=$BQ59,0,IF(BK59<=0,IF($G59=0,0,$BQ59),0))) -> 0 | BX59: =IF($C59="Lamp",0,IF(SUM($BR59:BW59)>=$BQ59,0,IF(BL59<=0,IF($G59=0,0,$BQ59),0))) -> 0 | BY59: =IF($C59="Lamp",0,IF(SUM($BR59:BX59)>=$BQ59,0,IF(BM59<=0,IF($G59=0,0,$BQ59),0))) -> 0 | BZ59: =IF($C59="Lamp",0,IF(SUM($BR59:BY59)>=$BQ59,0,IF(BN59<=0,IF($G59=0,0,$BQ59),0))) -> 0 | CA59: =IF($C59="Lamp",0,IF(SUM($BR59:BZ59)>=$BQ59,0,IF(BO59<=0,IF($G59=0,0,$BQ59),0))) -> 0 | CI59: =CC59/'Inputs - General'!K$6 -> 0 | CJ59: =CD59/'Inputs - General'!L$6 -> 0 | CK59: =CE59/'Inputs - General'!M$6 -> 0 | CL59: =CF59/'Inputs - General'!N$6 -> 0 | CM59: =CG59/'Inputs - General'!O$6 -> 0
A60: Customer 1 | B60: ='Input - Customer Inventory FY15'!C59 -> Lamp - MBF1x80 | C60: ='Input - Customer Inventory FY15'!D59 -> Lamp | D60: ='Input - Customer Inventory FY15'!E59 -> MBF1x80 | E60: ='Input - Customer Inventory FY15'!G59 -> 1 | G60: 0 | H60: 0 | I60: 0 | K60: 0 | L60: 0 | M60: 0 | N60: 0 | O60: 0 | P60: 0 | R60: =IFERROR(IF(K60-(($G60-SUM($CH60:CH60))/$H60)<0,K60,(($G60-SUM($CH60:CH60))/$H60)),0) -> 0 | S60: =IFERROR(IF(L60-(($G60-SUM($CH60:CI60))/$H60)<0,L60,(($G60-SUM($CH60:CI60))/$H60)),0) -> 0 | T60: =IFERROR(IF(M60-(($G60-SUM($CH60:CJ60))/$H60)<0,M60,(($G60-SUM($CH60:CJ60))/$H60)),0) -> 0 | U60: =IFERROR(IF(N60-(($G60-SUM($CH60:CK60))/$H60)<0,N60,(($G60-SUM($CH60:CK60))/$H60)),0) -> 0 | V60: =IFERROR(IF(O60-(($G60-SUM($CH60:CL60))/$H60)<0,O60,(($G60-SUM($CH60:CL60))/$H60)),0) -> 0 | X60: 0 | Y60: 0 | Z60: 0 | AA60: 0 | AB60: 0 | AC60: 0 | AE60: =X60*'Inputs - General'!J$6 -> 0 | AF60: =Y60*'Inputs - General'!K$6 -> 0 | AG60: =Z60*'Inputs - General'!L$6 -> 0 | AH60: =AA60*'Inputs - General'!M$6 -> 0 | AI60: =AB60*'Inputs - General'!N$6 -> 0 | AJ60: =AC60*'Inputs - General'!O$6 -> 0 | AL60: =K60*'Inputs - General'!J$6 -> 0 | AM60: =L60*'Inputs - General'!K$6 -> 0 | AN60: =M60*'Inputs - General'!L$6 -> 0 | AO60: =N60*'Inputs - General'!M$6 -> 0 | AP60: =O60*'Inputs - General'!N$6 -> 0 | AQ60: =P60*'Inputs - General'!O$6 -> 0 | AS60: =R60*'Inputs - General'!K$6 -> 0 | AT60: =S60*'Inputs - General'!L$6 -> 0 | AU60: =T60*'Inputs - General'!M$6 -> 0 | AV60: =U60*'Inputs - General'!N$6 -> 0 | AW60: =V60*'Inputs - General'!O$6 -> 0 | AY60: =AE60*'Inputs - General'!K$4 -> 0 | AZ60: =AF60*'Inputs - General'!L$4 -> 0 | BA60: =AG60*'Inputs - General'!M$4 -> 0 | BB60: =AH60*'Inputs - General'!N$4 -> 0 | BC60: =AI60*'Inputs - General'!O$4 -> 0 | BE60: 0 | BF60: 0 | BG60: 0 | BH60: 0 | BI60: 0 | BK60: 0 | BL60: 0 | BM60: 0 | BN60: 0 | BO60: 0 | BQ60: ='Input - Customer Inventory FY15'!F59 -> 4 | BW60: =IF($C60="Lamp",0,IF(SUM(BR60:$BV60)>=$BQ60,0,IF(BK60<=0,IF($G60=0,0,$BQ60),0))) -> 0 | BX60: =IF($C60="Lamp",0,IF(SUM($BR60:BW60)>=$BQ60,0,IF(BL60<=0,IF($G60=0,0,$BQ60),0))) -> 0 | BY60: =IF($C60="Lamp",0,IF(SUM($BR60:BX60)>=$BQ60,0,IF(BM60<=0,IF($G60=0,0,$BQ60),0))) -> 0 | BZ60: =IF($C60="Lamp",0,IF(SUM($BR60:BY60)>=$BQ60,0,IF(BN60<=0,IF($G60=0,0,$BQ60),0))) -> 0 | CA60: =IF($C60="Lamp",0,IF(SUM($BR60:BZ60)>=$BQ60,0,IF(BO60<=0,IF($G60=0,0,$BQ60),0))) -> 0 | CI60: =CC60/'Inputs - General'!K$6 -> 0 | CJ60: =CD60/'Inputs - General'!L$6 -> 0 | CK60: =CE60/'Inputs - General'!M$6 -> 0 | CL60: =CF60/'Inputs - General'!N$6 -> 0 | CM60: =CG60/'Inputs - General'!O$6 -> 0
A61: Customer 1 | B61: ='Input - Customer Inventory FY15'!C60 -> Lamp - MBF1x80 | C61: ='Input - Customer Inventory FY15'!D60 -> Lamp | D61: ='Input - Customer Inventory FY15'!E60 -> MBF1x80 | E61: ='Input - Customer Inventory FY15'!G60 -> 2 | G61: 0 | H61: 0 | I61: 0 | K61: 0 | L61: 0 | M61: 0 | N61: 0 | O61: 0 | P61: 0 | R61: =IFERROR(IF(K61-(($G61-SUM($CH61:CH61))/$H61)<0,K61,(($G61-SUM($CH61:CH61))/$H61)),0) -> 0 | S61: =IFERROR(IF(L61-(($G61-SUM($CH61:CI61))/$H61)<0,L61,(($G61-SUM($CH61:CI61))/$H61)),0) -> 0 | T61: =IFERROR(IF(M61-(($G61-SUM($CH61:CJ61))/$H61)<0,M61,(($G61-SUM($CH61:CJ61))/$H61)),0) -> 0 | U61: =IFERROR(IF(N61-(($G61-SUM($CH61:CK61))/$H61)<0,N61,(($G61-SUM($CH61:CK61))/$H61)),0) -> 0 | V61: =IFERROR(IF(O61-(($G61-SUM($CH61:CL61))/$H61)<0,O61,(($G61-SUM($CH61:CL61))/$H61)),0) -> 0 | X61: 0 | Y61: 0 | Z61: 0 | AA61: 0 | AB61: 0 | AC61: 0 | AE61: =X61*'Inputs - General'!J$6 -> 0 | AF61: =Y61*'Inputs - General'!K$6 -> 0 | AG61: =Z61*'Inputs - General'!L$6 -> 0 | AH61: =AA61*'Inputs - General'!M$6 -> 0 | AI61: =AB61*'Inputs - General'!N$6 -> 0 | AJ61: =AC61*'Inputs - General'!O$6 -> 0 | AL61: =K61*'Inputs - General'!J$6 -> 0 | AM61: =L61*'Inputs - General'!K$6 -> 0 | AN61: =M61*'Inputs - General'!L$6 -> 0 | AO61: =N61*'Inputs - General'!M$6 -> 0 | AP61: =O61*'Inputs - General'!N$6 -> 0 | AQ61: =P61*'Inputs - General'!O$6 -> 0 | AS61: =R61*'Inputs - General'!K$6 -> 0 | AT61: =S61*'Inputs - General'!L$6 -> 0 | AU61: =T61*'Inputs - General'!M$6 -> 0 | AV61: =U61*'Inputs - General'!N$6 -> 0 | AW61: =V61*'Inputs - General'!O$6 -> 0 | AY61: =AE61*'Inputs - General'!K$4 -> 0 | AZ61: =AF61*'Inputs - General'!L$4 -> 0 | BA61: =AG61*'Inputs - General'!M$4 -> 0 | BB61: =AH61*'Inputs - General'!N$4 -> 0 | BC61: =AI61*'Inputs - General'!O$4 -> 0 | BE61: 0 | BF61: 0 | BG61: 0 | BH61: 0 | BI61: 0 | BK61: 0 | BL61: 0 | BM61: 0 | BN61: 0 | BO61: 0 | BQ61: ='Input - Customer Inventory FY15'!F60 -> 6 | BW61: =IF($C61="Lamp",0,IF(SUM(BR61:$BV61)>=$BQ61,0,IF(BK61<=0,IF($G61=0,0,$BQ61),0))) -> 0 | BX61: =IF($C61="Lamp",0,IF(SUM($BR61:BW61)>=$BQ61,0,IF(BL61<=0,IF($G61=0,0,$BQ61),0))) -> 0 | BY61: =IF($C61="Lamp",0,IF(SUM($BR61:BX61)>=$BQ61,0,IF(BM61<=0,IF($G61=0,0,$BQ61),0))) -> 0 | BZ61: =IF($C61="Lamp",0,IF(SUM($BR61:BY61)>=$BQ61,0,IF(BN61<=0,IF($G61=0,0,$BQ61),0))) -> 0 | CA61: =IF($C61="Lamp",0,IF(SUM($BR61:BZ61)>=$BQ61,0,IF(BO61<=0,IF($G61=0,0,$BQ61),0))) -> 0 | CI61: =CC61/'Inputs - General'!K$6 -> 0 | CJ61: =CD61/'Inputs - General'!L$6 -> 0 | CK61: =CE61/'Inputs - General'!M$6 -> 0 | CL61: =CF61/'Inputs - General'!N$6 -> 0 | CM61: =CG61/'Inputs - General'!O$6 -> 0
A62: Customer 1 | B62: ='Input - Customer Inventory FY15'!C61 -> Lamp - MBI1x400 | C62: ='Input - Customer Inventory FY15'!D61 -> Lamp | D62: ='Input - Customer Inventory FY15'!E61 -> MBI1x400 | E62: ='Input - Customer Inventory FY15'!G61 -> 1 | G62: 0 | H62: 0 | I62: 0 | K62: 0 | L62: 0 | M62: 0 | N62: 0 | O62: 0 | P62: 0 | R62: =IFERROR(IF(K62-(($G62-SUM($CH62:CH62))/$H62)<0,K62,(($G62-SUM($CH62:CH62))/$H62)),0) -> 0 | S62: =IFERROR(IF(L62-(($G62-SUM($CH62:CI62))/$H62)<0,L62,(($G62-SUM($CH62:CI62))/$H62)),0) -> 0 | T62: =IFERROR(IF(M62-(($G62-SUM($CH62:CJ62))/$H62)<0,M62,(($G62-SUM($CH62:CJ62))/$H62)),0) -> 0 | U62: =IFERROR(IF(N62-(($G62-SUM($CH62:CK62))/$H62)<0,N62,(($G62-SUM($CH62:CK62))/$H62)),0) -> 0 | V62: =IFERROR(IF(O62-(($G62-SUM($CH62:CL62))/$H62)<0,O62,(($G62-SUM($CH62:CL62))/$H62)),0) -> 0 | X62: 0 | Y62: 0 | Z62: 0 | AA62: 0 | AB62: 0 | AC62: 0 | AE62: =X62*'Inputs - General'!J$6 -> 0 | AF62: =Y62*'Inputs - General'!K$6 -> 0 | AG62: =Z62*'Inputs - General'!L$6 -> 0 | AH62: =AA62*'Inputs - General'!M$6 -> 0 | AI62: =AB62*'Inputs - General'!N$6 -> 0 | AJ62: =AC62*'Inputs - General'!O$6 -> 0 | AL62: =K62*'Inputs - General'!J$6 -> 0 | AM62: =L62*'Inputs - General'!K$6 -> 0 | AN62: =M62*'Inputs - General'!L$6 -> 0 | AO62: =N62*'Inputs - General'!M$6 -> 0 | AP62: =O62*'Inputs - General'!N$6 -> 0 | AQ62: =P62*'Inputs - General'!O$6 -> 0 | AS62: =R62*'Inputs - General'!K$6 -> 0 | AT62: =S62*'Inputs - General'!L$6 -> 0 | AU62: =T62*'Inputs - General'!M$6 -> 0 | AV62: =U62*'Inputs - General'!N$6 -> 0 | AW62: =V62*'Inputs - General'!O$6 -> 0 | AY62: =AE62*'Inputs - General'!K$4 -> 0 | AZ62: =AF62*'Inputs - General'!L$4 -> 0 | BA62: =AG62*'Inputs - General'!M$4 -> 0 | BB62: =AH62*'Inputs - General'!N$4 -> 0 | BC62: =AI62*'Inputs - General'!O$4 -> 0 | BE62: 0 | BF62: 0 | BG62: 0 | BH62: 0 | BI62: 0 | BK62: 0 | BL62: 0 | BM62: 0 | BN62: 0 | BO62: 0 | BQ62: ='Input - Customer Inventory FY15'!F61 -> 0 | BW62: =IF($C62="Lamp",0,IF(SUM(BR62:$BV62)>=$BQ62,0,IF(BK62<=0,IF($G62=0,0,$BQ62),0))) -> 0 | BX62: =IF($C62="Lamp",0,IF(SUM($BR62:BW62)>=$BQ62,0,IF(BL62<=0,IF($G62=0,0,$BQ62),0))) -> 0 | BY62: =IF($C62="Lamp",0,IF(SUM($BR62:BX62)>=$BQ62,0,IF(BM62<=0,IF($G62=0,0,$BQ62),0))) -> 0 | BZ62: =IF($C62="Lamp",0,IF(SUM($BR62:BY62)>=$BQ62,0,IF(BN62<=0,IF($G62=0,0,$BQ62),0))) -> 0 | CA62: =IF($C62="Lamp",0,IF(SUM($BR62:BZ62)>=$BQ62,0,IF(BO62<=0,IF($G62=0,0,$BQ62),0))) -> 0 | CI62: =CC62/'Inputs - General'!K$6 -> 0 | CJ62: =CD62/'Inputs - General'!L$6 -> 0 | CK62: =CE62/'Inputs - General'!M$6 -> 0 | CL62: =CF62/'Inputs - General'!N$6 -> 0 | CM62: =CG62/'Inputs - General'!O$6 -> 0
A63: Customer 1 | B63: ='Input - Customer Inventory FY15'!C62 -> Lamp - SON1x100 | C63: ='Input - Customer Inventory FY15'!D62 -> Lamp | D63: ='Input - Customer Inventory FY15'!E62 -> SON1x100 | E63: ='Input - Customer Inventory FY15'!G62 -> 1 | G63: 0 | H63: 0 | I63: 0 | K63: 0 | L63: 0 | M63: 0 | N63: 0 | O63: 0 | P63: 0 | R63: =IFERROR(IF(K63-(($G63-SUM($CH63:CH63))/$H63)<0,K63,(($G63-SUM($CH63:CH63))/$H63)),0) -> 0 | S63: =IFERROR(IF(L63-(($G63-SUM($CH63:CI63))/$H63)<0,L63,(($G63-SUM($CH63:CI63))/$H63)),0) -> 0 | T63: =IFERROR(IF(M63-(($G63-SUM($CH63:CJ63))/$H63)<0,M63,(($G63-SUM($CH63:CJ63))/$H63)),0) -> 0 | U63: =IFERROR(IF(N63-(($G63-SUM($CH63:CK63))/$H63)<0,N63,(($G63-SUM($CH63:CK63))/$H63)),0) -> 0 | V63: =IFERROR(IF(O63-(($G63-SUM($CH63:CL63))/$H63)<0,O63,(($G63-SUM($CH63:CL63))/$H63)),0) -> 0 | X63: 0 | Y63: 0 | Z63: 0 | AA63: 0 | AB63: 0 | AC63: 0 | AE63: =X63*'Inputs - General'!J$6 -> 0 | AF63: =Y63*'Inputs - General'!K$6 -> 0 | AG63: =Z63*'Inputs - General'!L$6 -> 0 | AH63: =AA63*'Inputs - General'!M$6 -> 0 | AI63: =AB63*'Inputs - General'!N$6 -> 0 | AJ63: =AC63*'Inputs - General'!O$6 -> 0 | AL63: =K63*'Inputs - General'!J$6 -> 0 | AM63: =L63*'Inputs - General'!K$6 -> 0 | AN63: =M63*'Inputs - General'!L$6 -> 0 | AO63: =N63*'Inputs - General'!M$6 -> 0 | AP63: =O63*'Inputs - General'!N$6 -> 0 | AQ63: =P63*'Inputs - General'!O$6 -> 0 | AS63: =R63*'Inputs - General'!K$6 -> 0 | AT63: =S63*'Inputs - General'!L$6 -> 0 | AU63: =T63*'Inputs - General'!M$6 -> 0 | AV63: =U63*'Inputs - General'!N$6 -> 0 | AW63: =V63*'Inputs - General'!O$6 -> 0 | AY63: =AE63*'Inputs - General'!K$4 -> 0 | AZ63: =AF63*'Inputs - General'!L$4 -> 0 | BA63: =AG63*'Inputs - General'!M$4 -> 0 | BB63: =AH63*'Inputs - General'!N$4 -> 0 | BC63: =AI63*'Inputs - General'!O$4 -> 0 | BE63: 0 | BF63: 0 | BG63: 0 | BH63: 0 | BI63: 0 | BK63: 0 | BL63: 0 | BM63: 0 | BN63: 0 | BO63: 0 | BQ63: ='Input - Customer Inventory FY15'!F62 -> 0 | BW63: =IF($C63="Lamp",0,IF(SUM(BR63:$BV63)>=$BQ63,0,IF(BK63<=0,IF($G63=0,0,$BQ63),0))) -> 0 | BX63: =IF($C63="Lamp",0,IF(SUM($BR63:BW63)>=$BQ63,0,IF(BL63<=0,IF($G63=0,0,$BQ63),0))) -> 0 | BY63: =IF($C63="Lamp",0,IF(SUM($BR63:BX63)>=$BQ63,0,IF(BM63<=0,IF($G63=0,0,$BQ63),0))) -> 0 | BZ63: =IF($C63="Lamp",0,IF(SUM($BR63:BY63)>=$BQ63,0,IF(BN63<=0,IF($G63=0,0,$BQ63),0))) -> 0 | CA63: =IF($C63="Lamp",0,IF(SUM($BR63:BZ63)>=$BQ63,0,IF(BO63<=0,IF($G63=0,0,$BQ63),0))) -> 0 | CI63: =CC63/'Inputs - General'!K$6 -> 0 | CJ63: =CD63/'Inputs - General'!L$6 -> 0 | CK63: =CE63/'Inputs - General'!M$6 -> 0 | CL63: =CF63/'Inputs - General'!N$6 -> 0 | CM63: =CG63/'Inputs - General'!O$6 -> 0
A64: Customer 1 | B64: ='Input - Customer Inventory FY15'!C63 -> Lamp - SON1x150 | C64: ='Input - Customer Inventory FY15'!D63 -> Lamp | D64: ='Input - Customer Inventory FY15'!E63 -> SON1x150 | E64: ='Input - Customer Inventory FY15'!G63 -> 1 | G64: 0 | H64: 0 | I64: 0 | K64: 0 | L64: 0 | M64: 0 | N64: 0 | O64: 0 | P64: 0 | R64: =IFERROR(IF(K64-(($G64-SUM($CH64:CH64))/$H64)<0,K64,(($G64-SUM($CH64:CH64))/$H64)),0) -> 0 | S64: =IFERROR(IF(L64-(($G64-SUM($CH64:CI64))/$H64)<0,L64,(($G64-SUM($CH64:CI64))/$H64)),0) -> 0 | T64: =IFERROR(IF(M64-(($G64-SUM($CH64:CJ64))/$H64)<0,M64,(($G64-SUM($CH64:CJ64))/$H64)),0) -> 0 | U64: =IFERROR(IF(N64-(($G64-SUM($CH64:CK64))/$H64)<0,N64,(($G64-SUM($CH64:CK64))/$H64)),0) -> 0 | V64: =IFERROR(IF(O64-(($G64-SUM($CH64:CL64))/$H64)<0,O64,(($G64-SUM($CH64:CL64))/$H64)),0) -> 0 | X64: 0 | Y64: 0 | Z64: 0 | AA64: 0 | AB64: 0 | AC64: 0 | AE64: =X64*'Inputs - General'!J$6 -> 0 | AF64: =Y64*'Inputs - General'!K$6 -> 0 | AG64: =Z64*'Inputs - General'!L$6 -> 0 | AH64: =AA64*'Inputs - General'!M$6 -> 0 | AI64: =AB64*'Inputs - General'!N$6 -> 0 | AJ64: =AC64*'Inputs - General'!O$6 -> 0 | AL64: =K64*'Inputs - General'!J$6 -> 0 | AM64: =L64*'Inputs - General'!K$6 -> 0 | AN64: =M64*'Inputs - General'!L$6 -> 0 | AO64: =N64*'Inputs - General'!M$6 -> 0 | AP64: =O64*'Inputs - General'!N$6 -> 0 | AQ64: =P64*'Inputs - General'!O$6 -> 0 | AS64: =R64*'Inputs - General'!K$6 -> 0 | AT64: =S64*'Inputs - General'!L$6 -> 0 | AU64: =T64*'Inputs - General'!M$6 -> 0 | AV64: =U64*'Inputs - General'!N$6 -> 0 | AW64: =V64*'Inputs - General'!O$6 -> 0 | AY64: =AE64*'Inputs - General'!K$4 -> 0 | AZ64: =AF64*'Inputs - General'!L$4 -> 0 | BA64: =AG64*'Inputs - General'!M$4 -> 0 | BB64: =AH64*'Inputs - General'!N$4 -> 0 | BC64: =AI64*'Inputs - General'!O$4 -> 0 | BE64: 0 | BF64: 0 | BG64: 0 | BH64: 0 | BI64: 0 | BK64: 0 | BL64: 0 | BM64: 0 | BN64: 0 | BO64: 0 | BQ64: ='Input - Customer Inventory FY15'!F63 -> 7 | BW64: =IF($C64="Lamp",0,IF(SUM(BR64:$BV64)>=$BQ64,0,IF(BK64<=0,IF($G64=0,0,$BQ64),0))) -> 0 | BX64: =IF($C64="Lamp",0,IF(SUM($BR64:BW64)>=$BQ64,0,IF(BL64<=0,IF($G64=0,0,$BQ64),0))) -> 0 | BY64: =IF($C64="Lamp",0,IF(SUM($BR64:BX64)>=$BQ64,0,IF(BM64<=0,IF($G64=0,0,$BQ64),0))) -> 0 | BZ64: =IF($C64="Lamp",0,IF(SUM($BR64:BY64)>=$BQ64,0,IF(BN64<=0,IF($G64=0,0,$BQ64),0))) -> 0 | CA64: =IF($C64="Lamp",0,IF(SUM($BR64:BZ64)>=$BQ64,0,IF(BO64<=0,IF($G64=0,0,$BQ64),0))) -> 0 | CI64: =CC64/'Inputs - General'!K$6 -> 0 | CJ64: =CD64/'Inputs - General'!L$6 -> 0 | CK64: =CE64/'Inputs - General'!M$6 -> 0 | CL64: =CF64/'Inputs - General'!N$6 -> 0 | CM64: =CG64/'Inputs - General'!O$6 -> 0
A65: Customer 1 | B65: ='Input - Customer Inventory FY15'!C64 -> Lamp - SON1x250 | C65: ='Input - Customer Inventory FY15'!D64 -> Lamp | D65: ='Input - Customer Inventory FY15'!E64 -> SON1x250 | E65: ='Input - Customer Inventory FY15'!G64 -> 1 | G65: 0 | H65: 0 | I65: 0 | K65: 0 | L65: 0 | M65: 0 | N65: 0 | O65: 0 | P65: 0 | R65: =IFERROR(IF(K65-(($G65-SUM($CH65:CH65))/$H65)<0,K65,(($G65-SUM($CH65:CH65))/$H65)),0) -> 0 | S65: =IFERROR(IF(L65-(($G65-SUM($CH65:CI65))/$H65)<0,L65,(($G65-SUM($CH65:CI65))/$H65)),0) -> 0 | T65: =IFERROR(IF(M65-(($G65-SUM($CH65:CJ65))/$H65)<0,M65,(($G65-SUM($CH65:CJ65))/$H65)),0) -> 0 | U65: =IFERROR(IF(N65-(($G65-SUM($CH65:CK65))/$H65)<0,N65,(($G65-SUM($CH65:CK65))/$H65)),0) -> 0 | V65: =IFERROR(IF(O65-(($G65-SUM($CH65:CL65))/$H65)<0,O65,(($G65-SUM($CH65:CL65))/$H65)),0) -> 0 | X65: 0 | Y65: 0 | Z65: 0 | AA65: 0 | AB65: 0 | AC65: 0 | AE65: =X65*'Inputs - General'!J$6 -> 0 | AF65: =Y65*'Inputs - General'!K$6 -> 0 | AG65: =Z65*'Inputs - General'!L$6 -> 0 | AH65: =AA65*'Inputs - General'!M$6 -> 0 | AI65: =AB65*'Inputs - General'!N$6 -> 0 | AJ65: =AC65*'Inputs - General'!O$6 -> 0 | AL65: =K65*'Inputs - General'!J$6 -> 0 | AM65: =L65*'Inputs - General'!K$6 -> 0 | AN65: =M65*'Inputs - General'!L$6 -> 0 | AO65: =N65*'Inputs - General'!M$6 -> 0 | AP65: =O65*'Inputs - General'!N$6 -> 0 | AQ65: =P65*'Inputs - General'!O$6 -> 0 | AS65: =R65*'Inputs - General'!K$6 -> 0 | AT65: =S65*'Inputs - General'!L$6 -> 0 | AU65: =T65*'Inputs - General'!M$6 -> 0 | AV65: =U65*'Inputs - General'!N$6 -> 0 | AW65: =V65*'Inputs - General'!O$6 -> 0 | AY65: =AE65*'Inputs - General'!K$4 -> 0 | AZ65: =AF65*'Inputs - General'!L$4 -> 0 | BA65: =AG65*'Inputs - General'!M$4 -> 0 | BB65: =AH65*'Inputs - General'!N$4 -> 0 | BC65: =AI65*'Inputs - General'!O$4 -> 0 | BE65: 0 | BF65: 0 | BG65: 0 | BH65: 0 | BI65: 0 | BK65: 0 | BL65: 0 | BM65: 0 | BN65: 0 | BO65: 0 | BQ65: ='Input - Customer Inventory FY15'!F64 -> 2 | BW65: =IF($C65="Lamp",0,IF(SUM(BR65:$BV65)>=$BQ65,0,IF(BK65<=0,IF($G65=0,0,$BQ65),0))) -> 0 | BX65: =IF($C65="Lamp",0,IF(SUM($BR65:BW65)>=$BQ65,0,IF(BL65<=0,IF($G65=0,0,$BQ65),0))) -> 0 | BY65: =IF($C65="Lamp",0,IF(SUM($BR65:BX65)>=$BQ65,0,IF(BM65<=0,IF($G65=0,0,$BQ65),0))) -> 0 | BZ65: =IF($C65="Lamp",0,IF(SUM($BR65:BY65)>=$BQ65,0,IF(BN65<=0,IF($G65=0,0,$BQ65),0))) -> 0 | CA65: =IF($C65="Lamp",0,IF(SUM($BR65:BZ65)>=$BQ65,0,IF(BO65<=0,IF($G65=0,0,$BQ65),0))) -> 0 | CI65: =CC65/'Inputs - General'!K$6 -> 0 | CJ65: =CD65/'Inputs - General'!L$6 -> 0 | CK65: =CE65/'Inputs - General'!M$6 -> 0 | CL65: =CF65/'Inputs - General'!N$6 -> 0 | CM65: =CG65/'Inputs - General'!O$6 -> 0
A66: Customer 1 | B66: ='Input - Customer Inventory FY15'!C65 -> Lamp - SON1x250 | C66: ='Input - Customer Inventory FY15'!D65 -> Lamp | D66: ='Input - Customer Inventory FY15'!E65 -> SON1x250 | E66: ='Input - Customer Inventory FY15'!G65 -> 2 | G66: 0 | H66: 0 | I66: 0 | K66: 0 | L66: 0 | M66: 0 | N66: 0 | O66: 0 | P66: 0 | R66: =IFERROR(IF(K66-(($G66-SUM($CH66:CH66))/$H66)<0,K66,(($G66-SUM($CH66:CH66))/$H66)),0) -> 0 | S66: =IFERROR(IF(L66-(($G66-SUM($CH66:CI66))/$H66)<0,L66,(($G66-SUM($CH66:CI66))/$H66)),0) -> 0 | T66: =IFERROR(IF(M66-(($G66-SUM($CH66:CJ66))/$H66)<0,M66,(($G66-SUM($CH66:CJ66))/$H66)),0) -> 0 | U66: =IFERROR(IF(N66-(($G66-SUM($CH66:CK66))/$H66)<0,N66,(($G66-SUM($CH66:CK66))/$H66)),0) -> 0 | V66: =IFERROR(IF(O66-(($G66-SUM($CH66:CL66))/$H66)<0,O66,(($G66-SUM($CH66:CL66))/$H66)),0) -> 0 | X66: 0 | Y66: 0 | Z66: 0 | AA66: 0 | AB66: 0 | AC66: 0 | AE66: =X66*'Inputs - General'!J$6 -> 0 | AF66: =Y66*'Inputs - General'!K$6 -> 0 | AG66: =Z66*'Inputs - General'!L$6 -> 0 | AH66: =AA66*'Inputs - General'!M$6 -> 0 | AI66: =AB66*'Inputs - General'!N$6 -> 0 | AJ66: =AC66*'Inputs - General'!O$6 -> 0 | AL66: =K66*'Inputs - General'!J$6 -> 0 | AM66: =L66*'Inputs - General'!K$6 -> 0 | AN66: =M66*'Inputs - General'!L$6 -> 0 | AO66: =N66*'Inputs - General'!M$6 -> 0 | AP66: =O66*'Inputs - General'!N$6 -> 0 | AQ66: =P66*'Inputs - General'!O$6 -> 0 | AS66: =R66*'Inputs - General'!K$6 -> 0 | AT66: =S66*'Inputs - General'!L$6 -> 0 | AU66: =T66*'Inputs - General'!M$6 -> 0 | AV66: =U66*'Inputs - General'!N$6 -> 0 | AW66: =V66*'Inputs - General'!O$6 -> 0 | AY66: =AE66*'Inputs - General'!K$4 -> 0 | AZ66: =AF66*'Inputs - General'!L$4 -> 0 | BA66: =AG66*'Inputs - General'!M$4 -> 0 | BB66: =AH66*'Inputs - General'!N$4 -> 0 | BC66: =AI66*'Inputs - General'!O$4 -> 0 | BE66: 0 | BF66: 0 | BG66: 0 | BH66: 0 | BI66: 0 | BK66: 0 | BL66: 0 | BM66: 0 | BN66: 0 | BO66: 0 | BQ66: ='Input - Customer Inventory FY15'!F65 -> 0 | BW66: =IF($C66="Lamp",0,IF(SUM(BR66:$BV66)>=$BQ66,0,IF(BK66<=0,IF($G66=0,0,$BQ66),0))) -> 0 | BX66: =IF($C66="Lamp",0,IF(SUM($BR66:BW66)>=$BQ66,0,IF(BL66<=0,IF($G66=0,0,$BQ66),0))) -> 0 | BY66: =IF($C66="Lamp",0,IF(SUM($BR66:BX66)>=$BQ66,0,IF(BM66<=0,IF($G66=0,0,$BQ66),0))) -> 0 | BZ66: =IF($C66="Lamp",0,IF(SUM($BR66:BY66)>=$BQ66,0,IF(BN66<=0,IF($G66=0,0,$BQ66),0))) -> 0 | CA66: =IF($C66="Lamp",0,IF(SUM($BR66:BZ66)>=$BQ66,0,IF(BO66<=0,IF($G66=0,0,$BQ66),0))) -> 0 | CI66: =CC66/'Inputs - General'!K$6 -> 0 | CJ66: =CD66/'Inputs - General'!L$6 -> 0 | CK66: =CE66/'Inputs - General'!M$6 -> 0 | CL66: =CF66/'Inputs - General'!N$6 -> 0 | CM66: =CG66/'Inputs - General'!O$6 -> 0
A67: Customer 1 | B67: ='Input - Customer Inventory FY15'!C66 -> Lamp - SON1x400 | C67: ='Input - Customer Inventory FY15'!D66 -> Lamp | D67: ='Input - Customer Inventory FY15'!E66 -> SON1x400 | E67: ='Input - Customer Inventory FY15'!G66 -> 1 | G67: 0 | H67: 0 | I67: 0 | K67: 0 | L67: 0 | M67: 0 | N67: 0 | O67: 0 | P67: 0 | R67: =IFERROR(IF(K67-(($G67-SUM($CH67:CH67))/$H67)<0,K67,(($G67-SUM($CH67:CH67))/$H67)),0) -> 0 | S67: =IFERROR(IF(L67-(($G67-SUM($CH67:CI67))/$H67)<0,L67,(($G67-SUM($CH67:CI67))/$H67)),0) -> 0 | T67: =IFERROR(IF(M67-(($G67-SUM($CH67:CJ67))/$H67)<0,M67,(($G67-SUM($CH67:CJ67))/$H67)),0) -> 0 | U67: =IFERROR(IF(N67-(($G67-SUM($CH67:CK67))/$H67)<0,N67,(($G67-SUM($CH67:CK67))/$H67)),0) -> 0 | V67: =IFERROR(IF(O67-(($G67-SUM($CH67:CL67))/$H67)<0,O67,(($G67-SUM($CH67:CL67))/$H67)),0) -> 0 | X67: 0 | Y67: 0 | Z67: 0 | AA67: 0 | AB67: 0 | AC67: 0 | AE67: =X67*'Inputs - General'!J$6 -> 0 | AF67: =Y67*'Inputs - General'!K$6 -> 0 | AG67: =Z67*'Inputs - General'!L$6 -> 0 | AH67: =AA67*'Inputs - General'!M$6 -> 0 | AI67: =AB67*'Inputs - General'!N$6 -> 0 | AJ67: =AC67*'Inputs - General'!O$6 -> 0 | AL67: =K67*'Inputs - General'!J$6 -> 0 | AM67: =L67*'Inputs - General'!K$6 -> 0 | AN67: =M67*'Inputs - General'!L$6 -> 0 | AO67: =N67*'Inputs - General'!M$6 -> 0 | AP67: =O67*'Inputs - General'!N$6 -> 0 | AQ67: =P67*'Inputs - General'!O$6 -> 0 | AS67: =R67*'Inputs - General'!K$6 -> 0 | AT67: =S67*'Inputs - General'!L$6 -> 0 | AU67: =T67*'Inputs - General'!M$6 -> 0 | AV67: =U67*'Inputs - General'!N$6 -> 0 | AW67: =V67*'Inputs - General'!O$6 -> 0 | AY67: =AE67*'Inputs - General'!K$4 -> 0 | AZ67: =AF67*'Inputs - General'!L$4 -> 0 | BA67: =AG67*'Inputs - General'!M$4 -> 0 | BB67: =AH67*'Inputs - General'!N$4 -> 0 | BC67: =AI67*'Inputs - General'!O$4 -> 0 | BE67: 0 | BF67: 0 | BG67: 0 | BH67: 0 | BI67: 0 | BK67: 0 | BL67: 0 | BM67: 0 | BN67: 0 | BO67: 0 | BQ67: ='Input - Customer Inventory FY15'!F66 -> 1 | BW67: =IF($C67="Lamp",0,IF(SUM(BR67:$BV67)>=$BQ67,0,IF(BK67<=0,IF($G67=0,0,$BQ67),0))) -> 0 | BX67: =IF($C67="Lamp",0,IF(SUM($BR67:BW67)>=$BQ67,0,IF(BL67<=0,IF($G67=0,0,$BQ67),0))) -> 0 | BY67: =IF($C67="Lamp",0,IF(SUM($BR67:BX67)>=$BQ67,0,IF(BM67<=0,IF($G67=0,0,$BQ67),0))) -> 0 | BZ67: =IF($C67="Lamp",0,IF(SUM($BR67:BY67)>=$BQ67,0,IF(BN67<=0,IF($G67=0,0,$BQ67),0))) -> 0 | CA67: =IF($C67="Lamp",0,IF(SUM($BR67:BZ67)>=$BQ67,0,IF(BO67<=0,IF($G67=0,0,$BQ67),0))) -> 0 | CI67: =CC67/'Inputs - General'!K$6 -> 0 | CJ67: =CD67/'Inputs - General'!L$6 -> 0 | CK67: =CE67/'Inputs - General'!M$6 -> 0 | CL67: =CF67/'Inputs - General'!N$6 -> 0 | CM67: =CG67/'Inputs - General'!O$6 -> 0
A68: Customer 1 | B68: ='Input - Customer Inventory FY15'!C67 -> Lamp - SON1x400 | C68: ='Input - Customer Inventory FY15'!D67 -> Lamp | D68: ='Input - Customer Inventory FY15'!E67 -> SON1x400 | E68: ='Input - Customer Inventory FY15'!G67 -> 2 | G68: 0 | H68: 0 | I68: =IF(ISERROR(G68/H68),0,G68/H68) -> 0 | K68: 0 | L68: =K68-R68-CI68 -> 0 | M68: =L68-S68-CJ68 -> 0 | N68: =M68-T68-CK68 -> 0 | O68: =N68-U68-CL68 -> 0 | P68: =O68-V68-CM68 -> 0 | R68: =IFERROR(IF(K68-(($G68-SUM($CH68:CH68))/$H68)<0,K68,(($G68-SUM($CH68:CH68))/$H68)),0) -> 0 | S68: =IFERROR(IF(L68-(($G68-SUM($CH68:CI68))/$H68)<0,L68,(($G68-SUM($CH68:CI68))/$H68)),0) -> 0 | T68: =IFERROR(IF(M68-(($G68-SUM($CH68:CJ68))/$H68)<0,M68,(($G68-SUM($CH68:CJ68))/$H68)),0) -> 0 | U68: =IFERROR(IF(N68-(($G68-SUM($CH68:CK68))/$H68)<0,N68,(($G68-SUM($CH68:CK68))/$H68)),0) -> 0 | V68: =IFERROR(IF(O68-(($G68-SUM($CH68:CL68))/$H68)<0,O68,(($G68-SUM($CH68:CL68))/$H68)),0) -> 0 | X68: 0 | Y68: 0 | Z68: 0 | AA68: 0 | AB68: 0 | AC68: 0 | AE68: =X68*'Inputs - General'!J$6 -> 0 | AF68: =Y68*'Inputs - General'!K$6 -> 0 | AG68: =Z68*'Inputs - General'!L$6 -> 0 | AH68: =AA68*'Inputs - General'!M$6 -> 0 | AI68: =AB68*'Inputs - General'!N$6 -> 0 | AJ68: =AC68*'Inputs - General'!O$6 -> 0 | AL68: =K68*'Inputs - General'!J$6 -> 0 | AM68: =L68*'Inputs - General'!K$6 -> 0 | AN68: =M68*'Inputs - General'!L$6 -> 0 | AO68: =N68*'Inputs - General'!M$6 -> 0 | AP68: =O68*'Inputs - General'!N$6 -> 0 | AQ68: =P68*'Inputs - General'!O$6 -> 0 | AS68: =R68*'Inputs - General'!K$6 -> 0 | AT68: =S68*'Inputs - General'!L$6 -> 0 | AU68: =T68*'Inputs - General'!M$6 -> 0 | AV68: =U68*'Inputs - General'!N$6 -> 0 | AW68: =V68*'Inputs - General'!O$6 -> 0 | AY68: =AE68*'Inputs - General'!K$4 -> 0 | AZ68: =AF68*'Inputs - General'!L$4 -> 0 | BA68: =AG68*'Inputs - General'!M$4 -> 0 | BB68: =AH68*'Inputs - General'!N$4 -> 0 | BC68: =AI68*'Inputs - General'!O$4 -> 0 | BE68: 0 | BF68: 0 | BG68: 0 | BH68: 0 | BI68: 0 | BK68: 0 | BL68: 0 | BM68: 0 | BN68: 0 | BO68: 0 | BQ68: ='Input - Customer Inventory FY15'!F67 -> 0 | BW68: =IF($C68="Lamp",0,IF(SUM(BR68:$BV68)>=$BQ68,0,IF(BK68<=0,IF($G68=0,0,$BQ68),0))) -> 0 | BX68: =IF($C68="Lamp",0,IF(SUM($BR68:BW68)>=$BQ68,0,IF(BL68<=0,IF($G68=0,0,$BQ68),0))) -> 0 | BY68: =IF($C68="Lamp",0,IF(SUM($BR68:BX68)>=$BQ68,0,IF(BM68<=0,IF($G68=0,0,$BQ68),0))) -> 0 | BZ68: =IF($C68="Lamp",0,IF(SUM($BR68:BY68)>=$BQ68,0,IF(BN68<=0,IF($G68=0,0,$BQ68),0))) -> 0 | CA68: =IF($C68="Lamp",0,IF(SUM($BR68:BZ68)>=$BQ68,0,IF(BO68<=0,IF($G68=0,0,$BQ68),0))) -> 0 | CI68: =CC68/'Inputs - General'!K$6 -> 0 | CJ68: =CD68/'Inputs - General'!L$6 -> 0 | CK68: =CE68/'Inputs - General'!M$6 -> 0 | CL68: =CF68/'Inputs - General'!N$6 -> 0 | CM68: =CG68/'Inputs - General'!O$6 -> 0
A69: Customer 1 | B69: ='Input - Customer Inventory FY15'!C68 -> Lamp - SON1x50 | C69: ='Input - Customer Inventory FY15'!D68 -> Lamp | D69: ='Input - Customer Inventory FY15'!E68 -> SON1x50 | E69: ='Input - Customer Inventory FY15'!G68 -> 1 | G69: 0 | H69: 0 | I69: 0 | K69: =G69 -> 0 | L69: 0 | M69: 0 | N69: 0 | O69: 0 | P69: 0 | R69: =IFERROR(IF(K69-(($G69-SUM($CH69:CH69))/$H69)<0,K69,(($G69-SUM($CH69:CH69))/$H69)),0) -> 0 | S69: =IFERROR(IF(L69-(($G69-SUM($CH69:CI69))/$H69)<0,L69,(($G69-SUM($CH69:CI69))/$H69)),0) -> 0 | T69: =IFERROR(IF(M69-(($G69-SUM($CH69:CJ69))/$H69)<0,M69,(($G69-SUM($CH69:CJ69))/$H69)),0) -> 0 | U69: =IFERROR(IF(N69-(($G69-SUM($CH69:CK69))/$H69)<0,N69,(($G69-SUM($CH69:CK69))/$H69)),0) -> 0 | V69: =IFERROR(IF(O69-(($G69-SUM($CH69:CL69))/$H69)<0,O69,(($G69-SUM($CH69:CL69))/$H69)),0) -> 0 | X69: =K69 -> 0 | Y69: =L69 -> 0 | Z69: =M69 -> 0 | AA69: =N69 -> 0 | AB69: =O69 -> 0 | AC69: =P69 -> 0 | AE69: =X69*'Inputs - General'!J$6 -> 0 | AF69: =Y69*'Inputs - General'!K$6 -> 0 | AG69: =Z69*'Inputs - General'!L$6 -> 0 | AH69: =AA69*'Inputs - General'!M$6 -> 0 | AI69: =AB69*'Inputs - General'!N$6 -> 0 | AJ69: =AC69*'Inputs - General'!O$6 -> 0 | AL69: =K69*'Inputs - General'!J$6 -> 0 | AM69: =L69*'Inputs - General'!K$6 -> 0 | AN69: =M69*'Inputs - General'!L$6 -> 0 | AO69: =N69*'Inputs - General'!M$6 -> 0 | AP69: =O69*'Inputs - General'!N$6 -> 0 | AQ69: =P69*'Inputs - General'!O$6 -> 0 | AS69: =R69*'Inputs - General'!K$6 -> 0 | AT69: =S69*'Inputs - General'!L$6 -> 0 | AU69: =T69*'Inputs - General'!M$6 -> 0 | AV69: =U69*'Inputs - General'!N$6 -> 0 | AW69: =V69*'Inputs - General'!O$6 -> 0 | AY69: =AE69*'Inputs - General'!K$4 -> 0 | AZ69: =AF69*'Inputs - General'!L$4 -> 0 | BA69: =AG69*'Inputs - General'!M$4 -> 0 | BB69: =AH69*'Inputs - General'!N$4 -> 0 | BC69: =AI69*'Inputs - General'!O$4 -> 0 | BE69: =AS69-AY69 -> 0 | BF69: =AT69-AZ69 -> 0 | BG69: =AU69-BA69 -> 0 | BH69: =AV69-BB69 -> 0 | BI69: =AW69-BC69 -> 0 | BK69: =AE69*WACC -> 0 | BL69: =AF69*WACC -> 0 | BM69: =AG69*WACC -> 0 | BN69: =AH69*WACC -> 0 | BO69: =AI69*WACC -> 0 | BQ69: ='Input - Customer Inventory FY15'!F68 -> 0 | BW69: =IF($C69="Lamp",0,IF(SUM(BR69:$BV69)>=$BQ69,0,IF(BK69<=0,IF($G69=0,0,$BQ69),0))) -> 0 | BX69: =IF($C69="Lamp",0,IF(SUM($BR69:BW69)>=$BQ69,0,IF(BL69<=0,IF($G69=0,0,$BQ69),0))) -> 0 | BY69: =IF($C69="Lamp",0,IF(SUM($BR69:BX69)>=$BQ69,0,IF(BM69<=0,IF($G69=0,0,$BQ69),0))) -> 0 | BZ69: =IF($C69="Lamp",0,IF(SUM($BR69:BY69)>=$BQ69,0,IF(BN69<=0,IF($G69=0,0,$BQ69),0))) -> 0 | CA69: =IF($C69="Lamp",0,IF(SUM($BR69:BZ69)>=$BQ69,0,IF(BO69<=0,IF($G69=0,0,$BQ69),0))) -> 0 | CI69: =CC69/'Inputs - General'!K$6 -> 0 | CJ69: =CD69/'Inputs - General'!L$6 -> 0 | CK69: =CE69/'Inputs - General'!M$6 -> 0 | CL69: =CF69/'Inputs - General'!N$6 -> 0 | CM69: =CG69/'Inputs - General'!O$6 -> 0
A70: Customer 1 | B70: ='Input - Customer Inventory FY15'!C69 -> Lamp - SON1x70 | C70: ='Input - Customer Inventory FY15'!D69 -> Lamp | D70: ='Input - Customer Inventory FY15'!E69 -> SON1x70 | E70: ='Input - Customer Inventory FY15'!G69 -> 1 | G70: 0 | H70: 0 | I70: 0 | K70: 0 | L70: 0 | M70: 0 | N70: 0 | O70: 0 | P70: 0 | R70: =IFERROR(IF(K70-(($G70-SUM($CH70:CH70))/$H70)<0,K70,(($G70-SUM($CH70:CH70))/$H70)),0) -> 0 | S70: =IFERROR(IF(L70-(($G70-SUM($CH70:CI70))/$H70)<0,L70,(($G70-SUM($CH70:CI70))/$H70)),0) -> 0 | T70: =IFERROR(IF(M70-(($G70-SUM($CH70:CJ70))/$H70)<0,M70,(($G70-SUM($CH70:CJ70))/$H70)),0) -> 0 | U70: =IFERROR(IF(N70-(($G70-SUM($CH70:CK70))/$H70)<0,N70,(($G70-SUM($CH70:CK70))/$H70)),0) -> 0 | V70: =IFERROR(IF(O70-(($G70-SUM($CH70:CL70))/$H70)<0,O70,(($G70-SUM($CH70:CL70))/$H70)),0) -> 0 | X70: 0 | Y70: 0 | Z70: 0 | AA70: 0 | AB70: 0 | AC70: 0 | AE70: =X70*'Inputs - General'!J$6 -> 0 | AF70: =Y70*'Inputs - General'!K$6 -> 0 | AG70: =Z70*'Inputs - General'!L$6 -> 0 | AH70: =AA70*'Inputs - General'!M$6 -> 0 | AI70: =AB70*'Inputs - General'!N$6 -> 0 | AJ70: =AC70*'Inputs - General'!O$6 -> 0 | AL70: =K70*'Inputs - General'!J$6 -> 0 | AM70: =L70*'Inputs - General'!K$6 -> 0 | AN70: =M70*'Inputs - General'!L$6 -> 0 | AO70: =N70*'Inputs - General'!M$6 -> 0 | AP70: =O70*'Inputs - General'!N$6 -> 0 | AQ70: =P70*'Inputs - General'!O$6 -> 0 | AS70: =R70*'Inputs - General'!K$6 -> 0 | AT70: =S70*'Inputs - General'!L$6 -> 0 | AU70: =T70*'Inputs - General'!M$6 -> 0 | AV70: =U70*'Inputs - General'!N$6 -> 0 | AW70: =V70*'Inputs - General'!O$6 -> 0 | AY70: =AE70*'Inputs - General'!K$4 -> 0 | AZ70: =AF70*'Inputs - General'!L$4 -> 0 | BA70: =AG70*'Inputs - General'!M$4 -> 0 | BB70: =AH70*'Inputs - General'!N$4 -> 0 | BC70: =AI70*'Inputs - General'!O$4 -> 0 | BE70: 0 | BF70: 0 | BG70: 0 | BH70: 0 | BI70: 0 | BK70: 0 | BL70: 0 | BM70: 0 | BN70: 0 | BO70: 0 | BQ70: ='Input - Customer Inventory FY15'!F69 -> 0 | BW70: =IF($C70="Lamp",0,IF(SUM(BR70:$BV70)>=$BQ70,0,IF(BK70<=0,IF($G70=0,0,$BQ70),0))) -> 0 | BX70: =IF($C70="Lamp",0,IF(SUM($BR70:BW70)>=$BQ70,0,IF(BL70<=0,IF($G70=0,0,$BQ70),0))) -> 0 | BY70: =IF($C70="Lamp",0,IF(SUM($BR70:BX70)>=$BQ70,0,IF(BM70<=0,IF($G70=0,0,$BQ70),0))) -> 0 | BZ70: =IF($C70="Lamp",0,IF(SUM($BR70:BY70)>=$BQ70,0,IF(BN70<=0,IF($G70=0,0,$BQ70),0))) -> 0 | CA70: =IF($C70="Lamp",0,IF(SUM($BR70:BZ70)>=$BQ70,0,IF(BO70<=0,IF($G70=0,0,$BQ70),0))) -> 0 | CI70: =CC70/'Inputs - General'!K$6 -> 0 | CJ70: =CD70/'Inputs - General'!L$6 -> 0 | CK70: =CE70/'Inputs - General'!M$6 -> 0 | CL70: =CF70/'Inputs - General'!N$6 -> 0 | CM70: =CG70/'Inputs - General'!O$6 -> 0
A71: Customer 1 | B71: ='Input - Customer Inventory FY15'!C70 -> Lamp - TF1x20 | C71: ='Input - Customer Inventory FY15'!D70 -> Lamp | D71: ='Input - Customer Inventory FY15'!E70 -> TF1x20 | E71: ='Input - Customer Inventory FY15'!G70 -> 3 | G71: 0 | H71: 0 | I71: 0 | K71: 0 | L71: 0 | M71: 0 | N71: 0 | O71: 0 | P71: 0 | R71: =IFERROR(IF(K71-(($G71-SUM($CH71:CH71))/$H71)<0,K71,(($G71-SUM($CH71:CH71))/$H71)),0) -> 0 | S71: =IFERROR(IF(L71-(($G71-SUM($CH71:CI71))/$H71)<0,L71,(($G71-SUM($CH71:CI71))/$H71)),0) -> 0 | T71: =IFERROR(IF(M71-(($G71-SUM($CH71:CJ71))/$H71)<0,M71,(($G71-SUM($CH71:CJ71))/$H71)),0) -> 0 | U71: =IFERROR(IF(N71-(($G71-SUM($CH71:CK71))/$H71)<0,N71,(($G71-SUM($CH71:CK71))/$H71)),0) -> 0 | V71: =IFERROR(IF(O71-(($G71-SUM($CH71:CL71))/$H71)<0,O71,(($G71-SUM($CH71:CL71))/$H71)),0) -> 0 | X71: 0 | Y71: 0 | Z71: 0 | AA71: 0 | AB71: 0 | AC71: 0 | AE71: =X71*'Inputs - General'!J$6 -> 0 | AF71: =Y71*'Inputs - General'!K$6 -> 0 | AG71: =Z71*'Inputs - General'!L$6 -> 0 | AH71: =AA71*'Inputs - General'!M$6 -> 0 | AI71: =AB71*'Inputs - General'!N$6 -> 0 | AJ71: =AC71*'Inputs - General'!O$6 -> 0 | AL71: =K71*'Inputs - General'!J$6 -> 0 | AM71: =L71*'Inputs - General'!K$6 -> 0 | AN71: =M71*'Inputs - General'!L$6 -> 0 | AO71: =N71*'Inputs - General'!M$6 -> 0 | AP71: =O71*'Inputs - General'!N$6 -> 0 | AQ71: =P71*'Inputs - General'!O$6 -> 0 | AS71: =R71*'Inputs - General'!K$6 -> 0 | AT71: =S71*'Inputs - General'!L$6 -> 0 | AU71: =T71*'Inputs - General'!M$6 -> 0 | AV71: =U71*'Inputs - General'!N$6 -> 0 | AW71: =V71*'Inputs - General'!O$6 -> 0 | AY71: =AE71*'Inputs - General'!K$4 -> 0 | AZ71: =AF71*'Inputs - General'!L$4 -> 0 | BA71: =AG71*'Inputs - General'!M$4 -> 0 | BB71: =AH71*'Inputs - General'!N$4 -> 0 | BC71: =AI71*'Inputs - General'!O$4 -> 0 | BE71: 0 | BF71: 0 | BG71: 0 | BH71: 0 | BI71: 0 | BK71: 0 | BL71: 0 | BM71: 0 | BN71: 0 | BO71: 0 | BQ71: ='Input - Customer Inventory FY15'!F70 -> 5 | BW71: =IF($C71="Lamp",0,IF(SUM(BR71:$BV71)>=$BQ71,0,IF(BK71<=0,IF($G71=0,0,$BQ71),0))) -> 0 | BX71: =IF($C71="Lamp",0,IF(SUM($BR71:BW71)>=$BQ71,0,IF(BL71<=0,IF($G71=0,0,$BQ71),0))) -> 0 | BY71: =IF($C71="Lamp",0,IF(SUM($BR71:BX71)>=$BQ71,0,IF(BM71<=0,IF($G71=0,0,$BQ71),0))) -> 0 | BZ71: =IF($C71="Lamp",0,IF(SUM($BR71:BY71)>=$BQ71,0,IF(BN71<=0,IF($G71=0,0,$BQ71),0))) -> 0 | CA71: =IF($C71="Lamp",0,IF(SUM($BR71:BZ71)>=$BQ71,0,IF(BO71<=0,IF($G71=0,0,$BQ71),0))) -> 0 | CI71: =CC71/'Inputs - General'!K$6 -> 0 | CJ71: =CD71/'Inputs - General'!L$6 -> 0 | CK71: =CE71/'Inputs - General'!M$6 -> 0 | CL71: =CF71/'Inputs - General'!N$6 -> 0 | CM71: =CG71/'Inputs - General'!O$6 -> 0
A72: Customer 1 | B72: ='Input - Customer Inventory FY15'!C71 -> Lamp - TF1x40 | C72: ='Input - Customer Inventory FY15'!D71 -> Lamp | D72: ='Input - Customer Inventory FY15'!E71 -> TF1x40 | E72: ='Input - Customer Inventory FY15'!G71 -> 1 | G72: 0 | H72: 0 | I72: 0 | K72: 0 | L72: 0 | M72: 0 | N72: 0 | O72: 0 | P72: 0 | R72: =IFERROR(IF(K72-(($G72-SUM($CH72:CH72))/$H72)<0,K72,(($G72-SUM($CH72:CH72))/$H72)),0) -> 0 | S72: =IFERROR(IF(L72-(($G72-SUM($CH72:CI72))/$H72)<0,L72,(($G72-SUM($CH72:CI72))/$H72)),0) -> 0 | T72: =IFERROR(IF(M72-(($G72-SUM($CH72:CJ72))/$H72)<0,M72,(($G72-SUM($CH72:CJ72))/$H72)),0) -> 0 | U72: =IFERROR(IF(N72-(($G72-SUM($CH72:CK72))/$H72)<0,N72,(($G72-SUM($CH72:CK72))/$H72)),0) -> 0 | V72: =IFERROR(IF(O72-(($G72-SUM($CH72:CL72))/$H72)<0,O72,(($G72-SUM($CH72:CL72))/$H72)),0) -> 0 | X72: 0 | Y72: 0 | Z72: 0 | AA72: 0 | AB72: 0 | AC72: 0 | AE72: =X72*'Inputs - General'!J$6 -> 0 | AF72: =Y72*'Inputs - General'!K$6 -> 0 | AG72: =Z72*'Inputs - General'!L$6 -> 0 | AH72: =AA72*'Inputs - General'!M$6 -> 0 | AI72: =AB72*'Inputs - General'!N$6 -> 0 | AJ72: =AC72*'Inputs - General'!O$6 -> 0 | AL72: =K72*'Inputs - General'!J$6 -> 0 | AM72: =L72*'Inputs - General'!K$6 -> 0 | AN72: =M72*'Inputs - General'!L$6 -> 0 | AO72: =N72*'Inputs - General'!M$6 -> 0 | AP72: =O72*'Inputs - General'!N$6 -> 0 | AQ72: =P72*'Inputs - General'!O$6 -> 0 | AS72: =R72*'Inputs - General'!K$6 -> 0 | AT72: =S72*'Inputs - General'!L$6 -> 0 | AU72: =T72*'Inputs - General'!M$6 -> 0 | AV72: =U72*'Inputs - General'!N$6 -> 0 | AW72: =V72*'Inputs - General'!O$6 -> 0 | AY72: =AE72*'Inputs - General'!K$4 -> 0 | AZ72: =AF72*'Inputs - General'!L$4 -> 0 | BA72: =AG72*'Inputs - General'!M$4 -> 0 | BB72: =AH72*'Inputs - General'!N$4 -> 0 | BC72: =AI72*'Inputs - General'!O$4 -> 0 | BE72: 0 | BF72: 0 | BG72: 0 | BH72: 0 | BI72: 0 | BK72: 0 | BL72: 0 | BM72: 0 | BN72: 0 | BO72: 0 | BQ72: ='Input - Customer Inventory FY15'!F71 -> 1 | BW72: =IF($C72="Lamp",0,IF(SUM(BR72:$BV72)>=$BQ72,0,IF(BK72<=0,IF($G72=0,0,$BQ72),0))) -> 0 | BX72: =IF($C72="Lamp",0,IF(SUM($BR72:BW72)>=$BQ72,0,IF(BL72<=0,IF($G72=0,0,$BQ72),0))) -> 0 | BY72: =IF($C72="Lamp",0,IF(SUM($BR72:BX72)>=$BQ72,0,IF(BM72<=0,IF($G72=0,0,$BQ72),0))) -> 0 | BZ72: =IF($C72="Lamp",0,IF(SUM($BR72:BY72)>=$BQ72,0,IF(BN72<=0,IF($G72=0,0,$BQ72),0))) -> 0 | CA72: =IF($C72="Lamp",0,IF(SUM($BR72:BZ72)>=$BQ72,0,IF(BO72<=0,IF($G72=0,0,$BQ72),0))) -> 0 | CI72: =CC72/'Inputs - General'!K$6 -> 0 | CJ72: =CD72/'Inputs - General'!L$6 -> 0 | CK72: =CE72/'Inputs - General'!M$6 -> 0 | CL72: =CF72/'Inputs - General'!N$6 -> 0 | CM72: =CG72/'Inputs - General'!O$6 -> 0
A73: Customer 1 | B73: ='Input - Customer Inventory FY15'!C72 -> Lamp - TF1x80 | C73: ='Input - Customer Inventory FY15'!D72 -> Lamp | D73: ='Input - Customer Inventory FY15'!E72 -> TF1x80 | E73: ='Input - Customer Inventory FY15'!G72 -> 1 | G73: 0 | H73: 0 | I73: 0 | K73: 0 | L73: 0 | M73: 0 | N73: 0 | O73: 0 | P73: 0 | R73: =IFERROR(IF(K73-(($G73-SUM($CH73:CH73))/$H73)<0,K73,(($G73-SUM($CH73:CH73))/$H73)),0) -> 0 | S73: =IFERROR(IF(L73-(($G73-SUM($CH73:CI73))/$H73)<0,L73,(($G73-SUM($CH73:CI73))/$H73)),0) -> 0 | T73: =IFERROR(IF(M73-(($G73-SUM($CH73:CJ73))/$H73)<0,M73,(($G73-SUM($CH73:CJ73))/$H73)),0) -> 0 | U73: =IFERROR(IF(N73-(($G73-SUM($CH73:CK73))/$H73)<0,N73,(($G73-SUM($CH73:CK73))/$H73)),0) -> 0 | V73: =IFERROR(IF(O73-(($G73-SUM($CH73:CL73))/$H73)<0,O73,(($G73-SUM($CH73:CL73))/$H73)),0) -> 0 | X73: 0 | Y73: 0 | Z73: 0 | AA73: 0 | AB73: 0 | AC73: 0 | AE73: =X73*'Inputs - General'!J$6 -> 0 | AF73: =Y73*'Inputs - General'!K$6 -> 0 | AG73: =Z73*'Inputs - General'!L$6 -> 0 | AH73: =AA73*'Inputs - General'!M$6 -> 0 | AI73: =AB73*'Inputs - General'!N$6 -> 0 | AJ73: =AC73*'Inputs - General'!O$6 -> 0 | AL73: =K73*'Inputs - General'!J$6 -> 0 | AM73: =L73*'Inputs - General'!K$6 -> 0 | AN73: =M73*'Inputs - General'!L$6 -> 0 | AO73: =N73*'Inputs - General'!M$6 -> 0 | AP73: =O73*'Inputs - General'!N$6 -> 0 | AQ73: =P73*'Inputs - General'!O$6 -> 0 | AS73: =R73*'Inputs - General'!K$6 -> 0 | AT73: =S73*'Inputs - General'!L$6 -> 0 | AU73: =T73*'Inputs - General'!M$6 -> 0 | AV73: =U73*'Inputs - General'!N$6 -> 0 | AW73: =V73*'Inputs - General'!O$6 -> 0 | AY73: =AE73*'Inputs - General'!K$4 -> 0 | AZ73: =AF73*'Inputs - General'!L$4 -> 0 | BA73: =AG73*'Inputs - General'!M$4 -> 0 | BB73: =AH73*'Inputs - General'!N$4 -> 0 | BC73: =AI73*'Inputs - General'!O$4 -> 0 | BE73: 0 | BF73: 0 | BG73: 0 | BH73: 0 | BI73: 0 | BK73: 0 | BL73: 0 | BM73: 0 | BN73: 0 | BO73: 0 | BQ73: ='Input - Customer Inventory FY15'!F72 -> 0 | BW73: =IF($C73="Lamp",0,IF(SUM(BR73:$BV73)>=$BQ73,0,IF(BK73<=0,IF($G73=0,0,$BQ73),0))) -> 0 | BX73: =IF($C73="Lamp",0,IF(SUM($BR73:BW73)>=$BQ73,0,IF(BL73<=0,IF($G73=0,0,$BQ73),0))) -> 0 | BY73: =IF($C73="Lamp",0,IF(SUM($BR73:BX73)>=$BQ73,0,IF(BM73<=0,IF($G73=0,0,$BQ73),0))) -> 0 | BZ73: =IF($C73="Lamp",0,IF(SUM($BR73:BY73)>=$BQ73,0,IF(BN73<=0,IF($G73=0,0,$BQ73),0))) -> 0 | CA73: =IF($C73="Lamp",0,IF(SUM($BR73:BZ73)>=$BQ73,0,IF(BO73<=0,IF($G73=0,0,$BQ73),0))) -> 0 | CI73: =CC73/'Inputs - General'!K$6 -> 0 | CJ73: =CD73/'Inputs - General'!L$6 -> 0 | CK73: =CE73/'Inputs - General'!M$6 -> 0 | CL73: =CF73/'Inputs - General'!N$6 -> 0 | CM73: =CG73/'Inputs - General'!O$6 -> 0
A74: Customer 1 | B74: ='Input - Customer Inventory FY15'!C73 -> Lamp - TF2x20 | C74: ='Input - Customer Inventory FY15'!D73 -> Lamp | D74: ='Input - Customer Inventory FY15'!E73 -> TF2x20 | E74: ='Input - Customer Inventory FY15'!G73 -> 1 | G74: 0 | H74: 0 | I74: 0 | K74: 0 | L74: 0 | M74: 0 | N74: 0 | O74: 0 | P74: 0 | R74: =IFERROR(IF(K74-(($G74-SUM($CH74:CH74))/$H74)<0,K74,(($G74-SUM($CH74:CH74))/$H74)),0) -> 0 | S74: =IFERROR(IF(L74-(($G74-SUM($CH74:CI74))/$H74)<0,L74,(($G74-SUM($CH74:CI74))/$H74)),0) -> 0 | T74: =IFERROR(IF(M74-(($G74-SUM($CH74:CJ74))/$H74)<0,M74,(($G74-SUM($CH74:CJ74))/$H74)),0) -> 0 | U74: =IFERROR(IF(N74-(($G74-SUM($CH74:CK74))/$H74)<0,N74,(($G74-SUM($CH74:CK74))/$H74)),0) -> 0 | V74: =IFERROR(IF(O74-(($G74-SUM($CH74:CL74))/$H74)<0,O74,(($G74-SUM($CH74:CL74))/$H74)),0) -> 0 | X74: 0 | Y74: 0 | Z74: 0 | AA74: 0 | AB74: 0 | AC74: 0 | AE74: =X74*'Inputs - General'!J$6 -> 0 | AF74: =Y74*'Inputs - General'!K$6 -> 0 | AG74: =Z74*'Inputs - General'!L$6 -> 0 | AH74: =AA74*'Inputs - General'!M$6 -> 0 | AI74: =AB74*'Inputs - General'!N$6 -> 0 | AJ74: =AC74*'Inputs - General'!O$6 -> 0 | AL74: =K74*'Inputs - General'!J$6 -> 0 | AM74: =L74*'Inputs - General'!K$6 -> 0 | AN74: =M74*'Inputs - General'!L$6 -> 0 | AO74: =N74*'Inputs - General'!M$6 -> 0 | AP74: =O74*'Inputs - General'!N$6 -> 0 | AQ74: =P74*'Inputs - General'!O$6 -> 0 | AS74: =R74*'Inputs - General'!K$6 -> 0 | AT74: =S74*'Inputs - General'!L$6 -> 0 | AU74: =T74*'Inputs - General'!M$6 -> 0 | AV74: =U74*'Inputs - General'!N$6 -> 0 | AW74: =V74*'Inputs - General'!O$6 -> 0 | AY74: =AE74*'Inputs - General'!K$4 -> 0 | AZ74: =AF74*'Inputs - General'!L$4 -> 0 | BA74: =AG74*'Inputs - General'!M$4 -> 0 | BB74: =AH74*'Inputs - General'!N$4 -> 0 | BC74: =AI74*'Inputs - General'!O$4 -> 0 | BE74: 0 | BF74: 0 | BG74: 0 | BH74: 0 | BI74: 0 | BK74: 0 | BL74: 0 | BM74: 0 | BN74: 0 | BO74: 0 | BQ74: ='Input - Customer Inventory FY15'!F73 -> 4 | BW74: =IF($C74="Lamp",0,IF(SUM(BR74:$BV74)>=$BQ74,0,IF(BK74<=0,IF($G74=0,0,$BQ74),0))) -> 0 | BX74: =IF($C74="Lamp",0,IF(SUM($BR74:BW74)>=$BQ74,0,IF(BL74<=0,IF($G74=0,0,$BQ74),0))) -> 0 | BY74: =IF($C74="Lamp",0,IF(SUM($BR74:BX74)>=$BQ74,0,IF(BM74<=0,IF($G74=0,0,$BQ74),0))) -> 0 | BZ74: =IF($C74="Lamp",0,IF(SUM($BR74:BY74)>=$BQ74,0,IF(BN74<=0,IF($G74=0,0,$BQ74),0))) -> 0 | CA74: =IF($C74="Lamp",0,IF(SUM($BR74:BZ74)>=$BQ74,0,IF(BO74<=0,IF($G74=0,0,$BQ74),0))) -> 0 | CI74: =CC74/'Inputs - General'!K$6 -> 0 | CJ74: =CD74/'Inputs - General'!L$6 -> 0 | CK74: =CE74/'Inputs - General'!M$6 -> 0 | CL74: =CF74/'Inputs - General'!N$6 -> 0 | CM74: =CG74/'Inputs - General'!O$6 -> 0
A75: Customer 1 | B75: ='Input - Customer Inventory FY15'!C74 -> Lamp - TF2x20 | C75: ='Input - Customer Inventory FY15'!D74 -> Lamp | D75: ='Input - Customer Inventory FY15'!E74 -> TF2x20 | E75: ='Input - Customer Inventory FY15'!G74 -> 3 | G75: 0 | H75: 0 | I75: 0 | K75: 0 | L75: 0 | M75: 0 | N75: 0 | O75: 0 | P75: 0 | R75: =IFERROR(IF(K75-(($G75-SUM($CH75:CH75))/$H75)<0,K75,(($G75-SUM($CH75:CH75))/$H75)),0) -> 0 | S75: =IFERROR(IF(L75-(($G75-SUM($CH75:CI75))/$H75)<0,L75,(($G75-SUM($CH75:CI75))/$H75)),0) -> 0 | T75: =IFERROR(IF(M75-(($G75-SUM($CH75:CJ75))/$H75)<0,M75,(($G75-SUM($CH75:CJ75))/$H75)),0) -> 0 | U75: =IFERROR(IF(N75-(($G75-SUM($CH75:CK75))/$H75)<0,N75,(($G75-SUM($CH75:CK75))/$H75)),0) -> 0 | V75: =IFERROR(IF(O75-(($G75-SUM($CH75:CL75))/$H75)<0,O75,(($G75-SUM($CH75:CL75))/$H75)),0) -> 0 | X75: 0 | Y75: 0 | Z75: 0 | AA75: 0 | AB75: 0 | AC75: 0 | AE75: =X75*'Inputs - General'!J$6 -> 0 | AF75: =Y75*'Inputs - General'!K$6 -> 0 | AG75: =Z75*'Inputs - General'!L$6 -> 0 | AH75: =AA75*'Inputs - General'!M$6 -> 0 | AI75: =AB75*'Inputs - General'!N$6 -> 0 | AJ75: =AC75*'Inputs - General'!O$6 -> 0 | AL75: =K75*'Inputs - General'!J$6 -> 0 | AM75: =L75*'Inputs - General'!K$6 -> 0 | AN75: =M75*'Inputs - General'!L$6 -> 0 | AO75: =N75*'Inputs - General'!M$6 -> 0 | AP75: =O75*'Inputs - General'!N$6 -> 0 | AQ75: =P75*'Inputs - General'!O$6 -> 0 | AS75: =R75*'Inputs - General'!K$6 -> 0 | AT75: =S75*'Inputs - General'!L$6 -> 0 | AU75: =T75*'Inputs - General'!M$6 -> 0 | AV75: =U75*'Inputs - General'!N$6 -> 0 | AW75: =V75*'Inputs - General'!O$6 -> 0 | AY75: =AE75*'Inputs - General'!K$4 -> 0 | AZ75: =AF75*'Inputs - General'!L$4 -> 0 | BA75: =AG75*'Inputs - General'!M$4 -> 0 | BB75: =AH75*'Inputs - General'!N$4 -> 0 | BC75: =AI75*'Inputs - General'!O$4 -> 0 | BE75: 0 | BF75: 0 | BG75: 0 | BH75: 0 | BI75: 0 | BK75: 0 | BL75: 0 | BM75: 0 | BN75: 0 | BO75: 0 | BQ75: ='Input - Customer Inventory FY15'!F74 -> 2 | BW75: =IF($C75="Lamp",0,IF(SUM(BR75:$BV75)>=$BQ75,0,IF(BK75<=0,IF($G75=0,0,$BQ75),0))) -> 0 | BX75: =IF($C75="Lamp",0,IF(SUM($BR75:BW75)>=$BQ75,0,IF(BL75<=0,IF($G75=0,0,$BQ75),0))) -> 0 | BY75: =IF($C75="Lamp",0,IF(SUM($BR75:BX75)>=$BQ75,0,IF(BM75<=0,IF($G75=0,0,$BQ75),0))) -> 0 | BZ75: =IF($C75="Lamp",0,IF(SUM($BR75:BY75)>=$BQ75,0,IF(BN75<=0,IF($G75=0,0,$BQ75),0))) -> 0 | CA75: =IF($C75="Lamp",0,IF(SUM($BR75:BZ75)>=$BQ75,0,IF(BO75<=0,IF($G75=0,0,$BQ75),0))) -> 0 | CI75: =CC75/'Inputs - General'!K$6 -> 0 | CJ75: =CD75/'Inputs - General'!L$6 -> 0 | CK75: =CE75/'Inputs - General'!M$6 -> 0 | CL75: =CF75/'Inputs - General'!N$6 -> 0 | CM75: =CG75/'Inputs - General'!O$6 -> 0
A76: Customer 1 | B76: ='Input - Customer Inventory FY15'!C75 -> Lamp - TF2x40 | C76: ='Input - Customer Inventory FY15'!D75 -> Lamp | D76: ='Input - Customer Inventory FY15'!E75 -> TF2x40 | E76: ='Input - Customer Inventory FY15'!G75 -> 1 | G76: 0 | H76: 0 | I76: 0 | K76: 0 | L76: 0 | M76: 0 | N76: 0 | O76: 0 | P76: 0 | R76: =IFERROR(IF(K76-(($G76-SUM($CH76:CH76))/$H76)<0,K76,(($G76-SUM($CH76:CH76))/$H76)),0) -> 0 | S76: =IFERROR(IF(L76-(($G76-SUM($CH76:CI76))/$H76)<0,L76,(($G76-SUM($CH76:CI76))/$H76)),0) -> 0 | T76: =IFERROR(IF(M76-(($G76-SUM($CH76:CJ76))/$H76)<0,M76,(($G76-SUM($CH76:CJ76))/$H76)),0) -> 0 | U76: =IFERROR(IF(N76-(($G76-SUM($CH76:CK76))/$H76)<0,N76,(($G76-SUM($CH76:CK76))/$H76)),0) -> 0 | V76: =IFERROR(IF(O76-(($G76-SUM($CH76:CL76))/$H76)<0,O76,(($G76-SUM($CH76:CL76))/$H76)),0) -> 0 | X76: 0 | Y76: 0 | Z76: 0 | AA76: 0 | AB76: 0 | AC76: 0 | AE76: =X76*'Inputs - General'!J$6 -> 0 | AF76: =Y76*'Inputs - General'!K$6 -> 0 | AG76: =Z76*'Inputs - General'!L$6 -> 0 | AH76: =AA76*'Inputs - General'!M$6 -> 0 | AI76: =AB76*'Inputs - General'!N$6 -> 0 | AJ76: =AC76*'Inputs - General'!O$6 -> 0 | AL76: =K76*'Inputs - General'!J$6 -> 0 | AM76: =L76*'Inputs - General'!K$6 -> 0 | AN76: =M76*'Inputs - General'!L$6 -> 0 | AO76: =N76*'Inputs - General'!M$6 -> 0 | AP76: =O76*'Inputs - General'!N$6 -> 0 | AQ76: =P76*'Inputs - General'!O$6 -> 0 | AS76: =R76*'Inputs - General'!K$6 -> 0 | AT76: =S76*'Inputs - General'!L$6 -> 0 | AU76: =T76*'Inputs - General'!M$6 -> 0 | AV76: =U76*'Inputs - General'!N$6 -> 0 | AW76: =V76*'Inputs - General'!O$6 -> 0 | AY76: =AE76*'Inputs - General'!K$4 -> 0 | AZ76: =AF76*'Inputs - General'!L$4 -> 0 | BA76: =AG76*'Inputs - General'!M$4 -> 0 | BB76: =AH76*'Inputs - General'!N$4 -> 0 | BC76: =AI76*'Inputs - General'!O$4 -> 0 | BE76: 0 | BF76: 0 | BG76: 0 | BH76: 0 | BI76: 0 | BK76: 0 | BL76: 0 | BM76: 0 | BN76: 0 | BO76: 0 | BQ76: ='Input - Customer Inventory FY15'!F75 -> 0 | BW76: =IF($C76="Lamp",0,IF(SUM(BR76:$BV76)>=$BQ76,0,IF(BK76<=0,IF($G76=0,0,$BQ76),0))) -> 0 | BX76: =IF($C76="Lamp",0,IF(SUM($BR76:BW76)>=$BQ76,0,IF(BL76<=0,IF($G76=0,0,$BQ76),0))) -> 0 | BY76: =IF($C76="Lamp",0,IF(SUM($BR76:BX76)>=$BQ76,0,IF(BM76<=0,IF($G76=0,0,$BQ76),0))) -> 0 | BZ76: =IF($C76="Lamp",0,IF(SUM($BR76:BY76)>=$BQ76,0,IF(BN76<=0,IF($G76=0,0,$BQ76),0))) -> 0 | CA76: =IF($C76="Lamp",0,IF(SUM($BR76:BZ76)>=$BQ76,0,IF(BO76<=0,IF($G76=0,0,$BQ76),0))) -> 0 | CI76: =CC76/'Inputs - General'!K$6 -> 0 | CJ76: =CD76/'Inputs - General'!L$6 -> 0 | CK76: =CE76/'Inputs - General'!M$6 -> 0 | CL76: =CF76/'Inputs - General'!N$6 -> 0 | CM76: =CG76/'Inputs - General'!O$6 -> 0
A77: Customer 1 | B77: ='Input - Customer Inventory FY15'!C76 -> Lamp - TF2x40 | C77: ='Input - Customer Inventory FY15'!D76 -> Lamp | D77: ='Input - Customer Inventory FY15'!E76 -> TF2x40 | E77: ='Input - Customer Inventory FY15'!G76 -> 2 | G77: 0 | H77: 0 | I77: 0 | K77: 0 | L77: 0 | M77: 0 | N77: 0 | O77: 0 | P77: 0 | R77: =IFERROR(IF(K77-(($G77-SUM($CH77:CH77))/$H77)<0,K77,(($G77-SUM($CH77:CH77))/$H77)),0) -> 0 | S77: =IFERROR(IF(L77-(($G77-SUM($CH77:CI77))/$H77)<0,L77,(($G77-SUM($CH77:CI77))/$H77)),0) -> 0 | T77: =IFERROR(IF(M77-(($G77-SUM($CH77:CJ77))/$H77)<0,M77,(($G77-SUM($CH77:CJ77))/$H77)),0) -> 0 | U77: =IFERROR(IF(N77-(($G77-SUM($CH77:CK77))/$H77)<0,N77,(($G77-SUM($CH77:CK77))/$H77)),0) -> 0 | V77: =IFERROR(IF(O77-(($G77-SUM($CH77:CL77))/$H77)<0,O77,(($G77-SUM($CH77:CL77))/$H77)),0) -> 0 | X77: 0 | Y77: 0 | Z77: 0 | AA77: 0 | AB77: 0 | AC77: 0 | AE77: =X77*'Inputs - General'!J$6 -> 0 | AF77: =Y77*'Inputs - General'!K$6 -> 0 | AG77: =Z77*'Inputs - General'!L$6 -> 0 | AH77: =AA77*'Inputs - General'!M$6 -> 0 | AI77: =AB77*'Inputs - General'!N$6 -> 0 | AJ77: =AC77*'Inputs - General'!O$6 -> 0 | AL77: =K77*'Inputs - General'!J$6 -> 0 | AM77: =L77*'Inputs - General'!K$6 -> 0 | AN77: =M77*'Inputs - General'!L$6 -> 0 | AO77: =N77*'Inputs - General'!M$6 -> 0 | AP77: =O77*'Inputs - General'!N$6 -> 0 | AQ77: =P77*'Inputs - General'!O$6 -> 0 | AS77: =R77*'Inputs - General'!K$6 -> 0 | AT77: =S77*'Inputs - General'!L$6 -> 0 | AU77: =T77*'Inputs - General'!M$6 -> 0 | AV77: =U77*'Inputs - General'!N$6 -> 0 | AW77: =V77*'Inputs - General'!O$6 -> 0 | AY77: =AE77*'Inputs - General'!K$4 -> 0 | AZ77: =AF77*'Inputs - General'!L$4 -> 0 | BA77: =AG77*'Inputs - General'!M$4 -> 0 | BB77: =AH77*'Inputs - General'!N$4 -> 0 | BC77: =AI77*'Inputs - General'!O$4 -> 0 | BE77: 0 | BF77: 0 | BG77: 0 | BH77: 0 | BI77: 0 | BK77: 0 | BL77: 0 | BM77: 0 | BN77: 0 | BO77: 0 | BQ77: ='Input - Customer Inventory FY15'!F76 -> 0 | BW77: =IF($C77="Lamp",0,IF(SUM(BR77:$BV77)>=$BQ77,0,IF(BK77<=0,IF($G77=0,0,$BQ77),0))) -> 0 | BX77: =IF($C77="Lamp",0,IF(SUM($BR77:BW77)>=$BQ77,0,IF(BL77<=0,IF($G77=0,0,$BQ77),0))) -> 0 | BY77: =IF($C77="Lamp",0,IF(SUM($BR77:BX77)>=$BQ77,0,IF(BM77<=0,IF($G77=0,0,$BQ77),0))) -> 0 | BZ77: =IF($C77="Lamp",0,IF(SUM($BR77:BY77)>=$BQ77,0,IF(BN77<=0,IF($G77=0,0,$BQ77),0))) -> 0 | CA77: =IF($C77="Lamp",0,IF(SUM($BR77:BZ77)>=$BQ77,0,IF(BO77<=0,IF($G77=0,0,$BQ77),0))) -> 0 | CI77: =CC77/'Inputs - General'!K$6 -> 0 | CJ77: =CD77/'Inputs - General'!L$6 -> 0 | CK77: =CE77/'Inputs - General'!M$6 -> 0 | CL77: =CF77/'Inputs - General'!N$6 -> 0 | CM77: =CG77/'Inputs - General'!O$6 -> 0
A78: Customer 1 | B78: ='Input - Customer Inventory FY15'!C77 -> Lamp - TF4x20 | C78: ='Input - Customer Inventory FY15'!D77 -> Lamp | D78: ='Input - Customer Inventory FY15'!E77 -> TF4x20 | E78: ='Input - Customer Inventory FY15'!G77 -> 1 | G78: 0 | H78: 0 | I78: 0 | K78: 0 | L78: 0 | M78: 0 | N78: 0 | O78: 0 | P78: 0 | R78: =IFERROR(IF(K78-(($G78-SUM($CH78:CH78))/$H78)<0,K78,(($G78-SUM($CH78:CH78))/$H78)),0) -> 0 | S78: =IFERROR(IF(L78-(($G78-SUM($CH78:CI78))/$H78)<0,L78,(($G78-SUM($CH78:CI78))/$H78)),0) -> 0 | T78: =IFERROR(IF(M78-(($G78-SUM($CH78:CJ78))/$H78)<0,M78,(($G78-SUM($CH78:CJ78))/$H78)),0) -> 0 | U78: =IFERROR(IF(N78-(($G78-SUM($CH78:CK78))/$H78)<0,N78,(($G78-SUM($CH78:CK78))/$H78)),0) -> 0 | V78: =IFERROR(IF(O78-(($G78-SUM($CH78:CL78))/$H78)<0,O78,(($G78-SUM($CH78:CL78))/$H78)),0) -> 0 | X78: 0 | Y78: 0 | Z78: 0 | AA78: 0 | AB78: 0 | AC78: 0 | AE78: =X78*'Inputs - General'!J$6 -> 0 | AF78: =Y78*'Inputs - General'!K$6 -> 0 | AG78: =Z78*'Inputs - General'!L$6 -> 0 | AH78: =AA78*'Inputs - General'!M$6 -> 0 | AI78: =AB78*'Inputs - General'!N$6 -> 0 | AJ78: =AC78*'Inputs - General'!O$6 -> 0 | AL78: =K78*'Inputs - General'!J$6 -> 0 | AM78: =L78*'Inputs - General'!K$6 -> 0 | AN78: =M78*'Inputs - General'!L$6 -> 0 | AO78: =N78*'Inputs - General'!M$6 -> 0 | AP78: =O78*'Inputs - General'!N$6 -> 0 | AQ78: =P78*'Inputs - General'!O$6 -> 0 | AS78: =R78*'Inputs - General'!K$6 -> 0 | AT78: =S78*'Inputs - General'!L$6 -> 0 | AU78: =T78*'Inputs - General'!M$6 -> 0 | AV78: =U78*'Inputs - General'!N$6 -> 0 | AW78: =V78*'Inputs - General'!O$6 -> 0 | AY78: =AE78*'Inputs - General'!K$4 -> 0 | AZ78: =AF78*'Inputs - General'!L$4 -> 0 | BA78: =AG78*'Inputs - General'!M$4 -> 0 | BB78: =AH78*'Inputs - General'!N$4 -> 0 | BC78: =AI78*'Inputs - General'!O$4 -> 0 | BE78: 0 | BF78: 0 | BG78: 0 | BH78: 0 | BI78: 0 | BK78: 0 | BL78: 0 | BM78: 0 | BN78: 0 | BO78: 0 | BQ78: ='Input - Customer Inventory FY15'!F77 -> 10 | BW78: =IF($C78="Lamp",0,IF(SUM(BR78:$BV78)>=$BQ78,0,IF(BK78<=0,IF($G78=0,0,$BQ78),0))) -> 0 | BX78: =IF($C78="Lamp",0,IF(SUM($BR78:BW78)>=$BQ78,0,IF(BL78<=0,IF($G78=0,0,$BQ78),0))) -> 0 | BY78: =IF($C78="Lamp",0,IF(SUM($BR78:BX78)>=$BQ78,0,IF(BM78<=0,IF($G78=0,0,$BQ78),0))) -> 0 | BZ78: =IF($C78="Lamp",0,IF(SUM($BR78:BY78)>=$BQ78,0,IF(BN78<=0,IF($G78=0,0,$BQ78),0))) -> 0 | CA78: =IF($C78="Lamp",0,IF(SUM($BR78:BZ78)>=$BQ78,0,IF(BO78<=0,IF($G78=0,0,$BQ78),0))) -> 0 | CI78: =CC78/'Inputs - General'!K$6 -> 0 | CJ78: =CD78/'Inputs - General'!L$6 -> 0 | CK78: =CE78/'Inputs - General'!M$6 -> 0 | CL78: =CF78/'Inputs - General'!N$6 -> 0 | CM78: =CG78/'Inputs - General'!O$6 -> 0
A79: Customer 1 | B79: ='Input - Customer Inventory FY15'!C78 -> Luminaire - 1000W SON | C79: ='Input - Customer Inventory FY15'!D78 -> Luminaire | D79: ='Input - Customer Inventory FY15'!E78 -> 1000W SON | E79: ='Input - Customer Inventory FY15'!G78 -> 1 | G79: 0 | H79: 0 | I79: 0 | K79: 0 | L79: 0 | M79: 0 | N79: 0 | O79: 0 | P79: 0 | R79: =IFERROR(IF(K79-(($G79-SUM($CH79:CH79))/$H79)<0,K79,(($G79-SUM($CH79:CH79))/$H79)),0) -> 0 | S79: =IFERROR(IF(L79-(($G79-SUM($CH79:CI79))/$H79)<0,L79,(($G79-SUM($CH79:CI79))/$H79)),0) -> 0 | T79: =IFERROR(IF(M79-(($G79-SUM($CH79:CJ79))/$H79)<0,M79,(($G79-SUM($CH79:CJ79))/$H79)),0) -> 0 | U79: =IFERROR(IF(N79-(($G79-SUM($CH79:CK79))/$H79)<0,N79,(($G79-SUM($CH79:CK79))/$H79)),0) -> 0 | V79: =IFERROR(IF(O79-(($G79-SUM($CH79:CL79))/$H79)<0,O79,(($G79-SUM($CH79:CL79))/$H79)),0) -> 0 | X79: 0 | Y79: 0 | Z79: 0 | AA79: 0 | AB79: 0 | AC79: 0 | AE79: =X79*'Inputs - General'!J$6 -> 0 | AF79: =Y79*'Inputs - General'!K$6 -> 0 | AG79: =Z79*'Inputs - General'!L$6 -> 0 | AH79: =AA79*'Inputs - General'!M$6 -> 0 | AI79: =AB79*'Inputs - General'!N$6 -> 0 | AJ79: =AC79*'Inputs - General'!O$6 -> 0 | AL79: =K79*'Inputs - General'!J$6 -> 0 | AM79: =L79*'Inputs - General'!K$6 -> 0 | AN79: =M79*'Inputs - General'!L$6 -> 0 | AO79: =N79*'Inputs - General'!M$6 -> 0 | AP79: =O79*'Inputs - General'!N$6 -> 0 | AQ79: =P79*'Inputs - General'!O$6 -> 0 | AS79: =R79*'Inputs - General'!K$6 -> 0 | AT79: =S79*'Inputs - General'!L$6 -> 0 | AU79: =T79*'Inputs - General'!M$6 -> 0 | AV79: =U79*'Inputs - General'!N$6 -> 0 | AW79: =V79*'Inputs - General'!O$6 -> 0 | AY79: =AE79*'Inputs - General'!K$4 -> 0 | AZ79: =AF79*'Inputs - General'!L$4 -> 0 | BA79: =AG79*'Inputs - General'!M$4 -> 0 | BB79: =AH79*'Inputs - General'!N$4 -> 0 | BC79: =AI79*'Inputs - General'!O$4 -> 0 | BE79: 0 | BF79: 0 | BG79: 0 | BH79: 0 | BI79: 0 | BK79: 0 | BL79: 0 | BM79: 0 | BN79: 0 | BO79: 0 | BQ79: ='Input - Customer Inventory FY15'!F78 -> 0 | BW79: =IF($C79="Lamp",0,IF(SUM(BR79:$BV79)>=$BQ79,0,IF(BK79<=0,IF($G79=0,0,$BQ79),0))) -> 0 | BX79: =IF($C79="Lamp",0,IF(SUM($BR79:BW79)>=$BQ79,0,IF(BL79<=0,IF($G79=0,0,$BQ79),0))) -> 0 | BY79: =IF($C79="Lamp",0,IF(SUM($BR79:BX79)>=$BQ79,0,IF(BM79<=0,IF($G79=0,0,$BQ79),0))) -> 0 | BZ79: =IF($C79="Lamp",0,IF(SUM($BR79:BY79)>=$BQ79,0,IF(BN79<=0,IF($G79=0,0,$BQ79),0))) -> 0 | CA79: =IF($C79="Lamp",0,IF(SUM($BR79:BZ79)>=$BQ79,0,IF(BO79<=0,IF($G79=0,0,$BQ79),0))) -> 0 | CI79: =CC79/'Inputs - General'!K$6 -> 0 | CJ79: =CD79/'Inputs - General'!L$6 -> 0 | CK79: =CE79/'Inputs - General'!M$6 -> 0 | CL79: =CF79/'Inputs - General'!N$6 -> 0 | CM79: =CG79/'Inputs - General'!O$6 -> 0
A80: Customer 1 | B80: ='Input - Customer Inventory FY15'!C79 -> Luminaire - 100W SON -PLAIN | C80: ='Input - Customer Inventory FY15'!D79 -> Luminaire | D80: ='Input - Customer Inventory FY15'!E79 -> 100W SON -PLAIN | E80: ='Input - Customer Inventory FY15'!G79 -> 1 | G80: 0 | H80: 0 | I80: 0 | K80: 0 | L80: 0 | M80: 0 | N80: 0 | O80: 0 | P80: 0 | R80: =IFERROR(IF(K80-(($G80-SUM($CH80:CH80))/$H80)<0,K80,(($G80-SUM($CH80:CH80))/$H80)),0) -> 0 | S80: =IFERROR(IF(L80-(($G80-SUM($CH80:CI80))/$H80)<0,L80,(($G80-SUM($CH80:CI80))/$H80)),0) -> 0 | T80: =IFERROR(IF(M80-(($G80-SUM($CH80:CJ80))/$H80)<0,M80,(($G80-SUM($CH80:CJ80))/$H80)),0) -> 0 | U80: =IFERROR(IF(N80-(($G80-SUM($CH80:CK80))/$H80)<0,N80,(($G80-SUM($CH80:CK80))/$H80)),0) -> 0 | V80: =IFERROR(IF(O80-(($G80-SUM($CH80:CL80))/$H80)<0,O80,(($G80-SUM($CH80:CL80))/$H80)),0) -> 0 | X80: 0 | Y80: 0 | Z80: 0 | AA80: 0 | AB80: 0 | AC80: 0 | AE80: =X80*'Inputs - General'!J$6 -> 0 | AF80: =Y80*'Inputs - General'!K$6 -> 0 | AG80: =Z80*'Inputs - General'!L$6 -> 0 | AH80: =AA80*'Inputs - General'!M$6 -> 0 | AI80: =AB80*'Inputs - General'!N$6 -> 0 | AJ80: =AC80*'Inputs - General'!O$6 -> 0 | AL80: =K80*'Inputs - General'!J$6 -> 0 | AM80: =L80*'Inputs - General'!K$6 -> 0 | AN80: =M80*'Inputs - General'!L$6 -> 0 | AO80: =N80*'Inputs - General'!M$6 -> 0 | AP80: =O80*'Inputs - General'!N$6 -> 0 | AQ80: =P80*'Inputs - General'!O$6 -> 0 | AS80: =R80*'Inputs - General'!K$6 -> 0 | AT80: =S80*'Inputs - General'!L$6 -> 0 | AU80: =T80*'Inputs - General'!M$6 -> 0 | AV80: =U80*'Inputs - General'!N$6 -> 0 | AW80: =V80*'Inputs - General'!O$6 -> 0 | AY80: =AE80*'Inputs - General'!K$4 -> 0 | AZ80: =AF80*'Inputs - General'!L$4 -> 0 | BA80: =AG80*'Inputs - General'!M$4 -> 0 | BB80: =AH80*'Inputs - General'!N$4 -> 0 | BC80: =AI80*'Inputs - General'!O$4 -> 0 | BE80: 0 | BF80: 0 | BG80: 0 | BH80: 0 | BI80: 0 | BK80: 0 | BL80: 0 | BM80: 0 | BN80: 0 | BO80: 0 | BQ80: ='Input - Customer Inventory FY15'!F79 -> 1 | BW80: =IF($C80="Lamp",0,IF(SUM(BR80:$BV80)>=$BQ80,0,IF(BK80<=0,IF($G80=0,0,$BQ80),0))) -> 0 | BX80: =IF($C80="Lamp",0,IF(SUM($BR80:BW80)>=$BQ80,0,IF(BL80<=0,IF($G80=0,0,$BQ80),0))) -> 0 | BY80: =IF($C80="Lamp",0,IF(SUM($BR80:BX80)>=$BQ80,0,IF(BM80<=0,IF($G80=0,0,$BQ80),0))) -> 0 | BZ80: =IF($C80="Lamp",0,IF(SUM($BR80:BY80)>=$BQ80,0,IF(BN80<=0,IF($G80=0,0,$BQ80),0))) -> 0 | CA80: =IF($C80="Lamp",0,IF(SUM($BR80:BZ80)>=$BQ80,0,IF(BO80<=0,IF($G80=0,0,$BQ80),0))) -> 0 | CI80: =CC80/'Inputs - General'!K$6 -> 0 | CJ80: =CD80/'Inputs - General'!L$6 -> 0 | CK80: =CE80/'Inputs - General'!M$6 -> 0 | CL80: =CF80/'Inputs - General'!N$6 -> 0 | CM80: =CG80/'Inputs - General'!O$6 -> 0
A81: Customer 1 | B81: ='Input - Customer Inventory FY15'!C80 -> Luminaire - 100W SON | C81: ='Input - Customer Inventory FY15'!D80 -> Luminaire | D81: ='Input - Customer Inventory FY15'!E80 -> 100W SON | E81: ='Input - Customer Inventory FY15'!G80 -> 1 | G81: 0 | H81: 0 | I81: 0 | K81: 0 | L81: 0 | M81: 0 | N81: 0 | O81: 0 | P81: 0 | R81: =IFERROR(IF(K81-(($G81-SUM($CH81:CH81))/$H81)<0,K81,(($G81-SUM($CH81:CH81))/$H81)),0) -> 0 | S81: =IFERROR(IF(L81-(($G81-SUM($CH81:CI81))/$H81)<0,L81,(($G81-SUM($CH81:CI81))/$H81)),0) -> 0 | T81: =IFERROR(IF(M81-(($G81-SUM($CH81:CJ81))/$H81)<0,M81,(($G81-SUM($CH81:CJ81))/$H81)),0) -> 0 | U81: =IFERROR(IF(N81-(($G81-SUM($CH81:CK81))/$H81)<0,N81,(($G81-SUM($CH81:CK81))/$H81)),0) -> 0 | V81: =IFERROR(IF(O81-(($G81-SUM($CH81:CL81))/$H81)<0,O81,(($G81-SUM($CH81:CL81))/$H81)),0) -> 0 | X81: 0 | Y81: 0 | Z81: 0 | AA81: 0 | AB81: 0 | AC81: 0 | AE81: =X81*'Inputs - General'!J$6 -> 0 | AF81: =Y81*'Inputs - General'!K$6 -> 0 | AG81: =Z81*'Inputs - General'!L$6 -> 0 | AH81: =AA81*'Inputs - General'!M$6 -> 0 | AI81: =AB81*'Inputs - General'!N$6 -> 0 | AJ81: =AC81*'Inputs - General'!O$6 -> 0 | AL81: =K81*'Inputs - General'!J$6 -> 0 | AM81: =L81*'Inputs - General'!K$6 -> 0 | AN81: =M81*'Inputs - General'!L$6 -> 0 | AO81: =N81*'Inputs - General'!M$6 -> 0 | AP81: =O81*'Inputs - General'!N$6 -> 0 | AQ81: =P81*'Inputs - General'!O$6 -> 0 | AS81: =R81*'Inputs - General'!K$6 -> 0 | AT81: =S81*'Inputs - General'!L$6 -> 0 | AU81: =T81*'Inputs - General'!M$6 -> 0 | AV81: =U81*'Inputs - General'!N$6 -> 0 | AW81: =V81*'Inputs - General'!O$6 -> 0 | AY81: =AE81*'Inputs - General'!K$4 -> 0 | AZ81: =AF81*'Inputs - General'!L$4 -> 0 | BA81: =AG81*'Inputs - General'!M$4 -> 0 | BB81: =AH81*'Inputs - General'!N$4 -> 0 | BC81: =AI81*'Inputs - General'!O$4 -> 0 | BE81: 0 | BF81: 0 | BG81: 0 | BH81: 0 | BI81: 0 | BK81: 0 | BL81: 0 | BM81: 0 | BN81: 0 | BO81: 0 | BQ81: ='Input - Customer Inventory FY15'!F80 -> 8 | BW81: =IF($C81="Lamp",0,IF(SUM(BR81:$BV81)>=$BQ81,0,IF(BK81<=0,IF($G81=0,0,$BQ81),0))) -> 0 | BX81: =IF($C81="Lamp",0,IF(SUM($BR81:BW81)>=$BQ81,0,IF(BL81<=0,IF($G81=0,0,$BQ81),0))) -> 0 | BY81: =IF($C81="Lamp",0,IF(SUM($BR81:BX81)>=$BQ81,0,IF(BM81<=0,IF($G81=0,0,$BQ81),0))) -> 0 | BZ81: =IF($C81="Lamp",0,IF(SUM($BR81:BY81)>=$BQ81,0,IF(BN81<=0,IF($G81=0,0,$BQ81),0))) -> 0 | CA81: =IF($C81="Lamp",0,IF(SUM($BR81:BZ81)>=$BQ81,0,IF(BO81<=0,IF($G81=0,0,$BQ81),0))) -> 0 | CI81: =CC81/'Inputs - General'!K$6 -> 0 | CJ81: =CD81/'Inputs - General'!L$6 -> 0 | CK81: =CE81/'Inputs - General'!M$6 -> 0 | CL81: =CF81/'Inputs - General'!N$6 -> 0 | CM81: =CG81/'Inputs - General'!O$6 -> 0
A82: Customer 1 | B82: ='Input - Customer Inventory FY15'!C81 -> Luminaire - 125W MBF -PLAIN | C82: ='Input - Customer Inventory FY15'!D81 -> Luminaire | D82: ='Input - Customer Inventory FY15'!E81 -> 125W MBF -PLAIN | E82: ='Input - Customer Inventory FY15'!G81 -> 1 | G82: 0.7706026856 | H82: 0.8368949772 | I82: 0.9207878009 | K82: 0.7706026856 | L82: 0 | M82: 0 | N82: 0 | O82: 0 | P82: 0 | R82: =IFERROR(IF(K82-(($G82-SUM($CH82:CH82))/$H82)<0,K82,(($G82-SUM($CH82:CH82))/$H82)),0) -> 0.7706026856 | S82: =IFERROR(IF(L82-(($G82-SUM($CH82:CI82))/$H82)<0,L82,(($G82-SUM($CH82:CI82))/$H82)),0) -> 0 | T82: =IFERROR(IF(M82-(($G82-SUM($CH82:CJ82))/$H82)<0,M82,(($G82-SUM($CH82:CJ82))/$H82)),0) -> 0 | U82: =IFERROR(IF(N82-(($G82-SUM($CH82:CK82))/$H82)<0,N82,(($G82-SUM($CH82:CK82))/$H82)),0) -> 0 | V82: =IFERROR(IF(O82-(($G82-SUM($CH82:CL82))/$H82)<0,O82,(($G82-SUM($CH82:CL82))/$H82)),0) -> 0 | X82: 0.7706026856 | Y82: 0 | Z82: 0 | AA82: 0 | AB82: 0 | AC82: 0 | AE82: =X82*'Inputs - General'!J$6 -> 0.7706026856 | AF82: =Y82*'Inputs - General'!K$6 -> 0 | AG82: =Z82*'Inputs - General'!L$6 -> 0 | AH82: =AA82*'Inputs - General'!M$6 -> 0 | AI82: =AB82*'Inputs - General'!N$6 -> 0 | AJ82: =AC82*'Inputs - General'!O$6 -> 0 | AL82: =K82*'Inputs - General'!J$6 -> 0.7706026856 | AM82: =L82*'Inputs - General'!K$6 -> 0 | AN82: =M82*'Inputs - General'!L$6 -> 0 | AO82: =N82*'Inputs - General'!M$6 -> 0 | AP82: =O82*'Inputs - General'!N$6 -> 0 | AQ82: =P82*'Inputs - General'!O$6 -> 0 | AS82: =R82*'Inputs - General'!K$6 -> 0.7892888348 | AT82: =S82*'Inputs - General'!L$6 -> 0 | AU82: =T82*'Inputs - General'!M$6 -> 0 | AV82: =U82*'Inputs - General'!N$6 -> 0 | AW82: =V82*'Inputs - General'!O$6 -> 0 | AY82: =AE82*'Inputs - General'!K$4 -> 0.01868614923 | AZ82: =AF82*'Inputs - General'!L$4 -> 0 | BA82: =AG82*'Inputs - General'!M$4 -> 0 | BB82: =AH82*'Inputs - General'!N$4 -> 0 | BC82: =AI82*'Inputs - General'!O$4 -> 0 | BE82: 0.7706026856 | BF82: 0 | BG82: 0 | BH82: 0 | BI82: 0 | BK82: 0.04841704825 | BL82: 0 | BM82: 0 | BN82: 0 | BO82: 0 | BQ82: ='Input - Customer Inventory FY15'!F81 -> 31.5 | BW82: =IF($C82="Lamp",0,IF(SUM(BR82:$BV82)>=$BQ82,0,IF(BK82<=0,IF($G82=0,0,$BQ82),0))) -> 0 | BX82: =IF($C82="Lamp",0,IF(SUM($BR82:BW82)>=$BQ82,0,IF(BL82<=0,IF($G82=0,0,$BQ82),0))) -> 31.5 | BY82: =IF($C82="Lamp",0,IF(SUM($BR82:BX82)>=$BQ82,0,IF(BM82<=0,IF($G82=0,0,$BQ82),0))) -> 0 | BZ82: =IF($C82="Lamp",0,IF(SUM($BR82:BY82)>=$BQ82,0,IF(BN82<=0,IF($G82=0,0,$BQ82),0))) -> 0 | CA82: =IF($C82="Lamp",0,IF(SUM($BR82:BZ82)>=$BQ82,0,IF(BO82<=0,IF($G82=0,0,$BQ82),0))) -> 0 | CI82: =CC82/'Inputs - General'!K$6 -> 0 | CJ82: =CD82/'Inputs - General'!L$6 -> 0 | CK82: =CE82/'Inputs - General'!M$6 -> 0 | CL82: =CF82/'Inputs - General'!N$6 -> 0 | CM82: =CG82/'Inputs - General'!O$6 -> 0
A83: Customer 1 | B83: ='Input - Customer Inventory FY15'!C82 -> Luminaire - 125W MBF | C83: ='Input - Customer Inventory FY15'!D82 -> Luminaire | D83: ='Input - Customer Inventory FY15'!E82 -> 125W MBF | E83: ='Input - Customer Inventory FY15'!G82 -> 1 | G83: 0 | H83: 0 | I83: 0 | K83: 0 | L83: 0 | M83: 0 | N83: 0 | O83: 0 | P83: 0 | R83: =IFERROR(IF(K83-(($G83-SUM($CH83:CH83))/$H83)<0,K83,(($G83-SUM($CH83:CH83))/$H83)),0) -> 0 | S83: =IFERROR(IF(L83-(($G83-SUM($CH83:CI83))/$H83)<0,L83,(($G83-SUM($CH83:CI83))/$H83)),0) -> 0 | T83: =IFERROR(IF(M83-(($G83-SUM($CH83:CJ83))/$H83)<0,M83,(($G83-SUM($CH83:CJ83))/$H83)),0) -> 0 | U83: =IFERROR(IF(N83-(($G83-SUM($CH83:CK83))/$H83)<0,N83,(($G83-SUM($CH83:CK83))/$H83)),0) -> 0 | V83: =IFERROR(IF(O83-(($G83-SUM($CH83:CL83))/$H83)<0,O83,(($G83-SUM($CH83:CL83))/$H83)),0) -> 0 | X83: 0 | Y83: 0 | Z83: 0 | AA83: 0 | AB83: 0 | AC83: 0 | AE83: =X83*'Inputs - General'!J$6 -> 0 | AF83: =Y83*'Inputs - General'!K$6 -> 0 | AG83: =Z83*'Inputs - General'!L$6 -> 0 | AH83: =AA83*'Inputs - General'!M$6 -> 0 | AI83: =AB83*'Inputs - General'!N$6 -> 0 | AJ83: =AC83*'Inputs - General'!O$6 -> 0 | AL83: =K83*'Inputs - General'!J$6 -> 0 | AM83: =L83*'Inputs - General'!K$6 -> 0 | AN83: =M83*'Inputs - General'!L$6 -> 0 | AO83: =N83*'Inputs - General'!M$6 -> 0 | AP83: =O83*'Inputs - General'!N$6 -> 0 | AQ83: =P83*'Inputs - General'!O$6 -> 0 | AS83: =R83*'Inputs - General'!K$6 -> 0 | AT83: =S83*'Inputs - General'!L$6 -> 0 | AU83: =T83*'Inputs - General'!M$6 -> 0 | AV83: =U83*'Inputs - General'!N$6 -> 0 | AW83: =V83*'Inputs - General'!O$6 -> 0 | AY83: =AE83*'Inputs - General'!K$4 -> 0 | AZ83: =AF83*'Inputs - General'!L$4 -> 0 | BA83: =AG83*'Inputs - General'!M$4 -> 0 | BB83: =AH83*'Inputs - General'!N$4 -> 0 | BC83: =AI83*'Inputs - General'!O$4 -> 0 | BE83: 0 | BF83: 0 | BG83: 0 | BH83: 0 | BI83: 0 | BK83: 0 | BL83: 0 | BM83: 0 | BN83: 0 | BO83: 0 | BQ83: ='Input - Customer Inventory FY15'!F82 -> 152 | BW83: =IF($C83="Lamp",0,IF(SUM(BR83:$BV83)>=$BQ83,0,IF(BK83<=0,IF($G83=0,0,$BQ83),0))) -> 0 | BX83: =IF($C83="Lamp",0,IF(SUM($BR83:BW83)>=$BQ83,0,IF(BL83<=0,IF($G83=0,0,$BQ83),0))) -> 0 | BY83: =IF($C83="Lamp",0,IF(SUM($BR83:BX83)>=$BQ83,0,IF(BM83<=0,IF($G83=0,0,$BQ83),0))) -> 0 | BZ83: =IF($C83="Lamp",0,IF(SUM($BR83:BY83)>=$BQ83,0,IF(BN83<=0,IF($G83=0,0,$BQ83),0))) -> 0 | CA83: =IF($C83="Lamp",0,IF(SUM($BR83:BZ83)>=$BQ83,0,IF(BO83<=0,IF($G83=0,0,$BQ83),0))) -> 0 | CI83: =CC83/'Inputs - General'!K$6 -> 0 | CJ83: =CD83/'Inputs - General'!L$6 -> 0 | CK83: =CE83/'Inputs - General'!M$6 -> 0 | CL83: =CF83/'Inputs - General'!N$6 -> 0 | CM83: =CG83/'Inputs - General'!O$6 -> 0
A84: Customer 1 | B84: ='Input - Customer Inventory FY15'!C83 -> Luminaire - 125W MBF | C84: ='Input - Customer Inventory FY15'!D83 -> Luminaire | D84: ='Input - Customer Inventory FY15'!E83 -> 125W MBF | E84: ='Input - Customer Inventory FY15'!G83 -> 2 | G84: 0 | H84: 0 | I84: 0 | K84: 0 | L84: 0 | M84: 0 | N84: 0 | O84: 0 | P84: 0 | R84: =IFERROR(IF(K84-(($G84-SUM($CH84:CH84))/$H84)<0,K84,(($G84-SUM($CH84:CH84))/$H84)),0) -> 0 | S84: =IFERROR(IF(L84-(($G84-SUM($CH84:CI84))/$H84)<0,L84,(($G84-SUM($CH84:CI84))/$H84)),0) -> 0 | T84: =IFERROR(IF(M84-(($G84-SUM($CH84:CJ84))/$H84)<0,M84,(($G84-SUM($CH84:CJ84))/$H84)),0) -> 0 | U84: =IFERROR(IF(N84-(($G84-SUM($CH84:CK84))/$H84)<0,N84,(($G84-SUM($CH84:CK84))/$H84)),0) -> 0 | V84: =IFERROR(IF(O84-(($G84-SUM($CH84:CL84))/$H84)<0,O84,(($G84-SUM($CH84:CL84))/$H84)),0) -> 0 | X84: 0 | Y84: 0 | Z84: 0 | AA84: 0 | AB84: 0 | AC84: 0 | AE84: =X84*'Inputs - General'!J$6 -> 0 | AF84: =Y84*'Inputs - General'!K$6 -> 0 | AG84: =Z84*'Inputs - General'!L$6 -> 0 | AH84: =AA84*'Inputs - General'!M$6 -> 0 | AI84: =AB84*'Inputs - General'!N$6 -> 0 | AJ84: =AC84*'Inputs - General'!O$6 -> 0 | AL84: =K84*'Inputs - General'!J$6 -> 0 | AM84: =L84*'Inputs - General'!K$6 -> 0 | AN84: =M84*'Inputs - General'!L$6 -> 0 | AO84: =N84*'Inputs - General'!M$6 -> 0 | AP84: =O84*'Inputs - General'!N$6 -> 0 | AQ84: =P84*'Inputs - General'!O$6 -> 0 | AS84: =R84*'Inputs - General'!K$6 -> 0 | AT84: =S84*'Inputs - General'!L$6 -> 0 | AU84: =T84*'Inputs - General'!M$6 -> 0 | AV84: =U84*'Inputs - General'!N$6 -> 0 | AW84: =V84*'Inputs - General'!O$6 -> 0 | AY84: =AE84*'Inputs - General'!K$4 -> 0 | AZ84: =AF84*'Inputs - General'!L$4 -> 0 | BA84: =AG84*'Inputs - General'!M$4 -> 0 | BB84: =AH84*'Inputs - General'!N$4 -> 0 | BC84: =AI84*'Inputs - General'!O$4 -> 0 | BE84: 0 | BF84: 0 | BG84: 0 | BH84: 0 | BI84: 0 | BK84: 0 | BL84: 0 | BM84: 0 | BN84: 0 | BO84: 0 | BQ84: ='Input - Customer Inventory FY15'!F83 -> 0 | BW84: =IF($C84="Lamp",0,IF(SUM(BR84:$BV84)>=$BQ84,0,IF(BK84<=0,IF($G84=0,0,$BQ84),0))) -> 0 | BX84: =IF($C84="Lamp",0,IF(SUM($BR84:BW84)>=$BQ84,0,IF(BL84<=0,IF($G84=0,0,$BQ84),0))) -> 0 | BY84: =IF($C84="Lamp",0,IF(SUM($BR84:BX84)>=$BQ84,0,IF(BM84<=0,IF($G84=0,0,$BQ84),0))) -> 0 | BZ84: =IF($C84="Lamp",0,IF(SUM($BR84:BY84)>=$BQ84,0,IF(BN84<=0,IF($G84=0,0,$BQ84),0))) -> 0 | CA84: =IF($C84="Lamp",0,IF(SUM($BR84:BZ84)>=$BQ84,0,IF(BO84<=0,IF($G84=0,0,$BQ84),0))) -> 0 | CI84: =CC84/'Inputs - General'!K$6 -> 0 | CJ84: =CD84/'Inputs - General'!L$6 -> 0 | CK84: =CE84/'Inputs - General'!M$6 -> 0 | CL84: =CF84/'Inputs - General'!N$6 -> 0 | CM84: =CG84/'Inputs - General'!O$6 -> 0
A85: Customer 1 | B85: ='Input - Customer Inventory FY15'!C84 -> Luminaire - 125W/250W MBF FLOODLIGHT | C85: ='Input - Customer Inventory FY15'!D84 -> Luminaire | D85: ='Input - Customer Inventory FY15'!E84 -> 125W/250W MBF FLOODLIGHT | E85: ='Input - Customer Inventory FY15'!G84 -> 1 | G85: 0 | H85: 0 | I85: 0 | K85: 0 | L85: 0 | M85: 0 | N85: 0 | O85: 0 | P85: 0 | R85: =IFERROR(IF(K85-(($G85-SUM($CH85:CH85))/$H85)<0,K85,(($G85-SUM($CH85:CH85))/$H85)),0) -> 0 | S85: =IFERROR(IF(L85-(($G85-SUM($CH85:CI85))/$H85)<0,L85,(($G85-SUM($CH85:CI85))/$H85)),0) -> 0 | T85: =IFERROR(IF(M85-(($G85-SUM($CH85:CJ85))/$H85)<0,M85,(($G85-SUM($CH85:CJ85))/$H85)),0) -> 0 | U85: =IFERROR(IF(N85-(($G85-SUM($CH85:CK85))/$H85)<0,N85,(($G85-SUM($CH85:CK85))/$H85)),0) -> 0 | V85: =IFERROR(IF(O85-(($G85-SUM($CH85:CL85))/$H85)<0,O85,(($G85-SUM($CH85:CL85))/$H85)),0) -> 0 | X85: 0 | Y85: 0 | Z85: 0 | AA85: 0 | AB85: 0 | AC85: 0 | AE85: =X85*'Inputs - General'!J$6 -> 0 | AF85: =Y85*'Inputs - General'!K$6 -> 0 | AG85: =Z85*'Inputs - General'!L$6 -> 0 | AH85: =AA85*'Inputs - General'!M$6 -> 0 | AI85: =AB85*'Inputs - General'!N$6 -> 0 | AJ85: =AC85*'Inputs - General'!O$6 -> 0 | AL85: =K85*'Inputs - General'!J$6 -> 0 | AM85: =L85*'Inputs - General'!K$6 -> 0 | AN85: =M85*'Inputs - General'!L$6 -> 0 | AO85: =N85*'Inputs - General'!M$6 -> 0 | AP85: =O85*'Inputs - General'!N$6 -> 0 | AQ85: =P85*'Inputs - General'!O$6 -> 0 | AS85: =R85*'Inputs - General'!K$6 -> 0 | AT85: =S85*'Inputs - General'!L$6 -> 0 | AU85: =T85*'Inputs - General'!M$6 -> 0 | AV85: =U85*'Inputs - General'!N$6 -> 0 | AW85: =V85*'Inputs - General'!O$6 -> 0 | AY85: =AE85*'Inputs - General'!K$4 -> 0 | AZ85: =AF85*'Inputs - General'!L$4 -> 0 | BA85: =AG85*'Inputs - General'!M$4 -> 0 | BB85: =AH85*'Inputs - General'!N$4 -> 0 | BC85: =AI85*'Inputs - General'!O$4 -> 0 | BE85: 0 | BF85: 0 | BG85: 0 | BH85: 0 | BI85: 0 | BK85: 0 | BL85: 0 | BM85: 0 | BN85: 0 | BO85: 0 | BQ85: ='Input - Customer Inventory FY15'!F84 -> 1 | BW85: =IF($C85="Lamp",0,IF(SUM(BR85:$BV85)>=$BQ85,0,IF(BK85<=0,IF($G85=0,0,$BQ85),0))) -> 0 | BX85: =IF($C85="Lamp",0,IF(SUM($BR85:BW85)>=$BQ85,0,IF(BL85<=0,IF($G85=0,0,$BQ85),0))) -> 0 | BY85: =IF($C85="Lamp",0,IF(SUM($BR85:BX85)>=$BQ85,0,IF(BM85<=0,IF($G85=0,0,$BQ85),0))) -> 0 | BZ85: =IF($C85="Lamp",0,IF(SUM($BR85:BY85)>=$BQ85,0,IF(BN85<=0,IF($G85=0,0,$BQ85),0))) -> 0 | CA85: =IF($C85="Lamp",0,IF(SUM($BR85:BZ85)>=$BQ85,0,IF(BO85<=0,IF($G85=0,0,$BQ85),0))) -> 0 | CI85: =CC85/'Inputs - General'!K$6 -> 0 | CJ85: =CD85/'Inputs - General'!L$6 -> 0 | CK85: =CE85/'Inputs - General'!M$6 -> 0 | CL85: =CF85/'Inputs - General'!N$6 -> 0 | CM85: =CG85/'Inputs - General'!O$6 -> 0
A86: Customer 1 | B86: ='Input - Customer Inventory FY15'!C85 -> Luminaire - 150W SON - PARKWAY 1 | C86: ='Input - Customer Inventory FY15'!D85 -> Luminaire | D86: ='Input - Customer Inventory FY15'!E85 -> 150W SON - PARKWAY 1 | E86: ='Input - Customer Inventory FY15'!G85 -> 1 | G86: 0 | H86: 0 | I86: 0 | K86: 0 | L86: 0 | M86: 0 | N86: 0 | O86: 0 | P86: 0 | R86: =IFERROR(IF(K86-(($G86-SUM($CH86:CH86))/$H86)<0,K86,(($G86-SUM($CH86:CH86))/$H86)),0) -> 0 | S86: =IFERROR(IF(L86-(($G86-SUM($CH86:CI86))/$H86)<0,L86,(($G86-SUM($CH86:CI86))/$H86)),0) -> 0 | T86: =IFERROR(IF(M86-(($G86-SUM($CH86:CJ86))/$H86)<0,M86,(($G86-SUM($CH86:CJ86))/$H86)),0) -> 0 | U86: =IFERROR(IF(N86-(($G86-SUM($CH86:CK86))/$H86)<0,N86,(($G86-SUM($CH86:CK86))/$H86)),0) -> 0 | V86: =IFERROR(IF(O86-(($G86-SUM($CH86:CL86))/$H86)<0,O86,(($G86-SUM($CH86:CL86))/$H86)),0) -> 0 | X86: 0 | Y86: 0 | Z86: 0 | AA86: 0 | AB86: 0 | AC86: 0 | AE86: =X86*'Inputs - General'!J$6 -> 0 | AF86: =Y86*'Inputs - General'!K$6 -> 0 | AG86: =Z86*'Inputs - General'!L$6 -> 0 | AH86: =AA86*'Inputs - General'!M$6 -> 0 | AI86: =AB86*'Inputs - General'!N$6 -> 0 | AJ86: =AC86*'Inputs - General'!O$6 -> 0 | AL86: =K86*'Inputs - General'!J$6 -> 0 | AM86: =L86*'Inputs - General'!K$6 -> 0 | AN86: =M86*'Inputs - General'!L$6 -> 0 | AO86: =N86*'Inputs - General'!M$6 -> 0 | AP86: =O86*'Inputs - General'!N$6 -> 0 | AQ86: =P86*'Inputs - General'!O$6 -> 0 | AS86: =R86*'Inputs - General'!K$6 -> 0 | AT86: =S86*'Inputs - General'!L$6 -> 0 | AU86: =T86*'Inputs - General'!M$6 -> 0 | AV86: =U86*'Inputs - General'!N$6 -> 0 | AW86: =V86*'Inputs - General'!O$6 -> 0 | AY86: =AE86*'Inputs - General'!K$4 -> 0 | AZ86: =AF86*'Inputs - General'!L$4 -> 0 | BA86: =AG86*'Inputs - General'!M$4 -> 0 | BB86: =AH86*'Inputs - General'!N$4 -> 0 | BC86: =AI86*'Inputs - General'!O$4 -> 0 | BE86: 0 | BF86: 0 | BG86: 0 | BH86: 0 | BI86: 0 | BK86: 0 | BL86: 0 | BM86: 0 | BN86: 0 | BO86: 0 | BQ86: ='Input - Customer Inventory FY15'!F85 -> 38 | BW86: =IF($C86="Lamp",0,IF(SUM(BR86:$BV86)>=$BQ86,0,IF(BK86<=0,IF($G86=0,0,$BQ86),0))) -> 0 | BX86: =IF($C86="Lamp",0,IF(SUM($BR86:BW86)>=$BQ86,0,IF(BL86<=0,IF($G86=0,0,$BQ86),0))) -> 0 | BY86: =IF($C86="Lamp",0,IF(SUM($BR86:BX86)>=$BQ86,0,IF(BM86<=0,IF($G86=0,0,$BQ86),0))) -> 0 | BZ86: =IF($C86="Lamp",0,IF(SUM($BR86:BY86)>=$BQ86,0,IF(BN86<=0,IF($G86=0,0,$BQ86),0))) -> 0 | CA86: =IF($C86="Lamp",0,IF(SUM($BR86:BZ86)>=$BQ86,0,IF(BO86<=0,IF($G86=0,0,$BQ86),0))) -> 0 | CI86: =CC86/'Inputs - General'!K$6 -> 0 | CJ86: =CD86/'Inputs - General'!L$6 -> 0 | CK86: =CE86/'Inputs - General'!M$6 -> 0 | CL86: =CF86/'Inputs - General'!N$6 -> 0 | CM86: =CG86/'Inputs - General'!O$6 -> 0
A87: Customer 1 | B87: ='Input - Customer Inventory FY15'!C86 -> Luminaire - 150W SON FLOODLIGHT | C87: ='Input - Customer Inventory FY15'!D86 -> Luminaire | D87: ='Input - Customer Inventory FY15'!E86 -> 150W SON FLOODLIGHT | E87: ='Input - Customer Inventory FY15'!G86 -> 1 | G87: 0 | H87: 0 | I87: 0 | K87: 0 | L87: 0 | M87: 0 | N87: 0 | O87: 0 | P87: 0 | R87: =IFERROR(IF(K87-(($G87-SUM($CH87:CH87))/$H87)<0,K87,(($G87-SUM($CH87:CH87))/$H87)),0) -> 0 | S87: =IFERROR(IF(L87-(($G87-SUM($CH87:CI87))/$H87)<0,L87,(($G87-SUM($CH87:CI87))/$H87)),0) -> 0 | T87: =IFERROR(IF(M87-(($G87-SUM($CH87:CJ87))/$H87)<0,M87,(($G87-SUM($CH87:CJ87))/$H87)),0) -> 0 | U87: =IFERROR(IF(N87-(($G87-SUM($CH87:CK87))/$H87)<0,N87,(($G87-SUM($CH87:CK87))/$H87)),0) -> 0 | V87: =IFERROR(IF(O87-(($G87-SUM($CH87:CL87))/$H87)<0,O87,(($G87-SUM($CH87:CL87))/$H87)),0) -> 0 | X87: 0 | Y87: 0 | Z87: 0 | AA87: 0 | AB87: 0 | AC87: 0 | AE87: =X87*'Inputs - General'!J$6 -> 0 | AF87: =Y87*'Inputs - General'!K$6 -> 0 | AG87: =Z87*'Inputs - General'!L$6 -> 0 | AH87: =AA87*'Inputs - General'!M$6 -> 0 | AI87: =AB87*'Inputs - General'!N$6 -> 0 | AJ87: =AC87*'Inputs - General'!O$6 -> 0 | AL87: =K87*'Inputs - General'!J$6 -> 0 | AM87: =L87*'Inputs - General'!K$6 -> 0 | AN87: =M87*'Inputs - General'!L$6 -> 0 | AO87: =N87*'Inputs - General'!M$6 -> 0 | AP87: =O87*'Inputs - General'!N$6 -> 0 | AQ87: =P87*'Inputs - General'!O$6 -> 0 | AS87: =R87*'Inputs - General'!K$6 -> 0 | AT87: =S87*'Inputs - General'!L$6 -> 0 | AU87: =T87*'Inputs - General'!M$6 -> 0 | AV87: =U87*'Inputs - General'!N$6 -> 0 | AW87: =V87*'Inputs - General'!O$6 -> 0 | AY87: =AE87*'Inputs - General'!K$4 -> 0 | AZ87: =AF87*'Inputs - General'!L$4 -> 0 | BA87: =AG87*'Inputs - General'!M$4 -> 0 | BB87: =AH87*'Inputs - General'!N$4 -> 0 | BC87: =AI87*'Inputs - General'!O$4 -> 0 | BE87: 0 | BF87: 0 | BG87: 0 | BH87: 0 | BI87: 0 | BK87: 0 | BL87: 0 | BM87: 0 | BN87: 0 | BO87: 0 | BQ87: ='Input - Customer Inventory FY15'!F86 -> 3 | BW87: =IF($C87="Lamp",0,IF(SUM(BR87:$BV87)>=$BQ87,0,IF(BK87<=0,IF($G87=0,0,$BQ87),0))) -> 0 | BX87: =IF($C87="Lamp",0,IF(SUM($BR87:BW87)>=$BQ87,0,IF(BL87<=0,IF($G87=0,0,$BQ87),0))) -> 0 | BY87: =IF($C87="Lamp",0,IF(SUM($BR87:BX87)>=$BQ87,0,IF(BM87<=0,IF($G87=0,0,$BQ87),0))) -> 0 | BZ87: =IF($C87="Lamp",0,IF(SUM($BR87:BY87)>=$BQ87,0,IF(BN87<=0,IF($G87=0,0,$BQ87),0))) -> 0 | CA87: =IF($C87="Lamp",0,IF(SUM($BR87:BZ87)>=$BQ87,0,IF(BO87<=0,IF($G87=0,0,$BQ87),0))) -> 0 | CI87: =CC87/'Inputs - General'!K$6 -> 0 | CJ87: =CD87/'Inputs - General'!L$6 -> 0 | CK87: =CE87/'Inputs - General'!M$6 -> 0 | CL87: =CF87/'Inputs - General'!N$6 -> 0 | CM87: =CG87/'Inputs - General'!O$6 -> 0
A88: Customer 1 | B88: ='Input - Customer Inventory FY15'!C87 -> Luminaire - 150W SON | C88: ='Input - Customer Inventory FY15'!D87 -> Luminaire | D88: ='Input - Customer Inventory FY15'!E87 -> 150W SON | E88: ='Input - Customer Inventory FY15'!G87 -> 1 | G88: 0 | H88: 0 | I88: 0 | K88: 0 | L88: 0 | M88: 0 | N88: 0 | O88: 0 | P88: 0 | R88: =IFERROR(IF(K88-(($G88-SUM($CH88:CH88))/$H88)<0,K88,(($G88-SUM($CH88:CH88))/$H88)),0) -> 0 | S88: =IFERROR(IF(L88-(($G88-SUM($CH88:CI88))/$H88)<0,L88,(($G88-SUM($CH88:CI88))/$H88)),0) -> 0 | T88: =IFERROR(IF(M88-(($G88-SUM($CH88:CJ88))/$H88)<0,M88,(($G88-SUM($CH88:CJ88))/$H88)),0) -> 0 | U88: =IFERROR(IF(N88-(($G88-SUM($CH88:CK88))/$H88)<0,N88,(($G88-SUM($CH88:CK88))/$H88)),0) -> 0 | V88: =IFERROR(IF(O88-(($G88-SUM($CH88:CL88))/$H88)<0,O88,(($G88-SUM($CH88:CL88))/$H88)),0) -> 0 | X88: 0 | Y88: 0 | Z88: 0 | AA88: 0 | AB88: 0 | AC88: 0 | AE88: =X88*'Inputs - General'!J$6 -> 0 | AF88: =Y88*'Inputs - General'!K$6 -> 0 | AG88: =Z88*'Inputs - General'!L$6 -> 0 | AH88: =AA88*'Inputs - General'!M$6 -> 0 | AI88: =AB88*'Inputs - General'!N$6 -> 0 | AJ88: =AC88*'Inputs - General'!O$6 -> 0 | AL88: =K88*'Inputs - General'!J$6 -> 0 | AM88: =L88*'Inputs - General'!K$6 -> 0 | AN88: =M88*'Inputs - General'!L$6 -> 0 | AO88: =N88*'Inputs - General'!M$6 -> 0 | AP88: =O88*'Inputs - General'!N$6 -> 0 | AQ88: =P88*'Inputs - General'!O$6 -> 0 | AS88: =R88*'Inputs - General'!K$6 -> 0 | AT88: =S88*'Inputs - General'!L$6 -> 0 | AU88: =T88*'Inputs - General'!M$6 -> 0 | AV88: =U88*'Inputs - General'!N$6 -> 0 | AW88: =V88*'Inputs - General'!O$6 -> 0 | AY88: =AE88*'Inputs - General'!K$4 -> 0 | AZ88: =AF88*'Inputs - General'!L$4 -> 0 | BA88: =AG88*'Inputs - General'!M$4 -> 0 | BB88: =AH88*'Inputs - General'!N$4 -> 0 | BC88: =AI88*'Inputs - General'!O$4 -> 0 | BE88: 0 | BF88: 0 | BG88: 0 | BH88: 0 | BI88: 0 | BK88: 0 | BL88: 0 | BM88: 0 | BN88: 0 | BO88: 0 | BQ88: ='Input - Customer Inventory FY15'!F87 -> 132.5 | BW88: =IF($C88="Lamp",0,IF(SUM(BR88:$BV88)>=$BQ88,0,IF(BK88<=0,IF($G88=0,0,$BQ88),0))) -> 0 | BX88: =IF($C88="Lamp",0,IF(SUM($BR88:BW88)>=$BQ88,0,IF(BL88<=0,IF($G88=0,0,$BQ88),0))) -> 0 | BY88: =IF($C88="Lamp",0,IF(SUM($BR88:BX88)>=$BQ88,0,IF(BM88<=0,IF($G88=0,0,$BQ88),0))) -> 0 | BZ88: =IF($C88="Lamp",0,IF(SUM($BR88:BY88)>=$BQ88,0,IF(BN88<=0,IF($G88=0,0,$BQ88),0))) -> 0 | CA88: =IF($C88="Lamp",0,IF(SUM($BR88:BZ88)>=$BQ88,0,IF(BO88<=0,IF($G88=0,0,$BQ88),0))) -> 0 | CI88: =CC88/'Inputs - General'!K$6 -> 0 | CJ88: =CD88/'Inputs - General'!L$6 -> 0 | CK88: =CE88/'Inputs - General'!M$6 -> 0 | CL88: =CF88/'Inputs - General'!N$6 -> 0 | CM88: =CG88/'Inputs - General'!O$6 -> 0
A89: Customer 1 | B89: ='Input - Customer Inventory FY15'!C88 -> Luminaire - 1x40W TF | C89: ='Input - Customer Inventory FY15'!D88 -> Luminaire | D89: ='Input - Customer Inventory FY15'!E88 -> 1x40W TF | E89: ='Input - Customer Inventory FY15'!G88 -> 1 | G89: 0 | H89: 0 | I89: 0 | K89: 0 | L89: 0 | M89: 0 | N89: 0 | O89: 0 | P89: 0 | R89: =IFERROR(IF(K89-(($G89-SUM($CH89:CH89))/$H89)<0,K89,(($G89-SUM($CH89:CH89))/$H89)),0) -> 0 | S89: =IFERROR(IF(L89-(($G89-SUM($CH89:CI89))/$H89)<0,L89,(($G89-SUM($CH89:CI89))/$H89)),0) -> 0 | T89: =IFERROR(IF(M89-(($G89-SUM($CH89:CJ89))/$H89)<0,M89,(($G89-SUM($CH89:CJ89))/$H89)),0) -> 0 | U89: =IFERROR(IF(N89-(($G89-SUM($CH89:CK89))/$H89)<0,N89,(($G89-SUM($CH89:CK89))/$H89)),0) -> 0 | V89: =IFERROR(IF(O89-(($G89-SUM($CH89:CL89))/$H89)<0,O89,(($G89-SUM($CH89:CL89))/$H89)),0) -> 0 | X89: 0 | Y89: 0 | Z89: 0 | AA89: 0 | AB89: 0 | AC89: 0 | AE89: =X89*'Inputs - General'!J$6 -> 0 | AF89: =Y89*'Inputs - General'!K$6 -> 0 | AG89: =Z89*'Inputs - General'!L$6 -> 0 | AH89: =AA89*'Inputs - General'!M$6 -> 0 | AI89: =AB89*'Inputs - General'!N$6 -> 0 | AJ89: =AC89*'Inputs - General'!O$6 -> 0 | AL89: =K89*'Inputs - General'!J$6 -> 0 | AM89: =L89*'Inputs - General'!K$6 -> 0 | AN89: =M89*'Inputs - General'!L$6 -> 0 | AO89: =N89*'Inputs - General'!M$6 -> 0 | AP89: =O89*'Inputs - General'!N$6 -> 0 | AQ89: =P89*'Inputs - General'!O$6 -> 0 | AS89: =R89*'Inputs - General'!K$6 -> 0 | AT89: =S89*'Inputs - General'!L$6 -> 0 | AU89: =T89*'Inputs - General'!M$6 -> 0 | AV89: =U89*'Inputs - General'!N$6 -> 0 | AW89: =V89*'Inputs - General'!O$6 -> 0 | AY89: =AE89*'Inputs - General'!K$4 -> 0 | AZ89: =AF89*'Inputs - General'!L$4 -> 0 | BA89: =AG89*'Inputs - General'!M$4 -> 0 | BB89: =AH89*'Inputs - General'!N$4 -> 0 | BC89: =AI89*'Inputs - General'!O$4 -> 0 | BE89: 0 | BF89: 0 | BG89: 0 | BH89: 0 | BI89: 0 | BK89: 0 | BL89: 0 | BM89: 0 | BN89: 0 | BO89: 0 | BQ89: ='Input - Customer Inventory FY15'!F88 -> 75 | BW89: =IF($C89="Lamp",0,IF(SUM(BR89:$BV89)>=$BQ89,0,IF(BK89<=0,IF($G89=0,0,$BQ89),0))) -> 0 | BX89: =IF($C89="Lamp",0,IF(SUM($BR89:BW89)>=$BQ89,0,IF(BL89<=0,IF($G89=0,0,$BQ89),0))) -> 0 | BY89: =IF($C89="Lamp",0,IF(SUM($BR89:BX89)>=$BQ89,0,IF(BM89<=0,IF($G89=0,0,$BQ89),0))) -> 0 | BZ89: =IF($C89="Lamp",0,IF(SUM($BR89:BY89)>=$BQ89,0,IF(BN89<=0,IF($G89=0,0,$BQ89),0))) -> 0 | CA89: =IF($C89="Lamp",0,IF(SUM($BR89:BZ89)>=$BQ89,0,IF(BO89<=0,IF($G89=0,0,$BQ89),0))) -> 0 | CI89: =CC89/'Inputs - General'!K$6 -> 0 | CJ89: =CD89/'Inputs - General'!L$6 -> 0 | CK89: =CE89/'Inputs - General'!M$6 -> 0 | CL89: =CF89/'Inputs - General'!N$6 -> 0 | CM89: =CG89/'Inputs - General'!O$6 -> 0
A90: Customer 1 | B90: ='Input - Customer Inventory FY15'!C89 -> Luminaire - 1x80W TF | C90: ='Input - Customer Inventory FY15'!D89 -> Luminaire | D90: ='Input - Customer Inventory FY15'!E89 -> 1x80W TF | E90: ='Input - Customer Inventory FY15'!G89 -> 1 | G90: 0 | H90: 0 | I90: 0 | K90: 0 | L90: 0 | M90: 0 | N90: 0 | O90: 0 | P90: 0 | R90: =IFERROR(IF(K90-(($G90-SUM($CH90:CH90))/$H90)<0,K90,(($G90-SUM($CH90:CH90))/$H90)),0) -> 0 | S90: =IFERROR(IF(L90-(($G90-SUM($CH90:CI90))/$H90)<0,L90,(($G90-SUM($CH90:CI90))/$H90)),0) -> 0 | T90: =IFERROR(IF(M90-(($G90-SUM($CH90:CJ90))/$H90)<0,M90,(($G90-SUM($CH90:CJ90))/$H90)),0) -> 0 | U90: =IFERROR(IF(N90-(($G90-SUM($CH90:CK90))/$H90)<0,N90,(($G90-SUM($CH90:CK90))/$H90)),0) -> 0 | V90: =IFERROR(IF(O90-(($G90-SUM($CH90:CL90))/$H90)<0,O90,(($G90-SUM($CH90:CL90))/$H90)),0) -> 0 | X90: 0 | Y90: 0 | Z90: 0 | AA90: 0 | AB90: 0 | AC90: 0 | AE90: =X90*'Inputs - General'!J$6 -> 0 | AF90: =Y90*'Inputs - General'!K$6 -> 0 | AG90: =Z90*'Inputs - General'!L$6 -> 0 | AH90: =AA90*'Inputs - General'!M$6 -> 0 | AI90: =AB90*'Inputs - General'!N$6 -> 0 | AJ90: =AC90*'Inputs - General'!O$6 -> 0 | AL90: =K90*'Inputs - General'!J$6 -> 0 | AM90: =L90*'Inputs - General'!K$6 -> 0 | AN90: =M90*'Inputs - General'!L$6 -> 0 | AO90: =N90*'Inputs - General'!M$6 -> 0 | AP90: =O90*'Inputs - General'!N$6 -> 0 | AQ90: =P90*'Inputs - General'!O$6 -> 0 | AS90: =R90*'Inputs - General'!K$6 -> 0 | AT90: =S90*'Inputs - General'!L$6 -> 0 | AU90: =T90*'Inputs - General'!M$6 -> 0 | AV90: =U90*'Inputs - General'!N$6 -> 0 | AW90: =V90*'Inputs - General'!O$6 -> 0 | AY90: =AE90*'Inputs - General'!K$4 -> 0 | AZ90: =AF90*'Inputs - General'!L$4 -> 0 | BA90: =AG90*'Inputs - General'!M$4 -> 0 | BB90: =AH90*'Inputs - General'!N$4 -> 0 | BC90: =AI90*'Inputs - General'!O$4 -> 0 | BE90: 0 | BF90: 0 | BG90: 0 | BH90: 0 | BI90: 0 | BK90: 0 | BL90: 0 | BM90: 0 | BN90: 0 | BO90: 0 | BQ90: ='Input - Customer Inventory FY15'!F89 -> 2 | BW90: =IF($C90="Lamp",0,IF(SUM(BR90:$BV90)>=$BQ90,0,IF(BK90<=0,IF($G90=0,0,$BQ90),0))) -> 0 | BX90: =IF($C90="Lamp",0,IF(SUM($BR90:BW90)>=$BQ90,0,IF(BL90<=0,IF($G90=0,0,$BQ90),0))) -> 0 | BY90: =IF($C90="Lamp",0,IF(SUM($BR90:BX90)>=$BQ90,0,IF(BM90<=0,IF($G90=0,0,$BQ90),0))) -> 0 | BZ90: =IF($C90="Lamp",0,IF(SUM($BR90:BY90)>=$BQ90,0,IF(BN90<=0,IF($G90=0,0,$BQ90),0))) -> 0 | CA90: =IF($C90="Lamp",0,IF(SUM($BR90:BZ90)>=$BQ90,0,IF(BO90<=0,IF($G90=0,0,$BQ90),0))) -> 0 | CI90: =CC90/'Inputs - General'!K$6 -> 0 | CJ90: =CD90/'Inputs - General'!L$6 -> 0 | CK90: =CE90/'Inputs - General'!M$6 -> 0 | CL90: =CF90/'Inputs - General'!N$6 -> 0 | CM90: =CG90/'Inputs - General'!O$6 -> 0
A91: Customer 1 | B91: ='Input - Customer Inventory FY15'!C90 -> Luminaire - 250W MBF - PARKVILLE | C91: ='Input - Customer Inventory FY15'!D90 -> Luminaire | D91: ='Input - Customer Inventory FY15'!E90 -> 250W MBF - PARKVILLE | E91: ='Input - Customer Inventory FY15'!G90 -> 1 | G91: 0 | H91: 1.389041096 | I91: 0 | K91: 0 | L91: 0 | M91: 0 | N91: 0 | O91: 0 | P91: 0 | R91: =IFERROR(IF(K91-(($G91-SUM($CH91:CH91))/$H91)<0,K91,(($G91-SUM($CH91:CH91))/$H91)),0) -> 0 | S91: =IFERROR(IF(L91-(($G91-SUM($CH91:CI91))/$H91)<0,L91,(($G91-SUM($CH91:CI91))/$H91)),0) -> 0 | T91: =IFERROR(IF(M91-(($G91-SUM($CH91:CJ91))/$H91)<0,M91,(($G91-SUM($CH91:CJ91))/$H91)),0) -> 0 | U91: =IFERROR(IF(N91-(($G91-SUM($CH91:CK91))/$H91)<0,N91,(($G91-SUM($CH91:CK91))/$H91)),0) -> 0 | V91: =IFERROR(IF(O91-(($G91-SUM($CH91:CL91))/$H91)<0,O91,(($G91-SUM($CH91:CL91))/$H91)),0) -> 0 | X91: 0 | Y91: 0 | Z91: 0 | AA91: 0 | AB91: 0 | AC91: 0 | AE91: =X91*'Inputs - General'!J$6 -> 0 | AF91: =Y91*'Inputs - General'!K$6 -> 0 | AG91: =Z91*'Inputs - General'!L$6 -> 0 | AH91: =AA91*'Inputs - General'!M$6 -> 0 | AI91: =AB91*'Inputs - General'!N$6 -> 0 | AJ91: =AC91*'Inputs - General'!O$6 -> 0 | AL91: =K91*'Inputs - General'!J$6 -> 0 | AM91: =L91*'Inputs - General'!K$6 -> 0 | AN91: =M91*'Inputs - General'!L$6 -> 0 | AO91: =N91*'Inputs - General'!M$6 -> 0 | AP91: =O91*'Inputs - General'!N$6 -> 0 | AQ91: =P91*'Inputs - General'!O$6 -> 0 | AS91: =R91*'Inputs - General'!K$6 -> 0 | AT91: =S91*'Inputs - General'!L$6 -> 0 | AU91: =T91*'Inputs - General'!M$6 -> 0 | AV91: =U91*'Inputs - General'!N$6 -> 0 | AW91: =V91*'Inputs - General'!O$6 -> 0 | AY91: =AE91*'Inputs - General'!K$4 -> 0 | AZ91: =AF91*'Inputs - General'!L$4 -> 0 | BA91: =AG91*'Inputs - General'!M$4 -> 0 | BB91: =AH91*'Inputs - General'!N$4 -> 0 | BC91: =AI91*'Inputs - General'!O$4 -> 0 | BE91: 0 | BF91: 0 | BG91: 0 | BH91: 0 | BI91: 0 | BK91: 0 | BL91: 0 | BM91: 0 | BN91: 0 | BO91: 0 | BQ91: ='Input - Customer Inventory FY15'!F90 -> 0 | BW91: =IF($C91="Lamp",0,IF(SUM(BR91:$BV91)>=$BQ91,0,IF(BK91<=0,IF($G91=0,0,$BQ91),0))) -> 0 | BX91: =IF($C91="Lamp",0,IF(SUM($BR91:BW91)>=$BQ91,0,IF(BL91<=0,IF($G91=0,0,$BQ91),0))) -> 0 | BY91: =IF($C91="Lamp",0,IF(SUM($BR91:BX91)>=$BQ91,0,IF(BM91<=0,IF($G91=0,0,$BQ91),0))) -> 0 | BZ91: =IF($C91="Lamp",0,IF(SUM($BR91:BY91)>=$BQ91,0,IF(BN91<=0,IF($G91=0,0,$BQ91),0))) -> 0 | CA91: =IF($C91="Lamp",0,IF(SUM($BR91:BZ91)>=$BQ91,0,IF(BO91<=0,IF($G91=0,0,$BQ91),0))) -> 0 | CI91: =CC91/'Inputs - General'!K$6 -> 0 | CJ91: =CD91/'Inputs - General'!L$6 -> 0 | CK91: =CE91/'Inputs - General'!M$6 -> 0 | CL91: =CF91/'Inputs - General'!N$6 -> 0 | CM91: =CG91/'Inputs - General'!O$6 -> 0
A92: Customer 1 | B92: ='Input - Customer Inventory FY15'!C91 -> Luminaire - 250W MBF - PARKWAY 1 | C92: ='Input - Customer Inventory FY15'!D91 -> Luminaire | D92: ='Input - Customer Inventory FY15'!E91 -> 250W MBF - PARKWAY 1 | E92: ='Input - Customer Inventory FY15'!G91 -> 1 | G92: 25.22990609 | H92: 2.113553586 | I92: 11.93719727 | K92: 25.22990609 | L92: 13.29270882 | M92: 1.355511554 | N92: 0 | O92: 0 | P92: 0 | R92: =IFERROR(IF(K92-(($G92-SUM($CH92:CH92))/$H92)<0,K92,(($G92-SUM($CH92:CH92))/$H92)),0) -> 11.93719727 | S92: =IFERROR(IF(L92-(($G92-SUM($CH92:CI92))/$H92)<0,L92,(($G92-SUM($CH92:CI92))/$H92)),0) -> 11.93719727 | T92: =IFERROR(IF(M92-(($G92-SUM($CH92:CJ92))/$H92)<0,M92,(($G92-SUM($CH92:CJ92))/$H92)),0) -> 1.355511554 | U92: =IFERROR(IF(N92-(($G92-SUM($CH92:CK92))/$H92)<0,N92,(($G92-SUM($CH92:CK92))/$H92)),0) -> 0 | V92: =IFERROR(IF(O92-(($G92-SUM($CH92:CL92))/$H92)<0,O92,(($G92-SUM($CH92:CL92))/$H92)),0) -> 0 | X92: 25.22990609 | Y92: 13.29270882 | Z92: 1.355511554 | AA92: 0 | AB92: 0 | AC92: 0 | AE92: =X92*'Inputs - General'!J$6 -> 25.22990609 | AF92: =Y92*'Inputs - General'!K$6 -> 13.61504035 | AG92: =Z92*'Inputs - General'!L$6 -> 1.42204751 | AH92: =AA92*'Inputs - General'!M$6 -> 0 | AI92: =AB92*'Inputs - General'!N$6 -> 0 | AJ92: =AC92*'Inputs - General'!O$6 -> 0 | AL92: =K92*'Inputs - General'!J$6 -> 25.22990609 | AM92: =L92*'Inputs - General'!K$6 -> 13.61504035 | AN92: =M92*'Inputs - General'!L$6 -> 1.42204751 | AO92: =N92*'Inputs - General'!M$6 -> 0 | AP92: =O92*'Inputs - General'!N$6 -> 0 | AQ92: =P92*'Inputs - General'!O$6 -> 0 | AS92: =R92*'Inputs - General'!K$6 -> 12.22665934 | AT92: =S92*'Inputs - General'!L$6 -> 12.5231405 | AU92: =T92*'Inputs - General'!M$6 -> 1.456530379 | AV92: =U92*'Inputs - General'!N$6 -> 0 | AW92: =V92*'Inputs - General'!O$6 -> 0 | AY92: =AE92*'Inputs - General'!K$4 -> 0.6117935989 | AZ92: =AF92*'Inputs - General'!L$4 -> 0.330147663 | BA92: =AG92*'Inputs - General'!M$4 -> 0.03448286968 | BB92: =AH92*'Inputs - General'!N$4 -> 0 | BC92: =AI92*'Inputs - General'!O$4 -> 0 | BE92: 11.61486574 | BF92: 12.19299284 | BG92: 1.42204751 | BH92: 0 | BI92: 0 | BK92: 1.585197668 | BL92: 0.8554344253 | BM92: 0.08934739546 | BN92: 0 | BO92: 0 | BQ92: ='Input - Customer Inventory FY15'!F91 -> 144.5 | BW92: =IF($C92="Lamp",0,IF(SUM(BR92:$BV92)>=$BQ92,0,IF(BK92<=0,IF($G92=0,0,$BQ92),0))) -> 0 | BX92: =IF($C92="Lamp",0,IF(SUM($BR92:BW92)>=$BQ92,0,IF(BL92<=0,IF($G92=0,0,$BQ92),0))) -> 0 | BY92: =IF($C92="Lamp",0,IF(SUM($BR92:BX92)>=$BQ92,0,IF(BM92<=0,IF($G92=0,0,$BQ92),0))) -> 0 | BZ92: =IF($C92="Lamp",0,IF(SUM($BR92:BY92)>=$BQ92,0,IF(BN92<=0,IF($G92=0,0,$BQ92),0))) -> 144.5 | CA92: =IF($C92="Lamp",0,IF(SUM($BR92:BZ92)>=$BQ92,0,IF(BO92<=0,IF($G92=0,0,$BQ92),0))) -> 0 | CI92: =CC92/'Inputs - General'!K$6 -> 0 | CJ92: =CD92/'Inputs - General'!L$6 -> 0 | CK92: =CE92/'Inputs - General'!M$6 -> 0 | CL92: =CF92/'Inputs - General'!N$6 -> 0 | CM92: =CG92/'Inputs - General'!O$6 -> 0
A93: Customer 1 | B93: ='Input - Customer Inventory FY15'!C92 -> Luminaire - 250W MBF | C93: ='Input - Customer Inventory FY15'!D92 -> Luminaire | D93: ='Input - Customer Inventory FY15'!E92 -> 250W MBF | E93: ='Input - Customer Inventory FY15'!G92 -> 1 | G93: 0 | H93: 0 | I93: 0 | K93: 0 | L93: 0 | M93: 0 | N93: 0 | O93: 0 | P93: 0 | R93: =IFERROR(IF(K93-(($G93-SUM($CH93:CH93))/$H93)<0,K93,(($G93-SUM($CH93:CH93))/$H93)),0) -> 0 | S93: =IFERROR(IF(L93-(($G93-SUM($CH93:CI93))/$H93)<0,L93,(($G93-SUM($CH93:CI93))/$H93)),0) -> 0 | T93: =IFERROR(IF(M93-(($G93-SUM($CH93:CJ93))/$H93)<0,M93,(($G93-SUM($CH93:CJ93))/$H93)),0) -> 0 | U93: =IFERROR(IF(N93-(($G93-SUM($CH93:CK93))/$H93)<0,N93,(($G93-SUM($CH93:CK93))/$H93)),0) -> 0 | V93: =IFERROR(IF(O93-(($G93-SUM($CH93:CL93))/$H93)<0,O93,(($G93-SUM($CH93:CL93))/$H93)),0) -> 0 | X93: 0 | Y93: 0 | Z93: 0 | AA93: 0 | AB93: 0 | AC93: 0 | AE93: =X93*'Inputs - General'!J$6 -> 0 | AF93: =Y93*'Inputs - General'!K$6 -> 0 | AG93: =Z93*'Inputs - General'!L$6 -> 0 | AH93: =AA93*'Inputs - General'!M$6 -> 0 | AI93: =AB93*'Inputs - General'!N$6 -> 0 | AJ93: =AC93*'Inputs - General'!O$6 -> 0 | AL93: =K93*'Inputs - General'!J$6 -> 0 | AM93: =L93*'Inputs - General'!K$6 -> 0 | AN93: =M93*'Inputs - General'!L$6 -> 0 | AO93: =N93*'Inputs - General'!M$6 -> 0 | AP93: =O93*'Inputs - General'!N$6 -> 0 | AQ93: =P93*'Inputs - General'!O$6 -> 0 | AS93: =R93*'Inputs - General'!K$6 -> 0 | AT93: =S93*'Inputs - General'!L$6 -> 0 | AU93: =T93*'Inputs - General'!M$6 -> 0 | AV93: =U93*'Inputs - General'!N$6 -> 0 | AW93: =V93*'Inputs - General'!O$6 -> 0 | AY93: =AE93*'Inputs - General'!K$4 -> 0 | AZ93: =AF93*'Inputs - General'!L$4 -> 0 | BA93: =AG93*'Inputs - General'!M$4 -> 0 | BB93: =AH93*'Inputs - General'!N$4 -> 0 | BC93: =AI93*'Inputs - General'!O$4 -> 0 | BE93: 0 | BF93: 0 | BG93: 0 | BH93: 0 | BI93: 0 | BK93: 0 | BL93: 0 | BM93: 0 | BN93: 0 | BO93: 0 | BQ93: ='Input - Customer Inventory FY15'!F92 -> 542.5 | BW93: =IF($C93="Lamp",0,IF(SUM(BR93:$BV93)>=$BQ93,0,IF(BK93<=0,IF($G93=0,0,$BQ93),0))) -> 0 | BX93: =IF($C93="Lamp",0,IF(SUM($BR93:BW93)>=$BQ93,0,IF(BL93<=0,IF($G93=0,0,$BQ93),0))) -> 0 | BY93: =IF($C93="Lamp",0,IF(SUM($BR93:BX93)>=$BQ93,0,IF(BM93<=0,IF($G93=0,0,$BQ93),0))) -> 0 | BZ93: =IF($C93="Lamp",0,IF(SUM($BR93:BY93)>=$BQ93,0,IF(BN93<=0,IF($G93=0,0,$BQ93),0))) -> 0 | CA93: =IF($C93="Lamp",0,IF(SUM($BR93:BZ93)>=$BQ93,0,IF(BO93<=0,IF($G93=0,0,$BQ93),0))) -> 0 | CI93: =CC93/'Inputs - General'!K$6 -> 0 | CJ93: =CD93/'Inputs - General'!L$6 -> 0 | CK93: =CE93/'Inputs - General'!M$6 -> 0 | CL93: =CF93/'Inputs - General'!N$6 -> 0 | CM93: =CG93/'Inputs - General'!O$6 -> 0
A94: Customer 1 | B94: ='Input - Customer Inventory FY15'!C93 -> Luminaire - 250W SON FLOODLIGHT | C94: ='Input - Customer Inventory FY15'!D93 -> Luminaire | D94: ='Input - Customer Inventory FY15'!E93 -> 250W SON FLOODLIGHT | E94: ='Input - Customer Inventory FY15'!G93 -> 1 | G94: 0 | H94: 0 | I94: 0 | K94: 0 | L94: 0 | M94: 0 | N94: 0 | O94: 0 | P94: 0 | R94: =IFERROR(IF(K94-(($G94-SUM($CH94:CH94))/$H94)<0,K94,(($G94-SUM($CH94:CH94))/$H94)),0) -> 0 | S94: =IFERROR(IF(L94-(($G94-SUM($CH94:CI94))/$H94)<0,L94,(($G94-SUM($CH94:CI94))/$H94)),0) -> 0 | T94: =IFERROR(IF(M94-(($G94-SUM($CH94:CJ94))/$H94)<0,M94,(($G94-SUM($CH94:CJ94))/$H94)),0) -> 0 | U94: =IFERROR(IF(N94-(($G94-SUM($CH94:CK94))/$H94)<0,N94,(($G94-SUM($CH94:CK94))/$H94)),0) -> 0 | V94: =IFERROR(IF(O94-(($G94-SUM($CH94:CL94))/$H94)<0,O94,(($G94-SUM($CH94:CL94))/$H94)),0) -> 0 | X94: 0 | Y94: 0 | Z94: 0 | AA94: 0 | AB94: 0 | AC94: 0 | AE94: =X94*'Inputs - General'!J$6 -> 0 | AF94: =Y94*'Inputs - General'!K$6 -> 0 | AG94: =Z94*'Inputs - General'!L$6 -> 0 | AH94: =AA94*'Inputs - General'!M$6 -> 0 | AI94: =AB94*'Inputs - General'!N$6 -> 0 | AJ94: =AC94*'Inputs - General'!O$6 -> 0 | AL94: =K94*'Inputs - General'!J$6 -> 0 | AM94: =L94*'Inputs - General'!K$6 -> 0 | AN94: =M94*'Inputs - General'!L$6 -> 0 | AO94: =N94*'Inputs - General'!M$6 -> 0 | AP94: =O94*'Inputs - General'!N$6 -> 0 | AQ94: =P94*'Inputs - General'!O$6 -> 0 | AS94: =R94*'Inputs - General'!K$6 -> 0 | AT94: =S94*'Inputs - General'!L$6 -> 0 | AU94: =T94*'Inputs - General'!M$6 -> 0 | AV94: =U94*'Inputs - General'!N$6 -> 0 | AW94: =V94*'Inputs - General'!O$6 -> 0 | AY94: =AE94*'Inputs - General'!K$4 -> 0 | AZ94: =AF94*'Inputs - General'!L$4 -> 0 | BA94: =AG94*'Inputs - General'!M$4 -> 0 | BB94: =AH94*'Inputs - General'!N$4 -> 0 | BC94: =AI94*'Inputs - General'!O$4 -> 0 | BE94: 0 | BF94: 0 | BG94: 0 | BH94: 0 | BI94: 0 | BK94: 0 | BL94: 0 | BM94: 0 | BN94: 0 | BO94: 0 | BQ94: ='Input - Customer Inventory FY15'!F93 -> 24.5 | BW94: =IF($C94="Lamp",0,IF(SUM(BR94:$BV94)>=$BQ94,0,IF(BK94<=0,IF($G94=0,0,$BQ94),0))) -> 0 | BX94: =IF($C94="Lamp",0,IF(SUM($BR94:BW94)>=$BQ94,0,IF(BL94<=0,IF($G94=0,0,$BQ94),0))) -> 0 | BY94: =IF($C94="Lamp",0,IF(SUM($BR94:BX94)>=$BQ94,0,IF(BM94<=0,IF($G94=0,0,$BQ94),0))) -> 0 | BZ94: =IF($C94="Lamp",0,IF(SUM($BR94:BY94)>=$BQ94,0,IF(BN94<=0,IF($G94=0,0,$BQ94),0))) -> 0 | CA94: =IF($C94="Lamp",0,IF(SUM($BR94:BZ94)>=$BQ94,0,IF(BO94<=0,IF($G94=0,0,$BQ94),0))) -> 0 | CI94: =CC94/'Inputs - General'!K$6 -> 0 | CJ94: =CD94/'Inputs - General'!L$6 -> 0 | CK94: =CE94/'Inputs - General'!M$6 -> 0 | CL94: =CF94/'Inputs - General'!N$6 -> 0 | CM94: =CG94/'Inputs - General'!O$6 -> 0
A95: Customer 1 | B95: ='Input - Customer Inventory FY15'!C94 -> Luminaire - 250W SON FLOODLIGHT | C95: ='Input - Customer Inventory FY15'!D94 -> Luminaire | D95: ='Input - Customer Inventory FY15'!E94 -> 250W SON FLOODLIGHT | E95: ='Input - Customer Inventory FY15'!G94 -> 2 | G95: 0 | H95: 0 | I95: 0 | K95: 0 | L95: 0 | M95: 0 | N95: 0 | O95: 0 | P95: 0 | R95: =IFERROR(IF(K95-(($G95-SUM($CH95:CH95))/$H95)<0,K95,(($G95-SUM($CH95:CH95))/$H95)),0) -> 0 | S95: =IFERROR(IF(L95-(($G95-SUM($CH95:CI95))/$H95)<0,L95,(($G95-SUM($CH95:CI95))/$H95)),0) -> 0 | T95: =IFERROR(IF(M95-(($G95-SUM($CH95:CJ95))/$H95)<0,M95,(($G95-SUM($CH95:CJ95))/$H95)),0) -> 0 | U95: =IFERROR(IF(N95-(($G95-SUM($CH95:CK95))/$H95)<0,N95,(($G95-SUM($CH95:CK95))/$H95)),0) -> 0 | V95: =IFERROR(IF(O95-(($G95-SUM($CH95:CL95))/$H95)<0,O95,(($G95-SUM($CH95:CL95))/$H95)),0) -> 0 | X95: 0 | Y95: 0 | Z95: 0 | AA95: 0 | AB95: 0 | AC95: 0 | AE95: =X95*'Inputs - General'!J$6 -> 0 | AF95: =Y95*'Inputs - General'!K$6 -> 0 | AG95: =Z95*'Inputs - General'!L$6 -> 0 | AH95: =AA95*'Inputs - General'!M$6 -> 0 | AI95: =AB95*'Inputs - General'!N$6 -> 0 | AJ95: =AC95*'Inputs - General'!O$6 -> 0 | AL95: =K95*'Inputs - General'!J$6 -> 0 | AM95: =L95*'Inputs - General'!K$6 -> 0 | AN95: =M95*'Inputs - General'!L$6 -> 0 | AO95: =N95*'Inputs - General'!M$6 -> 0 | AP95: =O95*'Inputs - General'!N$6 -> 0 | AQ95: =P95*'Inputs - General'!O$6 -> 0 | AS95: =R95*'Inputs - General'!K$6 -> 0 | AT95: =S95*'Inputs - General'!L$6 -> 0 | AU95: =T95*'Inputs - General'!M$6 -> 0 | AV95: =U95*'Inputs - General'!N$6 -> 0 | AW95: =V95*'Inputs - General'!O$6 -> 0 | AY95: =AE95*'Inputs - General'!K$4 -> 0 | AZ95: =AF95*'Inputs - General'!L$4 -> 0 | BA95: =AG95*'Inputs - General'!M$4 -> 0 | BB95: =AH95*'Inputs - General'!N$4 -> 0 | BC95: =AI95*'Inputs - General'!O$4 -> 0 | BE95: 0 | BF95: 0 | BG95: 0 | BH95: 0 | BI95: 0 | BK95: 0 | BL95: 0 | BM95: 0 | BN95: 0 | BO95: 0 | BQ95: ='Input - Customer Inventory FY15'!F94 -> 0 | BW95: =IF($C95="Lamp",0,IF(SUM(BR95:$BV95)>=$BQ95,0,IF(BK95<=0,IF($G95=0,0,$BQ95),0))) -> 0 | BX95: =IF($C95="Lamp",0,IF(SUM($BR95:BW95)>=$BQ95,0,IF(BL95<=0,IF($G95=0,0,$BQ95),0))) -> 0 | BY95: =IF($C95="Lamp",0,IF(SUM($BR95:BX95)>=$BQ95,0,IF(BM95<=0,IF($G95=0,0,$BQ95),0))) -> 0 | BZ95: =IF($C95="Lamp",0,IF(SUM($BR95:BY95)>=$BQ95,0,IF(BN95<=0,IF($G95=0,0,$BQ95),0))) -> 0 | CA95: =IF($C95="Lamp",0,IF(SUM($BR95:BZ95)>=$BQ95,0,IF(BO95<=0,IF($G95=0,0,$BQ95),0))) -> 0 | CI95: =CC95/'Inputs - General'!K$6 -> 0 | CJ95: =CD95/'Inputs - General'!L$6 -> 0 | CK95: =CE95/'Inputs - General'!M$6 -> 0 | CL95: =CF95/'Inputs - General'!N$6 -> 0 | CM95: =CG95/'Inputs - General'!O$6 -> 0
A96: Customer 1 | B96: ='Input - Customer Inventory FY15'!C95 -> Luminaire - 250W SON | C96: ='Input - Customer Inventory FY15'!D95 -> Luminaire | D96: ='Input - Customer Inventory FY15'!E95 -> 250W SON | E96: ='Input - Customer Inventory FY15'!G95 -> 1 | G96: 11.83156802 | H96: 1.88053251 | I96: 6.291605148 | K96: 11.83156802 | L96: 5.539962874 | M96: 0 | N96: 0 | O96: 0 | P96: 0 | R96: =IFERROR(IF(K96-(($G96-SUM($CH96:CH96))/$H96)<0,K96,(($G96-SUM($CH96:CH96))/$H96)),0) -> 6.291605148 | S96: =IFERROR(IF(L96-(($G96-SUM($CH96:CI96))/$H96)<0,L96,(($G96-SUM($CH96:CI96))/$H96)),0) -> 5.539962874 | T96: =IFERROR(IF(M96-(($G96-SUM($CH96:CJ96))/$H96)<0,M96,(($G96-SUM($CH96:CJ96))/$H96)),0) -> 0 | U96: =IFERROR(IF(N96-(($G96-SUM($CH96:CK96))/$H96)<0,N96,(($G96-SUM($CH96:CK96))/$H96)),0) -> 0 | V96: =IFERROR(IF(O96-(($G96-SUM($CH96:CL96))/$H96)<0,O96,(($G96-SUM($CH96:CL96))/$H96)),0) -> 0 | X96: 11.83156802 | Y96: 5.539962874 | Z96: 0 | AA96: 0 | AB96: 0 | AC96: 0 | AE96: =X96*'Inputs - General'!J$6 -> 11.83156802 | AF96: =Y96*'Inputs - General'!K$6 -> 5.674300029 | AG96: =Z96*'Inputs - General'!L$6 -> 0 | AH96: =AA96*'Inputs - General'!M$6 -> 0 | AI96: =AB96*'Inputs - General'!N$6 -> 0 | AJ96: =AC96*'Inputs - General'!O$6 -> 0 | AL96: =K96*'Inputs - General'!J$6 -> 11.83156802 | AM96: =L96*'Inputs - General'!K$6 -> 5.674300029 | AN96: =M96*'Inputs - General'!L$6 -> 0 | AO96: =N96*'Inputs - General'!M$6 -> 0 | AP96: =O96*'Inputs - General'!N$6 -> 0 | AQ96: =P96*'Inputs - General'!O$6 -> 0 | AS96: =R96*'Inputs - General'!K$6 -> 6.444168687 | AT96: =S96*'Inputs - General'!L$6 -> 5.811894693 | AU96: =T96*'Inputs - General'!M$6 -> 0 | AV96: =U96*'Inputs - General'!N$6 -> 0 | AW96: =V96*'Inputs - General'!O$6 -> 0 | AY96: =AE96*'Inputs - General'!K$4 -> 0.2869006945 | AZ96: =AF96*'Inputs - General'!L$4 -> 0.1375946634 | BA96: =AG96*'Inputs - General'!M$4 -> 0 | BB96: =AH96*'Inputs - General'!N$4 -> 0 | BC96: =AI96*'Inputs - General'!O$4 -> 0 | BE96: 6.157267992 | BF96: 5.674300029 | BG96: 0 | BH96: 0 | BI96: 0 | BK96: 0.7433786703 | BL96: 0.3565168711 | BM96: 0 | BN96: 0 | BO96: 0 | BQ96: ='Input - Customer Inventory FY15'!F95 -> 104 | BW96: =IF($C96="Lamp",0,IF(SUM(BR96:$BV96)>=$BQ96,0,IF(BK96<=0,IF($G96=0,0,$BQ96),0))) -> 0 | BX96: =IF($C96="Lamp",0,IF(SUM($BR96:BW96)>=$BQ96,0,IF(BL96<=0,IF($G96=0,0,$BQ96),0))) -> 0 | BY96: =IF($C96="Lamp",0,IF(SUM($BR96:BX96)>=$BQ96,0,IF(BM96<=0,IF($G96=0,0,$BQ96),0))) -> 104 | BZ96: =IF($C96="Lamp",0,IF(SUM($BR96:BY96)>=$BQ96,0,IF(BN96<=0,IF($G96=0,0,$BQ96),0))) -> 0 | CA96: =IF($C96="Lamp",0,IF(SUM($BR96:BZ96)>=$BQ96,0,IF(BO96<=0,IF($G96=0,0,$BQ96),0))) -> 0 | CI96: =CC96/'Inputs - General'!K$6 -> 0 | CJ96: =CD96/'Inputs - General'!L$6 -> 0 | CK96: =CE96/'Inputs - General'!M$6 -> 0 | CL96: =CF96/'Inputs - General'!N$6 -> 0 | CM96: =CG96/'Inputs - General'!O$6 -> 0
A97: Customer 1 | B97: ='Input - Customer Inventory FY15'!C96 -> Luminaire - 250W SON | C97: ='Input - Customer Inventory FY15'!D96 -> Luminaire | D97: ='Input - Customer Inventory FY15'!E96 -> 250W SON | E97: ='Input - Customer Inventory FY15'!G96 -> 2 | G97: 0 | H97: 1.88053251 | I97: 0 | K97: 0 | L97: 0 | M97: 0 | N97: 0 | O97: 0 | P97: 0 | R97: =IFERROR(IF(K97-(($G97-SUM($CH97:CH97))/$H97)<0,K97,(($G97-SUM($CH97:CH97))/$H97)),0) -> 0 | S97: =IFERROR(IF(L97-(($G97-SUM($CH97:CI97))/$H97)<0,L97,(($G97-SUM($CH97:CI97))/$H97)),0) -> 0 | T97: =IFERROR(IF(M97-(($G97-SUM($CH97:CJ97))/$H97)<0,M97,(($G97-SUM($CH97:CJ97))/$H97)),0) -> 0 | U97: =IFERROR(IF(N97-(($G97-SUM($CH97:CK97))/$H97)<0,N97,(($G97-SUM($CH97:CK97))/$H97)),0) -> 0 | V97: =IFERROR(IF(O97-(($G97-SUM($CH97:CL97))/$H97)<0,O97,(($G97-SUM($CH97:CL97))/$H97)),0) -> 0 | X97: 0 | Y97: 0 | Z97: 0 | AA97: 0 | AB97: 0 | AC97: 0 | AE97: =X97*'Inputs - General'!J$6 -> 0 | AF97: =Y97*'Inputs - General'!K$6 -> 0 | AG97: =Z97*'Inputs - General'!L$6 -> 0 | AH97: =AA97*'Inputs - General'!M$6 -> 0 | AI97: =AB97*'Inputs - General'!N$6 -> 0 | AJ97: =AC97*'Inputs - General'!O$6 -> 0 | AL97: =K97*'Inputs - General'!J$6 -> 0 | AM97: =L97*'Inputs - General'!K$6 -> 0 | AN97: =M97*'Inputs - General'!L$6 -> 0 | AO97: =N97*'Inputs - General'!M$6 -> 0 | AP97: =O97*'Inputs - General'!N$6 -> 0 | AQ97: =P97*'Inputs - General'!O$6 -> 0 | AS97: =R97*'Inputs - General'!K$6 -> 0 | AT97: =S97*'Inputs - General'!L$6 -> 0 | AU97: =T97*'Inputs - General'!M$6 -> 0 | AV97: =U97*'Inputs - General'!N$6 -> 0 | AW97: =V97*'Inputs - General'!O$6 -> 0 | AY97: =AE97*'Inputs - General'!K$4 -> 0 | AZ97: =AF97*'Inputs - General'!L$4 -> 0 | BA97: =AG97*'Inputs - General'!M$4 -> 0 | BB97: =AH97*'Inputs - General'!N$4 -> 0 | BC97: =AI97*'Inputs - General'!O$4 -> 0 | BE97: 0 | BF97: 0 | BG97: 0 | BH97: 0 | BI97: 0 | BK97: 0 | BL97: 0 | BM97: 0 | BN97: 0 | BO97: 0 | BQ97: ='Input - Customer Inventory FY15'!F96 -> 2 | BW97: =IF($C97="Lamp",0,IF(SUM(BR97:$BV97)>=$BQ97,0,IF(BK97<=0,IF($G97=0,0,$BQ97),0))) -> 0 | BX97: =IF($C97="Lamp",0,IF(SUM($BR97:BW97)>=$BQ97,0,IF(BL97<=0,IF($G97=0,0,$BQ97),0))) -> 0 | BY97: =IF($C97="Lamp",0,IF(SUM($BR97:BX97)>=$BQ97,0,IF(BM97<=0,IF($G97=0,0,$BQ97),0))) -> 0 | BZ97: =IF($C97="Lamp",0,IF(SUM($BR97:BY97)>=$BQ97,0,IF(BN97<=0,IF($G97=0,0,$BQ97),0))) -> 0 | CA97: =IF($C97="Lamp",0,IF(SUM($BR97:BZ97)>=$BQ97,0,IF(BO97<=0,IF($G97=0,0,$BQ97),0))) -> 0 | CI97: =CC97/'Inputs - General'!K$6 -> 0 | CJ97: =CD97/'Inputs - General'!L$6 -> 0 | CK97: =CE97/'Inputs - General'!M$6 -> 0 | CL97: =CF97/'Inputs - General'!N$6 -> 0 | CM97: =CG97/'Inputs - General'!O$6 -> 0
A98: Customer 1 | B98: ='Input - Customer Inventory FY15'!C97 -> Luminaire - 2x20W TF | C98: ='Input - Customer Inventory FY15'!D97 -> Luminaire | D98: ='Input - Customer Inventory FY15'!E97 -> 2x20W TF | E98: ='Input - Customer Inventory FY15'!G97 -> 1 | G98: 0 | H98: 0 | I98: 0 | K98: 0 | L98: 0 | M98: 0 | N98: 0 | O98: 0 | P98: 0 | R98: =IFERROR(IF(K98-(($G98-SUM($CH98:CH98))/$H98)<0,K98,(($G98-SUM($CH98:CH98))/$H98)),0) -> 0 | S98: =IFERROR(IF(L98-(($G98-SUM($CH98:CI98))/$H98)<0,L98,(($G98-SUM($CH98:CI98))/$H98)),0) -> 0 | T98: =IFERROR(IF(M98-(($G98-SUM($CH98:CJ98))/$H98)<0,M98,(($G98-SUM($CH98:CJ98))/$H98)),0) -> 0 | U98: =IFERROR(IF(N98-(($G98-SUM($CH98:CK98))/$H98)<0,N98,(($G98-SUM($CH98:CK98))/$H98)),0) -> 0 | V98: =IFERROR(IF(O98-(($G98-SUM($CH98:CL98))/$H98)<0,O98,(($G98-SUM($CH98:CL98))/$H98)),0) -> 0 | X98: 0 | Y98: 0 | Z98: 0 | AA98: 0 | AB98: 0 | AC98: 0 | AE98: =X98*'Inputs - General'!J$6 -> 0 | AF98: =Y98*'Inputs - General'!K$6 -> 0 | AG98: =Z98*'Inputs - General'!L$6 -> 0 | AH98: =AA98*'Inputs - General'!M$6 -> 0 | AI98: =AB98*'Inputs - General'!N$6 -> 0 | AJ98: =AC98*'Inputs - General'!O$6 -> 0 | AL98: =K98*'Inputs - General'!J$6 -> 0 | AM98: =L98*'Inputs - General'!K$6 -> 0 | AN98: =M98*'Inputs - General'!L$6 -> 0 | AO98: =N98*'Inputs - General'!M$6 -> 0 | AP98: =O98*'Inputs - General'!N$6 -> 0 | AQ98: =P98*'Inputs - General'!O$6 -> 0 | AS98: =R98*'Inputs - General'!K$6 -> 0 | AT98: =S98*'Inputs - General'!L$6 -> 0 | AU98: =T98*'Inputs - General'!M$6 -> 0 | AV98: =U98*'Inputs - General'!N$6 -> 0 | AW98: =V98*'Inputs - General'!O$6 -> 0 | AY98: =AE98*'Inputs - General'!K$4 -> 0 | AZ98: =AF98*'Inputs - General'!L$4 -> 0 | BA98: =AG98*'Inputs - General'!M$4 -> 0 | BB98: =AH98*'Inputs - General'!N$4 -> 0 | BC98: =AI98*'Inputs - General'!O$4 -> 0 | BE98: 0 | BF98: 0 | BG98: 0 | BH98: 0 | BI98: 0 | BK98: 0 | BL98: 0 | BM98: 0 | BN98: 0 | BO98: 0 | BQ98: ='Input - Customer Inventory FY15'!F97 -> 311.5 | BW98: =IF($C98="Lamp",0,IF(SUM(BR98:$BV98)>=$BQ98,0,IF(BK98<=0,IF($G98=0,0,$BQ98),0))) -> 0 | BX98: =IF($C98="Lamp",0,IF(SUM($BR98:BW98)>=$BQ98,0,IF(BL98<=0,IF($G98=0,0,$BQ98),0))) -> 0 | BY98: =IF($C98="Lamp",0,IF(SUM($BR98:BX98)>=$BQ98,0,IF(BM98<=0,IF($G98=0,0,$BQ98),0))) -> 0 | BZ98: =IF($C98="Lamp",0,IF(SUM($BR98:BY98)>=$BQ98,0,IF(BN98<=0,IF($G98=0,0,$BQ98),0))) -> 0 | CA98: =IF($C98="Lamp",0,IF(SUM($BR98:BZ98)>=$BQ98,0,IF(BO98<=0,IF($G98=0,0,$BQ98),0))) -> 0 | CI98: =CC98/'Inputs - General'!K$6 -> 0 | CJ98: =CD98/'Inputs - General'!L$6 -> 0 | CK98: =CE98/'Inputs - General'!M$6 -> 0 | CL98: =CF98/'Inputs - General'!N$6 -> 0 | CM98: =CG98/'Inputs - General'!O$6 -> 0
A99: Customer 1 | B99: ='Input - Customer Inventory FY15'!C98 -> Luminaire - 2x40W TF | C99: ='Input - Customer Inventory FY15'!D98 -> Luminaire | D99: ='Input - Customer Inventory FY15'!E98 -> 2x40W TF | E99: ='Input - Customer Inventory FY15'!G98 -> 1 | G99: 0 | H99: 0 | I99: 0 | K99: 0 | L99: 0 | M99: 0 | N99: 0 | O99: 0 | P99: 0 | R99: =IFERROR(IF(K99-(($G99-SUM($CH99:CH99))/$H99)<0,K99,(($G99-SUM($CH99:CH99))/$H99)),0) -> 0 | S99: =IFERROR(IF(L99-(($G99-SUM($CH99:CI99))/$H99)<0,L99,(($G99-SUM($CH99:CI99))/$H99)),0) -> 0 | T99: =IFERROR(IF(M99-(($G99-SUM($CH99:CJ99))/$H99)<0,M99,(($G99-SUM($CH99:CJ99))/$H99)),0) -> 0 | U99: =IFERROR(IF(N99-(($G99-SUM($CH99:CK99))/$H99)<0,N99,(($G99-SUM($CH99:CK99))/$H99)),0) -> 0 | V99: =IFERROR(IF(O99-(($G99-SUM($CH99:CL99))/$H99)<0,O99,(($G99-SUM($CH99:CL99))/$H99)),0) -> 0 | X99: 0 | Y99: 0 | Z99: 0 | AA99: 0 | AB99: 0 | AC99: 0 | AE99: =X99*'Inputs - General'!J$6 -> 0 | AF99: =Y99*'Inputs - General'!K$6 -> 0 | AG99: =Z99*'Inputs - General'!L$6 -> 0 | AH99: =AA99*'Inputs - General'!M$6 -> 0 | AI99: =AB99*'Inputs - General'!N$6 -> 0 | AJ99: =AC99*'Inputs - General'!O$6 -> 0 | AL99: =K99*'Inputs - General'!J$6 -> 0 | AM99: =L99*'Inputs - General'!K$6 -> 0 | AN99: =M99*'Inputs - General'!L$6 -> 0 | AO99: =N99*'Inputs - General'!M$6 -> 0 | AP99: =O99*'Inputs - General'!N$6 -> 0 | AQ99: =P99*'Inputs - General'!O$6 -> 0 | AS99: =R99*'Inputs - General'!K$6 -> 0 | AT99: =S99*'Inputs - General'!L$6 -> 0 | AU99: =T99*'Inputs - General'!M$6 -> 0 | AV99: =U99*'Inputs - General'!N$6 -> 0 | AW99: =V99*'Inputs - General'!O$6 -> 0 | AY99: =AE99*'Inputs - General'!K$4 -> 0 | AZ99: =AF99*'Inputs - General'!L$4 -> 0 | BA99: =AG99*'Inputs - General'!M$4 -> 0 | BB99: =AH99*'Inputs - General'!N$4 -> 0 | BC99: =AI99*'Inputs - General'!O$4 -> 0 | BE99: 0 | BF99: 0 | BG99: 0 | BH99: 0 | BI99: 0 | BK99: 0 | BL99: 0 | BM99: 0 | BN99: 0 | BO99: 0 | BQ99: ='Input - Customer Inventory FY15'!F98 -> 6 | BW99: =IF($C99="Lamp",0,IF(SUM(BR99:$BV99)>=$BQ99,0,IF(BK99<=0,IF($G99=0,0,$BQ99),0))) -> 0 | BX99: =IF($C99="Lamp",0,IF(SUM($BR99:BW99)>=$BQ99,0,IF(BL99<=0,IF($G99=0,0,$BQ99),0))) -> 0 | BY99: =IF($C99="Lamp",0,IF(SUM($BR99:BX99)>=$BQ99,0,IF(BM99<=0,IF($G99=0,0,$BQ99),0))) -> 0 | BZ99: =IF($C99="Lamp",0,IF(SUM($BR99:BY99)>=$BQ99,0,IF(BN99<=0,IF($G99=0,0,$BQ99),0))) -> 0 | CA99: =IF($C99="Lamp",0,IF(SUM($BR99:BZ99)>=$BQ99,0,IF(BO99<=0,IF($G99=0,0,$BQ99),0))) -> 0 | CI99: =CC99/'Inputs - General'!K$6 -> 0 | CJ99: =CD99/'Inputs - General'!L$6 -> 0 | CK99: =CE99/'Inputs - General'!M$6 -> 0 | CL99: =CF99/'Inputs - General'!N$6 -> 0 | CM99: =CG99/'Inputs - General'!O$6 -> 0
A100: Customer 1 | B100: ='Input - Customer Inventory FY15'!C99 -> Luminaire - 2x40W TF | C100: ='Input - Customer Inventory FY15'!D99 -> Luminaire | D100: ='Input - Customer Inventory FY15'!E99 -> 2x40W TF | E100: ='Input - Customer Inventory FY15'!G99 -> 2 | G100: 0 | H100: 0 | I100: 0 | K100: 0 | L100: 0 | M100: 0 | N100: 0 | O100: 0 | P100: 0 | R100: =IFERROR(IF(K100-(($G100-SUM($CH100:CH100))/$H100)<0,K100,(($G100-SUM($CH100:CH100))/$H100)),0) -> 0 | S100: =IFERROR(IF(L100-(($G100-SUM($CH100:CI100))/$H100)<0,L100,(($G100-SUM($CH100:CI100))/$H100)),0) -> 0 | T100: =IFERROR(IF(M100-(($G100-SUM($CH100:CJ100))/$H100)<0,M100,(($G100-SUM($CH100:CJ100))/$H100)),0) -> 0 | U100: =IFERROR(IF(N100-(($G100-SUM($CH100:CK100))/$H100)<0,N100,(($G100-SUM($CH100:CK100))/$H100)),0) -> 0 | V100: =IFERROR(IF(O100-(($G100-SUM($CH100:CL100))/$H100)<0,O100,(($G100-SUM($CH100:CL100))/$H100)),0) -> 0 | X100: 0 | Y100: 0 | Z100: 0 | AA100: 0 | AB100: 0 | AC100: 0 | AE100: =X100*'Inputs - General'!J$6 -> 0 | AF100: =Y100*'Inputs - General'!K$6 -> 0 | AG100: =Z100*'Inputs - General'!L$6 -> 0 | AH100: =AA100*'Inputs - General'!M$6 -> 0 | AI100: =AB100*'Inputs - General'!N$6 -> 0 | AJ100: =AC100*'Inputs - General'!O$6 -> 0 | AL100: =K100*'Inputs - General'!J$6 -> 0 | AM100: =L100*'Inputs - General'!K$6 -> 0 | AN100: =M100*'Inputs - General'!L$6 -> 0 | AO100: =N100*'Inputs - General'!M$6 -> 0 | AP100: =O100*'Inputs - General'!N$6 -> 0 | AQ100: =P100*'Inputs - General'!O$6 -> 0 | AS100: =R100*'Inputs - General'!K$6 -> 0 | AT100: =S100*'Inputs - General'!L$6 -> 0 | AU100: =T100*'Inputs - General'!M$6 -> 0 | AV100: =U100*'Inputs - General'!N$6 -> 0 | AW100: =V100*'Inputs - General'!O$6 -> 0 | AY100: =AE100*'Inputs - General'!K$4 -> 0 | AZ100: =AF100*'Inputs - General'!L$4 -> 0 | BA100: =AG100*'Inputs - General'!M$4 -> 0 | BB100: =AH100*'Inputs - General'!N$4 -> 0 | BC100: =AI100*'Inputs - General'!O$4 -> 0 | BE100: 0 | BF100: 0 | BG100: 0 | BH100: 0 | BI100: 0 | BK100: 0 | BL100: 0 | BM100: 0 | BN100: 0 | BO100: 0 | BQ100: ='Input - Customer Inventory FY15'!F99 -> 6 | BW100: =IF($C100="Lamp",0,IF(SUM(BR100:$BV100)>=$BQ100,0,IF(BK100<=0,IF($G100=0,0,$BQ100),0))) -> 0 | BX100: =IF($C100="Lamp",0,IF(SUM($BR100:BW100)>=$BQ100,0,IF(BL100<=0,IF($G100=0,0,$BQ100),0))) -> 0 | BY100: =IF($C100="Lamp",0,IF(SUM($BR100:BX100)>=$BQ100,0,IF(BM100<=0,IF($G100=0,0,$BQ100),0))) -> 0 | BZ100: =IF($C100="Lamp",0,IF(SUM($BR100:BY100)>=$BQ100,0,IF(BN100<=0,IF($G100=0,0,$BQ100),0))) -> 0 | CA100: =IF($C100="Lamp",0,IF(SUM($BR100:BZ100)>=$BQ100,0,IF(BO100<=0,IF($G100=0,0,$BQ100),0))) -> 0 | CI100: =CC100/'Inputs - General'!K$6 -> 0 | CJ100: =CD100/'Inputs - General'!L$6 -> 0 | CK100: =CE100/'Inputs - General'!M$6 -> 0 | CL100: =CF100/'Inputs - General'!N$6 -> 0 | CM100: =CG100/'Inputs - General'!O$6 -> 0
A101: Customer 1 | B101: ='Input - Customer Inventory FY15'!C100 -> Luminaire - 400W MBF - PARKWAY 1 | C101: ='Input - Customer Inventory FY15'!D100 -> Luminaire | D101: ='Input - Customer Inventory FY15'!E100 -> 400W MBF - PARKWAY 1 | E101: ='Input - Customer Inventory FY15'!G100 -> 1 | G101: 9.074482595 | H101: 2.749341929 | I101: 3.300601682 | K101: 9.074482595 | L101: 5.773880913 | M101: 2.47327923 | N101: 0 | O101: 0 | P101: 0 | R101: =IFERROR(IF(K101-(($G101-SUM($CH101:CH101))/$H101)<0,K101,(($G101-SUM($CH101:CH101))/$H101)),0) -> 3.300601682 | S101: =IFERROR(IF(L101-(($G101-SUM($CH101:CI101))/$H101)<0,L101,(($G101-SUM($CH101:CI101))/$H101)),0) -> 3.300601682 | T101: =IFERROR(IF(M101-(($G101-SUM($CH101:CJ101))/$H101)<0,M101,(($G101-SUM($CH101:CJ101))/$H101)),0) -> 2.47327923 | U101: =IFERROR(IF(N101-(($G101-SUM($CH101:CK101))/$H101)<0,N101,(($G101-SUM($CH101:CK101))/$H101)),0) -> 0 | V101: =IFERROR(IF(O101-(($G101-SUM($CH101:CL101))/$H101)<0,O101,(($G101-SUM($CH101:CL101))/$H101)),0) -> 0 | X101: 9.074482595 | Y101: 5.773880913 | Z101: 2.47327923 | AA101: 0 | AB101: 0 | AC101: 0 | AE101: =X101*'Inputs - General'!J$6 -> 9.074482595 | AF101: =Y101*'Inputs - General'!K$6 -> 5.913890288 | AG101: =Z101*'Inputs - General'!L$6 -> 2.594681365 | AH101: =AA101*'Inputs - General'!M$6 -> 0 | AI101: =AB101*'Inputs - General'!N$6 -> 0 | AJ101: =AC101*'Inputs - General'!O$6 -> 0 | AL101: =K101*'Inputs - General'!J$6 -> 9.074482595 | AM101: =L101*'Inputs - General'!K$6 -> 5.913890288 | AN101: =M101*'Inputs - General'!L$6 -> 2.594681365 | AO101: =N101*'Inputs - General'!M$6 -> 0 | AP101: =O101*'Inputs - General'!N$6 -> 0 | AQ101: =P101*'Inputs - General'!O$6 -> 0 | AS101: =R101*'Inputs - General'!K$6 -> 3.380637136 | AT101: =S101*'Inputs - General'!L$6 -> 3.462613349 | AU101: =T101*'Inputs - General'!M$6 -> 2.657599136 | AV101: =U101*'Inputs - General'!N$6 -> 0 | AW101: =V101*'Inputs - General'!O$6 -> 0 | AY101: =AE101*'Inputs - General'!K$4 -> 0.2200448287 | AZ101: =AF101*'Inputs - General'!L$4 -> 0.1434044269 | BA101: =AG101*'Inputs - General'!M$4 -> 0.06291777086 | BB101: =AH101*'Inputs - General'!N$4 -> 0 | BC101: =AI101*'Inputs - General'!O$4 -> 0 | BE101: 3.160592307 | BF101: 3.319208923 | BG101: 2.594681365 | BH101: 0 | BI101: 0 | BK101: 0.5701507013 | BL101: 0.3715703523 | BM101: 0.1630241046 | BN101: 0 | BO101: 0 | BQ101: ='Input - Customer Inventory FY15'!F100 -> 24.5 | BW101: =IF($C101="Lamp",0,IF(SUM(BR101:$BV101)>=$BQ101,0,IF(BK101<=0,IF($G101=0,0,$BQ101),0))) -> 0 | BX101: =IF($C101="Lamp",0,IF(SUM($BR101:BW101)>=$BQ101,0,IF(BL101<=0,IF($G101=0,0,$BQ101),0))) -> 0 | BY101: =IF($C101="Lamp",0,IF(SUM($BR101:BX101)>=$BQ101,0,IF(BM101<=0,IF($G101=0,0,$BQ101),0))) -> 0 | BZ101: =IF($C101="Lamp",0,IF(SUM($BR101:BY101)>=$BQ101,0,IF(BN101<=0,IF($G101=0,0,$BQ101),0))) -> 24.5 | CA101: =IF($C101="Lamp",0,IF(SUM($BR101:BZ101)>=$BQ101,0,IF(BO101<=0,IF($G101=0,0,$BQ101),0))) -> 0 | CI101: =CC101/'Inputs - General'!K$6 -> 0 | CJ101: =CD101/'Inputs - General'!L$6 -> 0 | CK101: =CE101/'Inputs - General'!M$6 -> 0 | CL101: =CF101/'Inputs - General'!N$6 -> 0 | CM101: =CG101/'Inputs - General'!O$6 -> 0
